Workbook

Sheet Interject_LastPulledValues (hidden)
A1: Interject_LastPulledValues_BalanceRange | K1: Interject_LastPulledValues_DescriptionRange | P1: Interject_LastPulledValues_LastChangeGUID
A2: KeyValue | B2: FullAccount | C2: Period | D2: Year | E2: Source | F2: Company | G2: Currency | H2: Version | I2: Balance | K2: KeyValue | L2: SegmentValue | M2: SegmentNumber | N2: Description | P2: Interject_LastPulledValues_PreviousLastChangeGUID

Sheet Total Depreciation Summary
A1: Depreciation & Average Investment Summary
A2: Waste Connections of WA
A4: Assets Through 7/31/2021 | J4: New Asset Adds from FAR (8/1/2021 and Beyond) | S4: Proforma Adds | AB4: Combined Summary - This Section to Proforma
F5: Beginning | G5: Ending | H5: Average | O5: Beginning | P5: Ending | Q5: Average | X5: Beginning | Y5: Ending | Z5: Average | AG5: Beginning | AH5: Ending | AI5: Average
A6: Equipment | B6: Cost | C6: Salvage | D6: Depr | E6: Test Year | F6: Accum Depr | G6: Accum Depr | H6: Investment | J6: Equipment | K6: Cost | L6: Salvage | M6: Depr | N6: Test Year | O6: Accum Depr | P6: Accum Depr | Q6: Investment | S6: Equipment | T6: Cost | U6: Salvage | V6: Depr | W6: Test Year | X6: Accum Depr | Y6: Accum Depr | Z6: Investment | AB6: Equipment | AC6: Cost | AD6: Salvage | AE6: Depr | AF6: Test Year | AG6: Accum Depr | AH6: Accum Depr | AI6: Investment
D7: Cost | E7: Depr | F7: 4/1/2023 | G7: 2024-03-31 | H7: =G7 -> 2024-03-31 | M7: Cost | N7: Depr | O7: =$F$7 -> 4/1/2023 | P7: =$G$7 -> 2024-03-31 | Q7: =P7 -> 2024-03-31 | V7: Cost | W7: Depr | AE7: Cost | AF7: Depr | AG7: =+O7 -> 4/1/2023 | AH7: =+P7 -> 2024-03-31 | AI7: 2024-03-31
A8: Trucks | J8: Trucks | S8: Trucks | AB8: Trucks
A9: Garbage Trucks - Regulated Only | B9: =+'Total Trucks - Salvage Value'!N56 -> 4752858.593 | C9: =B9-D9 -> 0 | D9: =+'Total Trucks - Salvage Value'!O56 -> 4752858.593 | E9: =+'Total Trucks - Salvage Value'!R56 -> 155561.3093 | F9: =+'Total Trucks - Salvage Value'!S56 -> 3839623.798 | G9: =+'Total Trucks - Salvage Value'!T56 -> 3995185.107 | H9: =+'Total Trucks - Salvage Value'!U56 -> 757673.486 | J9: Garbage Trucks - Regulated Only | K9: =IFERROR(VLOOKUP($J9,'FAR Dep Summary'!$A$32:$F$53,2,FALSE),0) -> 8569982.25 | L9: =K9-M9 -> 0 | M9: =K9 -> 8569982.25 | N9: =IFERROR(VLOOKUP($J9,'FAR Dep Summary'!$A$32:$F$53,3,FALSE),0) -> 864698.35 | O9: =IFERROR(VLOOKUP($J9,'FAR Dep Summary'!$A$32:$F$53,4,FALSE),0) -> 118278.7358 | P9: =IFERROR(VLOOKUP($J9,'FAR Dep Summary'!$A$32:$F$53,5,FALSE),0) -> 982977.0858 | Q9: =IFERROR(VLOOKUP($J9,'FAR Dep Summary'!$A$32:$F$53,6,FALSE),0) -> 7587005.164 | S9: Garbage Trucks - Regulated Only | T9: =+SUMIF('2024 Bud Capital Summary'!$A$5:$A$34,$S9,'2024 Bud Capital Summary'!$B$5:$B$35) -> 0 | U9: =T9-V9 -> 0 | V9: =T9 -> 0 | W9: =+SUMIF('2024 Bud Capital Summary'!$A$5:$A$34,$S9,'2024 Bud Capital Summary'!C$5:C$34) -> 0 | X9: 0 | Y9: =+SUMIF('2024 Bud Capital Summary'!$A$5:$A$34,$S9,'2024 Bud Capital Summary'!D$5:D$34) -> 0 | Z9: =+SUMIF('2024 Bud Capital Summary'!$A$5:$A$34,$S9,'2024 Bud Capital Summary'!E$5:E$34) -> 0 | AB9: Garbage Trucks - Regulated Only | AC9: =B9+K9+T9 -> 13322840.84 | AD9: =C9+L9+U9 -> 0 | AE9: 13322840.84 | AF9: 1020259.659 | AG9: =F9+O9+X9 -> 3957902.534 | AH9: =G9+P9+Y9 -> 4978162.193 | AI9: =+Z9+Q9+H9 -> 8344678.65 | AJ9: 0
A11: Garbage Trucks - Non-Regulated Only | B11: =+'Total Trucks - Salvage Value'!N93 -> 4478558.02 | C11: =B11-D11 -> 261951.442 | D11: =+'Total Trucks - Salvage Value'!O93 -> 4216606.578 | E11: =+'Total Trucks - Salvage Value'!R93 -> 310400.345 | F11: =+'Total Trucks - Salvage Value'!S93 -> 2211947.342 | G11: =+'Total Trucks - Salvage Value'!T93 -> 2522347.687 | H11: =+'Total Trucks - Salvage Value'!U93 -> 1956210.333 | J11: Garbage Trucks - Non-Regulated Only | K11: =IFERROR(VLOOKUP($J11,'FAR Dep Summary'!$A$32:$F$53,2,FALSE),0) -> 1433776.56 | L11: =K11-M11 -> 0 | M11: =K11 -> 1433776.56 | N11: =IFERROR(VLOOKUP($J11,'FAR Dep Summary'!$A$32:$F$53,3,FALSE),0) -> 163234.9931 | O11: =IFERROR(VLOOKUP($J11,'FAR Dep Summary'!$A$32:$F$53,4,FALSE),0) -> 89054.74235 | P11: =IFERROR(VLOOKUP($J11,'FAR Dep Summary'!$A$32:$F$53,5,FALSE),0) -> 252289.7354 | Q11: =IFERROR(VLOOKUP($J11,'FAR Dep Summary'!$A$32:$F$53,6,FALSE),0) -> 1181486.825 | S11: Garbage Trucks - Non-Regulated Only | T11: =+SUMIF('2024 Bud Capital Summary'!$A$5:$A$34,$S11,'2024 Bud Capital Summary'!$B$5:$B$35) -> 33933.3 | U11: =T11-V11 -> 0 | V11: =T11 -> 33933.3 | W11: =+SUMIF('2024 Bud Capital Summary'!$A$5:$A$34,$S11,'2024 Bud Capital Summary'!C$5:C$34) -> 3393.33 | X11: 0 | Y11: =+SUMIF('2024 Bud Capital Summary'!$A$5:$A$34,$S11,'2024 Bud Capital Summary'!D$5:D$34) -> 3393.33 | Z11: =+SUMIF('2024 Bud Capital Summary'!$A$5:$A$34,$S11,'2024 Bud Capital Summary'!E$5:E$34) -> 30539.97 | AB11: Garbage Trucks - Non-Regulated Only | AC11: =B11+K11+T11 -> 5946267.88 | AD11: =C11+L11+U11 -> 261951.442 | AE11: =D11+M11+V11 -> 5684316.438 | AF11: =E11+N11+W11 -> 477028.6681 | AG11: =F11+O11+X11 -> 2301002.085 | AH11: =G11+P11+Y11 -> 2778030.753 | AI11: =H11+Q11+Z11 -> 3168237.127 | AJ11: 0
A13: Garbage Trucks - Shared | B13: =+'Total Trucks - Salvage Value'!N134 -> 5005321.01 | C13: =B13-D13 -> 0 | D13: =+'Total Trucks - Salvage Value'!O134 -> 5005321.01 | E13: =+'Total Trucks - Salvage Value'!R134 -> 337269.51 | F13: =+'Total Trucks - Salvage Value'!S134 -> 3126602.271 | G13: =+'Total Trucks - Salvage Value'!T134 -> 3463927.743 | H13: =+'Total Trucks - Salvage Value'!U134 -> 1541393.267 | J13: Garbage Trucks - Shared | K13: =IFERROR(VLOOKUP($J13,'FAR Dep Summary'!$A$32:$F$53,2,FALSE),0) -> 1716071.53 | L13: =K13-M13 -> 0 | M13: =K13 -> 1716071.53 | N13: =IFERROR(VLOOKUP($J13,'FAR Dep Summary'!$A$32:$F$53,3,FALSE),0) -> 176472.724 | O13: =IFERROR(VLOOKUP($J13,'FAR Dep Summary'!$A$32:$F$53,4,FALSE),0) -> 31313.58267 | P13: =IFERROR(VLOOKUP($J13,'FAR Dep Summary'!$A$32:$F$53,5,FALSE),0) -> 207786.3067 | Q13: =IFERROR(VLOOKUP($J13,'FAR Dep Summary'!$A$32:$F$53,6,FALSE),0) -> 1508285.223 | S13: Garbage Trucks - Shared | T13: =+SUMIF('2024 Bud Capital Summary'!$A$5:$A$34,$S13,'2024 Bud Capital Summary'!$B$5:$B$35) -> 964161 | U13: =T13-V13 -> 0 | V13: =T13 -> 964161 | W13: =+SUMIF('2024 Bud Capital Summary'!$A$5:$A$34,$S13,'2024 Bud Capital Summary'!C$5:C$34) -> 96416.1 | X13: 0 | Y13: =+SUMIF('2024 Bud Capital Summary'!$A$5:$A$34,$S13,'2024 Bud Capital Summary'!D$5:D$34) -> 96416.1 | Z13: =+SUMIF('2024 Bud Capital Summary'!$A$5:$A$34,$S13,'2024 Bud Capital Summary'!E$5:E$34) -> 867744.9 | AB13: Garbage Trucks - Shared | AC13: =B13+K13+T13 -> 7685553.54 | AD13: =C13+L13+U13 -> 0 | AE13: =D13+M13+V13 -> 7685553.54 | AF13: =E13+N13+W13 -> 610158.334 | AG13: =F13+O13+X13 -> 3157915.854 | AH13: =G13+P13+Y13 -> 3768130.15 | AI13: =H13+Q13+Z13 -> 3917423.39 | AJ13: 0
A15: Electric Trucks | B15: =+'Total Trucks - Salvage Value'!N141 -> 84735.63 | C15: =B15-D15 -> 0 | D15: =+'Total Trucks - Salvage Value'!O141 -> 84735.63 | E15: =+'Total Trucks - Salvage Value'!R141 -> 8473.563 | F15: =+'Total Trucks - Salvage Value'!S141 -> 17653.25625 | G15: =+'Total Trucks - Salvage Value'!T141 -> 26126.81925 | H15: =+'Total Trucks - Salvage Value'!U141 -> 58608.81075 | J15: Electric Trucks | K15: =IFERROR(VLOOKUP($J15,'FAR Dep Summary'!$A$32:$F$53,2,FALSE),0) -> 0 | L15: =K15-M15 -> 0 | M15: =K15 -> 0 | N15: =IFERROR(VLOOKUP($J15,'FAR Dep Summary'!$A$32:$F$53,3,FALSE),0) -> 0 | O15: =IFERROR(VLOOKUP($J15,'FAR Dep Summary'!$A$32:$F$53,4,FALSE),0) -> 0 | P15: =IFERROR(VLOOKUP($J15,'FAR Dep Summary'!$A$32:$F$53,5,FALSE),0) -> 0 | Q15: =IFERROR(VLOOKUP($J15,'FAR Dep Summary'!$A$32:$F$53,6,FALSE),0) -> 0 | S15: Electric Trucks | T15: =+SUMIF('2024 Bud Capital Summary'!$A$5:$A$34,$S15,'2024 Bud Capital Summary'!$B$5:$B$35) -> 0 | U15: =T15-V15 -> 0 | V15: =T15 -> 0 | W15: =+SUMIF('2024 Bud Capital Summary'!$A$5:$A$34,$S15,'2024 Bud Capital Summary'!C$5:C$34) -> 0 | X15: 0 | Y15: =+SUMIF('2024 Bud Capital Summary'!$A$5:$A$34,$S15,'2024 Bud Capital Summary'!D$5:D$34) -> 0 | Z15: =+SUMIF('2024 Bud Capital Summary'!$A$5:$A$34,$S15,'2024 Bud Capital Summary'!E$5:E$34) -> 0 | AB15: Electric Trucks | AC15: =B15+K15+T15 -> 84735.63 | AD15: =C15+L15+U15 -> 0 | AE15: =D15+M15+V15 -> 84735.63 | AF15: =E15+N15+W15 -> 8473.563 | AG15: =F15+O15+X15 -> 17653.25625 | AH15: =G15+P15+Y15 -> 26126.81925 | AI15: =H15+Q15+Z15 -> 58608.81075 | AJ15: 0
A17: Roll-off Trucks | B17: =+'Total Trucks - Salvage Value'!N187 -> 4786518.662 | C17: =B17-D17 -> 0 | D17: =+'Total Trucks - Salvage Value'!O187 -> 4786518.662 | E17: =+'Total Trucks - Salvage Value'!R187 -> 306407.289 | F17: =+'Total Trucks - Salvage Value'!S187 -> 3074031.999 | G17: =+'Total Trucks - Salvage Value'!T187 -> 3380495.249 | H17: =+'Total Trucks - Salvage Value'!U187 -> 1406023.413 | J17: Roll-off Trucks | K17: =IFERROR(VLOOKUP($J17,'FAR Dep Summary'!$A$32:$F$53,2,FALSE),0) -> 1350494.21 | L17: =K17-M17 -> 0 | M17: =K17 -> 1350494.21 | N17: =IFERROR(VLOOKUP($J17,'FAR Dep Summary'!$A$32:$F$53,3,FALSE),0) -> 141588.2637 | O17: =IFERROR(VLOOKUP($J17,'FAR Dep Summary'!$A$32:$F$53,4,FALSE),0) -> 31376.46578 | P17: =IFERROR(VLOOKUP($J17,'FAR Dep Summary'!$A$32:$F$53,5,FALSE),0) -> 172964.7294 | Q17: =IFERROR(VLOOKUP($J17,'FAR Dep Summary'!$A$32:$F$53,6,FALSE),0) -> 1177529.481 | S17: Roll-off Trucks | T17: =+SUMIF('2024 Bud Capital Summary'!$A$5:$A$34,$S17,'2024 Bud Capital Summary'!$B$5:$B$35) -> 1148883 | U17: =T17-V17 -> 0 | V17: =T17 -> 1148883 | W17: =+SUMIF('2024 Bud Capital Summary'!$A$5:$A$34,$S17,'2024 Bud Capital Summary'!C$5:C$34) -> 114888.3 | X17: 0 | Y17: =+SUMIF('2024 Bud Capital Summary'!$A$5:$A$34,$S17,'2024 Bud Capital Summary'!D$5:D$34) -> 114888.3 | Z17: =+SUMIF('2024 Bud Capital Summary'!$A$5:$A$34,$S17,'2024 Bud Capital Summary'!E$5:E$34) -> 1033994.7 | AB17: Roll-off Trucks | AC17: =B17+K17+T17 -> 7285895.872 | AD17: =C17+L17+U17 -> 0 | AE17: =D17+M17+V17 -> 7285895.872 | AF17: =E17+N17+W17 -> 562883.8527 | AG17: =F17+O17+X17 -> 3105408.464 | AH17: =G17+P17+Y17 -> 3668348.278 | AI17: =H17+Q17+Z17 -> 3617547.593 | AJ17: 0
A19: Recycle Trucks | B19: =+'Total Trucks - Salvage Value'!N244 -> 10746848.66 | C19: =B19-D19 -> 1178414.2 | D19: =+'Total Trucks - Salvage Value'!O244 -> 9568434.459 | E19: =+'Total Trucks - Salvage Value'!R244 -> 492034.397 | F19: =+'Total Trucks - Salvage Value'!S244 -> 7907724.56 | G19: =+'Total Trucks - Salvage Value'!T244 -> 8399787.791 | H19: =+'Total Trucks - Salvage Value'!U244 -> 2347060.868 | J19: Recycle Trucks | K19: =IFERROR(VLOOKUP($J19,'FAR Dep Summary'!$A$32:$F$53,2,FALSE),0) -> 5496951.43 | L19: =K19-M19 -> 0 | M19: =K19 -> 5496951.43 | N19: =IFERROR(VLOOKUP($J19,'FAR Dep Summary'!$A$32:$F$53,3,FALSE),0) -> 597546.307 | O19: =IFERROR(VLOOKUP($J19,'FAR Dep Summary'!$A$32:$F$53,4,FALSE),0) -> 409804.3355 | P19: =IFERROR(VLOOKUP($J19,'FAR Dep Summary'!$A$32:$F$53,5,FALSE),0) -> 1007350.642 | Q19: =IFERROR(VLOOKUP($J19,'FAR Dep Summary'!$A$32:$F$53,6,FALSE),0) -> 4489600.788 | S19: Recycle Trucks | T19: =+SUMIF('2024 Bud Capital Summary'!$A$5:$A$34,$S19,'2024 Bud Capital Summary'!$B$5:$B$35) -> 2560503 | U19: =T19-V19 -> 0 | V19: =T19 -> 2560503 | W19: =+SUMIF('2024 Bud Capital Summary'!$A$5:$A$34,$S19,'2024 Bud Capital Summary'!C$5:C$34) -> 256050.3 | X19: 0 | Y19: =+SUMIF('2024 Bud Capital Summary'!$A$5:$A$34,$S19,'2024 Bud Capital Summary'!D$5:D$34) -> 256050.3 | Z19: =+SUMIF('2024 Bud Capital Summary'!$A$5:$A$34,$S19,'2024 Bud Capital Summary'!E$5:E$34) -> 2304452.7 | AB19: Recycle Trucks | AC19: =B19+K19+T19 -> 18804303.09 | AD19: =C19+L19+U19 -> 1178414.2 | AE19: =D19+M19+V19 -> 17625888.89 | AF19: =E19+N19+W19 -> 1345631.004 | AG19: =F19+O19+X19 -> 8317528.895 | AH19: =G19+P19+Y19 -> 9663188.734 | AI19: =H19+Q19+Z19 -> 9141114.355 | AJ19: 0
A21: Yard Debris Trucks | B21: =+'Total Trucks - Salvage Value'!N260 -> 2115245.61 | C21: =B21-D21 -> 383447.436 | D21: =+'Total Trucks - Salvage Value'!O260 -> 1731798.174 | E21: =+'Total Trucks - Salvage Value'!R260 -> 17895.11 | F21: =+'Total Trucks - Salvage Value'!S260 -> 1994453.618 | G21: =+'Total Trucks - Salvage Value'!T260 -> 2012348.728 | H21: =+'Total Trucks - Salvage Value'!U260 -> 102896.8825 | J21: Yard Debris Trucks | K21: =IFERROR(VLOOKUP($J21,'FAR Dep Summary'!$A$32:$F$53,2,FALSE),0) -> 0 | L21: =K21-M21 -> 0 | M21: =K21 -> 0 | N21: =IFERROR(VLOOKUP($J21,'FAR Dep Summary'!$A$32:$F$53,3,FALSE),0) -> 0 | O21: =IFERROR(VLOOKUP($J21,'FAR Dep Summary'!$A$32:$F$53,4,FALSE),0) -> 0 | P21: =IFERROR(VLOOKUP($J21,'FAR Dep Summary'!$A$32:$F$53,5,FALSE),0) -> 0 | Q21: =IFERROR(VLOOKUP($J21,'FAR Dep Summary'!$A$32:$F$53,6,FALSE),0) -> 0 | S21: Yard Debris Trucks | T21: =+SUMIF('2024 Bud Capital Summary'!$A$5:$A$34,$S21,'2024 Bud Capital Summary'!$B$5:$B$35) -> 0 | U21: =T21-V21 -> 0 | V21: =T21 -> 0 | W21: =+SUMIF('2024 Bud Capital Summary'!$A$5:$A$34,$S21,'2024 Bud Capital Summary'!C$5:C$34) -> 0 | X21: 0 | Y21: =+SUMIF('2024 Bud Capital Summary'!$A$5:$A$34,$S21,'2024 Bud Capital Summary'!D$5:D$34) -> 0 | Z21: =+SUMIF('2024 Bud Capital Summary'!$A$5:$A$34,$S21,'2024 Bud Capital Summary'!E$5:E$34) -> 0 | AB21: Yard Debris Trucks | AC21: =B21+K21+T21 -> 2115245.61 | AD21: =C21+L21+U21 -> 383447.436 | AE21: =D21+M21+V21 -> 1731798.174 | AF21: =E21+N21+W21 -> 17895.11 | AG21: =F21+O21+X21 -> 1994453.618 | AH21: =G21+P21+Y21 -> 2012348.728 | AI21: =H21+Q21+Z21 -> 102896.8825 | AJ21: 0
A23: Shredding Trucks | B23: =+'Total Trucks - Salvage Value'!N269 -> 551960.2557 | C23: =B23-D23 -> 83399.2962 | D23: =+'Total Trucks - Salvage Value'!O269 -> 468560.9595 | E23: =+'Total Trucks - Salvage Value'!R269 -> 29707.719 | F23: =+'Total Trucks - Salvage Value'!S269 -> 386092.1579 | G23: =+'Total Trucks - Salvage Value'!T269 -> 415799.8769 | H23: =+'Total Trucks - Salvage Value'!U269 -> 136160.3788 | J23: Shredding Trucks | K23: =IFERROR(VLOOKUP($J23,'FAR Dep Summary'!$A$32:$F$53,2,FALSE),0) -> 2500 | L23: =K23-M23 -> 0 | M23: =K23 -> 2500 | N23: =IFERROR(VLOOKUP($J23,'FAR Dep Summary'!$A$32:$F$53,3,FALSE),0) -> 833.3333333 | O23: =IFERROR(VLOOKUP($J23,'FAR Dep Summary'!$A$32:$F$53,4,FALSE),0) -> 1250 | P23: =IFERROR(VLOOKUP($J23,'FAR Dep Summary'!$A$32:$F$53,5,FALSE),0) -> 2083.333333 | Q23: =IFERROR(VLOOKUP($J23,'FAR Dep Summary'!$A$32:$F$53,6,FALSE),0) -> 416.6666667 | S23: Shredding Trucks | T23: =+SUMIF('2024 Bud Capital Summary'!$A$5:$A$34,$S23,'2024 Bud Capital Summary'!$B$5:$B$35) -> 0 | U23: =T23-V23 -> 0 | V23: =T23 -> 0 | W23: =+SUMIF('2024 Bud Capital Summary'!$A$5:$A$34,$S23,'2024 Bud Capital Summary'!C$5:C$34) -> 0 | X23: 0 | Y23: =+SUMIF('2024 Bud Capital Summary'!$A$5:$A$34,$S23,'2024 Bud Capital Summary'!D$5:D$34) -> 0 | Z23: =+SUMIF('2024 Bud Capital Summary'!$A$5:$A$34,$S23,'2024 Bud Capital Summary'!E$5:E$34) -> 0 | AB23: Shredding Trucks | AC23: =B23+K23+T23 -> 554460.2557 | AD23: =C23+L23+U23 -> 83399.2962 | AE23: =D23+M23+V23 -> 471060.9595 | AF23: =E23+N23+W23 -> 30541.05233 | AG23: =F23+O23+X23 -> 387342.1579 | AH23: =G23+P23+Y23 -> 417883.2103 | AI23: =H23+Q23+Z23 -> 136577.0454 | AJ23: 0
A25: Container Delivery Trucks | B25: =+'Total Trucks - Salvage Value'!N296 -> 1117498.2 | C25: =B25-D25 -> 0 | D25: =+'Total Trucks - Salvage Value'!O296 -> 1117498.2 | E25: =+'Total Trucks - Salvage Value'!R296 -> 76985.257 | F25: =+'Total Trucks - Salvage Value'!S296 -> 646342.4812 | G25: =+'Total Trucks - Salvage Value'!T296 -> 723383.6997 | H25: =+'Total Trucks - Salvage Value'!U296 -> 394114.5003 | J25: Container Delivery Trucks | K25: =IFERROR(VLOOKUP($J25,'FAR Dep Summary'!$A$32:$F$53,2,FALSE),0) -> 0 | L25: =K25-M25 -> 0 | M25: =K25 -> 0 | N25: =IFERROR(VLOOKUP($J25,'FAR Dep Summary'!$A$32:$F$53,3,FALSE),0) -> 0 | O25: =IFERROR(VLOOKUP($J25,'FAR Dep Summary'!$A$32:$F$53,4,FALSE),0) -> 0 | P25: =IFERROR(VLOOKUP($J25,'FAR Dep Summary'!$A$32:$F$53,5,FALSE),0) -> 0 | Q25: =IFERROR(VLOOKUP($J25,'FAR Dep Summary'!$A$32:$F$53,6,FALSE),0) -> 0 | S25: Container Delivery Trucks | T25: =+SUMIF('2024 Bud Capital Summary'!$A$5:$A$34,$S25,'2024 Bud Capital Summary'!$B$5:$B$35) -> 0 | U25: =T25-V25 -> 0 | V25: =T25 -> 0 | W25: =+SUMIF('2024 Bud Capital Summary'!$A$5:$A$34,$S25,'2024 Bud Capital Summary'!C$5:C$34) -> 0 | X25: 0 | Y25: =+SUMIF('2024 Bud Capital Summary'!$A$5:$A$34,$S25,'2024 Bud Capital Summary'!D$5:D$34) -> 0 | Z25: =+SUMIF('2024 Bud Capital Summary'!$A$5:$A$34,$S25,'2024 Bud Capital Summary'!E$5:E$34) -> 0 | AB25: Container Delivery Trucks | AC25: =B25+K25+T25 -> 1117498.2 | AD25: =C25+L25+U25 -> 0 | AE25: =D25+M25+V25 -> 1117498.2 | AF25: =E25+N25+W25 -> 76985.257 | AG25: =F25+O25+X25 -> 646342.4812 | AH25: =G25+P25+Y25 -> 723383.6997 | AI25: =H25+Q25+Z25 -> 394114.5003 | AJ25: 0
A27: Total Trucks | B27: =SUM(B9:B26) -> 33639544.64 | C27: 1907212.374 | D27: 31732332.27 | E27: 1734734.499 | F27: 23204471.48 | G27: 24939402.7 | H27: 8700141.938 | J27: Total Trucks | K27: =SUM(K9:K26) -> 18569775.98 | L27: 0 | M27: 18569775.98 | N27: 1944373.971 | O27: 681077.8621 | P27: 2625451.833 | Q27: 15944324.15 | S27: Total Trucks | T27: =SUM(T9:T26) -> 4707480.3 | U27: 0 | V27: 4707480.3 | W27: 470748.03 | X27: 0 | Y27: =SUM(Y9:Y26) -> 470748.03 | Z27: =SUM(Z9:Z26) -> 4236732.27 | AB27: Total Trucks | AC27: =SUM(AC9:AC26) -> 56916800.92 | AD27: 1907212.374 | AE27: 55009588.55 | AF27: 4149856.5 | AG27: 23885549.35 | AH27: 28035602.57 | AI27: 28881198.35
A28: Check | B28: =B27-'Total Trucks - Salvage Value'!N298 -> 0 | D28: =D27-'Total Trucks - Salvage Value'!O298 -> 0 | E28: =E27-'Total Trucks - Salvage Value'!R298 -> 0 | F28: =F27-'Total Trucks - Salvage Value'!S298 -> 0 | G28: =G27-'Total Trucks - Salvage Value'!T298 -> 0 | H28: =H27-'Total Trucks - Salvage Value'!U298 -> 0 | I28: + | R28: + | AA28: =
A29: Containers: | J29: Containers: | S29: Containers: | AB29: Containers:
A30: Garbage Carts (non-reg) | B30: =+'Total Cont, DB'!K810 -> 2561568.17 | C30: =B30-D30 -> 0 | D30: =+'Total Cont, DB'!L810 -> 2561568.17 | E30: =+'Total Cont, DB'!O810 -> 126265.8471 | F30: =+'Total Cont, DB'!P810 -> 2144259.779 | G30: =+'Total Cont, DB'!Q810 -> 2272523.044 | H30: =+'Total Cont, DB'!R810 -> 289045.1263 | J30: Garbage Carts (non-reg) | K30: =IFERROR(VLOOKUP($J30,'FAR Dep Summary'!$A$32:$F$53,2,FALSE),0) -> 463058.55 | L30: =K30-M30 -> 0 | M30: =K30 -> 463058.55 | N30: =IFERROR(VLOOKUP($J30,'FAR Dep Summary'!$A$32:$F$53,3,FALSE),0) -> 66151.22143 | O30: =IFERROR(VLOOKUP($J30,'FAR Dep Summary'!$A$32:$F$53,4,FALSE),0) -> 40096.07024 | P30: =IFERROR(VLOOKUP($J30,'FAR Dep Summary'!$A$32:$F$53,5,FALSE),0) -> 106247.2917 | Q30: =IFERROR(VLOOKUP($J30,'FAR Dep Summary'!$A$32:$F$53,6,FALSE),0) -> 356811.2583 | S30: Garbage Carts (non-reg) | T30: =+SUMIF('2024 Bud Capital Summary'!$A$5:$A$34,$S30,'2024 Bud Capital Summary'!$B$5:$B$35) -> 1221912 | U30: =T30-V30 -> 0 | V30: =T30 -> 1221912 | W30: =+SUMIF('2024 Bud Capital Summary'!$A$5:$A$34,$S30,'2024 Bud Capital Summary'!C$5:C$34) -> 174558.8571 | X30: 0 | Y30: =+SUMIF('2024 Bud Capital Summary'!$A$5:$A$34,$S30,'2024 Bud Capital Summary'!D$5:D$34) -> 174558.8571 | Z30: =+SUMIF('2024 Bud Capital Summary'!$A$5:$A$34,$S30,'2024 Bud Capital Summary'!E$5:E$34) -> 1047353.143 | AB30: Garbage Carts (non-reg) | AC30: =B30+K30+T30 -> 4246538.72 | AD30: =C30+L30+U30 -> 0 | AE30: =D30+M30+V30 -> 4246538.72 | AF30: =E30+N30+W30 -> 366975.9257 | AG30: =F30+O30+X30 -> 2184355.849 | AH30: =G30+P30+Y30 -> 2553329.192 | AI30: =H30+Q30+Z30 -> 1693209.528 | AJ30: 0
A32: Garbage Carts (Reg only) | B32: =+'Total Cont, DB'!K812 -> 0 | C32: =B32-D32 -> 0 | D32: =+'Total Cont, DB'!L812 -> 0 | E32: =+'Total Cont, DB'!O812 -> 0 | F32: =+'Total Cont, DB'!P812 -> 0 | G32: =+'Total Cont, DB'!Q812 -> 0 | H32: =+'Total Cont, DB'!R812 -> 0 | J32: Garbage Carts (Reg only) | K32: =IFERROR(VLOOKUP($J32,'FAR Dep Summary'!$A$32:$F$53,2,FALSE),0) -> 4840477.16 | L32: =K32-M32 -> 0 | M32: =K32 -> 4840477.16 | N32: =IFERROR(VLOOKUP($J32,'FAR Dep Summary'!$A$32:$F$53,3,FALSE),0) -> 691496.7371 | O32: =IFERROR(VLOOKUP($J32,'FAR Dep Summary'!$A$32:$F$53,4,FALSE),0) -> 142899.6754 | P32: =IFERROR(VLOOKUP($J32,'FAR Dep Summary'!$A$32:$F$53,5,FALSE),0) -> 834396.4125 | Q32: =IFERROR(VLOOKUP($J32,'FAR Dep Summary'!$A$32:$F$53,6,FALSE),0) -> 4006080.748 | S32: Garbage Carts (Reg only) | T32: =+SUMIF('2024 Bud Capital Summary'!$A$5:$A$34,$S32,'2024 Bud Capital Summary'!$B$5:$B$35) -> 47681 | U32: =T32-V32 -> 0 | V32: =T32 -> 47681 | W32: =+SUMIF('2024 Bud Capital Summary'!$A$5:$A$34,$S32,'2024 Bud Capital Summary'!C$5:C$34) -> 6811.571429 | X32: 0 | Y32: =+SUMIF('2024 Bud Capital Summary'!$A$5:$A$34,$S32,'2024 Bud Capital Summary'!D$5:D$34) -> 6811.571429 | Z32: =+SUMIF('2024 Bud Capital Summary'!$A$5:$A$34,$S32,'2024 Bud Capital Summary'!E$5:E$34) -> 40869.42857 | AB32: Garbage Carts (Reg only) | AC32: =B32+K32+T32 -> 4888158.16 | AD32: =C32+L32+U32 -> 0 | AE32: =D32+M32+V32 -> 4888158.16 | AF32: =E32+N32+W32 -> 698308.3086 | AG32: =F32+O32+X32 -> 142899.6754 | AH32: =G32+P32+Y32 -> 841207.9839 | AI32: =H32+Q32+Z32 -> 4046950.176 | AJ32: 0
A34: Recycle Carts (non-reg) | B34: =+'Total Cont, DB'!K1084 -> 5893747.624 | C34: =B34-D34 -> 0 | D34: =+'Total Cont, DB'!L1084 -> 5893747.624 | E34: =+'Total Cont, DB'!O1084 -> 248825.4906 | F34: =+'Total Cont, DB'!P1084 -> 5168588.459 | G34: =+'Total Cont, DB'!Q1084 -> 5456578.397 | H34: =+'Total Cont, DB'!R1084 -> 437169.2271 | J34: Recycle Carts (non-reg) | K34: =IFERROR(VLOOKUP($J34,'FAR Dep Summary'!$A$32:$F$53,2,FALSE),0) -> 2600423.86 | L34: =K34-M34 -> 0 | M34: =K34 -> 2600423.86 | N34: =IFERROR(VLOOKUP($J34,'FAR Dep Summary'!$A$32:$F$53,3,FALSE),0) -> 395194.9006 | O34: =IFERROR(VLOOKUP($J34,'FAR Dep Summary'!$A$32:$F$53,4,FALSE),0) -> 262579.9286 | P34: =IFERROR(VLOOKUP($J34,'FAR Dep Summary'!$A$32:$F$53,5,FALSE),0) -> 657774.8292 | Q34: =IFERROR(VLOOKUP($J34,'FAR Dep Summary'!$A$32:$F$53,6,FALSE),0) -> 1942649.031 | S34: Recycle Carts (non-reg) | T34: =+SUMIF('2024 Bud Capital Summary'!$A$5:$A$34,$S34,'2024 Bud Capital Summary'!$B$5:$B$35) -> 0 | U34: =T34-V34 -> 0 | V34: =T34 -> 0 | W34: =+SUMIF('2024 Bud Capital Summary'!$A$5:$A$34,$S34,'2024 Bud Capital Summary'!C$5:C$34) -> 0 | X34: 0 | Y34: =+SUMIF('2024 Bud Capital Summary'!$A$5:$A$34,$S34,'2024 Bud Capital Summary'!D$5:D$34) -> 0 | Z34: =+SUMIF('2024 Bud Capital Summary'!$A$5:$A$34,$S34,'2024 Bud Capital Summary'!E$5:E$34) -> 0 | AB34: Recycle Carts (non-reg) | AC34: =B34+K34+T34 -> 8494171.484 | AD34: =C34+L34+U34 -> 0 | AE34: =D34+M34+V34 -> 8494171.484 | AF34: =E34+N34+W34 -> 644020.3911 | AG34: =F34+O34+X34 -> 5431168.387 | AH34: =G34+P34+Y34 -> 6114353.227 | AI34: =H34+Q34+Z34 -> 2379818.258 | AJ34: 0
A36: Yard Debris Carts (non-reg) | B36: =+'Total Cont, DB'!K1247 -> 3642623.334 | C36: =B36-D36 -> 0 | D36: =+'Total Cont, DB'!L1247 -> 3642623.334 | E36: =+'Total Cont, DB'!O1247 -> 135848.4914 | F36: =+'Total Cont, DB'!P1247 -> 3252354.548 | G36: =+'Total Cont, DB'!Q1247 -> 3405438.827 | H36: =+'Total Cont, DB'!R1247 -> 237184.5076 | J36: Yard Debris Carts (non-reg) | K36: =IFERROR(VLOOKUP($J36,'FAR Dep Summary'!$A$32:$F$53,2,FALSE),0) -> 478278.96 | L36: =K36-M36 -> 0 | M36: =K36 -> 478278.96 | N36: =IFERROR(VLOOKUP($J36,'FAR Dep Summary'!$A$32:$F$53,3,FALSE),0) -> 68325.56571 | O36: =IFERROR(VLOOKUP($J36,'FAR Dep Summary'!$A$32:$F$53,4,FALSE),0) -> 50758.43595 | P36: =IFERROR(VLOOKUP($J36,'FAR Dep Summary'!$A$32:$F$53,5,FALSE),0) -> 119084.0017 | Q36: =IFERROR(VLOOKUP($J36,'FAR Dep Summary'!$A$32:$F$53,6,FALSE),0) -> 359194.9583 | S36: Yard Debris Carts (non-reg) | T36: =+SUMIF('2024 Bud Capital Summary'!$A$5:$A$34,$S36,'2024 Bud Capital Summary'!$B$5:$B$35) -> 0 | U36: =T36-V36 -> 0 | V36: =T36 -> 0 | W36: =+SUMIF('2024 Bud Capital Summary'!$A$5:$A$34,$S36,'2024 Bud Capital Summary'!C$5:C$34) -> 0 | X36: 0 | Y36: =+SUMIF('2024 Bud Capital Summary'!$A$5:$A$34,$S36,'2024 Bud Capital Summary'!D$5:D$34) -> 0 | Z36: =+SUMIF('2024 Bud Capital Summary'!$A$5:$A$34,$S36,'2024 Bud Capital Summary'!E$5:E$34) -> 0 | AB36: Yard Debris Carts (non-reg) | AC36: =B36+K36+T36 -> 4120902.294 | AD36: =C36+L36+U36 -> 0 | AE36: =D36+M36+V36 -> 4120902.294 | AF36: =E36+N36+W36 -> 204174.0571 | AG36: =F36+O36+X36 -> 3303112.984 | AH36: =G36+P36+Y36 -> 3524522.828 | AI36: =H36+Q36+Z36 -> 596379.466 | AJ36: 0
A38: Organics Carts (non-reg) | B38: =+'Total Cont, DB'!K1270 -> 549969.69 | C38: =B38-D38 -> 0 | D38: =+'Total Cont, DB'!L1270 -> 549969.69 | E38: =+'Total Cont, DB'!O1270 -> 47846.10429 | F38: =+'Total Cont, DB'!P1270 -> 341633.0677 | G38: =+'Total Cont, DB'!Q1270 -> 389479.172 | H38: =+'Total Cont, DB'!R1270 -> 160490.518 | J38: Organics Carts (non-reg) | K38: =IFERROR(VLOOKUP($J38,'FAR Dep Summary'!$A$32:$F$53,2,FALSE),0) -> 379872.22 | L38: =K38-M38 -> 0 | M38: =K38 -> 379872.22 | N38: =IFERROR(VLOOKUP($J38,'FAR Dep Summary'!$A$32:$F$53,3,FALSE),0) -> 54267.46 | O38: =IFERROR(VLOOKUP($J38,'FAR Dep Summary'!$A$32:$F$53,4,FALSE),0) -> 19472.36762 | P38: =IFERROR(VLOOKUP($J38,'FAR Dep Summary'!$A$32:$F$53,5,FALSE),0) -> 73739.82762 | Q38: =IFERROR(VLOOKUP($J38,'FAR Dep Summary'!$A$32:$F$53,6,FALSE),0) -> 306132.3924 | S38: Organics Carts (non-reg) | T38: =+SUMIF('2024 Bud Capital Summary'!$A$5:$A$34,$S38,'2024 Bud Capital Summary'!$B$5:$B$35) -> 0 | U38: =T38-V38 -> 0 | V38: =T38 -> 0 | W38: =+SUMIF('2024 Bud Capital Summary'!$A$5:$A$34,$S38,'2024 Bud Capital Summary'!C$5:C$34) -> 0 | X38: 0 | Y38: =+SUMIF('2024 Bud Capital Summary'!$A$5:$A$34,$S38,'2024 Bud Capital Summary'!D$5:D$34) -> 0 | Z38: =+SUMIF('2024 Bud Capital Summary'!$A$5:$A$34,$S38,'2024 Bud Capital Summary'!E$5:E$34) -> 0 | AB38: Organics Carts (non-reg) | AC38: =B38+K38+T38 -> 929841.91 | AD38: =C38+L38+U38 -> 0 | AE38: =D38+M38+V38 -> 929841.91 | AF38: =E38+N38+W38 -> 102113.5643 | AG38: =F38+O38+X38 -> 361105.4354 | AH38: =G38+P38+Y38 -> 463218.9996 | AI38: =H38+Q38+Z38 -> 466622.9104 | AJ38: 0
A40: Recycle Container (non-reg) | B40: =+'Total Cont, DB'!K1311 -> 235158.47 | C40: =B40-D40 -> 0 | D40: =+'Total Cont, DB'!L1311 -> 235158.47 | E40: =+'Total Cont, DB'!O1311 -> 14213.685 | F40: =+'Total Cont, DB'!P1311 -> 133832.0575 | G40: =+'Total Cont, DB'!Q1311 -> 148675.9994 | H40: =+'Total Cont, DB'!R1311 -> 86482.47056 | J40: Recycle Container (non-reg) | K40: =IFERROR(VLOOKUP($J40,'FAR Dep Summary'!$A$32:$F$53,2,FALSE),0) -> 88627.26 | L40: =K40-M40 -> 0 | M40: =K40 -> 88627.26 | N40: =IFERROR(VLOOKUP($J40,'FAR Dep Summary'!$A$32:$F$53,3,FALSE),0) -> 14646.425 | O40: =IFERROR(VLOOKUP($J40,'FAR Dep Summary'!$A$32:$F$53,4,FALSE),0) -> 2784.665 | P40: =IFERROR(VLOOKUP($J40,'FAR Dep Summary'!$A$32:$F$53,5,FALSE),0) -> 17431.09 | Q40: =IFERROR(VLOOKUP($J40,'FAR Dep Summary'!$A$32:$F$53,6,FALSE),0) -> 71196.17 | S40: Recycle Container (non-reg) | T40: =+SUMIF('2024 Bud Capital Summary'!$A$5:$A$34,$S40,'2024 Bud Capital Summary'!$B$5:$B$35) -> 0 | U40: =T40-V40 -> 0 | V40: =T40 -> 0 | W40: =+SUMIF('2024 Bud Capital Summary'!$A$5:$A$34,$S40,'2024 Bud Capital Summary'!C$5:C$34) -> 0 | X40: 0 | Y40: =+SUMIF('2024 Bud Capital Summary'!$A$5:$A$34,$S40,'2024 Bud Capital Summary'!D$5:D$34) -> 0 | Z40: =+SUMIF('2024 Bud Capital Summary'!$A$5:$A$34,$S40,'2024 Bud Capital Summary'!E$5:E$34) -> 0 | AB40: Recycle Container (non-reg) | AC40: =B40+K40+T40 -> 323785.73 | AD40: =C40+L40+U40 -> 0 | AE40: =D40+M40+V40 -> 323785.73 | AF40: =E40+N40+W40 -> 28860.11 | AG40: =F40+O40+X40 -> 136616.7225 | AH40: =G40+P40+Y40 -> 166107.0894 | AI40: =H40+Q40+Z40 -> 157678.6406 | AJ40: 0
A42: Garbage Container (shared) | B42: ='Total Cont, DB'!K393 -> 2743951.59 | C42: =B42-D42 -> 0 | D42: ='Total Cont, DB'!L393 -> 2743951.59 | E42: ='Total Cont, DB'!O393 -> 89014.34488 | F42: ='Total Cont, DB'!P393 -> 2162701.399 | G42: ='Total Cont, DB'!Q393 -> 2253607.857 | H42: ='Total Cont, DB'!R393 -> 490343.7327 | J42: Garbage Container (shared) | K42: =IFERROR(VLOOKUP($J42,'FAR Dep Summary'!$A$32:$F$53,2,FALSE),0) -> 456708.4 | L42: =K42-M42 -> 0 | M42: =K42 -> 456708.4 | N42: =IFERROR(VLOOKUP($J42,'FAR Dep Summary'!$A$32:$F$53,3,FALSE),0) -> 41163.44107 | O42: =IFERROR(VLOOKUP($J42,'FAR Dep Summary'!$A$32:$F$53,4,FALSE),0) -> 16571.16631 | P42: =IFERROR(VLOOKUP($J42,'FAR Dep Summary'!$A$32:$F$53,5,FALSE),0) -> 57734.60738 | Q42: =IFERROR(VLOOKUP($J42,'FAR Dep Summary'!$A$32:$F$53,6,FALSE),0) -> 398973.7926 | S42: Garbage Container (shared) | T42: =+SUMIF('2024 Bud Capital Summary'!$A$5:$A$34,$S42,'2024 Bud Capital Summary'!$B$5:$B$35) -> 193163 | U42: =T42-V42 -> 0 | V42: =T42 -> 193163 | W42: =+SUMIF('2024 Bud Capital Summary'!$A$5:$A$34,$S42,'2024 Bud Capital Summary'!C$5:C$34) -> 16096.91667 | X42: 0 | Y42: =+SUMIF('2024 Bud Capital Summary'!$A$5:$A$34,$S42,'2024 Bud Capital Summary'!D$5:D$34) -> 16096.91667 | Z42: =+SUMIF('2024 Bud Capital Summary'!$A$5:$A$34,$S42,'2024 Bud Capital Summary'!E$5:E$34) -> 177066.0833 | AB42: Garbage Container (shared) | AC42: =B42+K42+T42 -> 3393822.99 | AD42: =C42+L42+U42 -> 0 | AE42: =D42+M42+V42 -> 3393822.99 | AF42: =E42+N42+W42 -> 146274.7026 | AG42: =F42+O42+X42 -> 2179272.565 | AH42: =G42+P42+Y42 -> 2327439.381 | AI42: =H42+Q42+Z42 -> 1066383.609 | AJ42: 0
A44: Drop Boxes (shared) | B44: ='Total Cont, DB'!K663 -> 4320882.99 | C44: =B44-D44 -> 0 | D44: ='Total Cont, DB'!L663 -> 4320882.99 | E44: ='Total Cont, DB'!O663 -> 173531.9708 | F44: ='Total Cont, DB'!P663 -> 3140834.112 | G44: ='Total Cont, DB'!Q663 -> 3314366.083 | H44: ='Total Cont, DB'!R663 -> 1006516.907 | J44: Drop Boxes (shared) | K44: =IFERROR(VLOOKUP($J44,'FAR Dep Summary'!$A$32:$F$53,2,FALSE),0) -> 1181945.6 | L44: =K44-M44 -> 0 | M44: =K44 -> 1181945.6 | N44: =IFERROR(VLOOKUP($J44,'FAR Dep Summary'!$A$32:$F$53,3,FALSE),0) -> 95944.00167 | O44: =IFERROR(VLOOKUP($J44,'FAR Dep Summary'!$A$32:$F$53,4,FALSE),0) -> 134973.2414 | P44: =IFERROR(VLOOKUP($J44,'FAR Dep Summary'!$A$32:$F$53,5,FALSE),0) -> 230917.2431 | Q44: =IFERROR(VLOOKUP($J44,'FAR Dep Summary'!$A$32:$F$53,6,FALSE),0) -> 951028.3569 | S44: Drop Boxes (shared) | T44: =+SUMIF('2024 Bud Capital Summary'!$A$5:$A$34,$S44,'2024 Bud Capital Summary'!$B$5:$B$35) -> 71192 | U44: =T44-V44 -> 0 | V44: =T44 -> 71192 | W44: =+SUMIF('2024 Bud Capital Summary'!$A$5:$A$34,$S44,'2024 Bud Capital Summary'!C$5:C$34) -> 5932.666667 | X44: 0 | Y44: =+SUMIF('2024 Bud Capital Summary'!$A$5:$A$34,$S44,'2024 Bud Capital Summary'!D$5:D$34) -> 5932.666667 | Z44: =+SUMIF('2024 Bud Capital Summary'!$A$5:$A$34,$S44,'2024 Bud Capital Summary'!E$5:E$34) -> 65259.33333 | AB44: Drop Boxes (shared) | AC44: =B44+K44+T44 -> 5574020.59 | AD44: =C44+L44+U44 -> 0 | AE44: =D44+M44+V44 -> 5574020.59 | AF44: =E44+N44+W44 -> 275408.6392 | AG44: =F44+O44+X44 -> 3275807.354 | AH44: =G44+P44+Y44 -> 3551215.993 | AI44: =H44+Q44+Z44 -> 2022804.597 | AJ44: 0
A46: Shred (non-reg) | B46: =+'Total Cont, DB'!K1322 -> 38694.92 | C46: =B46-D46 -> 0 | D46: =+'Total Cont, DB'!L1322 -> 38694.92 | E46: =+'Total Cont, DB'!O1322 -> 798.5985714 | F46: =+'Total Cont, DB'!P1322 -> 35875.8044 | G46: =+'Total Cont, DB'!Q1322 -> 37230.82262 | H46: =+'Total Cont, DB'!R1322 -> 1464.097381 | J46: Shred (non-reg) | K46: =IFERROR(VLOOKUP($J46,'FAR Dep Summary'!$A$32:$F$53,2,FALSE),0) -> 0 | L46: =K46-M46 -> 0 | M46: =K46 -> 0 | N46: =IFERROR(VLOOKUP($J46,'FAR Dep Summary'!$A$32:$F$53,3,FALSE),0) -> 0 | O46: =IFERROR(VLOOKUP($J46,'FAR Dep Summary'!$A$32:$F$53,4,FALSE),0) -> 0 | P46: =IFERROR(VLOOKUP($J46,'FAR Dep Summary'!$A$32:$F$53,5,FALSE),0) -> 0 | Q46: =IFERROR(VLOOKUP($J46,'FAR Dep Summary'!$A$32:$F$53,6,FALSE),0) -> 0 | S46: Shred (non-reg) | T46: =+SUMIF('2024 Bud Capital Summary'!$A$5:$A$34,$S46,'2024 Bud Capital Summary'!$B$5:$B$35) -> 0 | U46: =T46-V46 -> 0 | V46: =T46 -> 0 | W46: =+SUMIF('2024 Bud Capital Summary'!$A$5:$A$34,$S46,'2024 Bud Capital Summary'!C$5:C$34) -> 0 | X46: 0 | Y46: =+SUMIF('2024 Bud Capital Summary'!$A$5:$A$34,$S46,'2024 Bud Capital Summary'!D$5:D$34) -> 0 | Z46: =+SUMIF('2024 Bud Capital Summary'!$A$5:$A$34,$S46,'2024 Bud Capital Summary'!E$5:E$34) -> 0 | AB46: Shred (non-reg) | AC46: =B46+K46+T46 -> 38694.92 | AD46: =C46+L46+U46 -> 0 | AE46: =D46+M46+V46 -> 38694.92 | AF46: =E46+N46+W46 -> 798.5985714 | AG46: =F46+O46+X46 -> 35875.8044 | AH46: =G46+P46+Y46 -> 37230.82262 | AI46: =H46+Q46+Z46 -> 1464.097381 | AJ46: 0
A48: Total Cont, Carts,Totes | B48: =SUM(B30:B47) -> 19986596.79 | C48: 0 | D48: 19986596.79 | E48: 836344.5327 | F48: 16380079.23 | G48: 17277900.2 | H48: 2708696.587 | J48: Total Cont, Carts,Totes | K48: =SUM(K30:K47) -> 10489392.01 | L48: 0 | M48: 10489392.01 | N48: 1427189.753 | O48: 670135.5505 | P48: 2097325.303 | Q48: 8392066.707 | S48: Total Cont, Carts,Totes | T48: =SUM(T30:T47) -> 1533948 | U48: 0 | V48: 1533948 | W48: 203400.0119 | X48: 0 | Y48: 203400.0119 | Z48: 1330547.988 | AB48: Total Cont, Carts,Totes | AC48: =SUM(AC30:AC47) -> 32009936.8 | AD48: 0 | AE48: 32009936.8 | AF48: 2466934.297 | AG48: 17050214.78 | AH48: 19578625.52 | AI48: 12431311.28
A49: Check | B49: =B48-'Total Cont, DB'!K1324 -> 0 | E49: =E48-'Total Cont, DB'!O1324 -> 0 | F49: =F48-'Total Cont, DB'!P1324 -> 0 | G49: =G48-'Total Cont, DB'!Q1324 -> 0 | H49: =H48-'Total Cont, DB'!R1324 -> 0
A50: Shared Service Equipment | B50: =+'TotalServ, Shop - Salvage Value'!L32 -> 322007.4371 | C50: =B50-D50 -> 0 | D50: =+'TotalServ, Shop - Salvage Value'!M32 -> 322007.4371 | E50: =+'TotalServ, Shop - Salvage Value'!P32 -> 5.111562079 | F50: =+'TotalServ, Shop - Salvage Value'!Q32 -> 311615.0973 | G50: =+'TotalServ, Shop - Salvage Value'!R32 -> 311620.2089 | H50: =+'TotalServ, Shop - Salvage Value'!S32 -> 10387.22818 | J50: Shared Service Equipment | K50: =IFERROR(VLOOKUP($J50,'FAR Dep Summary'!$A$32:$F$53,2,FALSE),0) -> 289419.25 | L50: =K50-M50 -> 0 | M50: =K50 -> 289419.25 | N50: =IFERROR(VLOOKUP($J50,'FAR Dep Summary'!$A$32:$F$53,3,FALSE),0) -> 37159.792 | O50: =IFERROR(VLOOKUP($J50,'FAR Dep Summary'!$A$32:$F$53,4,FALSE),0) -> 121519.8462 | P50: =IFERROR(VLOOKUP($J50,'FAR Dep Summary'!$A$32:$F$53,5,FALSE),0) -> 158971.0366 | Q50: =IFERROR(VLOOKUP($J50,'FAR Dep Summary'!$A$32:$F$53,6,FALSE),0) -> 130448.2134 | S50: Shared Service Equipment | T50: =+SUMIF('2024 Bud Capital Summary'!$A$5:$A$34,$S50,'2024 Bud Capital Summary'!$B$5:$B$35) -> 0 | U50: =T50-V50 -> 0 | V50: =T50 -> 0 | W50: =+SUMIF('2024 Bud Capital Summary'!$A$5:$A$34,$S50,'2024 Bud Capital Summary'!C$5:C$34) -> 0 | X50: 0 | Y50: =+SUMIF('2024 Bud Capital Summary'!$A$5:$A$34,$S50,'2024 Bud Capital Summary'!D$5:D$34) -> 0 | Z50: =+SUMIF('2024 Bud Capital Summary'!$A$5:$A$34,$S50,'2024 Bud Capital Summary'!E$5:E$34) -> 0 | AB50: Shared Service Equipment | AC50: =B50+K50+T50 -> 611426.6871 | AD50: =C50+L50+U50 -> 0 | AE50: =D50+M50+V50 -> 611426.6871 | AF50: =E50+N50+W50 -> 37164.90356 | AG50: =F50+O50+X50 -> 433134.9435 | AH50: =G50+P50+Y50 -> 470591.2454 | AI50: =H50+Q50+Z50 -> 140835.4416
A52: Non-Regulated Service Equip | B52: =+'TotalServ, Shop - Salvage Value'!L42 -> 69511.99 | C52: =B52-D52 -> 4950 | D52: =+'TotalServ, Shop - Salvage Value'!M42 -> 64561.99 | E52: =+'TotalServ, Shop - Salvage Value'!P42 -> 0 | F52: =+'TotalServ, Shop - Salvage Value'!Q42 -> 69511.99 | G52: =+'TotalServ, Shop - Salvage Value'!R42 -> 69511.99 | H52: =+'TotalServ, Shop - Salvage Value'!S42 -> 0 | J52: Non-Regulated Service Equip | K52: =IFERROR(VLOOKUP($J52,'FAR Dep Summary'!$A$32:$F$53,2,FALSE),0) -> 5855.75 | L52: =K52-M52 -> 0 | M52: =K52 -> 5855.75 | N52: =IFERROR(VLOOKUP($J52,'FAR Dep Summary'!$A$32:$F$53,3,FALSE),0) -> 836.5357143 | O52: =IFERROR(VLOOKUP($J52,'FAR Dep Summary'!$A$32:$F$53,4,FALSE),0) -> 0 | P52: =IFERROR(VLOOKUP($J52,'FAR Dep Summary'!$A$32:$F$53,5,FALSE),0) -> 836.5357143 | Q52: =IFERROR(VLOOKUP($J52,'FAR Dep Summary'!$A$32:$F$53,6,FALSE),0) -> 5019.214286 | S52: Non-Regulated Service Equip | T52: =+SUMIF('2024 Bud Capital Summary'!$A$5:$A$34,$S52,'2024 Bud Capital Summary'!$B$5:$B$35) -> 0 | U52: =T52-V52 -> 0 | V52: =T52 -> 0 | W52: =+SUMIF('2024 Bud Capital Summary'!$A$5:$A$34,$S52,'2024 Bud Capital Summary'!C$5:C$34) -> 0 | X52: 0 | Y52: =+SUMIF('2024 Bud Capital Summary'!$A$5:$A$34,$S52,'2024 Bud Capital Summary'!D$5:D$34) -> 0 | Z52: =+SUMIF('2024 Bud Capital Summary'!$A$5:$A$34,$S52,'2024 Bud Capital Summary'!E$5:E$34) -> 0 | AB52: Non-Regulated Service Equip | AC52: =B52+K52+T52 -> 75367.74 | AD52: =C52+L52+U52 -> 4950 | AE52: =D52+M52+V52 -> 70417.74 | AF52: =E52+N52+W52 -> 836.5357143 | AG52: =F52+O52+X52 -> 69511.99 | AH52: =G52+P52+Y52 -> 70348.52571 | AI52: =H52+Q52+Z52 -> 5019.214286
A54: Shared Shop Equipment | B54: =+'TotalServ, Shop - Salvage Value'!L91 -> 509375.6837 | C54: =B54-D54 -> 0 | D54: =+'TotalServ, Shop - Salvage Value'!M91 -> 509375.6837 | E54: =+'TotalServ, Shop - Salvage Value'!P91 -> 20775.57908 | F54: =+'TotalServ, Shop - Salvage Value'!Q91 -> 456875.7176 | G54: =+'TotalServ, Shop - Salvage Value'!R91 -> 477651.2967 | H54: =+'TotalServ, Shop - Salvage Value'!S91 -> 31724.38705 | J54: Shared Shop Equipment | K54: =IFERROR(VLOOKUP($J54,'FAR Dep Summary'!$A$32:$F$53,2,FALSE),0) -> 6068.48 | L54: =K54-M54 -> 0 | M54: =K54 -> 6068.48 | N54: =IFERROR(VLOOKUP($J54,'FAR Dep Summary'!$A$32:$F$53,3,FALSE),0) -> 5734.967667 | O54: =IFERROR(VLOOKUP($J54,'FAR Dep Summary'!$A$32:$F$53,4,FALSE),0) -> -3526.98275 | P54: =IFERROR(VLOOKUP($J54,'FAR Dep Summary'!$A$32:$F$53,5,FALSE),0) -> 2207.984917 | Q54: =IFERROR(VLOOKUP($J54,'FAR Dep Summary'!$A$32:$F$53,6,FALSE),0) -> 3860.495083 | S54: Shared Shop Equipment | T54: =+SUMIF('2024 Bud Capital Summary'!$A$5:$A$34,$S54,'2024 Bud Capital Summary'!$B$5:$B$35) -> 0 | U54: =T54-V54 -> 0 | V54: =T54 -> 0 | W54: =+SUMIF('2024 Bud Capital Summary'!$A$5:$A$34,$S54,'2024 Bud Capital Summary'!C$5:C$34) -> 0 | X54: 0 | Y54: =+SUMIF('2024 Bud Capital Summary'!$A$5:$A$34,$S54,'2024 Bud Capital Summary'!D$5:D$34) -> 0 | Z54: =+SUMIF('2024 Bud Capital Summary'!$A$5:$A$34,$S54,'2024 Bud Capital Summary'!E$5:E$34) -> 0 | AB54: Shared Shop Equipment | AC54: =B54+K54+T54 -> 515444.1637 | AD54: =C54+L54+U54 -> 0 | AE54: =D54+M54+V54 -> 515444.1637 | AF54: =E54+N54+W54 -> 26510.54675 | AG54: =F54+O54+X54 -> 453348.7348 | AH54: =G54+P54+Y54 -> 479859.2816 | AI54: =H54+Q54+Z54 -> 35584.88213
A56: CNG Station | B56: =+'TotalServ, Shop - Salvage Value'!L94 -> 140715.52 | D56: =+'TotalServ, Shop - Salvage Value'!M94 -> 140715.52 | E56: =+'TotalServ, Shop - Salvage Value'!P94 -> 7035.776 | F56: =+'TotalServ, Shop - Salvage Value'!Q94 -> 68012.50133 | G56: =+'TotalServ, Shop - Salvage Value'!R94 -> 75048.27733 | H56: =+'TotalServ, Shop - Salvage Value'!S94 -> 65667.24267 | J56: CNG Station | K56: =IFERROR(VLOOKUP($J56,'FAR Dep Summary'!$A$32:$F$53,2,FALSE),0) -> 0 | L56: =K56-M56 -> 0 | M56: =K56 -> 0 | N56: =IFERROR(VLOOKUP($J56,'FAR Dep Summary'!$A$32:$F$53,3,FALSE),0) -> 0 | O56: =IFERROR(VLOOKUP($J56,'FAR Dep Summary'!$A$32:$F$53,4,FALSE),0) -> 0 | P56: =IFERROR(VLOOKUP($J56,'FAR Dep Summary'!$A$32:$F$53,5,FALSE),0) -> 0 | Q56: =IFERROR(VLOOKUP($J56,'FAR Dep Summary'!$A$32:$F$53,6,FALSE),0) -> 0 | S56: CNG Station | T56: =+SUMIF('2024 Bud Capital Summary'!$A$5:$A$34,$S56,'2024 Bud Capital Summary'!$B$5:$B$35) -> 0 | U56: =T56-V56 -> 0 | V56: =T56 -> 0 | W56: =+SUMIF('2024 Bud Capital Summary'!$A$5:$A$34,$S56,'2024 Bud Capital Summary'!C$5:C$34) -> 0 | X56: 0 | Y56: =+SUMIF('2024 Bud Capital Summary'!$A$5:$A$34,$S56,'2024 Bud Capital Summary'!D$5:D$34) -> 0 | Z56: =+SUMIF('2024 Bud Capital Summary'!$A$5:$A$34,$S56,'2024 Bud Capital Summary'!E$5:E$34) -> 0 | AB56: CNG Station | AC56: =B56+K56+T56 -> 140715.52 | AD56: =C56+L56+U56 -> 0 | AE56: =D56+M56+V56 -> 140715.52 | AF56: =E56+N56+W56 -> 7035.776 | AG56: =F56+O56+X56 -> 68012.50133 | AH56: =G56+P56+Y56 -> 75048.27733 | AI56: =H56+Q56+Z56 -> 65667.24267
A58: Office Equipment | B58: =+'Total Office'!K20 -> 23301.51 | C58: =B58-D58 -> 0 | D58: =+'Total Office'!L20 -> 23301.51 | E58: =+'Total Office'!O20 -> 1930.111 | F58: =+'Total Office'!P20 -> 11077.47367 | G58: =+'Total Office'!Q20 -> 13007.58467 | H58: =+'Total Office'!R20 -> 10293.92533 | J58: Office Equipment | K58: =IFERROR(VLOOKUP($J58,'FAR Dep Summary'!$A$32:$F$53,2,FALSE),0) -> 0 | L58: =K58-M58 -> 0 | M58: =K58 -> 0 | N58: =IFERROR(VLOOKUP($J58,'FAR Dep Summary'!$A$32:$F$53,3,FALSE),0) -> 0 | O58: =IFERROR(VLOOKUP($J58,'FAR Dep Summary'!$A$32:$F$53,4,FALSE),0) -> 0 | P58: =IFERROR(VLOOKUP($J58,'FAR Dep Summary'!$A$32:$F$53,5,FALSE),0) -> 0 | Q58: =IFERROR(VLOOKUP($J58,'FAR Dep Summary'!$A$32:$F$53,6,FALSE),0) -> 0 | S58: Office Equipment | T58: =+SUMIF('2024 Bud Capital Summary'!$A$5:$A$34,$S58,'2024 Bud Capital Summary'!$B$5:$B$35) -> 0 | U58: =T58-V58 -> 0 | V58: =T58 -> 0 | W58: =+SUMIF('2024 Bud Capital Summary'!$A$5:$A$34,$S58,'2024 Bud Capital Summary'!C$5:C$34) -> 0 | X58: 0 | Y58: =+SUMIF('2024 Bud Capital Summary'!$A$5:$A$34,$S58,'2024 Bud Capital Summary'!D$5:D$34) -> 0 | Z58: =+SUMIF('2024 Bud Capital Summary'!$A$5:$A$34,$S58,'2024 Bud Capital Summary'!E$5:E$34) -> 0 | AB58: Office Equipment | AC58: =B58+K58+T58 -> 23301.51 | AD58: =C58+L58+U58 -> 0 | AE58: =D58+M58+V58 -> 23301.51 | AF58: =E58+N58+W58 -> 1930.111 | AG58: =F58+O58+X58 -> 11077.47367 | AH58: =G58+P58+Y58 -> 13007.58467 | AI58: =H58+Q58+Z58 -> 10293.92533
A60: Shared Office Equipment | B60: =+'Total Office'!K40 -> 37795.56 | C60: =B60-D60 -> 0 | D60: =+'Total Office'!L40 -> 37795.56 | E60: =+'Total Office'!O40 -> 4530.596 | F60: =+'Total Office'!P40 -> 27323.09044 | G60: =+'Total Office'!Q40 -> 32857.047 | H60: =+'Total Office'!R40 -> 4938.513 | J60: Shared Office Equipment | K60: =IFERROR(VLOOKUP($J60,'FAR Dep Summary'!$A$32:$F$53,2,FALSE),0) -> 99766.45 | L60: =K60-M60 -> 0 | M60: =K60 -> 99766.45 | N60: =IFERROR(VLOOKUP($J60,'FAR Dep Summary'!$A$32:$F$53,3,FALSE),0) -> 22270.41333 | O60: =IFERROR(VLOOKUP($J60,'FAR Dep Summary'!$A$32:$F$53,4,FALSE),0) -> 32527.52006 | P60: =IFERROR(VLOOKUP($J60,'FAR Dep Summary'!$A$32:$F$53,5,FALSE),0) -> 54797.93339 | Q60: =IFERROR(VLOOKUP($J60,'FAR Dep Summary'!$A$32:$F$53,6,FALSE),0) -> 44968.51661 | S60: Shared Office Equipment | T60: =+SUMIF('2024 Bud Capital Summary'!$A$5:$A$34,$S60,'2024 Bud Capital Summary'!$B$5:$B$35) -> 0 | U60: =T60-V60 -> 0 | V60: =T60 -> 0 | W60: =+SUMIF('2024 Bud Capital Summary'!$A$5:$A$34,$S60,'2024 Bud Capital Summary'!C$5:C$34) -> 0 | X60: 0 | Y60: =+SUMIF('2024 Bud Capital Summary'!$A$5:$A$34,$S60,'2024 Bud Capital Summary'!D$5:D$34) -> 0 | Z60: =+SUMIF('2024 Bud Capital Summary'!$A$5:$A$34,$S60,'2024 Bud Capital Summary'!E$5:E$34) -> 0 | AB60: Shared Office Equipment | AC60: =B60+K60+T60 -> 137562.01 | AD60: =C60+L60+U60 -> 0 | AE60: =D60+M60+V60 -> 137562.01 | AF60: =E60+N60+W60 -> 26801.00933 | AG60: =F60+O60+X60 -> 59850.6105 | AH60: =G60+P60+Y60 -> 87654.98039 | AI60: =H60+Q60+Z60 -> 49907.02961
A62: Non-Regulated Office Equipment | B62: =+'Total Office'!K43 -> 1732.58 | C62: =B62-D62 -> 0 | D62: =+'Total Office'!L43 -> 1732.58 | E62: =+'Total Office'!O43 -> 0 | F62: =+'Total Office'!P43 -> 1732.58 | G62: =+'Total Office'!Q43 -> 1732.58 | H62: =+'Total Office'!R43 -> 0 | J62: Non-Regulated Office Equipment | K62: =IFERROR(VLOOKUP($J62,'FAR Dep Summary'!$A$32:$F$53,2,FALSE),0) -> 1427.98 | L62: =K62-M62 -> 0 | M62: =K62 -> 1427.98 | N62: =IFERROR(VLOOKUP($J62,'FAR Dep Summary'!$A$32:$F$53,3,FALSE),0) -> 475.9933333 | O62: =IFERROR(VLOOKUP($J62,'FAR Dep Summary'!$A$32:$F$53,4,FALSE),0) -> 634.6577778 | P62: =IFERROR(VLOOKUP($J62,'FAR Dep Summary'!$A$32:$F$53,5,FALSE),0) -> 1110.651111 | Q62: =IFERROR(VLOOKUP($J62,'FAR Dep Summary'!$A$32:$F$53,6,FALSE),0) -> 317.3288889 | S62: Non-Regulated Office Equipment | T62: =+SUMIF('2024 Bud Capital Summary'!$A$5:$A$34,$S62,'2024 Bud Capital Summary'!$B$5:$B$35) -> 0 | U62: =T62-V62 -> 0 | V62: =T62 -> 0 | W62: =+SUMIF('2024 Bud Capital Summary'!$A$5:$A$34,$S62,'2024 Bud Capital Summary'!C$5:C$34) -> 0 | X62: 0 | Y62: =+SUMIF('2024 Bud Capital Summary'!$A$5:$A$34,$S62,'2024 Bud Capital Summary'!D$5:D$34) -> 0 | Z62: =+SUMIF('2024 Bud Capital Summary'!$A$5:$A$34,$S62,'2024 Bud Capital Summary'!E$5:E$34) -> 0 | AB62: Non-Regulated Office Equipment | AC62: =B62+K62+T62 -> 3160.56 | AD62: =C62+L62+U62 -> 0 | AE62: =D62+M62+V62 -> 3160.56 | AF62: =E62+N62+W62 -> 475.9933333 | AG62: =F62+O62+X62 -> 2367.237778 | AH62: =G62+P62+Y62 -> 2843.231111 | AI62: =H62+Q62+Z62 -> 317.3288889
A64: Shared Leasehold/Property Imprv | B64: =+Leasehold!K95+Leasehold!K42 -> 2273585.957 | C64: =B64-D64 -> 0 | D64: =+Leasehold!L42+Leasehold!L95 -> 2273585.957 | E64: =Leasehold!O42+Leasehold!O95 -> 11690.59772 | F64: =Leasehold!P42+Leasehold!P95 -> 2218730.154 | G64: =Leasehold!Q42+Leasehold!Q95 -> 2230420.751 | H64: =Leasehold!R42+Leasehold!R95 -> 43165.20559 | J64: Shared Leasehold/Property Imprv | K64: =IFERROR(VLOOKUP($J64,'FAR Dep Summary'!$A$32:$F$53,2,FALSE),0) -> 8877336.43 | L64: =K64-M64 -> 0 | M64: =K64 -> 8877336.43 | N64: =IFERROR(VLOOKUP($J64,'FAR Dep Summary'!$A$32:$F$53,3,FALSE),0) -> 553253.6905 | O64: =IFERROR(VLOOKUP($J64,'FAR Dep Summary'!$A$32:$F$53,4,FALSE),0) -> 6392.028583 | P64: =IFERROR(VLOOKUP($J64,'FAR Dep Summary'!$A$32:$F$53,5,FALSE),0) -> 559645.7191 | Q64: =IFERROR(VLOOKUP($J64,'FAR Dep Summary'!$A$32:$F$53,6,FALSE),0) -> 8317690.711 | S64: Shared Leasehold/Property Imprv | T64: =+SUMIF('2024 Bud Capital Summary'!$A$5:$A$34,$S64,'2024 Bud Capital Summary'!$B$5:$B$35) -> 3529911.96 | U64: =T64-V64 -> 0 | V64: =T64 -> 3529911.96 | W64: =+SUMIF('2024 Bud Capital Summary'!$A$5:$A$34,$S64,'2024 Bud Capital Summary'!C$5:C$34) -> 191986.498 | X64: 0 | Y64: =+SUMIF('2024 Bud Capital Summary'!$A$5:$A$34,$S64,'2024 Bud Capital Summary'!D$5:D$34) -> 191986.498 | Z64: =+SUMIF('2024 Bud Capital Summary'!$A$5:$A$34,$S64,'2024 Bud Capital Summary'!E$5:E$34) -> 3337925.462 | AB64: Shared Leasehold/Property Imprv | AC64: =B64+K64+T64 -> 14680834.35 | AD64: =C64+L64+U64 -> 0 | AE64: =D64+M64+V64 -> 14680834.35 | AF64: =E64+N64+W64 -> 756930.7862 | AG64: =F64+O64+X64 -> 2225122.182 | AH64: =G64+P64+Y64 -> 2982052.968 | AI64: =H64+Q64+Z64 -> 11698781.38
A66: Buildings | B66: =Leasehold!K102 -> 873043.4823 | C66: =B66-D66 -> 0 | D66: =Leasehold!L102 -> 873043.4823 | E66: =Leasehold!O102 -> 43652.17411 | F66: =Leasehold!P102 -> 363768.1176 | G66: =Leasehold!Q102 -> 407420.2917 | H66: =Leasehold!R102 -> 465623.1906 | J66: Buildings | K66: =IFERROR(VLOOKUP($J66,'FAR Dep Summary'!$A$32:$F$53,2,FALSE),0) -> 0 | L66: =K66-M66 -> 0 | M66: =K66 -> 0 | N66: =IFERROR(VLOOKUP($J66,'FAR Dep Summary'!$A$32:$F$53,3,FALSE),0) -> 0 | O66: =IFERROR(VLOOKUP($J66,'FAR Dep Summary'!$A$32:$F$53,4,FALSE),0) -> 0 | P66: =IFERROR(VLOOKUP($J66,'FAR Dep Summary'!$A$32:$F$53,5,FALSE),0) -> 0 | Q66: =IFERROR(VLOOKUP($J66,'FAR Dep Summary'!$A$32:$F$53,6,FALSE),0) -> 0 | S66: Buildings | T66: =+SUMIF('2024 Bud Capital Summary'!$A$5:$A$34,$S66,'2024 Bud Capital Summary'!$B$5:$B$35) -> 4934855.71 | U66: =T66-V66 -> 0 | V66: =T66 -> 4934855.71 | W66: =+SUMIF('2024 Bud Capital Summary'!$A$5:$A$34,$S66,'2024 Bud Capital Summary'!C$5:C$34) -> 246742.7855 | X66: 0 | Y66: =+SUMIF('2024 Bud Capital Summary'!$A$5:$A$34,$S66,'2024 Bud Capital Summary'!D$5:D$34) -> 246742.7855 | Z66: =+SUMIF('2024 Bud Capital Summary'!$A$5:$A$34,$S66,'2024 Bud Capital Summary'!E$5:E$34) -> 4688112.924 | AB66: Buildings | AC66: =B66+K66+T66 -> 5807899.192 | AD66: =C66+L66+U66 -> 0 | AE66: =D66+M66+V66 -> 5807899.192 | AF66: =E66+N66+W66 -> 290394.9596 | AG66: =F66+O66+X66 -> 363768.1176 | AH66: =G66+P66+Y66 -> 654163.0772 | AI66: =H66+Q66+Z66 -> 5153736.115
A68: Land | B68: =Leasehold!K105+Leasehold!K106 -> 3173713.298 | H68: =B68 -> 3173713.298 | J68: Land | K68: =IFERROR(VLOOKUP($J68,'FAR Dep Summary'!$A$32:$F$53,2,FALSE),0) -> 100000 | L68: =K68-M68 -> 0 | M68: =K68 -> 100000 | N68: =IFERROR(VLOOKUP($J68,'FAR Dep Summary'!$A$32:$F$53,3,FALSE),0) -> 0 | O68: =IFERROR(VLOOKUP($J68,'FAR Dep Summary'!$A$32:$F$53,4,FALSE),0) -> 0 | P68: =IFERROR(VLOOKUP($J68,'FAR Dep Summary'!$A$32:$F$53,5,FALSE),0) -> 100000 | Q68: =IFERROR(VLOOKUP($J68,'FAR Dep Summary'!$A$32:$F$53,6,FALSE),0) -> 0 | S68: Land | T68: =+SUMIF('2024 Bud Capital Summary'!$A$5:$A$34,$S68,'2024 Bud Capital Summary'!$B$5:$B$35) -> 0 | U68: =T68-V68 -> 0 | V68: =T68 -> 0 | W68: =+SUMIF('2024 Bud Capital Summary'!$A$5:$A$34,$S68,'2024 Bud Capital Summary'!C$5:C$34) -> 0 | X68: 0 | Y68: =+SUMIF('2024 Bud Capital Summary'!$A$5:$A$34,$S68,'2024 Bud Capital Summary'!D$5:D$34) -> 0 | Z68: =+SUMIF('2024 Bud Capital Summary'!$A$5:$A$34,$S68,'2024 Bud Capital Summary'!E$5:E$34) -> 0 | AB68: Land | AC68: =B68+K68+T68 -> 3273713.298 | AD68: =C68+L68+U68 -> 0 | AE68: =D68+M68+V68 -> 100000 | AF68: =E68+N68+W68 -> 0 | AG68: =F68+O68+X68 -> 0 | AH68: =G68+P68+Y68 -> 100000 | AI68: =H68+Q68+Z68 -> 3173713.298
A70: Total Equipment | B70: =B27+B48+B50+B54+B58+B64+B68+B66+B60+B52+B56+B62 -> 61050924.45 | C70: 1912162.374 | D70: 55965048.77 | E70: 2660698.977 | F70: 43113197.43 | G70: 45836572.93 | H70: 15214351.51 | J70: Total Equipment | K70: =K27+K48+K50+K54+K58+K64+K68+K66+K60+K52+K56+K62 -> 38439042.33 | L70: 0 | M70: 38439042.33 | N70: 3991295.116 | O70: 1508760.482 | P70: 5600346.997 | Q70: 32838695.33 | S70: Total Equipment | T70: =T27+T48+T50+T54+T58+T64+T68+T66+T60+T52+T56+T62 -> 14706195.97 | U70: 0 | V70: 14706195.97 | W70: 1112877.325 | X70: 0 | Y70: 1112877.325 | Z70: 13593318.64 | AB70: Total Equipment | AC70: =AC27+AC48+AC50+AC54+AC58+AC64+AC68+AC66+AC60+AC52+AC56+AC62 -> 114196162.7 | AD70: 1912162.374 | AE70: 109110287.1 | AF70: 7764871.419 | AG70: =AG27+AG48+AG50+AG54+AG58+AG64+AG68+AG66+AG60+AG52+AG56+AG62 -> 44621957.91 | AH70: =AH27+AH48+AH50+AH54+AH58+AH64+AH68+AH66+AH60+AH52+AH56+AH62 -> 52549797.25 | AI70: 61646365.49
J71: Check | K71: =K70-'FAR Dep Summary'!B53 -> 0 | N71: =+N70-'FAR Dep Summary'!C53 -> 0 | O71: =+O70-'FAR Dep Summary'!D53 -> 0 | P71: =+P70-'FAR Dep Summary'!E53 -> 0 | Q71: =+Q70-'FAR Dep Summary'!F53 -> 0 | S71: Check | T71: =T70-'2024 Bud Capital Summary'!B36 -> 0 | W71: =W70-'2024 Bud Capital Summary'!C36 -> 0 | Y71: =Y70-'2024 Bud Capital Summary'!D36 -> 0 | Z71: =Z70-'2024 Bud Capital Summary'!E36 -> 0 | AB71: Check | AC71: =AC70-B70-K70-T70 -> 0 | AD71: 0 | AE71: 1.490116119e-08 | AF71: 0 | AG71: 1.629814506e-09 | AH71: =AH70-G70-P70-Y70 -> 8.847564459e-09 | AI71: 0
B72: =+'Total Trucks - Salvage Value'!N298+'Total Cont, DB'!K1324+'TotalServ, Shop - Salvage Value'!L97+'Total Office'!K47+Leasehold!K108 -> 61050924.45 | D72: =+'Total Trucks - Salvage Value'!O298+'Total Cont, DB'!L1324+'TotalServ, Shop - Salvage Value'!M97+'Total Office'!L47+Leasehold!L108 -> 55965048.77 | E72: =+'Total Trucks - Salvage Value'!R298+'Total Cont, DB'!O1324+'TotalServ, Shop - Salvage Value'!P97+'Total Office'!O47+Leasehold!O108 -> 2660698.977 | F72: =+'Total Trucks - Salvage Value'!S298+'Total Cont, DB'!P1324+'TotalServ, Shop - Salvage Value'!Q97+'Total Office'!P47+Leasehold!P108 -> 43113197.43 | G72: =+'Total Trucks - Salvage Value'!T298+'Total Cont, DB'!Q1324+'TotalServ, Shop - Salvage Value'!R97+'Total Office'!Q47+Leasehold!Q108 -> 45836572.93 | H72: =+'Total Trucks - Salvage Value'!U298+'Total Cont, DB'!R1324+'TotalServ, Shop - Salvage Value'!S97+'Total Office'!R47+Leasehold!R108 -> 15214351.51
B73: =+B70-B72 -> 0 | D73: =+D70-D72 -> 0 | E73: =E70-E72 -> 0 | F73: =F70-F72 -> 0 | G73: =G70-G72 -> 0 | H73: =H70-H72 -> 0 | T73: =+T70-'2024 Bud Capital Summary'!B36 -> 0 | W73: =+W70-'2024 Bud Capital Summary'!C36 -> 0 | Y73: =+Y70-'2024 Bud Capital Summary'!D36 -> 0 | Z73: =+Z70-'2024 Bud Capital Summary'!E36 -> 0
A79: Leichner Land/Building Breakout:
A80: (Values below taken from 2014 Property Tax Assesment): | D80: ..\Clark County Land Map April 2015.pdf
A82: Parcel # | B82: Building Value | C82: Land Value | D82: Total
A83: 199859000 | B83: 189500 | C83: 864800 | D83: =B83+C83 -> 1054300
A84: 199860000 | B84: 0 | C84: 312200 | D84: =B84+C84 -> 312200
A85: 199846000 | B85: 557300 | C85: 406200 | D85: =B85+C85 -> 963500
B86: =SUM(B83:B85) -> 746800 | C86: =SUM(C83:C85) -> 1583200 | D86: =B86+C86 -> 2330000
B87: =B86/D86 -> 0.3205150215 | C87: =C86/D86 -> 0.6794849785 | D87: =B87+C87 -> 1
A89: Purchase Price | B89: =D89*B87 -> 873043.4823 | C89: =D89*C87 -> 1850833.478 | D89: =2706422.06+12954.9+4500 -> 2723876.96 | E89: FAR #'s: 118173,119937,120277
A98: UTC Group Tracking
A100: Updated Through | B100: Updated By | C100: FAR $ | D100: UTC Sched $ | E100: Difference
A102: 1/1/2011 -3/31/2011 | B102: HL | C102: =226464.44+890.67 -> 227355.11
A103: 2011 UTC/FAR Additions | D103: 55212.29
A104: 12/2010 UTC - 1/2011 FAS | D104: =171252.49+890.67 -> 172143.16
C105: =SUM(C102:C104) -> 227355.11 | D105: =SUM(D103:D104) -> 227355.45 | E105: =C105-D105 -> -0.34
A107: 12/1/2010 - 3/31/2011 | B107: HL | C107: =1740243+890.67 -> 1741133.67 | D107: =1740243.43+890.67 -> 1741134.1 | E107: =C107-D107 -> -0.4299999999
A109: 4/1/2011 - 9/30/2011 | B109: HL | C109: 27112 | D109: 27112 | E109: =C109-D109 -> 0
A111: 10/1/2011 - 11/30/2011 | B111: HL | C111: 455047.82 | D111: =441129.82+1312.67 -> 442442.49 | E111: =C111-D111 -> 12605.33 | F111: ($13,918) Recycling Containers Listed on 2010 schedule.
A112: Transfers & Disposals updated thru 11/30/2011. | F112: $1,312.67 Sales Tax on #615 - 12/31 CAPEX.
A114: 12/1/2011 - 12/31/2011 | B114: HL | C114: 885.4 | D114: ='Total Office'!#REF! ->  | E114: =C114-D114 -> 
A117: 1/1/2012 - 6/30/2012 | B117: HL | C117: 241047.2 | D117: 241047.2 | E117: =C117-D117 -> 0
A118: in 2012 $90,061.85 in additional sales tax was also added to a variety of assets (mostly trucks) as a result of a DOR audit that uncovered we had under-paid sales tax on some assets. The tax was added directly to the asset.
A120: 6/30/2012-9/30/2012 | B120: HL | C120: 1323957.01 | D120: 1323957.01 | E120: =C120-D120 -> 0
A122: 10/1/2012 - 12/31/2012 | B122: HL | C122: 119924.81 | D122: 119924.81 | E122: =C122-D122 -> 0
A124: 1/1/2013 - 8/31/2013 | B124: HL | C124: 1662925.89 | D124: 1662926.32 | E124: =C124-D124 -> -0.4299999999 | F124: 1830458 | G124: =C124-F124 -> -167532.11
A126: 9/1/2013-12/31/2013 | B126: HL | C126: 1266548 | D126: 1266548.01 | E126: =C126-D126 -> -0.01000000001
C127: =SUM(C124:C126) -> 2929473.89 | F127: 3075075 | G127: =C127-F127 -> -145601.11
A129: 1/1/2014-7/31/2014 | B129: HG | C129: 7018748.82 | D129: 7018749 | E129: =C129-D129 -> -0.1799999997
A131: 1/1/2015-7/31/2015 | B131: HG | C131: =1821189+977 -> 1822166 | D131: =1821189+977 -> 1822166 | E131: =C131-D131 -> 0
A132: 8/1/2015 - 12/31/2015 | B132: HG | C132: =2019347.4-10653.33 -> 2008694.07 | D132: 2019347.4 | E132: =C132-D132 -> -10653.33 | F132: Asset #129566 - tax not on FAR @ 12/31 yet.
C133: =SUM(C131:C132) -> 3830860.07 | D133: =SUM(D131:D132) -> 3841513.4 | E133: =C133-D133 -> -10653.33
A135: 01/01/2016 - 10/31/2016 | B135: BJT | C135: 3444102.02 | D135: =+'Reg Trks-Orig'!O6+'Total Cont, DB'!K7+'Reg Serv, Shop -Orig'!M7+'Total Office'!K6+1633936.79 -> 3517344.874 | E135: =C135-D135 -> -73242.85411 | F135: 1,799,511.90 Reg & 1,633,936.79 Non-Reg.
A137: 11/01/2016 - 12/31/2016 | B137: BJT | C137: 501676.56 | D137: 476579.48 | E137: =C137-D137 -> 25097.08
A139: 01/01/2017-08/31/2017 | B139: LAW | C139: 3556362.96 | D139: =+SUM('Total Cont, DB'!K329:K333,'Total Cont, DB'!K549:K550,'Total Cont, DB'!K604:K620,'Total Cont, DB'!K772:K780,'Total Cont, DB'!K1013:K1023,'Total Cont, DB'!K1213:K1218,'Total Cont, DB'!K1297:K1299,'Total Cont, DB'!K1319)+SUM('Total Office'!#REF!,'Total Office'!#REF!)+Leasehold!K90+SUM('Total Trucks - Salvage Value'!N196:N196,'Total Trucks - Salvage Value'!N43:N256,'Total Trucks - Salvage Value'!N281:N282,'Total Trucks - Salvage Value'!N113:N115,'Total Trucks - Salvage Value'!N166,'Total Trucks - Salvage Value'!N225:N227)+SUM('TotalServ, Shop - Salvage Value'!L37:L38,'TotalServ, Shop - Salvage Value'!L81) ->  | E139: =C139-D139 -> 
A141: 09/01/2017-09/30/2017 | B141: LAW | C141: 483098.4 | D141: =+SUM('Total Cont, DB'!K334:K340,'Total Cont, DB'!K621,'Total Cont, DB'!K1024:K1030,'Total Cont, DB'!K1219:K1223,'Total Cont, DB'!K1300:K1301)+SUM('Total Trucks - Salvage Value'!N116,'Total Trucks - Salvage Value'!N167,'Total Trucks - Salvage Value'!N393)+'Total Cont, DB'!K781 -> 482027.34 | E141: =C141-D141 -> 1071.06
A143: 10/1/2017-12/31/2017 | B143: LAW | C143: 1027143.47 | D143: 1027143.97 | E143: =C143-D143 -> -0.5 | F143: imm
A145: 1/1/2018-12/31/2018 | B145: LAW | C145: =4097364.65+105587.28 -> 4202951.93 | D145: =+SUM('Total Trucks - Salvage Value'!N48:N48,'Total Trucks - Salvage Value'!N440:N440,'Total Trucks - Salvage Value'!N118:N123,'Total Trucks - Salvage Value'!N170:N173,'Total Trucks - Salvage Value'!N229:N233,'Total Trucks - Salvage Value'!N267,'Total Trucks - Salvage Value'!N283:N285,'Total Cont, DB'!K1302,'Total Cont, DB'!K1224:K1232,'Total Cont, DB'!K1032:K1044,'Total Cont, DB'!K782:K787,'Total Cont, DB'!K623:K629,'Total Cont, DB'!K546,'Total Cont, DB'!K342:K353,'TotalServ, Shop - Salvage Value'!L28,'TotalServ, Shop - Salvage Value'!L82,'Total Office'!K13:K16,Leasehold!K91:K92) -> 4188242.47 | E145: =C145-D145 -> 14709.46 | F145: imm
A147: 1/1/2019-8/31/19 | B147: LAW | C147: 1272855.88 | D147: =+SUM('Total Trucks - Salvage Value'!N50,'Total Trucks - Salvage Value'!N286,'Total Cont, DB'!K354:K368,'Total Cont, DB'!K630:K635,'Total Cont, DB'!K788:K1236,'Total Cont, DB'!K1045:K1055,'Total Cont, DB'!K1233:K1236,'Total Cont, DB'!K1320)+SUM('Total Office'!K17,'Total Office'!K23,Leasehold!K93) -> 19482717.64 | E147: =C147-D147 -> -18209861.76
A149: 9/1/2019-12/31/2019 | B149: LAW | C149: 4466776.19 | D149: =+SUM('Total Trucks - Salvage Value'!N73:N77,'Total Trucks - Salvage Value'!N125:N130,'Total Trucks - Salvage Value'!N175:N180,'Total Trucks - Salvage Value'!N234:N237,'Total Trucks - Salvage Value'!N78:N79,'Total Trucks - Salvage Value'!N287:N290,'Total Cont, DB'!K369:K375,'Total Cont, DB'!K790:K792,'Total Cont, DB'!K1056:K1060,'Total Cont, DB'!K1237:K1238,'Total Cont, DB'!K1250:K1253,'TotalServ, Shop - Salvage Value'!L39,'TotalServ, Shop - Salvage Value'!L84:L85,'Total Office'!K24:K27,'Total Office'!K43,Leasehold!K39:K40) -> 4441064.49 | E149: =C149-D149 -> 25711.7 | F149: This is for a radio that was entered twice in error
A151: 1/1/2020-7/31/2020 | B151: LAW | C151: 2717493.71 | D151: =+SUM('Total Trucks - Salvage Value'!N81:N82,'Total Trucks - Salvage Value'!N131,'Total Trucks - Salvage Value'!N181:N183,'Total Trucks - Salvage Value'!N238:N239,'Total Trucks - Salvage Value'!N80,'Total Trucks - Salvage Value'!N291,'Total Cont, DB'!K376:K381,'Total Cont, DB'!K636,'Total Cont, DB'!K793:K798,'Total Cont, DB'!K1061:K1068,'Total Cont, DB'!K1239:K1240,'Total Cont, DB'!K1254:K1257,'Total Cont, DB'!K1303:K1304,'TotalServ, Shop - Salvage Value'!L84,'TotalServ, Shop - Salvage Value'!L86,'Total Office'!K28:K34) -> 2595872.03 | E151: =C151-D151 -> 121621.68 | F151: 58858.91 | G151: From Prior Period (added in child account to parent)
A153: 8/1/2020-12/31/2020 | B153: JTH | C153: 1798400.59 | D153: =+SUM('Total Trucks - Salvage Value'!N51,'Total Trucks - Salvage Value'!N83:N84,'Total Trucks - Salvage Value'!N132,'Total Trucks - Salvage Value'!N184:N185,'Total Trucks - Salvage Value'!N293:N294,'Total Cont, DB'!K382:K383,'Total Cont, DB'!K637:K640,'Total Cont, DB'!K799:K804,'Total Cont, DB'!K1069:K1076,'Total Cont, DB'!K1241:K1242,'Total Cont, DB'!K1258:K1259,'Total Cont, DB'!K1305:K1309,'TotalServ, Shop - Salvage Value'!L29,'TotalServ, Shop - Salvage Value'!L87,'Total Office'!L35:L38) -> 1798470.43 | E153: =D153-C153 -> 69.84
A155: 01/01/2021 - 07/31/21 | B155: AML | C155: 3952588.93 | D155: ='Total Trucks - Salvage Value'!D6 -> 0 | E155: =C155-D155 -> 3952588.93

Sheet FAR Dep Summary
A1: Live Pivot
A2: Pre 8/1/21 Add? | B2: No
A4: Row Labels | B4: Sum of Cost | C4: Sum of Test Year Dep | D4: Sum of BOY Accum | E4: Sum of EOY Accum | F4: Sum of EOY Average Investment
A5: Drop Boxes (shared) | B5: 1181945.6 | C5: 95944.00167 | D5: 134973.2414 | E5: 230917.2431 | F5: 951028.3569 | G5: =+VLOOKUP(A5,'Total Depreciation Summary'!$A$9:$A$68,1,FALSE) -> Drop Boxes (shared)
A6: Garbage Container (shared) | B6: 456708.4 | C6: 41163.44107 | D6: 16571.16631 | E6: 57734.60738 | F6: 398973.7926 | G6: =+VLOOKUP(A6,'Total Depreciation Summary'!$A$9:$A$68,1,FALSE) -> Garbage Container (shared)
A7: Land | B7: 100000 | C7: 0 | D7: 0 | E7: 100000 | F7: 0 | G7: =+VLOOKUP(A7,'Total Depreciation Summary'!$A$9:$A$68,1,FALSE) -> Land
A8: Non-Regulated Office Equipment | B8: 1427.98 | C8: 475.9933333 | D8: 634.6577778 | E8: 1110.651111 | F8: 317.3288889 | G8: =+VLOOKUP(A8,'Total Depreciation Summary'!$A$9:$A$68,1,FALSE) -> Non-Regulated Office Equipment
A9: Organics Carts (non-reg) | B9: 379872.22 | C9: 54267.46 | D9: 19472.36762 | E9: 73739.82762 | F9: 306132.3924 | G9: =+VLOOKUP(A9,'Total Depreciation Summary'!$A$9:$A$68,1,FALSE) -> Organics Carts (non-reg)
A10: Recycle Carts (non-reg) | B10: 2600423.86 | C10: 395194.9006 | D10: 262579.9286 | E10: 657774.8292 | F10: 1942649.031 | G10: =+VLOOKUP(A10,'Total Depreciation Summary'!$A$9:$A$68,1,FALSE) -> Recycle Carts (non-reg)
A11: Recycle Container (non-reg) | B11: 88627.26 | C11: 14646.425 | D11: 2784.665 | E11: 17431.09 | F11: 71196.17 | G11: =+VLOOKUP(A11,'Total Depreciation Summary'!$A$9:$A$68,1,FALSE) -> Recycle Container (non-reg)
A12: Recycle Trucks | B12: 5496951.43 | C12: 597546.307 | D12: 409804.3355 | E12: 1007350.642 | F12: 4489600.788 | G12: =+VLOOKUP(A12,'Total Depreciation Summary'!$A$9:$A$68,1,FALSE) -> Recycle Trucks
A13: Shared Leasehold/Property Imprv | B13: 8877336.43 | C13: 553253.6905 | D13: 6392.028583 | E13: 559645.7191 | F13: 8317690.711 | G13: =+VLOOKUP(A13,'Total Depreciation Summary'!$A$9:$A$68,1,FALSE) -> Shared Leasehold/Property Imprv
A14: Shared Office Equipment | B14: 99766.45 | C14: 22270.41333 | D14: 32527.52006 | E14: 54797.93339 | F14: 44968.51661 | G14: =+VLOOKUP(A14,'Total Depreciation Summary'!$A$9:$A$68,1,FALSE) -> Shared Office Equipment
A15: Shared Service Equipment | B15: 289419.25 | C15: 37159.792 | D15: 121519.8462 | E15: 158971.0366 | F15: 130448.2134 | G15: =+VLOOKUP(A15,'Total Depreciation Summary'!$A$9:$A$68,1,FALSE) -> Shared Service Equipment
A16: Shared Shop Equipment | B16: 6068.48 | C16: 5734.967667 | D16: -3526.98275 | E16: 2207.984917 | F16: 3860.495083 | G16: =+VLOOKUP(A16,'Total Depreciation Summary'!$A$9:$A$68,1,FALSE) -> Shared Shop Equipment
A17: Yard Debris Carts (non-reg) | B17: 478278.96 | C17: 68325.56571 | D17: 50758.43595 | E17: 119084.0017 | F17: 359194.9583 | G17: =+VLOOKUP(A17,'Total Depreciation Summary'!$A$9:$A$68,1,FALSE) -> Yard Debris Carts (non-reg)
A18: Garbage Carts (non-reg) | B18: 463058.55 | C18: 66151.22143 | D18: 40096.07024 | E18: 106247.2917 | F18: 356811.2583 | G18: =+VLOOKUP(A18,'Total Depreciation Summary'!$A$9:$A$68,1,FALSE) -> Garbage Carts (non-reg)
A19: Roll-off Trucks | B19: 1350494.21 | C19: 141588.2637 | D19: 31376.46578 | E19: 172964.7294 | F19: 1177529.481 | G19: =+VLOOKUP(A19,'Total Depreciation Summary'!$A$9:$A$68,1,FALSE) -> Roll-off Trucks
A20: Garbage Trucks - Non-Regulated Only | B20: 1433776.56 | C20: 163234.9931 | D20: 89054.74235 | E20: 252289.7354 | F20: 1181486.825 | G20: =+VLOOKUP(A20,'Total Depreciation Summary'!$A$9:$A$68,1,FALSE) -> Garbage Trucks - Non-Regulated Only
A21: Garbage Trucks - Regulated Only | B21: 8569982.25 | C21: 864698.35 | D21: 118278.7358 | E21: 982977.0858 | F21: 7587005.164 | G21: =+VLOOKUP(A21,'Total Depreciation Summary'!$A$9:$A$68,1,FALSE) -> Garbage Trucks - Regulated Only
A22: Garbage Carts (Reg only) | B22: 4840477.16 | C22: 691496.7371 | D22: 142899.6754 | E22: 834396.4125 | F22: 4006080.748 | G22: =+VLOOKUP(A22,'Total Depreciation Summary'!$A$9:$A$68,1,FALSE) -> Garbage Carts (Reg only)
A23: Garbage Trucks - Shared | B23: 1716071.53 | C23: 176472.724 | D23: 31313.58267 | E23: 207786.3067 | F23: 1508285.223 | G23: =+VLOOKUP(A23,'Total Depreciation Summary'!$A$9:$A$68,1,FALSE) -> Garbage Trucks - Shared
A24: Shredding Trucks | B24: 2500 | C24: 833.3333333 | D24: 1250 | E24: 2083.333333 | F24: 416.6666667 | G24: =+VLOOKUP(A24,'Total Depreciation Summary'!$A$9:$A$68,1,FALSE) -> Shredding Trucks
A25: Non-Regulated Service Equip | B25: 5855.75 | C25: 836.5357143 | D25: 0 | E25: 836.5357143 | F25: 5019.214286 | G25: =+VLOOKUP(A25,'Total Depreciation Summary'!$A$9:$A$68,1,FALSE) -> Non-Regulated Service Equip
A26: Grand Total | B26: 38439042.33 | C26: 3991295.116 | D26: 1508760.482 | E26: 5600346.997 | F26: 32838695.33
A30: Pasted Values
A31: Row Labels | B31: Sum of Cost | C31: Sum of Test Year Dep | D31: Sum of BOY Accum | E31: Sum of EOY Accum | F31: Sum of EOY Average Investment
A32: Drop Boxes (shared) | B32: 1181945.6 | C32: 95944.00167 | D32: 134973.2414 | E32: 230917.2431 | F32: 951028.3569
A33: Garbage Container (shared) | B33: 456708.4 | C33: 41163.44107 | D33: 16571.16631 | E33: 57734.60738 | F33: 398973.7926
A34: Land | B34: 100000 | C34: 0 | D34: 0 | E34: 100000 | F34: 0 | H34: FAR is calculating end of year depreciation. Land is a non depreciated asset. Zeroed out pasted values so that it is excluded from summary tab.
A35: Non-Regulated Office Equipment | B35: 1427.98 | C35: 475.9933333 | D35: 634.6577778 | E35: 1110.651111 | F35: 317.3288889
A36: Organics Carts (non-reg) | B36: 379872.22 | C36: 54267.46 | D36: 19472.36762 | E36: 73739.82762 | F36: 306132.3924
A37: Recycle Carts (non-reg) | B37: 2600423.86 | C37: 395194.9006 | D37: 262579.9286 | E37: 657774.8292 | F37: 1942649.031
A38: Recycle Container (non-reg) | B38: 88627.26 | C38: 14646.425 | D38: 2784.665 | E38: 17431.09 | F38: 71196.17
A39: Recycle Trucks | B39: 5496951.43 | C39: 597546.307 | D39: 409804.3355 | E39: 1007350.642 | F39: 4489600.788
A40: Shared Leasehold/Property Imprv | B40: 8877336.43 | C40: 553253.6905 | D40: 6392.028583 | E40: 559645.7191 | F40: 8317690.711
A41: Shared Office Equipment | B41: 99766.45 | C41: 22270.41333 | D41: 32527.52006 | E41: 54797.93339 | F41: 44968.51661
A42: Shared Service Equipment | B42: 289419.25 | C42: 37159.792 | D42: 121519.8462 | E42: 158971.0366 | F42: 130448.2134
A43: Shared Shop Equipment | B43: 6068.48 | C43: 5734.967667 | D43: -3526.98275 | E43: 2207.984917 | F43: 3860.495083
A44: Yard Debris Carts (non-reg) | B44: 478278.96 | C44: 68325.56571 | D44: 50758.43595 | E44: 119084.0017 | F44: 359194.9583
A45: Garbage Carts (non-reg) | B45: 463058.55 | C45: 66151.22143 | D45: 40096.07024 | E45: 106247.2917 | F45: 356811.2583
A46: Roll-off Trucks | B46: 1350494.21 | C46: 141588.2637 | D46: 31376.46578 | E46: 172964.7294 | F46: 1177529.481
A47: Garbage Trucks - Non-Regulated Only | B47: 1433776.56 | C47: 163234.9931 | D47: 89054.74235 | E47: 252289.7354 | F47: 1181486.825
A48: Garbage Trucks - Regulated Only | B48: 8569982.25 | C48: 864698.35 | D48: 118278.7358 | E48: 982977.0858 | F48: 7587005.164
A49: Garbage Carts (Reg only) | B49: 4840477.16 | C49: 691496.7371 | D49: 142899.6754 | E49: 834396.4125 | F49: 4006080.748
A50: Garbage Trucks - Shared | B50: 1716071.53 | C50: 176472.724 | D50: 31313.58267 | E50: 207786.3067 | F50: 1508285.223
A51: Shredding Trucks | B51: 2500 | C51: 833.3333333 | D51: 1250 | E51: 2083.333333 | F51: 416.6666667
A52: Non-Regulated Service Equip | B52: 5855.75 | C52: 836.5357143 | D52: 0 | E52: 836.5357143 | F52: 5019.214286
A53: Grand Total | B53: 38439042.33 | C53: 3991295.116 | D53: 1508760.482 | E53: 5600346.997 | F53: 32838695.33
B55: =B26-B53 -> 0 | C55: =C26-C53 -> 0 | D55: 0 | E55: 0 | F55: 0
B56: =+B53-SUM('05.2024 FAR'!S14:S623) -> 0 | C56: =+C53-SUM('05.2024 FAR'!AT14:AT623) -> 0 | D56: =+D53-SUM('05.2024 FAR'!AU14:AU623) -> 0 | E56: =+E53-SUM('05.2024 FAR'!AV14:AV623) -> 0 | F56: =+F53-SUM('05.2024 FAR'!AW14:AW623) -> 0

Sheet 05.2024 FAR
B1: Location | C1: AssetID | D1: ParentChild | E1: Description | F1: SystemNo | H1: MFGSerialNum | I1: LicensePlate | J1: ModelYear | K1: VendorMfg | L1: BodyManuf | M1: InsuranceCategory | N1: InServiceDate | O1: AcquisitionDate | P1: PONumber | Q1: EstimatedLife | R1: AssetGL | S1: AcqValue | T1: AccumulatedGL | U1: CurrentLifeToDate | W1: CurrentYearToDate | X1: ExpenseGL | Y1: CurrentPeriodDepr | Z1: AcqType | AA1: FormerCompany | AB1: InvoiceNum | AC1: CompAsstNo | AD1: Book | AE1: ActivityCd | AF1: DeprMethod | AG1: BegLsDeprDate | AH1: LongName | AI1: Sequence | AJ1: BegLifeToDate
V2: =S2-U2 -> 0
B3: =_xll.ReportRange("FARReport",A14:AJ2749,A1:AJ1,A2:AJ2,_xll.Param($C$9,$C$10,C12,$M$9,$M$10,$M$11,$S$9,M12,$Y$10,$Y$9,S10,S11,CELL("address",$E$6)),TRUE,FALSE) -> OK!: ReportRange Formula OK [jAction{}] | L3: Default Month : | M3: =MONTH(NOW()) -> 6 | S3: OK!: ReportDrill 'Projected Depr' Formula OK [jAction{}] | Y3: =_xll.jFreezePanes(A14,A5) -> > jFreezePanes is ready. | AB3: =_xll.jFocus(C9) -> > jFocus is ready.
L4: Default Year : | M4: =IF(M3=12,YEAR(NOW()),YEAR(NOW())) -> 2024 | S4: reportdrill(Invoice!C2,,pairgroup(pair("C:C",Invoice!E8),pair("",Invoice!E7,"N")),"Drill To Invoices by FAS# (Exc CIP)") | U4: OK!: ReportDrill 'Drill To All Invoices by PO#' Formula OK [jAction{}] | X4: OK!: ReportDrill 'Drill to Invoice by PO# and Invoice #' Formula OK [jAction{}]
B5: Fixed Asset Register | H5: Asset Count: | I5: =COUNT(C14:C2749) -> 2735 | AK5: 4 | AL5: Test Period Beg. Month
B6: Data Last Updated in this Pull: | E6: May 8 2023 8:39AM | AK6: 3 | AL6: Test Period End Month
AK7: 2023 | AL7: First Year
AK8: 2024 | AL8: Second year
B9: Period: | C9: 2024-05 | F9: Ctrl + Shift + J | L9: VIN: | O9: (Contains the string) | R9: Parent/Child: | T9: (Leave blank for all) | X9: Service Date To: | AK9: =+AK8+(AK6/12) -> 2024.25 | AL9: Test Period End Mo/Yr
B10: District: | C10: 2010 | E10: (F9 Aware) | L10: Description: | O10: (Contains the string) | R10: Asset Acct: | X10: Service Date From: | AK10: =+AK7+(AK5/12) -> 2023.333333 | AL10: Test Period Beg. Mo/Yr
L11: PO Number: | O11: (Contains the string) | R11: Exp Acct:
B12: Asset #: | L12: Ins Category: | O12: (Not setup yet) | R12: Depreciated %: | T12: (Not setup yet)
A13: Blank | B13: District | C13: Asset # | D13: Parent/ Child | E13: Descr | F13: Container Count | G13: Blank2 | H13: MFG Serial# | I13: License Plate | J13: Model Year | K13: Vendor/Mfg | L13: Body Mfg | M13: Ins Category | N13: In Service Date | O13: Acq Date | P13: CER # | Q13: Useful Life | R13: Asset Account | S13: Cost | T13: Accum Account | U13: Accum Life to Date | V13: NBV | W13: Accum YTD | X13: Expense Account | Y13: Current Depr | Z13: Acq Type | AA13: Former Company | AB13: Invoice # | AC13: Company Asset # | AD13: Book | AE13: Activity Cd | AF13: Depr Meth | AG13: Beg Date | AH13: Dbase | AI13: Seq | AJ13: Beg Depr | AK13: Truck # | AL13: Equipment Type per Field | AM13: Equipment Type for Lookup | AN13: Month | AO13: YearPIS | AP13: Year Fully Dep | AQ13: Year/Mo Fully Dep | AR13: Monthly Dep | AS13: Annual Dep | AT13: Test Year Dep | AU13: BOY Accum | AV13: EOY Accum | AW13: EOY Average Investment | AX13: Pre 8/1/21 Add? | AY13: CER Number
B14: 2010 | C14: 409755 | D14: 402188 | E14: Permitting for new building | J14: 0 | N14: 2024-04-12 | O14: 2024-04-12 | P14: 2010-24-0001-1 | Q14: 2000 | R14: 14080 | S14: 200 | T14: 14086 | U14: 1.66 | V14: =S14-U14 -> 198.34 | W14: 1.66 | X14: 57260 | Y14: 0.83 | Z14: P | AF14: STL | AM14: Shared Leasehold/Property Imprv | AN14: =MONTH($N14) -> 4 | AO14: =YEAR($N14) -> 2024 | AP14: =$AO14+($Q14/100) -> 2044 | AQ14: =$AP14+($AN14/12) -> 2044.333333 | AR14: =IFERROR($S14/($Q14/100)/12,0) -> 0.8333333333 | AS14: =$AR14*12 -> 10 | AT14: =IF(AM14="Land",0,+IF(AQ14>$AK$9,AS14,0)) -> 10 | AU14: =+IF(AM14="Land",0,IF(AQ14<=$AK$10,S14,IF((AO14+(AN14/12))>=$AK$10,0,((S14-((AQ14-$AK$10)*12)*AR14))))) -> 0 | AV14: =IF(AQ14<$AK$9,S14,AT14+AU14) -> 10 | AW14: =$S14-$AV14 -> 190 | AX14: No
B15: 2010 | C15: 409719 | D15: P | E15: 20yd lidded drop boxes | J15: 0 | N15: 2024-04-16 | O15: 2024-04-16 | P15: 2010-24-0034-1 | Q15: 1200 | R15: 14050 | S15: 16917 | T15: 14056 | U15: 117.48 | V15: 16799.52 | W15: 117.48 | X15: 54260 | Y15: 117.48 | Z15: P | AF15: STL | AM15: Drop Boxes (shared) | AN15: 4 | AO15: 2024 | AP15: 2036 | AQ15: 2036.333333 | AR15: 117.4791667 | AS15: 1409.75 | AT15: 1409.75 | AU15: 0 | AV15: 1409.75 | AW15: 15507.25 | AX15: No
B16: 2010 | C16: 409717 | D16: P | E16: 20yd drop box | J16: 0 | N16: 2024-04-11 | O16: 2024-04-11 | P16: 2010-24-0034-1 | Q16: 1200 | R16: 14050 | S16: 5370.5 | T16: 14056 | U16: 74.59 | V16: 5295.91 | W16: 74.59 | X16: 54260 | Y16: 37.3 | Z16: P | AF16: STL | AM16: Drop Boxes (shared) | AN16: 4 | AO16: 2024 | AP16: 2036 | AQ16: 2036.333333 | AR16: 37.29513889 | AS16: 447.5416667 | AT16: 447.5416667 | AU16: 0 | AV16: 447.5416667 | AW16: 4922.958333 | AX16: No
B17: 2010 | C17: 409716 | D17: P | E17: 40yd lidded drop boxes | J17: 0 | N17: 2024-04-16 | O17: 2024-04-16 | P17: 2010-24-0034-1 | Q17: 1200 | R17: 14050 | S17: 40354 | T17: 14056 | U17: 280.24 | V17: 40073.76 | W17: 280.24 | X17: 54260 | Y17: 280.24 | Z17: P | AF17: STL | AM17: Drop Boxes (shared) | AN17: 4 | AO17: 2024 | AP17: 2036 | AQ17: 2036.333333 | AR17: 280.2361111 | AS17: 3362.833333 | AT17: 3362.833333 | AU17: 0 | AV17: 3362.833333 | AW17: 36991.16667 | AX17: No
B18: 2010 | C18: 409715 | D18: P | E18: 30yd lidded drop box | J18: 0 | N18: 2024-04-16 | O18: 2024-04-16 | P18: 2010-24-0034-1 | Q18: 1200 | R18: 14050 | S18: 9286.5 | T18: 14056 | U18: 64.49 | V18: 9222.01 | W18: 64.49 | X18: 54260 | Y18: 64.49 | Z18: P | AF18: STL | AM18: Drop Boxes (shared) | AN18: 4 | AO18: 2024 | AP18: 2036 | AQ18: 2036.333333 | AR18: 64.48958333 | AS18: 773.875 | AT18: 773.875 | AU18: 0 | AV18: 773.875 | AW18: 8512.625 | AX18: No
B19: 2010 | C19: 408962 | D19: 402188 | E19: electrical permit for lighting upgrade & new sign for WCN Sign on 94th | J19: 0 | N19: 2024-04-12 | O19: 2024-04-12 | P19: 2010-24-0001-1 | Q19: 2000 | R19: 14080 | S19: 53.71 | T19: 14086 | U19: 0.44 | V19: 53.27 | W19: 0.44 | X19: 57260 | Y19: 0.22 | Z19: P | AF19: STL | AM19: Shared Leasehold/Property Imprv | AN19: 4 | AO19: 2024 | AP19: 2044 | AQ19: 2044.333333 | AR19: 0.2237916667 | AS19: 2.6855 | AT19: 2.6855 | AU19: 0 | AV19: 2.6855 | AW19: 51.0245 | AX19: No
B20: 2010 | C20: 408960 | D20: P | E20: 14gal galss bins | J20: 0 | N20: 2024-04-16 | O20: 2024-04-16 | P20: 2010-24-0039-1 | Q20: 500 | R20: 14050 | S20: 62235.6 | T20: 14056 | U20: 1037.26 | V20: 61198.34 | W20: 1037.26 | X20: 54260 | Y20: 1037.26 | Z20: P | AF20: STL | AM20: Recycle Container (non-reg) | AN20: 4 | AO20: 2024 | AP20: 2029 | AQ20: 2029.333333 | AR20: 1037.26 | AS20: 12447.12 | AT20: 12447.12 | AU20: 0 | AV20: 12447.12 | AW20: 49788.48 | AX20: No
B21: 2010 | C21: 408949 | D21: P | E21: HP ProBook 440 G10 14 Touchscreen - SN: QQ31669555 | J21: 0 | N21: 2024-05-08 | O21: 2024-05-08 | P21: 2010-24-0044-1 | Q21: 300 | R21: 14110 | S21: 1127.67 | T21: 14116 | U21: 31.32 | V21: 1096.35 | W21: 31.32 | X21: 70260 | Y21: 31.32 | Z21: P | AF21: STL | AM21: Shared Office Equipment | AN21: 5 | AO21: 2024 | AP21: 2027 | AQ21: 2027.416667 | AR21: 31.32416667 | AS21: 375.89 | AT21: 375.89 | AU21: 0 | AV21: 375.89 | AW21: 751.78 | AX21: No
B22: 2010 | C22: 408931 | D22: P | E22: HP USB-C G5 Docking Station - SN: 2TK406Z1JB | J22: 0 | N22: 2024-05-08 | O22: 2024-05-08 | P22: 2010-24-0045-1 | Q22: 300 | R22: 14110 | S22: 236.61 | T22: 14116 | U22: 6.57 | V22: 230.04 | W22: 6.57 | X22: 70260 | Y22: 6.57 | Z22: P | AF22: STL | AM22: Shared Office Equipment | AN22: 5 | AO22: 2024 | AP22: 2027 | AQ22: 2027.416667 | AR22: 6.5725 | AS22: 78.87 | AT22: 78.87 | AU22: 0 | AV22: 78.87 | AW22: 157.74 | AX22: No
B23: 2010 | C23: 408930 | D23: P | E23: HP ProBook 440 G10 14 Touchscreen - SN: 5CD3461H6Y | J23: 0 | N23: 2024-05-08 | O23: 2024-05-08 | P23: 2010-24-0045-1 | Q23: 300 | R23: 14110 | S23: 1127.67 | T23: 14116 | U23: 31.32 | V23: 1096.35 | W23: 31.32 | X23: 70260 | Y23: 31.32 | Z23: P | AF23: STL | AM23: Shared Office Equipment | AN23: 5 | AO23: 2024 | AP23: 2027 | AQ23: 2027.416667 | AR23: 31.32416667 | AS23: 375.89 | AT23: 375.89 | AU23: 0 | AV23: 375.89 | AW23: 751.78 | AX23: No
B24: 2010 | C24: 408925 | D24: 402188 | E24: remaining cost of sign refurbishing at 94th | J24: 0 | N24: 2024-04-12 | O24: 2024-04-12 | P24: 2010-24-0001-1 | Q24: 2000 | R24: 14080 | S24: 1741.42 | T24: 14086 | U24: 14.52 | V24: 1726.9 | W24: 14.52 | X24: 57260 | Y24: 7.26 | Z24: P | AF24: STL | AM24: Shared Leasehold/Property Imprv | AN24: 4 | AO24: 2024 | AP24: 2044 | AQ24: 2044.333333 | AR24: 7.255916667 | AS24: 87.071 | AT24: 87.071 | AU24: 0 | AV24: 87.071 | AW24: 1654.349 | AX24: No
B25: 2010 | C25: 408895 | D25: P | E25: 20 yd lidded drop box | J25: 0 | N25: 2024-04-15 | O25: 2024-04-15 | P25: 2010-24-0034-1 | Q25: 1200 | R25: 14050 | S25: 33834 | T25: 14056 | U25: 469.92 | V25: 33364.08 | W25: 469.92 | X25: 54260 | Y25: 234.96 | Z25: P | AF25: STL | AM25: Drop Boxes (shared) | AN25: 4 | AO25: 2024 | AP25: 2036 | AQ25: 2036.333333 | AR25: 234.9583333 | AS25: 2819.5 | AT25: 2819.5 | AU25: 0 | AV25: 2819.5 | AW25: 31014.5 | AX25: No
B26: 2010 | C26: 408848 | D26: P | E26: HP USB-C G5 Docking Station - SN: 2TK406ZB1T | J26: 0 | N26: 2024-05-08 | O26: 2024-05-08 | P26: 2010-24-0044-1 | Q26: 300 | R26: 14110 | S26: 236.61 | T26: 14116 | U26: 6.57 | V26: 230.04 | W26: 6.57 | X26: 70260 | Y26: 6.57 | Z26: P | AF26: STL | AM26: Shared Office Equipment | AN26: 5 | AO26: 2024 | AP26: 2027 | AQ26: 2027.416667 | AR26: 6.5725 | AS26: 78.87 | AT26: 78.87 | AU26: 0 | AV26: 78.87 | AW26: 157.74 | AX26: No
B27: 2010 | C27: 408834 | D27: 402188 | E27: remaining cost of sign refurbishing at 94th | J27: 0 | N27: 2024-04-12 | O27: 2024-04-12 | P27: 2010-24-0001-1 | Q27: 2000 | R27: 14080 | S27: 2688.63 | T27: 14086 | U27: 22.4 | V27: 2666.23 | W27: 22.4 | X27: 57260 | Y27: 11.2 | Z27: P | AF27: STL | AM27: Shared Leasehold/Property Imprv | AN27: 4 | AO27: 2024 | AP27: 2044 | AQ27: 2044.333333 | AR27: 11.202625 | AS27: 134.4315 | AT27: 134.4315 | AU27: 0 | AV27: 134.4315 | AW27: 2554.1985 | AX27: No
B28: 2010 | C28: 408568 | D28: 402184 | E28: Professional Services for April. | J28: 0 | N28: 2024-02-19 | O28: 2024-02-19 | P28: 2010-24-0027-1 | Q28: 2000 | R28: 14080 | S28: 3237 | T28: 14086 | U28: 40.47 | V28: 3196.53 | W28: 40.47 | X28: 57260 | Y28: 13.49 | Z28: P | AF28: STL | AM28: Shared Leasehold/Property Imprv | AN28: 2 | AO28: 2024 | AP28: 2044 | AQ28: 2044.166667 | AR28: 13.4875 | AS28: 161.85 | AT28: 161.85 | AU28: 0 | AV28: 161.85 | AW28: 3075.15 | AX28: No
B29: 2010 | C29: 408561 | D29: 402184 | E29: Structural field tests - Shop | J29: 0 | N29: 2024-02-19 | O29: 2024-02-19 | P29: 2010-24-0027-1 | Q29: 2000 | R29: 14080 | S29: 1596.75 | T29: 14086 | U29: 19.95 | V29: 1576.8 | W29: 19.95 | X29: 57260 | Y29: 6.65 | Z29: P | AF29: STL | AM29: Shared Leasehold/Property Imprv | AN29: 2 | AO29: 2024 | AP29: 2044 | AQ29: 2044.166667 | AR29: 6.653125 | AS29: 79.8375 | AT29: 79.8375 | AU29: 0 | AV29: 79.8375 | AW29: 1516.9125 | AX29: No
B30: 2010 | C30: 408560 | D30: 402188 | E30: Structural field tests - Office | J30: 0 | N30: 2024-04-12 | O30: 2024-04-12 | P30: 2010-24-0001-1 | Q30: 2000 | R30: 14080 | S30: 534.75 | T30: 14086 | U30: 4.46 | V30: 530.29 | W30: 4.46 | X30: 57260 | Y30: 2.23 | Z30: P | AF30: STL | AM30: Shared Leasehold/Property Imprv | AN30: 4 | AO30: 2024 | AP30: 2044 | AQ30: 2044.333333 | AR30: 2.228125 | AS30: 26.7375 | AT30: 26.7375 | AU30: 0 | AV30: 26.7375 | AW30: 508.0125 | AX30: No
B31: 2010 | C31: 408394 | D31: 400139 | E31: 2024 Peterbilt MSL Truck - Body - Rollover 2010-23-0031 | H31: 3BPDHJ8X7RF117056 | J31: 2024 | L31: Peterbilt | M31: Automated Side Loader | N31: 2024-04-25 | O31: 2024-04-25 | P31: 2010-24-0024-1 | Q31: 1000 | R31: 14040 | S31: 176152.7 | T31: 14046 | U31: 1467.94 | V31: 174684.76 | W31: 1467.94 | X31: 51260 | Y31: 1467.94 | Z31: P | AF31: STL | AM31: Garbage Trucks - Non-Regulated Only | AN31: 4 | AO31: 2024 | AP31: 2034 | AQ31: 2034.333333 | AR31: 1467.939167 | AS31: 17615.27 | AT31: 17615.27 | AU31: 0 | AV31: 17615.27 | AW31: 158537.43 | AX31: No
B32: 2010 | C32: 408338 | D32: 116562 | E32: replacement engine for truck 624 | H32: 3ALHCYCY9FDGJ8225 | J32: 0 | M32: Rear Loader | N32: 2024-05-03 | O32: 2024-05-03 | P32: 2010-24-0042-1 | Q32: 300 | R32: 14040 | S32: 39267.58 | T32: 14046 | U32: 1090.77 | V32: 38176.81 | W32: 1090.77 | X32: 51260 | Y32: 1090.77 | Z32: P | AF32: STL | AM32: Garbage Trucks - Non-Regulated Only | AN32: 5 | AO32: 2024 | AP32: 2027 | AQ32: 2027.416667 | AR32: 1090.766111 | AS32: 13089.19333 | AT32: 13089.19333 | AU32: 0 | AV32: 13089.19333 | AW32: 26178.38667 | AX32: No
B33: 2010 | C33: 408266 | D33: 402229 | E33: Professional Services for April | J33: 0 | N33: 2024-03-01 | O33: 2024-05-16 | P33: 2010-24-0002-1 | Q33: 1000 | R33: 14010 | S33: 4295.55 | T33: 14016 | U33: 107.4 | V33: 4188.15 | W33: 107.4 | X33: 57260 | Y33: 35.8 | Z33: P | AF33: STL | AM33: Shared Leasehold/Property Imprv | AN33: 3 | AO33: 2024 | AP33: 2034 | AQ33: 2034.25 | AR33: 35.79625 | AS33: 429.555 | AT33: 429.555 | AU33: 0 | AV33: 429.555 | AW33: 3865.995 | AX33: No
B34: 2010 | C34: 408261 | D34: 402229 | E34: Professional services for March | J34: 0 | N34: 2024-03-01 | O34: 2024-05-16 | P34: 2010-24-0002-1 | Q34: 1000 | R34: 14010 | S34: 7321.63 | T34: 14016 | U34: 183.03 | V34: 7138.6 | W34: 183.03 | X34: 57260 | Y34: 61.01 | Z34: P | AF34: STL | AM34: Shared Leasehold/Property Imprv | AN34: 3 | AO34: 2024 | AP34: 2034 | AQ34: 2034.25 | AR34: 61.01358333 | AS34: 732.163 | AT34: 732.163 | AU34: 0 | AV34: 732.163 | AW34: 6589.467 | AX34: No
B35: 2010 | C35: 408141 | D35: 402229 | E35: Progress Billing 13 - Site work | J35: 0 | N35: 2024-05-01 | O35: 2024-05-01 | P35: 2010-24-0002-1 | Q35: 1000 | R35: 14010 | S35: 590961.52 | T35: 14016 | U35: 4924.68 | V35: 586036.84 | W35: 4924.68 | X35: 57260 | Y35: 4924.68 | Z35: P | AF35: STL | AM35: Shared Leasehold/Property Imprv | AN35: 5 | AO35: 2024 | AP35: 2034 | AQ35: 2034.416667 | AR35: 4924.679333 | AS35: 59096.152 | AT35: 59096.152 | AU35: 0 | AV35: 59096.152 | AW35: 531865.368 | AX35: No
B36: 2010 | C36: 408140 | D36: 402227 | E36: Professional Services for April | J36: 0 | N36: 2024-02-19 | O36: 2024-02-19 | P36: 2010-24-0029-1 | Q36: 1000 | R36: 14010 | S36: 2530 | T36: 14016 | U36: 63.24 | V36: 2466.76 | W36: 63.24 | X36: 57260 | Y36: 21.08 | Z36: P | AF36: STL | AM36: Shared Leasehold/Property Imprv | AN36: 2 | AO36: 2024 | AP36: 2034 | AQ36: 2034.166667 | AR36: 21.08333333 | AS36: 253 | AT36: 253 | AU36: 0 | AV36: 253 | AW36: 2277 | AX36: No
B37: 2010 | C37: 408069 | D37: 402188 | E37: Progress Billing 13 - Office | J37: 0 | N37: 2024-04-12 | O37: 2024-04-12 | P37: 2010-24-0001-1 | Q37: 2000 | R37: 14080 | S37: 650332.73 | T37: 14086 | U37: 5419.44 | V37: 644913.29 | W37: 5419.44 | X37: 57260 | Y37: 2709.72 | Z37: P | AF37: STL | AM37: Shared Leasehold/Property Imprv | AN37: 4 | AO37: 2024 | AP37: 2044 | AQ37: 2044.333333 | AR37: 2709.719708 | AS37: 32516.6365 | AT37: 32516.6365 | AU37: 0 | AV37: 32516.6365 | AW37: 617816.0935 | AX37: No
B38: 2010 | C38: 408064 | D38: 402184 | E38: Progress Billing 13 - Shop work | J38: 0 | N38: 2024-02-19 | O38: 2024-02-19 | P38: 2010-24-0027-1 | Q38: 2000 | R38: 14080 | S38: 313856.87 | T38: 14086 | U38: 3923.22 | V38: 309933.65 | W38: 3923.22 | X38: 57260 | Y38: 1307.74 | Z38: P | AF38: STL | AM38: Shared Leasehold/Property Imprv | AN38: 2 | AO38: 2024 | AP38: 2044 | AQ38: 2044.166667 | AR38: 1307.736958 | AS38: 15692.8435 | AT38: 15692.8435 | AU38: 0 | AV38: 15692.8435 | AW38: 298164.0265 | AX38: No
B39: 2010 | C39: 407191 | D39: P | E39: 95gal COV recycle carts | J39: 0 | N39: 2024-04-11 | O39: 2024-04-11 | P39: 2010-24-0040-1 | Q39: 700 | R39: 14050 | S39: 40894.06 | T39: 14056 | U39: 973.66 | V39: 39920.4 | W39: 973.66 | X39: 54260 | Y39: 486.83 | Z39: P | AF39: STL | AL39: Recycle Carts (non-reg) | AM39: Recycle Carts (non-reg) | AN39: 4 | AO39: 2024 | AP39: 2031 | AQ39: 2031.333333 | AR39: 486.8340476 | AS39: 5842.008571 | AT39: 5842.008571 | AU39: 0 | AV39: 5842.008571 | AW39: 35052.05143 | AX39: No | AY39: 2010-24-18
B40: 2010 | C40: 407165 | D40: P | E40: 30yd ro lidded drop box | J40: 0 | N40: 2024-04-09 | O40: 2024-04-09 | P40: 2010-24-0034-1 | Q40: 1200 | R40: 14050 | S40: 18573 | T40: 14056 | U40: 257.96 | V40: 18315.04 | W40: 257.96 | X40: 54260 | Y40: 128.98 | Z40: P | AF40: STL | AL40: Drop Boxes (shared) | AM40: Drop Boxes (shared) | AN40: 4 | AO40: 2024 | AP40: 2036 | AQ40: 2036.333333 | AR40: 128.9791667 | AS40: 1547.75 | AT40: 1547.75 | AU40: 0 | AV40: 1547.75 | AW40: 17025.25 | AX40: No | AY40: 2010-24-18
B41: 2010 | C41: 406824 | D41: 402227 | E41: Progress billing #4 | J41: 0 | N41: 2024-02-19 | O41: 2024-02-19 | P41: 2010-24-0029-1 | Q41: 1000 | R41: 14010 | S41: 40907.76 | T41: 14016 | U41: 1022.7 | V41: 39885.06 | W41: 1022.7 | X41: 57260 | Y41: 340.9 | Z41: P | AF41: STL | AL41: Shared Land Improvements/Fuel Tanks | AM41: Shared Leasehold/Property Imprv | AN41: 2 | AO41: 2024 | AP41: 2034 | AQ41: 2034.166667 | AR41: 340.898 | AS41: 4090.776 | AT41: 4090.776 | AU41: 0 | AV41: 4090.776 | AW41: 36816.984 | AX41: No | AY41: 0
B42: 2010 | C42: 406622 | D42: P | E42: HP Pro Mini G9 Desktop Computer - SN: MXL3503SDH | J42: 0 | N42: 2024-03-22 | O42: 2024-03-22 | P42: 2010-24-0035-1 | Q42: 300 | R42: 14110 | S42: 846.54 | T42: 14116 | U42: 47.04 | V42: 799.5 | W42: 47.04 | X42: 70260 | Y42: 23.52 | Z42: P | AF42: STL | AL42: Shared Office Equipment | AM42: Shared Office Equipment | AN42: 3 | AO42: 2024 | AP42: 2027 | AQ42: 2027.25 | AR42: 23.515 | AS42: 282.18 | AT42: 282.18 | AU42: 0 | AV42: 282.18 | AW42: 564.36 | AX42: No | AY42: 0
B43: 2010 | C43: 406608 | D43: P | E43: HP Pro Mini G9 Desktop Computer - SN: MXL3503TSJ | J43: 0 | N43: 2024-03-22 | O43: 2024-03-22 | P43: 2010-24-0035-1 | Q43: 300 | R43: 14110 | S43: 846.55 | T43: 14116 | U43: 47.04 | V43: 799.51 | W43: 47.04 | X43: 70260 | Y43: 23.52 | Z43: P | AF43: STL | AL43: Shared Office Equipment | AM43: Shared Office Equipment | AN43: 3 | AO43: 2024 | AP43: 2027 | AQ43: 2027.25 | AR43: 23.51527778 | AS43: 282.1833333 | AT43: 282.1833333 | AU43: 0 | AV43: 282.1833333 | AW43: 564.3666667 | AX43: No | AY43: 0
B44: 2010 | C44: 406607 | D44: P | E44: HP Pro Mini G9 Desktop Computer - SN: MXL3503TVM | J44: 0 | N44: 2024-03-22 | O44: 2024-03-22 | P44: 2010-24-0035-1 | Q44: 300 | R44: 14110 | S44: 846.55 | T44: 14116 | U44: 47.04 | V44: 799.51 | W44: 47.04 | X44: 70260 | Y44: 23.52 | Z44: P | AF44: STL | AL44: Shared Office Equipment | AM44: Shared Office Equipment | AN44: 3 | AO44: 2024 | AP44: 2027 | AQ44: 2027.25 | AR44: 23.51527778 | AS44: 282.1833333 | AT44: 282.1833333 | AU44: 0 | AV44: 282.1833333 | AW44: 564.3666667 | AX44: No | AY44: 0
B45: 2010 | C45: 406606 | D45: P | E45: HP Pro Mini G9 Desktop Computer - SN: MXL3503TY2 | J45: 0 | N45: 2024-03-22 | O45: 2024-03-22 | P45: 2010-24-0035-1 | Q45: 300 | R45: 14110 | S45: 846.54 | T45: 14116 | U45: 47.04 | V45: 799.5 | W45: 47.04 | X45: 70260 | Y45: 23.52 | Z45: P | AF45: STL | AL45: Shared Office Equipment | AM45: Shared Office Equipment | AN45: 3 | AO45: 2024 | AP45: 2027 | AQ45: 2027.25 | AR45: 23.515 | AS45: 282.18 | AT45: 282.18 | AU45: 0 | AV45: 282.18 | AW45: 564.36 | AX45: No | AY45: 0
B46: 2010 | C46: 406573 | D46: 402227 | E46: fuel station install | J46: 0 | N46: 2024-02-19 | O46: 2024-02-19 | P46: 2010-24-0029-1 | Q46: 1000 | R46: 14010 | S46: 3126.86 | T46: 14016 | U46: 78.18 | V46: 3048.68 | W46: 78.18 | X46: 57260 | Y46: 26.06 | Z46: P | AF46: STL | AL46: Shared Land Improvements/Fuel Tanks | AM46: Shared Leasehold/Property Imprv | AN46: 2 | AO46: 2024 | AP46: 2034 | AQ46: 2034.166667 | AR46: 26.05716667 | AS46: 312.686 | AT46: 312.686 | AU46: 0 | AV46: 312.686 | AW46: 2814.174 | AX46: No | AY46: 0
B47: 2010 | C47: 406571 | D47: 402227 | E47: fuel station install | J47: 0 | N47: 2024-02-19 | O47: 2024-02-19 | P47: 2010-24-0029-1 | Q47: 1000 | R47: 14010 | S47: 1606.89 | T47: 14016 | U47: 40.17 | V47: 1566.72 | W47: 40.17 | X47: 57260 | Y47: 13.39 | Z47: P | AF47: STL | AL47: Shared Land Improvements/Fuel Tanks | AM47: Shared Leasehold/Property Imprv | AN47: 2 | AO47: 2024 | AP47: 2034 | AQ47: 2034.166667 | AR47: 13.39075 | AS47: 160.689 | AT47: 160.689 | AU47: 0 | AV47: 160.689 | AW47: 1446.201 | AX47: No | AY47: 0
B48: 2010 | C48: 406566 | D48: P | E48: HP Pro Mini G9 Desktop Computer - SN: MXL3503SGY | J48: 0 | N48: 2024-03-22 | O48: 2024-03-22 | P48: 2010-24-0035-1 | Q48: 300 | R48: 14110 | S48: 846.54 | T48: 14116 | U48: 47.04 | V48: 799.5 | W48: 47.04 | X48: 70260 | Y48: 23.52 | Z48: P | AF48: STL | AL48: Shared Office Equipment | AM48: Shared Office Equipment | AN48: 3 | AO48: 2024 | AP48: 2027 | AQ48: 2027.25 | AR48: 23.515 | AS48: 282.18 | AT48: 282.18 | AU48: 0 | AV48: 282.18 | AW48: 564.36 | AX48: No | AY48: 0
B49: 2010 | C49: 406542 | D49: 402188 | E49: lighting upgrade & new sign plates for Waste Connections Sign @ 94th | J49: 0 | N49: 2024-02-19 | O49: 2024-02-19 | P49: 2010-24-0001-1 | Q49: 2000 | R49: 14080 | S49: 1958.43 | T49: 14086 | U49: 24.48 | V49: 1933.95 | W49: 24.48 | X49: 57260 | Y49: 8.16 | Z49: P | AF49: STL | AL49: Shard Buildings/Building | AM49: Shared Leasehold/Property Imprv | AN49: 2 | AO49: 2024 | AP49: 2044 | AQ49: 2044.166667 | AR49: 8.160125 | AS49: 97.9215 | AT49: 97.9215 | AU49: 0 | AV49: 97.9215 | AW49: 1860.5085 | AX49: No | AY49: 2010-24-1
B50: 2010 | C50: 406541 | D50: 402188 | E50: lighting upgrade & new sign plates for Waste Connections Sign @ 94th | J50: 0 | N50: 2024-02-19 | O50: 2024-02-19 | P50: 2010-24-0001-1 | Q50: 2000 | R50: 14080 | S50: 2688.63 | T50: 14086 | U50: 33.6 | V50: 2655.03 | W50: 33.6 | X50: 57260 | Y50: 11.2 | Z50: P | AF50: STL | AL50: Shard Buildings/Building | AM50: Shared Leasehold/Property Imprv | AN50: 2 | AO50: 2024 | AP50: 2044 | AQ50: 2044.166667 | AR50: 11.202625 | AS50: 134.4315 | AT50: 134.4315 | AU50: 0 | AV50: 134.4315 | AW50: 2554.1985 | AX50: No | AY50: 2010-24-1
B51: 2010 | C51: 406532 | D51: P | E51: 40yd drop box | J51: 0 | N51: 2024-03-18 | O51: 2024-03-18 | P51: 2010-24-0034-1 | Q51: 1200 | R51: 14050 | S51: 14001 | T51: 14056 | U51: 194.46 | V51: 13806.54 | W51: 194.46 | X51: 54260 | Y51: 97.23 | Z51: P | AF51: STL | AL51: Drop Boxes (shared) | AM51: Drop Boxes (shared) | AN51: 3 | AO51: 2024 | AP51: 2036 | AQ51: 2036.25 | AR51: 97.22916667 | AS51: 1166.75 | AT51: 1166.75 | AU51: 0 | AV51: 1166.75 | AW51: 12834.25 | AX51: No | AY51: 2010-24-18
B52: 2010 | C52: 406531 | D52: P | E52: 20yd drop box | J52: 0 | N52: 2024-03-18 | O52: 2024-03-18 | P52: 2010-24-0034-1 | Q52: 1200 | R52: 14050 | S52: 10741 | T52: 14056 | U52: 149.18 | V52: 10591.82 | W52: 149.18 | X52: 54260 | Y52: 74.59 | Z52: P | AF52: STL | AL52: Drop Boxes (shared) | AM52: Drop Boxes (shared) | AN52: 3 | AO52: 2024 | AP52: 2036 | AQ52: 2036.25 | AR52: 74.59027778 | AS52: 895.0833333 | AT52: 895.0833333 | AU52: 0 | AV52: 895.0833333 | AW52: 9845.916667 | AX52: No | AY52: 2010-24-18
B53: 2010 | C53: 406498 | D53: 402184 | E53: Progress Billing 12 - Shop work | J53: 0 | N53: 2024-02-19 | O53: 2024-04-23 | P53: 2010-24-0027-1 | Q53: 2000 | R53: 14080 | S53: 467512.4 | T53: 14086 | U53: 5843.91 | V53: 461668.49 | W53: 5843.91 | X53: 57260 | Y53: 1947.97 | Z53: P | AF53: STL | AL53: Shard Buildings/Building | AM53: Shared Leasehold/Property Imprv | AN53: 2 | AO53: 2024 | AP53: 2044 | AQ53: 2044.166667 | AR53: 1947.968333 | AS53: 23375.62 | AT53: 23375.62 | AU53: 0 | AV53: 23375.62 | AW53: 444136.78 | AX53: No | AY53: 2010-24-27
B54: 2010 | C54: 406497 | D54: 402188 | E54: Progress Billing 12 - Office | J54: 0 | N54: 2024-02-19 | O54: 2024-04-23 | P54: 2010-24-0001-1 | Q54: 2000 | R54: 14080 | S54: 790350.89 | T54: 14086 | U54: 9879.39 | V54: 780471.5 | W54: 9879.39 | X54: 57260 | Y54: 3293.13 | Z54: P | AF54: STL | AL54: Shard Buildings/Building | AM54: Shared Leasehold/Property Imprv | AN54: 2 | AO54: 2024 | AP54: 2044 | AQ54: 2044.166667 | AR54: 3293.128708 | AS54: 39517.5445 | AT54: 39517.5445 | AU54: 0 | AV54: 39517.5445 | AW54: 750833.3455 | AX54: No | AY54: 2010-24-1
B55: 2010 | C55: 406455 | D55: P | E55: 2024 Gas Chevrolet Silverado 1500 Pickup Truck | H55: 3GCPDBEK0RG166150 | J55: 2024 | L55: Chevrolet | M55: Pickup Truck | N55: 2024-04-29 | O55: 2024-04-23 | P55: 2010-24-0026-1 | Q55: 500 | R55: 14040 | S55: 48450.58 | T55: 14046 | U55: 807.51 | V55: 47643.07 | W55: 807.51 | X55: 51260 | Y55: 807.51 | Z55: P | AF55: STL | AM55: Shared Service Equipment | AN55: 4 | AO55: 2024 | AP55: 2029 | AQ55: 2029.333333 | AR55: 807.5096667 | AS55: 9690.116 | AT55: 9690.116 | AU55: 0 | AV55: 9690.116 | AW55: 38760.464 | AX55: No
B56: 2010 | C56: 406454 | D56: P | E56: 2024 Gas Chevrolet Silverado 1500 Pickup Truck | H56: 3GCPDAEK5RG208743 | J56: 2024 | L56: Chevrolet | M56: Pickup Truck | N56: 2024-04-29 | O56: 2024-04-23 | P56: 2010-24-0025-1 | Q56: 500 | R56: 14040 | S56: 45515.65 | T56: 14046 | U56: 758.59 | V56: 44757.06 | W56: 758.59 | X56: 51260 | Y56: 758.59 | Z56: P | AF56: STL | AM56: Shared Service Equipment | AN56: 4 | AO56: 2024 | AP56: 2029 | AQ56: 2029.333333 | AR56: 758.5941667 | AS56: 9103.13 | AT56: 9103.13 | AU56: 0 | AV56: 9103.13 | AW56: 36412.52 | AX56: No
B57: 2010 | C57: 406149 | D57: 402227 | E57: Progress billing #6 | J57: 0 | N57: 2024-02-19 | O57: 2024-02-19 | P57: 2010-24-0029-1 | Q57: 1000 | R57: 14010 | S57: 8618.16 | T57: 14016 | U57: 215.46 | V57: 8402.7 | W57: 215.46 | X57: 57260 | Y57: 71.82 | Z57: P | AF57: STL | AL57: Shard Buildings/Building | AM57: Shared Leasehold/Property Imprv | AN57: 2 | AO57: 2024 | AP57: 2034 | AQ57: 2034.166667 | AR57: 71.818 | AS57: 861.816 | AT57: 861.816 | AU57: 0 | AV57: 861.816 | AW57: 7756.344 | AX57: No | AY57: 0
B58: 2010 | C58: 406008 | D58: 320907 | E58: 2024 Peterbilt FEL Truck-Body | H58: 3BPDXKEX9RF117055 | J58: 2024 | L58: Peterbilt | M58: Front Loader | N58: 2024-01-02 | O58: 2024-01-02 | P58: 2010-23-0025-1 | Q58: 1000 | R58: 14040 | S58: 161230.98 | T58: 14046 | U58: 6717.95 | V58: 154513.03 | W58: 6717.95 | X58: 51260 | Y58: 1343.59 | Z58: P | AF58: STL | AK58: 909 | AL58: Shared - Commercial Garbage | AM58: Garbage Trucks - Shared | AN58: 1 | AO58: 2024 | AP58: 2034 | AQ58: 2034.083333 | AR58: 1343.5915 | AS58: 16123.098 | AT58: 16123.098 | AU58: 0 | AV58: 16123.098 | AW58: 145107.882 | AX58: No | AY58: 0
B59: 2010 | C59: 404893 | D59: P | E59: 95 Gal Carts | J59: 0 | N59: 2024-03-14 | O59: 2024-03-14 | P59: 2010-24-0032-1 | Q59: 700 | R59: 14050 | S59: 40140.01 | T59: 14056 | U59: 1433.58 | V59: 38706.43 | W59: 1433.58 | X59: 54260 | Y59: 477.86 | Z59: P | AF59: STL | AL59: Garbage Carts (Reg only) | AM59: Garbage Carts (Reg only) | AN59: 3 | AO59: 2024 | AP59: 2031 | AQ59: 2031.25 | AR59: 477.8572619 | AS59: 5734.287143 | AT59: 5734.287143 | AU59: 0 | AV59: 5734.287143 | AW59: 34405.72286 | AX59: No | AY59: 2010-24-18
B60: 2010 | C60: 404843 | D60: P | E60: 65 Gal Carts | J60: 0 | N60: 2024-03-05 | O60: 2024-03-05 | P60: 2010-24-0032-1 | Q60: 700 | R60: 14050 | S60: 43639.39 | T60: 14056 | U60: 1558.56 | V60: 42080.83 | W60: 1558.56 | X60: 54260 | Y60: 519.52 | Z60: P | AF60: STL | AL60: Garbage Carts (Reg only) | AM60: Garbage Carts (Reg only) | AN60: 3 | AO60: 2024 | AP60: 2031 | AQ60: 2031.25 | AR60: 519.5165476 | AS60: 6234.198571 | AT60: 6234.198571 | AU60: 0 | AV60: 6234.198571 | AW60: 37405.19143 | AX60: No | AY60: 2010-24-18
B61: 2010 | C61: 404456 | D61: P | E61: HP ProBook 450 G10 15.6 Touchscreen Notebook - SN: 5CD4085ZH8 | J61: 0 | N61: 2024-03-04 | O61: 2024-03-04 | P61: 2010-24-0033-1 | Q61: 300 | R61: 14110 | S61: 1195.4 | T61: 14116 | U61: 99.63 | V61: 1095.77 | W61: 99.63 | X61: 70260 | Y61: 33.21 | Z61: P | AF61: STL | AL61: Shared Office Equipment | AM61: Shared Office Equipment | AN61: 3 | AO61: 2024 | AP61: 2027 | AQ61: 2027.25 | AR61: 33.20555556 | AS61: 398.4666667 | AT61: 398.4666667 | AU61: 0 | AV61: 398.4666667 | AW61: 796.9333333 | AX61: No | AY61: 0
B62: 2010 | C62: 404420 | D62: P | E62: HP USB-C G5 Essential Dock - SN: 2TK328ZMB3 | J62: 0 | N62: 2024-03-04 | O62: 2024-03-04 | P62: 2010-24-0033-1 | Q62: 300 | R62: 14110 | S62: 257.57 | T62: 14116 | U62: 21.45 | V62: 236.12 | W62: 21.45 | X62: 70260 | Y62: 7.15 | Z62: P | AF62: STL | AL62: Shared Office Equipment | AM62: Shared Office Equipment | AN62: 3 | AO62: 2024 | AP62: 2027 | AQ62: 2027.25 | AR62: 7.154722222 | AS62: 85.85666667 | AT62: 85.85666667 | AU62: 0 | AV62: 85.85666667 | AW62: 171.7133333 | AX62: No | AY62: 0
B63: 2010 | C63: 404027 | D63: 402227 | E63: Progress billing #5 | J63: 0 | N63: 2024-02-19 | O63: 2024-02-19 | P63: 2010-24-0029-1 | Q63: 1000 | R63: 14010 | S63: 47889.02 | T63: 14016 | U63: 1197.24 | V63: 46691.78 | W63: 1197.24 | X63: 57260 | Y63: 399.08 | Z63: P | AF63: STL | AL63: Shared Land Improvements/Fuel Tanks | AM63: Shared Leasehold/Property Imprv | AN63: 2 | AO63: 2024 | AP63: 2034 | AQ63: 2034.166667 | AR63: 399.0751667 | AS63: 4788.902 | AT63: 4788.902 | AU63: 0 | AV63: 4788.902 | AW63: 43100.118 | AX63: No | AY63: 0
B64: 2010 | C64: 404026 | D64: 402227 | E64: parts for new fuel station | J64: 0 | N64: 2024-02-15 | O64: 2024-02-15 | P64: 2010-24-0029-1 | Q64: 1000 | R64: 14010 | S64: 895.64 | T64: 14016 | U64: 29.84 | V64: 865.8 | W64: 29.84 | X64: 57260 | Y64: 7.46 | Z64: P | AF64: STL | AL64: Shared Land Improvements/Fuel Tanks | AM64: Shared Leasehold/Property Imprv | AN64: 2 | AO64: 2024 | AP64: 2034 | AQ64: 2034.166667 | AR64: 7.463666667 | AS64: 89.564 | AT64: 89.564 | AU64: 0 | AV64: 89.564 | AW64: 806.076 | AX64: No | AY64: 0
B65: 2010 | C65: 404024 | D65: 402227 | E65: Change Order #2 | J65: 0 | N65: 2024-02-19 | O65: 2024-02-19 | P65: 2010-24-0029-1 | Q65: 1000 | R65: 14010 | S65: 2980.59 | T65: 14016 | U65: 74.52 | V65: 2906.07 | W65: 74.52 | X65: 57260 | Y65: 24.84 | Z65: P | AF65: STL | AL65: Shared Land Improvements/Fuel Tanks | AM65: Shared Leasehold/Property Imprv | AN65: 2 | AO65: 2024 | AP65: 2034 | AQ65: 2034.166667 | AR65: 24.83825 | AS65: 298.059 | AT65: 298.059 | AU65: 0 | AV65: 298.059 | AW65: 2682.531 | AX65: No | AY65: 0
B66: 2010 | C66: 404021 | D66: 402229 | E66: Professional Services for Feb 2024 | J66: 0 | N66: 2024-03-01 | O66: 2024-03-01 | P66: 2010-24-0002-1 | Q66: 1000 | R66: 14010 | S66: 2309.82 | T66: 14016 | U66: 57.75 | V66: 2252.07 | W66: 57.75 | X66: 57260 | Y66: 19.25 | Z66: P | AF66: STL | AL66: Shared Land Improvements/Site Work | AM66: Shared Leasehold/Property Imprv | AN66: 3 | AO66: 2024 | AP66: 2034 | AQ66: 2034.25 | AR66: 19.2485 | AS66: 230.982 | AT66: 230.982 | AU66: 0 | AV66: 230.982 | AW66: 2078.838 | AX66: No | AY66: 2010-24-2
B67: 2010 | C67: 404020 | D67: 402227 | E67: Permit Fees | J67: 0 | N67: 2024-02-19 | O67: 2024-02-19 | P67: 2010-24-0029-1 | Q67: 1000 | R67: 14010 | S67: 303.5 | T67: 14016 | U67: 7.59 | V67: 295.91 | W67: 7.59 | X67: 57260 | Y67: 2.53 | Z67: P | AF67: STL | AL67: Shared Land Improvements/Fuel Tanks | AM67: Shared Leasehold/Property Imprv | AN67: 2 | AO67: 2024 | AP67: 2034 | AQ67: 2034.166667 | AR67: 2.529166667 | AS67: 30.35 | AT67: 30.35 | AU67: 0 | AV67: 30.35 | AW67: 273.15 | AX67: No | AY67: 0
B68: 2010 | C68: 403703 | D68: 402184 | E68: Shop work - Installment 11 | J68: 0 | N68: 2024-02-19 | O68: 2024-03-22 | P68: 2010-24-0027-1 | Q68: 1000 | R68: 14080 | S68: 70666.2 | T68: 14086 | U68: 1766.67 | V68: 68899.53 | W68: 1766.67 | X68: 57260 | Y68: 588.89 | Z68: P | AF68: STL | AL68: Shard Buildings/Building | AM68: Shared Leasehold/Property Imprv | AN68: 2 | AO68: 2024 | AP68: 2034 | AQ68: 2034.166667 | AR68: 588.885 | AS68: 7066.62 | AT68: 7066.62 | AU68: 0 | AV68: 7066.62 | AW68: 63599.58 | AX68: No | AY68: 2010-24-27
B69: 2010 | C69: 403702 | D69: 402188 | E69: Structural Field | J69: 0 | N69: 2024-02-19 | O69: 2024-03-22 | P69: 2010-24-0001-1 | Q69: 2000 | R69: 14080 | S69: 1000.5 | T69: 14086 | U69: 12.51 | V69: 987.99 | W69: 12.51 | X69: 57260 | Y69: 4.17 | Z69: P | AF69: STL | AL69: Shard Buildings/Building | AM69: Shared Leasehold/Property Imprv | AN69: 2 | AO69: 2024 | AP69: 2044 | AQ69: 2044.166667 | AR69: 4.16875 | AS69: 50.025 | AT69: 50.025 | AU69: 0 | AV69: 50.025 | AW69: 950.475 | AX69: No | AY69: 2010-24-1
B70: 2010 | C70: 403701 | D70: 402188 | E70: Office work - Installment 11 | J70: 0 | N70: 2024-02-19 | O70: 2024-03-22 | P70: 2010-24-0001-1 | Q70: 2000 | R70: 14080 | S70: 526971.03 | T70: 14086 | U70: 6587.13 | V70: 520383.9 | W70: 6587.13 | X70: 57260 | Y70: 2195.71 | Z70: P | AF70: STL | AL70: Shard Buildings/Building | AM70: Shared Leasehold/Property Imprv | AN70: 2 | AO70: 2024 | AP70: 2044 | AQ70: 2044.166667 | AR70: 2195.712625 | AS70: 26348.5515 | AT70: 26348.5515 | AU70: 0 | AV70: 26348.5515 | AW70: 500622.4785 | AX70: No | AY70: 2010-24-1
B71: 2010 | C71: 403502 | D71: P | E71: Shred Consoles | J71: 0 | N71: 2024-03-08 | O71: 2024-03-08 | P71: 2010-24-0030-1 | Q71: 700 | R71: 14050 | S71: 5855.75 | T71: 14056 | U71: 209.13 | V71: 5646.62 | W71: 209.13 | X71: 54260 | Y71: 69.71 | Z71: P | AF71: STL | AL71: Shred Consoles/Non Reg | AM71: Non-Regulated Service Equip | AN71: 3 | AO71: 2024 | AP71: 2031 | AQ71: 2031.25 | AR71: 69.71130952 | AS71: 836.5357143 | AT71: 836.5357143 | AU71: 0 | AV71: 836.5357143 | AW71: 5019.214286 | AX71: No | AY71: 0
B72: 2010 | C72: 403296 | D72: 402229 | E72: Professional Services for Jan 2024 | J72: 0 | N72: 2024-02-19 | O72: 2024-02-19 | P72: 2010-24-0002-1 | Q72: 1000 | R72: 14010 | S72: 8083.24 | T72: 14016 | U72: 202.08 | V72: 7881.16 | W72: 202.08 | X72: 57260 | Y72: 67.36 | Z72: P | AF72: STL | AL72: Shared Land Improvements/Site Work | AM72: Shared Leasehold/Property Imprv | AN72: 2 | AO72: 2024 | AP72: 2034 | AQ72: 2034.166667 | AR72: 67.36033333 | AS72: 808.324 | AT72: 808.324 | AU72: 0 | AV72: 808.324 | AW72: 7274.916 | AX72: No | AY72: 2010-24-2
B73: 2010 | C73: 403295 | D73: 402229 | E73: Site Development | J73: 0 | N73: 2024-03-01 | O73: 2024-03-01 | P73: 2010-24-0002-1 | Q73: 1000 | R73: 14010 | S73: 344.25 | T73: 14016 | U73: 8.61 | V73: 335.64 | W73: 8.61 | X73: 57260 | Y73: 2.87 | Z73: P | AF73: STL | AL73: Shared Land Improvements/Site Work | AM73: Shared Leasehold/Property Imprv | AN73: 3 | AO73: 2024 | AP73: 2034 | AQ73: 2034.25 | AR73: 2.86875 | AS73: 34.425 | AT73: 34.425 | AU73: 0 | AV73: 34.425 | AW73: 309.825 | AX73: No | AY73: 2010-24-2
B74: 2010 | C74: 402707 | D74: 320906 | E74: Pro rate license for new roll off truck 431 | J74: 0 | L74: N/A | N74: 2024-01-29 | O74: 2024-01-29 | P74: 2010-23-0032-1 | Q74: 1000 | R74: 14040 | S74: 956.58 | T74: 14046 | U74: 31.88 | V74: 924.7 | W74: 31.88 | X74: 51260 | Y74: 7.97 | Z74: P | AF74: STL | AK74: 431 | AL74: Shared - Roll-Off Truck | AM74: Roll-off Trucks | AN74: 1 | AO74: 2024 | AP74: 2034 | AQ74: 2034.083333 | AR74: 7.9715 | AS74: 95.658 | AT74: 95.658 | AU74: 0 | AV74: 95.658 | AW74: 860.922 | AX74: No | AY74: 0
B75: 2010 | C75: 402575 | D75: 402188 | E75: Development Fees Payment Confirmation | J75: 0 | N75: 2024-02-19 | O75: 2024-02-27 | P75: 2010-24-0001-1 | Q75: 2000 | R75: 14080 | S75: 3006.89 | T75: 14086 | U75: 37.59 | V75: 2969.3 | W75: 37.59 | X75: 57260 | Y75: 12.53 | Z75: P | AF75: STL | AL75: Shard Buildings/Building | AM75: Shared Leasehold/Property Imprv | AN75: 2 | AO75: 2024 | AP75: 2044 | AQ75: 2044.166667 | AR75: 12.52870833 | AS75: 150.3445 | AT75: 150.3445 | AU75: 0 | AV75: 150.3445 | AW75: 2856.5455 | AX75: No | AY75: 2010-24-1
B76: 2010 | C76: 402231 | D76: 402227 | E76: Professional services for Jan 2024 | J76: 0 | N76: 2024-02-19 | O76: 2024-02-19 | P76: 2010-24-0029-1 | Q76: 1000 | R76: 14010 | S76: 1533 | T76: 14016 | U76: 38.34 | V76: 1494.66 | W76: 38.34 | X76: 57260 | Y76: 12.78 | Z76: P | AF76: STL | AL76: Shared Land Improvements/Fuel Tanks | AM76: Shared Leasehold/Property Imprv | AN76: 2 | AO76: 2024 | AP76: 2034 | AQ76: 2034.166667 | AR76: 12.775 | AS76: 153.3 | AT76: 153.3 | AU76: 0 | AV76: 153.3 | AW76: 1379.7 | AX76: No | AY76: 0
B77: 2010 | C77: 402229 | D77: P | E77: Facility Expansion - Site Work | J77: 0 | N77: 2024-02-19 | O77: 2024-02-19 | P77: 2010-24-0002-1 | Q77: 1000 | R77: 14010 | S77: 265961.71 | T77: 14016 | U77: 6649.05 | V77: 259312.66 | W77: 6649.05 | X77: 57260 | Y77: 2216.35 | Z77: P | AF77: STL | AL77: Shared Land Improvements/Site Work | AM77: Shared Leasehold/Property Imprv | AN77: 2 | AO77: 2024 | AP77: 2034 | AQ77: 2034.166667 | AR77: 2216.347583 | AS77: 26596.171 | AT77: 26596.171 | AU77: 0 | AV77: 26596.171 | AW77: 239365.539 | AX77: No | AY77: 2010-24-2
B78: 2010 | C78: 402228 | D78: 402227 | E78: Phase C on Fuel Island | J78: 0 | N78: 2024-02-19 | O78: 2024-02-19 | P78: 2010-24-0029-1 | Q78: 1000 | R78: 14010 | S78: 850.5 | T78: 14016 | U78: 21.27 | V78: =S78-U78 -> 829.23 | W78: 21.27 | X78: 57260 | Y78: 7.09 | Z78: P | AF78: STL | AL78: Shared Land Improvements/Fuel Tanks | AM78: Shared Leasehold/Property Imprv | AN78: =MONTH($N78) -> 2 | AO78: =YEAR($N78) -> 2024 | AP78: =$AO78+($Q78/100) -> 2034 | AQ78: =$AP78+($AN78/12) -> 2034.166667 | AR78: =IFERROR($S78/($Q78/100)/12,0) -> 7.0875 | AS78: =$AR78*12 -> 85.05 | AT78: =IF(AM78="Land",0,+IF(AQ78>$AK$9,AS78,0)) -> 85.05 | AU78: =+IF(AM78="Land",0,IF(AQ78<=$AK$10,S78,IF((AO78+(AN78/12))>=$AK$10,0,((S78-((AQ78-$AK$10)*12)*AR78))))) -> 0 | AV78: =IF(AQ78<$AK$9,S78,AT78+AU78) -> 85.05 | AW78: =$S78-$AV78 -> 765.45 | AX78: No | AY78: 0
B79: 2010 | C79: 402227 | D79: P | E79: Progress billing #4 | J79: 0 | N79: 2024-02-19 | O79: 2024-02-19 | P79: 2010-24-0029-1 | Q79: 1000 | R79: 14010 | S79: 79763.4 | T79: 14016 | U79: 1994.1 | V79: 77769.3 | W79: 1994.1 | X79: 57260 | Y79: 664.7 | Z79: P | AF79: STL | AL79: Shared Land Improvements/Fuel Tanks | AM79: Shared Leasehold/Property Imprv | AN79: 2 | AO79: 2024 | AP79: 2034 | AQ79: 2034.166667 | AR79: 664.695 | AS79: 7976.34 | AT79: 7976.34 | AU79: 0 | AV79: 7976.34 | AW79: 71787.06 | AX79: No | AY79: 0
B80: 2010 | C80: 402224 | D80: 402229 | E80: Professional Services for December | J80: 0 | N80: 2024-02-19 | O80: 2024-02-19 | P80: 2010-24-0002-1 | Q80: 1000 | R80: 14010 | S80: 628.32 | T80: 14016 | U80: 15.72 | V80: 612.6 | W80: 15.72 | X80: 57260 | Y80: 5.24 | Z80: P | AF80: STL | AL80: Shared Land Improvements/Site Work | AM80: Shared Leasehold/Property Imprv | AN80: 2 | AO80: 2024 | AP80: 2034 | AQ80: 2034.166667 | AR80: 5.236 | AS80: 62.832 | AT80: 62.832 | AU80: 0 | AV80: 62.832 | AW80: 565.488 | AX80: No | AY80: 2010-24-2
B81: 2010 | C81: 402188 | D81: P | E81: Progress billing #10 | J81: 0 | N81: 2024-02-19 | O81: 2024-02-19 | P81: 2010-24-0001-1 | Q81: 2000 | R81: 14080 | S81: 125405.39 | T81: 14086 | U81: 1567.56 | V81: 123837.83 | W81: 1567.56 | X81: 57260 | Y81: 522.52 | Z81: P | AF81: STL | AL81: Shard Buildings/Building | AM81: Shared Leasehold/Property Imprv | AN81: 2 | AO81: 2024 | AP81: 2044 | AQ81: 2044.166667 | AR81: 522.5224583 | AS81: 6270.2695 | AT81: 6270.2695 | AU81: 0 | AV81: 6270.2695 | AW81: 119135.1205 | AX81: No | AY81: 2010-24-1
B82: 2010 | C82: 402187 | D82: 402188 | E82: Utility permit fee | J82: 0 | N82: 2024-02-19 | O82: 2024-02-19 | P82: 2010-24-0001-1 | Q82: 2000 | R82: 14080 | S82: 387.2 | T82: 14086 | U82: 4.83 | V82: 382.37 | W82: 4.83 | X82: 57260 | Y82: 1.61 | Z82: P | AF82: STL | AL82: Shard Buildings/Building | AM82: Shared Leasehold/Property Imprv | AN82: 2 | AO82: 2024 | AP82: 2044 | AQ82: 2044.166667 | AR82: 1.613333333 | AS82: 19.36 | AT82: 19.36 | AU82: 0 | AV82: 19.36 | AW82: 367.84 | AX82: No | AY82: 2010-24-1
B83: 2010 | C83: 402184 | D83: P | E83: Facility Expansion - Shop | J83: 0 | N83: 2024-02-19 | O83: 2024-02-19 | P83: 2010-24-0027-1 | Q83: 1000 | R83: 14080 | S83: 226788.87 | T83: 14086 | U83: 5669.73 | V83: 221119.14 | W83: 5669.73 | X83: 57260 | Y83: 1889.91 | Z83: P | AF83: STL | AL83: Shard Buildings/Building | AM83: Shared Leasehold/Property Imprv | AN83: 2 | AO83: 2024 | AP83: 2034 | AQ83: 2034.166667 | AR83: 1889.90725 | AS83: 22678.887 | AT83: 22678.887 | AU83: 0 | AV83: 22678.887 | AW83: 204109.983 | AX83: No | AY83: 2010-24-27
B84: 2010 | C84: 401829 | D84: 402188 | E84: Facility Expansion - Office | J84: 0 | N84: 2024-02-15 | O84: 2024-02-15 | P84: 2010-24-0001-1 | Q84: 2000 | R84: 14080 | S84: 2166 | T84: 14086 | U84: 36.12 | V84: 2129.88 | W84: 36.12 | X84: 57260 | Y84: 9.03 | Z84: P | AF84: STL | AL84: Shard Buildings/Building | AM84: Shared Leasehold/Property Imprv | AN84: 2 | AO84: 2024 | AP84: 2044 | AQ84: 2044.166667 | AR84: 9.025 | AS84: 108.3 | AT84: 108.3 | AU84: 0 | AV84: 108.3 | AW84: 2057.7 | AX84: No | AY84: 2010-24-1
B85: 2010 | C85: 401720 | D85: P | E85: HP ProBook 450 G10 15.6 - SN5CD34723ZL | J85: 0 | N85: 2024-01-02 | O85: 1900-01-02 | P85: 2010-23-0075-1 | Q85: 300 | R85: 14110 | S85: 106.66 | T85: 14116 | U85: 14.8 | V85: 91.86 | W85: 14.8 | X85: 70260 | Y85: 2.96 | Z85: P | AF85: STL | AL85: Shared Office Equipment | AM85: Shared Office Equipment | AN85: 1 | AO85: 2024 | AP85: 2027 | AQ85: 2027.083333 | AR85: 2.962777778 | AS85: 35.55333333 | AT85: 35.55333333 | AU85: 0 | AV85: 35.55333333 | AW85: 71.10666667 | AX85: No | AY85: 0
B86: 2010 | C86: 401025 | D86: P | E86: HP ProBook 450 G10 15.6 Notebook - SN: 5CD3500VCG | J86: 0 | K86: CDW DIR #2010 | N86: 2024-01-02 | O86: 2024-01-02 | P86: 2010-23-0076-1 | Q86: 300 | R86: 14110 | S86: 1128.85 | T86: 14116 | U86: 156.8 | V86: 972.05 | W86: 156.8 | X86: 70260 | Y86: 31.36 | Z86: P | AF86: STL | AL86: Shared Office Equipment | AM86: Shared Office Equipment | AN86: 1 | AO86: 2024 | AP86: 2027 | AQ86: 2027.083333 | AR86: 31.35694444 | AS86: 376.2833333 | AT86: 376.2833333 | AU86: 0 | AV86: 376.2833333 | AW86: 752.5666667 | AX86: No | AY86: 0
B87: 2010 | C87: 401024 | D87: P | E87: HP ProBook 450 G10 15.6 Notebook - SN: 5CD3463898 | J87: 0 | K87: CDW DIR #2010 | N87: 2024-01-02 | O87: 2024-01-02 | P87: 2010-23-0076-1 | Q87: 300 | R87: 14110 | S87: 1128.84 | T87: 14116 | U87: 156.8 | V87: 972.04 | W87: 156.8 | X87: 70260 | Y87: 31.36 | Z87: P | AF87: STL | AL87: Shared Office Equipment | AM87: Shared Office Equipment | AN87: 1 | AO87: 2024 | AP87: 2027 | AQ87: 2027.083333 | AR87: 31.35666667 | AS87: 376.28 | AT87: 376.28 | AU87: 0 | AV87: 376.28 | AW87: 752.56 | AX87: No | AY87: 0
B88: 2010 | C88: 401023 | D88: P | E88: HP USB-C G5 Essential Dock - SN: 2TK348ZQ7L | J88: 0 | K88: CDW DIR #2010 | N88: 2024-01-02 | O88: 2024-01-02 | P88: 2010-23-0076-1 | Q88: 300 | R88: 14110 | S88: 257.57 | T88: 14116 | U88: 35.75 | V88: 221.82 | W88: 35.75 | X88: 70260 | Y88: 7.15 | Z88: P | AF88: STL | AL88: Shared Office Equipment | AM88: Shared Office Equipment | AN88: 1 | AO88: 2024 | AP88: 2027 | AQ88: 2027.083333 | AR88: 7.154722222 | AS88: 85.85666667 | AT88: 85.85666667 | AU88: 0 | AV88: 85.85666667 | AW88: 171.7133333 | AX88: No | AY88: 0
B89: 2010 | C89: 401022 | D89: P | E89: HP USB-C G5 Essential Dock - SN: 2TK348ZQW2 | J89: 0 | K89: CDW DIR #2010 | N89: 2024-01-02 | O89: 2024-01-02 | P89: 2010-23-0076-1 | Q89: 300 | R89: 14110 | S89: 257.57 | T89: 14116 | U89: 35.75 | V89: 221.82 | W89: 35.75 | X89: 70260 | Y89: 7.15 | Z89: P | AF89: STL | AL89: Shared Office Equipment | AM89: Shared Office Equipment | AN89: 1 | AO89: 2024 | AP89: 2027 | AQ89: 2027.083333 | AR89: 7.154722222 | AS89: 85.85666667 | AT89: 85.85666667 | AU89: 0 | AV89: 85.85666667 | AW89: 171.7133333 | AX89: No | AY89: 0
B90: 2010 | C90: 401021 | D90: P | E90: HP USB-C G5 Essential Dock - SN: 2TK329ZP3J | J90: 0 | K90: CDW DIR #2010 | N90: 2024-01-02 | O90: 2024-01-02 | P90: 2010-23-0075-1 | Q90: 300 | R90: 14110 | S90: 287.57 | T90: 14116 | U90: 39.95 | V90: 247.62 | W90: 39.95 | X90: 70260 | Y90: 7.99 | Z90: P | AF90: STL | AL90: Shared Office Equipment | AM90: Shared Office Equipment | AN90: 1 | AO90: 2024 | AP90: 2027 | AQ90: 2027.083333 | AR90: 7.988055556 | AS90: 95.85666667 | AT90: 95.85666667 | AU90: 0 | AV90: 95.85666667 | AW90: 191.7133333 | AX90: No | AY90: 0
B91: 2010 | C91: 401020 | D91: P | E91: HP ProBook 450 G10 15.6 - SN: 5CD34723ZL | J91: 0 | K91: CDW DIR #2010 | N91: 2024-01-02 | O91: 2024-01-02 | P91: 2010-23-0075-1 | Q91: 300 | R91: 14110 | S91: 1178.84 | T91: 14116 | U91: 163.75 | V91: 1015.09 | W91: 163.75 | X91: 70260 | Y91: 32.75 | Z91: P | AF91: STL | AL91: Shared Office Equipment | AM91: Shared Office Equipment | AN91: 1 | AO91: 2024 | AP91: 2027 | AQ91: 2027.083333 | AR91: 32.74555556 | AS91: 392.9466667 | AT91: 392.9466667 | AU91: 0 | AV91: 392.9466667 | AW91: 785.8933333 | AX91: No | AY91: 0
B92: 2010 | C92: 401019 | D92: 401720 | E92: CORRECTING INVOICE | J92: 0 | K92: CDW DIR #2010 | N92: 2024-01-02 | O92: 2024-01-02 | P92: 2010-23-0075-1 | Q92: 300 | R92: 14110 | S92: -106.66 | T92: 14116 | U92: -14.8 | V92: -91.86 | W92: -14.8 | X92: 70260 | Y92: -2.96 | Z92: P | AF92: STL | AL92: Shared Office Equipment | AM92: Shared Office Equipment | AN92: 1 | AO92: 2024 | AP92: 2027 | AQ92: 2027.083333 | AR92: -2.962777778 | AS92: -35.55333333 | AT92: -35.55333333 | AU92: 0 | AV92: -35.55333333 | AW92: -71.10666667 | AX92: No | AY92: 0
B93: 2010 | C93: 401000 | D93: P | E93: 4yd metal FEL garbage containers | J93: 0 | K93: WASTEQUIP MAYFAB | N93: 2024-01-02 | O93: 2024-01-02 | P93: 2010-23-0069-1 | Q93: 1200 | R93: 14050 | S93: 12101.61 | T93: 14056 | U93: 420.2 | V93: 11681.41 | W93: 420.2 | X93: 54260 | Y93: 84.04 | Z93: P | AF93: STL | AL93: Garbage Container (shared) | AM93: Garbage Container (shared) | AN93: 1 | AO93: 2024 | AP93: 2036 | AQ93: 2036.083333 | AR93: 84.03895833 | AS93: 1008.4675 | AT93: 1008.4675 | AU93: 0 | AV93: 1008.4675 | AW93: 11093.1425 | AX93: No | AY93: 0
B94: 2010 | C94: 400999 | D94: P | E94: 3yd metal FEL garbage containers | J94: 0 | K94: WASTEQUIP MAYFAB | N94: 2024-01-02 | O94: 2024-01-02 | P94: 2010-23-0069-1 | Q94: 1200 | R94: 14050 | S94: 9659.47 | T94: 14056 | U94: 335.4 | V94: 9324.07 | W94: 335.4 | X94: 54260 | Y94: 67.08 | Z94: P | AF94: STL | AL94: Garbage Container (shared) | AM94: Garbage Container (shared) | AN94: 1 | AO94: 2024 | AP94: 2036 | AQ94: 2036.083333 | AR94: 67.07965278 | AS94: 804.9558333 | AT94: 804.9558333 | AU94: 0 | AV94: 804.9558333 | AW94: 8854.514167 | AX94: No | AY94: 0
B95: 2010 | C95: 400988 | D95: P | E95: 65gal county garbage carts | J95: 0 | K95: REHRIG PACIFIC COMPANY | N95: 2024-01-02 | O95: 2024-01-02 | P95: 2010-23-0071-1 | Q95: 700 | R95: 14050 | S95: 102916.85 | T95: 14056 | U95: 6126 | V95: 96790.85 | W95: 6126 | X95: 54260 | Y95: 1225.2 | Z95: P | AF95: STL | AL95: Garbage Carts (Reg only) | AM95: Garbage Carts (Reg only) | AN95: 1 | AO95: 2024 | AP95: 2031 | AQ95: 2031.083333 | AR95: 1225.200595 | AS95: 14702.40714 | AT95: 14702.40714 | AU95: 0 | AV95: 14702.40714 | AW95: 88214.44286 | AX95: No | AY95: 0
B96: 2010 | C96: 400987 | D96: P | E96: 95gal county garbage carts | J96: 0 | K96: REHRIG PACIFIC COMPANY | N96: 2024-01-02 | O96: 2024-01-02 | P96: 2010-23-0071-1 | Q96: 700 | R96: 14050 | S96: 43369.49 | T96: 14056 | U96: 2581.5 | V96: 40787.99 | W96: 2581.5 | X96: 54260 | Y96: 516.3 | Z96: P | AF96: STL | AL96: Garbage Carts (Reg only) | AM96: Garbage Carts (Reg only) | AN96: 1 | AO96: 2024 | AP96: 2031 | AQ96: 2031.083333 | AR96: 516.3034524 | AS96: 6195.641429 | AT96: 6195.641429 | AU96: 0 | AV96: 6195.641429 | AW96: 37173.84857 | AX96: No | AY96: 0
B97: 2010 | C97: 400986 | D97: P | E97: 32gal COV sparkle garbage carts | J97: 0 | K97: WASTEQUIP MAYFAB | N97: 2024-01-02 | O97: 2024-01-02 | P97: 2010-23-0067-1 | Q97: 700 | R97: 14050 | S97: 16263.01 | T97: 14056 | U97: 968.05 | V97: 15294.96 | W97: 968.05 | X97: 54260 | Y97: 193.61 | Z97: P | AF97: STL | AL97: City of Vancouver (COV) Garbage Carts (non-reg) | AM97: Garbage Carts (non-reg) | AN97: 1 | AO97: 2024 | AP97: 2031 | AQ97: 2031.083333 | AR97: 193.6072619 | AS97: 2323.287143 | AT97: 2323.287143 | AU97: 0 | AV97: 2323.287143 | AW97: 13939.72286 | AX97: No | AY97: 0
B98: 2010 | C98: 400985 | D98: P | E98: 64gal COV sparkle garbage carts | J98: 0 | K98: WASTEQUIP MAYFAB | N98: 2024-01-02 | O98: 2024-01-02 | P98: 2010-23-0067-1 | Q98: 700 | R98: 14050 | S98: 26714.82 | T98: 14056 | U98: 1590.15 | V98: 25124.67 | W98: 1590.15 | X98: 54260 | Y98: 318.03 | Z98: P | AF98: STL | AL98: City of Vancouver (COV) Garbage Carts (non-reg) | AM98: Garbage Carts (non-reg) | AN98: 1 | AO98: 2024 | AP98: 2031 | AQ98: 2031.083333 | AR98: 318.0335714 | AS98: 3816.402857 | AT98: 3816.402857 | AU98: 0 | AV98: 3816.402857 | AW98: 22898.41714 | AX98: No | AY98: 0
B99: 2010 | C99: 400950 | D99: 320906 | E99: title work for new roll off truck 431 | J99: 0 | K99: WA DOL LIC & REG 78155 | M99: Uninsured | N99: 2024-01-10 | O99: 2024-01-10 | P99: 2010-23-0032-1 | Q99: 1000 | R99: 14040 | S99: 44.25 | T99: 14046 | U99: 1.85 | V99: 42.4 | W99: 1.85 | X99: 51260 | Y99: 0.37 | Z99: P | AF99: STL | AK99: 431 | AL99: Shared - Roll-Off Truck | AM99: Roll-off Trucks | AN99: 1 | AO99: 2024 | AP99: 2034 | AQ99: 2034.083333 | AR99: 0.36875 | AS99: 4.425 | AT99: 4.425 | AU99: 0 | AV99: 4.425 | AW99: 39.825 | AX99: No | AY99: 0
B100: 2010 | C100: 400949 | D100: 320907 | E100: remaining tax, title and license for new frontload truck 909 | J100: 0 | K100: WA DOL LIC & REG 78155 | M100: Uninsured | N100: 2024-01-10 | O100: 2024-01-10 | P100: 2010-23-0025-1 | Q100: 1000 | R100: 14040 | S100: 13928.99 | T100: 14046 | U100: 580.35 | V100: 13348.64 | W100: 580.35 | X100: 51260 | Y100: 116.07 | Z100: P | AF100: STL | AK100: 909 | AL100: Shared - Commercial Garbage | AM100: Garbage Trucks - Shared | AN100: 1 | AO100: 2024 | AP100: 2034 | AQ100: 2034.083333 | AR100: 116.0749167 | AS100: 1392.899 | AT100: 1392.899 | AU100: 0 | AV100: 1392.899 | AW100: 12536.091 | AX100: No | AY100: 0
B101: 2010 | C101: 400948 | D101: 319560 | E101: licensing for new roll off truck 430 | J101: 0 | K101: WA DOL LIC & REG 78155 | M101: Uninsured | N101: 2024-01-02 | O101: 2024-01-02 | P101: 2010-23-0024-1 | Q101: 1000 | R101: 14040 | S101: 1133.68 | T101: 14046 | U101: 47.25 | V101: 1086.43 | W101: 47.25 | X101: 51260 | Y101: 9.45 | Z101: P | AF101: STL | AK101: 430 | AL101: Shared - Roll-Off Truck | AM101: Roll-off Trucks | AN101: 1 | AO101: 2024 | AP101: 2034 | AQ101: 2034.083333 | AR101: 9.447333333 | AS101: 113.368 | AT101: 113.368 | AU101: 0 | AV101: 113.368 | AW101: 1020.312 | AX101: No | AY101: 0
B102: 2010 | C102: 400947 | D102: 319559 | E102: licensing for new automated truck 857 | J102: 0 | K102: WA DOL LIC & REG 78155 | M102: Uninsured | N102: 2024-01-02 | O102: 2024-01-02 | P102: 2010-23-0005-1 | Q102: 1000 | R102: 14040 | S102: 1133.26 | T102: 14046 | U102: 47.2 | V102: 1086.06 | W102: 47.2 | X102: 51260 | Y102: 9.44 | Z102: P | AF102: STL | AK102: 857 | AL102: UGA Garbage Truck - Regulated Only | AM102: Garbage Trucks - Regulated Only | AN102: 1 | AO102: 2024 | AP102: 2034 | AQ102: 2034.083333 | AR102: 9.443833333 | AS102: 113.326 | AT102: 113.326 | AU102: 0 | AV102: 113.326 | AW102: 1019.934 | AX102: No | AY102: 0
B103: 2010 | C103: 400560 | D103: P | E103: 95 Gal Carts | J103: 0 | K103: 6160 SW HIGHWAY 200 | N103: 2024-01-02 | O103: 2024-01-02 | P103: 2010-23-0072-1 | Q103: 700 | R103: 14050 | S103: 21219.67 | T103: 14056 | U103: 1263.1 | V103: 19956.57 | W103: 1263.1 | X103: 54260 | Y103: 252.62 | Z103: P | AF103: STL | AL103: Organics and City of Vancouver Carts (Non Reg) | AM103: Organics Carts (non-reg) | AN103: 1 | AO103: 2024 | AP103: 2031 | AQ103: 2031.083333 | AR103: 252.615119 | AS103: 3031.381429 | AT103: 3031.381429 | AU103: 0 | AV103: 3031.381429 | AW103: 18188.28857 | AX103: No | AY103: 0
B104: 2010 | C104: 400559 | D104: P | E104: 35 Gal Carts | J104: 0 | K104: 6160 SW HIGHWAY 200 | N104: 2024-01-02 | O104: 2024-01-02 | P104: 2010-23-0072-1 | Q104: 700 | R104: 14050 | S104: 34476.96 | T104: 14056 | U104: 2052.2 | V104: 32424.76 | W104: 2052.2 | X104: 54260 | Y104: 410.44 | Z104: P | AF104: STL | AL104: Organics and City of Vancouver Carts (Non Reg) | AM104: Organics Carts (non-reg) | AN104: 1 | AO104: 2024 | AP104: 2031 | AQ104: 2031.083333 | AR104: 410.44 | AS104: 4925.28 | AT104: 4925.28 | AU104: 0 | AV104: 4925.28 | AW104: 29551.68 | AX104: No | AY104: 0
B105: 2010 | C105: 400558 | D105: P | E105: 95 Gal Carts | J105: 0 | K105: 6160 SW HIGHWAY 200 | N105: 2024-01-02 | O105: 2024-01-02 | P105: 2010-23-0072-1 | Q105: 700 | R105: 14050 | S105: 43962.68 | T105: 14056 | U105: 2616.85 | V105: 41345.83 | W105: 2616.85 | X105: 54260 | Y105: 523.37 | Z105: P | AF105: STL | AL105: Organics and City of Vancouver Carts (Non Reg) | AM105: Organics Carts (non-reg) | AN105: 1 | AO105: 2024 | AP105: 2031 | AQ105: 2031.083333 | AR105: 523.3652381 | AS105: 6280.382857 | AT105: 6280.382857 | AU105: 0 | AV105: 6280.382857 | AW105: 37682.29714 | AX105: No | AY105: 0
B106: 2010 | C106: 400520 | D106: 320906 | E106: 2024 Peterbilt ROL Truck - Body | H106: 3BPDLK0X9RF117060 | J106: 2024 | K106: 6767 NE COLUMBIA BLVD | L106: Peterbilt | M106: Roll Off | N106: 2024-01-02 | O106: 2024-01-02 | P106: 2010-23-0032-1 | Q106: 1000 | R106: 14040 | S106: 121161.08 | T106: 14046 | U106: 5048.4 | V106: 116112.68 | W106: 5048.4 | X106: 51260 | Y106: 1009.68 | Z106: P | AF106: STL | AK106: 431 | AL106: Shared - Roll-Off Truck | AM106: Roll-off Trucks | AN106: 1 | AO106: 2024 | AP106: 2034 | AQ106: 2034.083333 | AR106: 1009.675667 | AS106: 12116.108 | AT106: 12116.108 | AU106: 0 | AV106: 12116.108 | AW106: 109044.972 | AX106: No | AY106: 0
B107: 2010 | C107: 400139 | D107: P | E107: 2024 Peterbilt MSL Truck | H107: 3BPDHJ8X7RF117056 | J107: 0 | N107: 2024-03-29 | O107: 2023-05-04 | P107: 2010-23-0031-1 | Q107: 1000 | R107: 14040 | S107: 224526.44 | T107: 14046 | U107: 3742.1 | V107: 220784.34 | W107: 3742.1 | X107: 51260 | Y107: 1871.05 | Z107: P | AF107: STL | AK107: 506 | AL107: City of Vancouver (COV) Garbage Truck (Non Reg) | AM107: Garbage Trucks - Non-Regulated Only | AN107: 3 | AO107: 2024 | AP107: 2034 | AQ107: 2034.25 | AR107: 1871.053667 | AS107: 22452.644 | AT107: 22452.644 | AU107: 0 | AV107: 22452.644 | AW107: 202073.796 | AX107: No | AY107: 0
B108: 2010 | C108: 400138 | D108: P | E108: 2024 Peterbilt MSL Truck | H108: 3BPDLK0XXRF117052 | J108: 2024 | M108: Side Loader | N108: 2024-05-20 | O108: 2023-05-04 | P108: 2010-23-0019-1 | Q108: 500 | R108: 14040 | S108: 235808.43 | T108: 14046 | U108: 0 | V108: 235808.43 | W108: 0 | X108: 51260 | Y108: 0 | Z108: P | AF108: STL | AM108: Recycle Trucks | AN108: 5 | AO108: 2024 | AP108: 2029 | AQ108: 2029.416667 | AR108: 3930.1405 | AS108: 47161.686 | AT108: 47161.686 | AU108: 0 | AV108: 47161.686 | AW108: 188646.744 | AX108: No
B109: 2010 | C109: 400137 | D109: P | E109: 2024 Peterbilt MSL Truck | H109: 3BPDLK0X6RF117050 | J109: 2024 | M109: Side Loader | N109: 2024-05-23 | O109: 2023-05-04 | P109: 2010-23-0026-1 | Q109: 500 | R109: 14040 | S109: 236321.63 | T109: 14046 | U109: 0 | V109: 236321.63 | W109: 0 | X109: 51260 | Y109: 0 | Z109: P | AF109: STL | AM109: Recycle Trucks | AN109: 5 | AO109: 2024 | AP109: 2029 | AQ109: 2029.416667 | AR109: 3938.693833 | AS109: 47264.326 | AT109: 47264.326 | AU109: 0 | AV109: 47264.326 | AW109: 189057.304 | AX109: No
B110: 2010 | C110: 400136 | D110: P | E110: 2024 Peterbilt MSL Truck | H110: 3BPDLK0X8RF117051 | J110: 2024 | M110: Side Loader | N110: 2024-03-22 | O110: 2023-05-04 | P110: 2010-23-0021-1 | Q110: 1000 | R110: 14040 | S110: 235808.43 | T110: 14046 | U110: 3930.14 | V110: 231878.29 | W110: 3930.14 | X110: 51260 | Y110: 1965.07 | Z110: P | AF110: STL | AK110: 751 | AL110: Rural Garbage Truck (Reg) | AM110: Garbage Trucks - Regulated Only | AN110: 3 | AO110: 2024 | AP110: 2034 | AQ110: 2034.25 | AR110: 1965.07025 | AS110: 23580.843 | AT110: 23580.843 | AU110: 0 | AV110: 23580.843 | AW110: 212227.587 | AX110: No | AY110: 0
B111: 2010 | C111: 400122 | D111: P | E111: Professional Services for | J111: 0 | K111: SITTS & HILL ENGINEERS IN | N111: 2024-01-15 | O111: 2023-03-16 | P111: 2010-23-0046-1 | Q111: 1000 | R111: 14010 | S111: 734736.63 | T111: 14016 | U111: 30614.05 | V111: 704122.58 | W111: 30614.05 | X111: 57260 | Y111: 6122.81 | Z111: P | AF111: STL | AL111: Shared Land Improvements/Fuel Tanks | AM111: Shared Leasehold/Property Imprv | AN111: 1 | AO111: 2024 | AP111: 2034 | AQ111: 2034.083333 | AR111: 6122.80525 | AS111: 73473.663 | AT111: 73473.663 | AU111: 0 | AV111: 73473.663 | AW111: 661262.967 | AX111: No | AY111: 0
B112: 2010 | C112: 400108 | D112: P | E112: Professional Services for | J112: 0 | K112: SITTS & HILL ENGINEERS IN | N112: 2024-01-02 | O112: 2023-02-15 | P112: 2010-23-0002-1 | Q112: 2000 | R112: 14080 | S112: 3256496.93 | T112: 14086 | U112: 67843.7 | V112: 3188653.23 | W112: 67843.7 | X112: 57260 | Y112: 13568.74 | Z112: P | AF112: STL | AL112: Shared Building/Building | AM112: Shared Leasehold/Property Imprv | AN112: 1 | AO112: 2024 | AP112: 2044 | AQ112: 2044.083333 | AR112: 13568.73721 | AS112: 162824.8465 | AT112: 162824.8465 | AU112: 0 | AV112: 162824.8465 | AW112: 3093672.084 | AX112: No | AY112: 0
B113: 2010 | C113: 400080 | D113: P | E113: Facility Expansion | J113: 0 | K113: SITTS & HILL ENGINEERS IN | N113: 2024-01-02 | O113: 2022-02-23 | P113: 2010-22-0028-1 | Q113: 2000 | R113: 14080 | S113: 370709.59 | T113: 14086 | U113: 7723.1 | V113: 362986.49 | W113: 7723.1 | X113: 57260 | Y113: 1544.62 | Z113: P | AF113: STL | AL113: Shared Building/Building | AM113: Shared Leasehold/Property Imprv | AN113: 1 | AO113: 2024 | AP113: 2044 | AQ113: 2044.083333 | AR113: 1544.623292 | AS113: 18535.4795 | AT113: 18535.4795 | AU113: 0 | AV113: 18535.4795 | AW113: 352174.1105 | AX113: No | AY113: 0
B114: 2010 | C114: 400079 | D114: P | E114: Preparation of Preliminar | J114: 0 | K114: SITTS & HILL ENGINEERS IN | N114: 2024-01-02 | O114: 2021-09-07 | P114: 2010-21-0022-1 | Q114: 2000 | R114: 14080 | S114: 155762.01 | T114: 14086 | U114: 3245.05 | V114: 152516.96 | W114: 3245.05 | X114: 57260 | Y114: 649.01 | Z114: P | AF114: STL | AL114: Shared Building/Building | AM114: Shared Leasehold/Property Imprv | AN114: 1 | AO114: 2024 | AP114: 2044 | AQ114: 2044.083333 | AR114: 649.008375 | AS114: 7788.1005 | AT114: 7788.1005 | AU114: 0 | AV114: 7788.1005 | AW114: 147973.9095 | AX114: No | AY114: 0
B115: 2010 | C115: 320907 | D115: P | E115: 2024 Peterbilt FEL Truck | H115: 3BPDXKEX9RF117055 | J115: 2024 | M115: Front Loader | N115: 2023-12-29 | O115: 2023-12-29 | P115: 2010-23-0025-1 | Q115: 1000 | R115: 14040 | S115: 238654.63 | T115: 14046 | U115: 9943.95 | V115: 228710.68 | W115: 9943.95 | X115: 51260 | Y115: 1988.79 | Z115: P | AF115: STL | AK115: 909 | AL115: Garbage Trucks - Shared | AM115: Garbage Trucks - Shared | AN115: 12 | AO115: 2023 | AP115: 2033 | AQ115: 2034 | AR115: 1988.788583 | AS115: 23865.463 | AT115: 23865.463 | AU115: 0 | AV115: 23865.463 | AW115: 214789.167 | AX115: No | AY115: 0
B116: 2010 | C116: 320906 | D116: P | E116: 2024 Peterbilt ROL Truck | H116: 3BPDLK0X9RF117060 | J116: 2024 | M116: Roll Off | N116: 2023-12-29 | O116: 2023-12-29 | P116: 2010-23-0032-1 | Q116: 1000 | R116: 14040 | S116: 229842.81 | T116: 14046 | U116: 9576.8 | V116: 220266.01 | W116: 9576.8 | X116: 51260 | Y116: 1915.36 | Z116: P | AF116: STL | AK116: 431 | AL116: Roll-off Trucks | AM116: Roll-off Trucks | AN116: 12 | AO116: 2023 | AP116: 2033 | AQ116: 2034 | AR116: 1915.35675 | AS116: 22984.281 | AT116: 22984.281 | AU116: 0 | AV116: 22984.281 | AW116: 206858.529 | AX116: No | AY116: 0
B117: 2010 | C117: 320849 | D117: P | E117: HP Elite Mini 800 G9 Desktop - SN: MXL3383VS7 | J117: 0 | K117: CDW DIR #2010 | N117: 2023-12-12 | O117: 2023-12-12 | P117: 2010-23-0074-1 | Q117: 300 | R117: 14110 | S117: 970.55 | T117: 14116 | U117: 161.76 | V117: 808.79 | W117: 134.8 | X117: 70260 | Y117: 26.96 | Z117: P | AF117: STL | AL117: Shared Office Equipment | AM117: Shared Office Equipment | AN117: 12 | AO117: 2023 | AP117: 2026 | AQ117: 2027 | AR117: 26.95972222 | AS117: 323.5166667 | AT117: 323.5166667 | AU117: 0 | AV117: 323.5166667 | AW117: 647.0333333 | AX117: No | AY117: 0
B118: 2010 | C118: 320848 | D118: P | E118: HP Elite Mini 800 G9 Desktop - SN: MXL3383VRD | J118: 0 | K118: CDW DIR #2010 | N118: 2023-12-12 | O118: 2023-12-12 | P118: 2010-23-0074-1 | Q118: 300 | R118: 14110 | S118: 970.56 | T118: 14116 | U118: 161.76 | V118: 808.8 | W118: 134.8 | X118: 70260 | Y118: 26.96 | Z118: P | AF118: STL | AL118: Shared Office Equipment | AM118: Shared Office Equipment | AN118: 12 | AO118: 2023 | AP118: 2026 | AQ118: 2027 | AR118: 26.96 | AS118: 323.52 | AT118: 323.52 | AU118: 0 | AV118: 323.52 | AW118: 647.04 | AX118: No | AY118: 0
B119: 2010 | C119: 320847 | D119: P | E119: HP Elite Mini 800 G9 Desktop - SN: MXL3383VNQ | J119: 0 | K119: CDW DIR #2010 | N119: 2023-12-12 | O119: 2023-12-12 | P119: 2010-23-0074-1 | Q119: 300 | R119: 14110 | S119: 970.56 | T119: 14116 | U119: 161.76 | V119: 808.8 | W119: 134.8 | X119: 70260 | Y119: 26.96 | Z119: P | AF119: STL | AL119: Shared Office Equipment | AM119: Shared Office Equipment | AN119: 12 | AO119: 2023 | AP119: 2026 | AQ119: 2027 | AR119: 26.96 | AS119: 323.52 | AT119: 323.52 | AU119: 0 | AV119: 323.52 | AW119: 647.04 | AX119: No | AY119: 0
B120: 2010 | C120: 320846 | D120: P | E120: HP Elite Mini 800 G9 Desktop - SN: MXL3383VS4 | J120: 0 | K120: CDW DIR #2010 | N120: 2023-12-12 | O120: 2023-12-12 | P120: 2010-23-0074-1 | Q120: 300 | R120: 14110 | S120: 970.55 | T120: 14116 | U120: 161.76 | V120: 808.79 | W120: 134.8 | X120: 70260 | Y120: 26.96 | Z120: P | AF120: STL | AL120: Shared Office Equipment | AM120: Shared Office Equipment | AN120: 12 | AO120: 2023 | AP120: 2026 | AQ120: 2027 | AR120: 26.95972222 | AS120: 323.5166667 | AT120: 323.5166667 | AU120: 0 | AV120: 323.5166667 | AW120: 647.0333333 | AX120: No | AY120: 0
B121: 2010 | C121: 320845 | D121: P | E121: HP Elite Mini 800 G9 Desktop - SN: MXL3383VR1 | J121: 0 | K121: CDW DIR #2010 | N121: 2023-12-12 | O121: 2023-12-12 | P121: 2010-23-0074-1 | Q121: 300 | R121: 14110 | S121: 970.56 | T121: 14116 | U121: 161.76 | V121: 808.8 | W121: 134.8 | X121: 70260 | Y121: 26.96 | Z121: P | AF121: STL | AL121: Shared Office Equipment | AM121: Shared Office Equipment | AN121: 12 | AO121: 2023 | AP121: 2026 | AQ121: 2027 | AR121: 26.96 | AS121: 323.52 | AT121: 323.52 | AU121: 0 | AV121: 323.52 | AW121: 647.04 | AX121: No | AY121: 0
B122: 2010 | C122: 320844 | D122: P | E122: HP USB-C G5 Essential Dock - SN: 2TK331X3TR | J122: 0 | K122: CDW DIR #2010 | N122: 2023-12-12 | O122: 2023-12-12 | P122: 2010-23-0073-1 | Q122: 300 | R122: 14110 | S122: 267.57 | T122: 14116 | U122: 44.58 | V122: 222.99 | W122: 37.15 | X122: 70260 | Y122: 7.43 | Z122: P | AF122: STL | AL122: Shared Office Equipment | AM122: Shared Office Equipment | AN122: 12 | AO122: 2023 | AP122: 2026 | AQ122: 2027 | AR122: 7.4325 | AS122: 89.19 | AT122: 89.19 | AU122: 0 | AV122: 89.19 | AW122: 178.38 | AX122: No | AY122: 0
B123: 2010 | C123: 320843 | D123: P | E123: HP Probook 440 G10 14: Notebook - SN: 5CD3385P24 | J123: 0 | K123: CDW DIR #2010 | N123: 2023-12-12 | O123: 2023-12-12 | P123: 2010-23-0073-1 | Q123: 300 | R123: 14110 | S123: 1154.51 | T123: 14116 | U123: 192.42 | V123: 962.09 | W123: 160.35 | X123: 70260 | Y123: 32.07 | Z123: P | AF123: STL | AL123: Shared Office Equipment | AM123: Shared Office Equipment | AN123: 12 | AO123: 2023 | AP123: 2026 | AQ123: 2027 | AR123: 32.06972222 | AS123: 384.8366667 | AT123: 384.8366667 | AU123: 0 | AV123: 384.8366667 | AW123: 769.6733333 | AX123: No | AY123: 0
B124: 2010 | C124: 320831 | D124: 317369 | E124: plates and tags for new automated truck 855 | J124: 0 | K124: WA DOL LIC & REG 78155 | M124: Non-Rolling Stock | N124: 2023-11-15 | O124: 2023-11-15 | P124: 2010-23-0017-1 | Q124: 1000 | R124: 14040 | S124: 1216.69 | T124: 14046 | U124: 70.98 | V124: 1145.71 | W124: 50.7 | X124: 51260 | Y124: 10.14 | Z124: P | AF124: STL | AK124: 855 | AL124: Garbage Trucks - Non-Regulated Only | AM124: Garbage Trucks - Non-Regulated Only | AN124: 11 | AO124: 2023 | AP124: 2033 | AQ124: 2033.916667 | AR124: 10.13908333 | AS124: 121.669 | AT124: 121.669 | AU124: 0 | AV124: 121.669 | AW124: 1095.021 | AX124: No | AY124: 0
B125: 2010 | C125: 320830 | D125: 318745 | E125: plates and tags for new automated truck 844 | J125: 0 | K125: WA DOL LIC & REG 78155 | M125: Non-Rolling Stock | N125: 2023-11-20 | O125: 2023-11-20 | P125: 2010-23-0006-1 | Q125: 1000 | R125: 14040 | S125: 1216.69 | T125: 14046 | U125: 60.84 | V125: 1155.85 | W125: 50.7 | X125: 51260 | Y125: 10.14 | Z125: P | AF125: STL | AK125: 844 | AL125: Garbage Trucks - Regulated Only | AM125: Garbage Trucks - Regulated Only | AN125: 11 | AO125: 2023 | AP125: 2033 | AQ125: 2033.916667 | AR125: 10.13908333 | AS125: 121.669 | AT125: 121.669 | AU125: 0 | AV125: 121.669 | AW125: 1095.021 | AX125: No | AY125: 0
B126: 2010 | C126: 320538 | D126: 314562 | E126: 2024 Peterbilt ASL Truck - Body | H126: 3BPDLK0X3PF115401 | J126: 0 | K126: 6767 NE COLUMBIA BLVD | M126: Non-Rolling Stock | N126: 2023-09-25 | O126: 2023-09-25 | P126: 2010-23-0008-1 | Q126: 1000 | R126: 14040 | S126: 219375.88 | T126: 14046 | U126: 14625.05 | V126: 204750.83 | W126: 9140.65 | X126: 51260 | Y126: 1828.13 | Z126: P | AF126: STL | AK126: 846 | AL126: Garbage Trucks - Regulated Only | AM126: Garbage Trucks - Regulated Only | AN126: 9 | AO126: 2023 | AP126: 2033 | AQ126: 2033.75 | AR126: 1828.132333 | AS126: 21937.588 | AT126: 21937.588 | AU126: 0 | AV126: 21937.588 | AW126: 197438.292 | AX126: No | AY126: 0
B127: 2010 | C127: 320060 | D127: 319559 | E127: 2024 Peterbilt ASL Truck - Body | H127: 3BPDLK0X8RF117048 | J127: 2024 | K127: 6767 NE COLUMBIA BLVD | M127: Non-Rolling Stock | N127: 2023-12-18 | O127: 2023-12-18 | P127: 2010-23-0005-1 | Q127: 1000 | R127: 14040 | S127: 219375.88 | T127: 14046 | U127: 9140.65 | V127: 210235.23 | W127: 9140.65 | X127: 51260 | Y127: 1828.13 | Z127: P | AF127: STL | AK127: 857 | AL127: Garbage Trucks - Regulated Only | AM127: Garbage Trucks - Regulated Only | AN127: 12 | AO127: 2023 | AP127: 2033 | AQ127: 2034 | AR127: 1828.132333 | AS127: 21937.588 | AT127: 21937.588 | AU127: 0 | AV127: 21937.588 | AW127: 197438.292 | AX127: No | AY127: 0
B128: 2010 | C128: 320057 | D128: 318745 | E128: 2024 Peterbilt ASL Truck - Body | H128: 3BPDLK0X5RF115399 | J128: 2024 | K128: 6767 NE COLUMBIA BLVD | M128: Non-Rolling Stock | N128: 2023-11-20 | O128: 2023-11-20 | P128: 2010-23-0006-1 | Q128: 1000 | R128: 14040 | S128: 219375.88 | T128: 14046 | U128: 10968.78 | V128: 208407.1 | W128: 9140.65 | X128: 51260 | Y128: 1828.13 | Z128: P | AF128: STL | AK128: 844 | AL128: Garbage Trucks - Regulated Only | AM128: Garbage Trucks - Regulated Only | AN128: 11 | AO128: 2023 | AP128: 2033 | AQ128: 2033.916667 | AR128: 1828.132333 | AS128: 21937.588 | AT128: 21937.588 | AU128: 0 | AV128: 21937.588 | AW128: 197438.292 | AX128: No | AY128: 0
B129: 2010 | C129: 320053 | D129: 319560 | E129: 2024 Peterbilt ROL Truck - Body | H129: 3BPDLK0X2RF117059 | J129: 2024 | K129: 6767 NE COLUMBIA BLVD | M129: Non-Rolling Stock | N129: 2023-12-14 | O129: 2023-12-14 | P129: 2010-23-0024-1 | Q129: 1000 | R129: 14040 | S129: 121161.08 | T129: 14046 | U129: 6058.08 | V129: 115103 | W129: 5048.4 | X129: 51260 | Y129: 1009.68 | Z129: P | AF129: STL | AK129: 430 | AL129: Roll-off Trucks | AM129: Roll-off Trucks | AN129: 12 | AO129: 2023 | AP129: 2033 | AQ129: 2034 | AR129: 1009.675667 | AS129: 12116.108 | AT129: 12116.108 | AU129: 0 | AV129: 12116.108 | AW129: 109044.972 | AX129: No | AY129: 0
B130: 2010 | C130: 319560 | D130: P | E130: 2024 Peterbilt ROL Truck | H130: 3BPDLK0X2RF117059 | J130: 2024 | M130: Roll Off | N130: 2023-12-14 | O130: 2023-12-14 | P130: 2010-23-0024-1 | Q130: 1000 | R130: 14040 | S130: 229308.95 | T130: 14046 | U130: 11465.46 | V130: 217843.49 | W130: 9554.55 | X130: 51260 | Y130: 1910.91 | Z130: P | AF130: STL | AK130: 430 | AL130: Roll-off Trucks | AM130: Roll-off Trucks | AN130: 12 | AO130: 2023 | AP130: 2033 | AQ130: 2034 | AR130: 1910.907917 | AS130: 22930.895 | AT130: 22930.895 | AU130: 0 | AV130: 22930.895 | AW130: 206378.055 | AX130: No | AY130: 0
B131: 2010 | C131: 319559 | D131: P | E131: 2024 Peterbilt ASL Truck | H131: 3BPDLK0X8RF117048 | J131: 2024 | M131: Automated Side Loader | N131: 2023-12-18 | O131: 2023-12-18 | P131: 2010-23-0005-1 | Q131: 1000 | R131: 14040 | S131: 229188.63 | T131: 14046 | U131: 9549.55 | V131: 219639.08 | W131: 9549.55 | X131: 51260 | Y131: 1909.91 | Z131: P | AF131: STL | AK131: 857 | AL131: Garbage Trucks - Regulated Only | AM131: Garbage Trucks - Regulated Only | AN131: 12 | AO131: 2023 | AP131: 2033 | AQ131: 2034 | AR131: 1909.90525 | AS131: 22918.863 | AT131: 22918.863 | AU131: 0 | AV131: 22918.863 | AW131: 206269.767 | AX131: No | AY131: 0
B132: 2010 | C132: 318745 | D132: P | E132: 2024 Peterbilt ASL Truck | H132: 3BPDLK0X5RF115399 | J132: 2024 | M132: Automated Side Loader | N132: 2023-11-20 | O132: 2023-11-20 | P132: 2010-23-0006-1 | Q132: 1000 | R132: 14040 | S132: 229171.1 | T132: 14046 | U132: 11458.56 | V132: 217712.54 | W132: 9548.8 | X132: 51260 | Y132: 1909.76 | Z132: P | AF132: STL | AK132: 844 | AL132: Garbage Trucks - Regulated Only | AM132: Garbage Trucks - Regulated Only | AN132: 11 | AO132: 2023 | AP132: 2033 | AQ132: 2033.916667 | AR132: 1909.759167 | AS132: 22917.11 | AT132: 22917.11 | AU132: 0 | AV132: 22917.11 | AW132: 206253.99 | AX132: No | AY132: 0
B133: 2010 | C133: 318446 | D133: 317369 | E133: 2024 Peterbilt ASL Truck- Body | H133: 3BPDLK0X4RF117046 | J133: 0 | K133: 6767 NE COLUMBIA BLVD | M133: Non-Rolling Stock | N133: 2023-11-15 | O133: 2023-11-15 | P133: 2010-23-0017-1 | Q133: 1000 | R133: 14040 | S133: 219375.88 | T133: 14046 | U133: 12796.92 | V133: 206578.96 | W133: 9140.65 | X133: 51260 | Y133: 1828.13 | Z133: P | AF133: STL | AK133: 855 | AL133: Garbage Trucks - Non-Regulated Only | AM133: Garbage Trucks - Non-Regulated Only | AN133: 11 | AO133: 2023 | AP133: 2033 | AQ133: 2033.916667 | AR133: 1828.132333 | AS133: 21937.588 | AT133: 21937.588 | AU133: 0 | AV133: 21937.588 | AW133: 197438.292 | AX133: No | AY133: 0
B134: 2010 | C134: 317947 | D134: P | E134: HP Business Desktop 600 G6 - SN: MXL3393NC8 | J134: 0 | K134: CDW DIR #2010 - CSR | N134: 2023-11-10 | O134: 2023-11-10 | P134: 2010-23-0068-1 | Q134: 300 | R134: 14110 | S134: 806.27 | T134: 14116 | U134: 156.79 | V134: 649.48 | W134: 112 | X134: 70260 | Y134: 22.4 | Z134: P | AF134: STL | AL134: Shared Office Equipment | AM134: Shared Office Equipment | AN134: 11 | AO134: 2023 | AP134: 2026 | AQ134: 2026.916667 | AR134: 22.39638889 | AS134: 268.7566667 | AT134: 268.7566667 | AU134: 0 | AV134: 268.7566667 | AW134: 537.5133333 | AX134: No | AY134: 0
B135: 2010 | C135: 317946 | D135: P | E135: HP Business Desktop 600 G6 - SN: MXL3392KZ7 | J135: 0 | K135: CDW DIR #2010 - CSR | N135: 2023-11-10 | O135: 2023-11-10 | P135: 2010-23-0068-1 | Q135: 300 | R135: 14110 | S135: 806.27 | T135: 14116 | U135: 156.79 | V135: 649.48 | W135: 112 | X135: 70260 | Y135: 22.4 | Z135: P | AF135: STL | AL135: Shared Office Equipment | AM135: Shared Office Equipment | AN135: 11 | AO135: 2023 | AP135: 2026 | AQ135: 2026.916667 | AR135: 22.39638889 | AS135: 268.7566667 | AT135: 268.7566667 | AU135: 0 | AV135: 268.7566667 | AW135: 537.5133333 | AX135: No | AY135: 0
B136: 2010 | C136: 317945 | D136: P | E136: HP Business Desktop 600 G6 - SN: MXL3393NBB | J136: 0 | K136: CDW DIR #2010 - CSR | N136: 2023-11-10 | O136: 2023-11-10 | P136: 2010-23-0068-1 | Q136: 300 | R136: 14110 | S136: 806.27 | T136: 14116 | U136: 156.79 | V136: 649.48 | W136: 112 | X136: 70260 | Y136: 22.4 | Z136: P | AF136: STL | AL136: Shared Office Equipment | AM136: Shared Office Equipment | AN136: 11 | AO136: 2023 | AP136: 2026 | AQ136: 2026.916667 | AR136: 22.39638889 | AS136: 268.7566667 | AT136: 268.7566667 | AU136: 0 | AV136: 268.7566667 | AW136: 537.5133333 | AX136: No | AY136: 0
B137: 2010 | C137: 317944 | D137: P | E137: HP Business Desktop 600 G6 - SN: MXL3393N9W | J137: 0 | K137: CDW DIR #2010 - CSR | N137: 2023-11-10 | O137: 2023-11-10 | P137: 2010-23-0068-1 | Q137: 300 | R137: 14110 | S137: 806.26 | T137: 14116 | U137: 156.79 | V137: 649.47 | W137: 112 | X137: 70260 | Y137: 22.4 | Z137: P | AF137: STL | AL137: Shared Office Equipment | AM137: Shared Office Equipment | AN137: 11 | AO137: 2023 | AP137: 2026 | AQ137: 2026.916667 | AR137: 22.39611111 | AS137: 268.7533333 | AT137: 268.7533333 | AU137: 0 | AV137: 268.7533333 | AW137: 537.5066667 | AX137: No | AY137: 0
B138: 2010 | C138: 317943 | D138: P | E138: HP Business Desktop 600 G6 - SN: MXL3393N6J | J138: 0 | K138: CDW DIR #2010 - CSR | N138: 2023-11-10 | O138: 2023-11-10 | P138: 2010-23-0068-1 | Q138: 300 | R138: 14110 | S138: 806.26 | T138: 14116 | U138: 156.79 | V138: 649.47 | W138: 112 | X138: 70260 | Y138: 22.4 | Z138: P | AF138: STL | AL138: Shared Office Equipment | AM138: Shared Office Equipment | AN138: 11 | AO138: 2023 | AP138: 2026 | AQ138: 2026.916667 | AR138: 22.39611111 | AS138: 268.7533333 | AT138: 268.7533333 | AU138: 0 | AV138: 268.7533333 | AW138: 537.5066667 | AX138: No | AY138: 0
B139: 2010 | C139: 317942 | D139: P | E139: HP Business Desktop 600 G6 - SN: MXL3393N2F | J139: 0 | K139: CDW DIR #2010 - CSR | N139: 2023-11-10 | O139: 2023-11-10 | P139: 2010-23-0068-1 | Q139: 300 | R139: 14110 | S139: 806.26 | T139: 14116 | U139: 156.79 | V139: 649.47 | W139: 112 | X139: 70260 | Y139: 22.4 | Z139: P | AF139: STL | AL139: Shared Office Equipment | AM139: Shared Office Equipment | AN139: 11 | AO139: 2023 | AP139: 2026 | AQ139: 2026.916667 | AR139: 22.39611111 | AS139: 268.7533333 | AT139: 268.7533333 | AU139: 0 | AV139: 268.7533333 | AW139: 537.5066667 | AX139: No | AY139: 0
B140: 2010 | C140: 317897 | D140: P | E140: 4yd metal FEL garbage containers | J140: 0 | K140: WASTEQUIP MAYFAB | N140: 2023-10-10 | O140: 2023-10-10 | P140: 2010-23-0066-1 | Q140: 1200 | R140: 14050 | S140: 22264.68 | T140: 14056 | U140: 1236.95 | V140: 21027.73 | W140: 773.1 | X140: 54260 | Y140: 154.62 | Z140: P | AF140: STL | AL140: Garbage Container (shared) | AM140: Garbage Container (shared) | AN140: 10 | AO140: 2023 | AP140: 2035 | AQ140: 2035.833333 | AR140: 154.6158333 | AS140: 1855.39 | AT140: 1855.39 | AU140: 0 | AV140: 1855.39 | AW140: 20409.29 | AX140: No | AY140: 0
B141: 2010 | C141: 317896 | D141: P | E141: 4yd metaL FEL garbage containers | J141: 0 | K141: WASTEQUIP MAYFAB | N141: 2023-10-05 | O141: 2023-10-05 | P141: 2010-23-0066-1 | Q141: 1200 | R141: 14050 | S141: 11132.33 | T141: 14056 | U141: 618.47 | V141: 10513.86 | W141: 386.55 | X141: 54260 | Y141: 77.31 | Z141: P | AF141: STL | AL141: Garbage Container (shared) | AM141: Garbage Container (shared) | AN141: 10 | AO141: 2023 | AP141: 2035 | AQ141: 2035.833333 | AR141: 77.30784722 | AS141: 927.6941667 | AT141: 927.6941667 | AU141: 0 | AV141: 927.6941667 | AW141: 10204.63583 | AX141: No | AY141: 0
B142: 2010 | C142: 317895 | D142: P | E142: 4yd metal FEL recycle containers | J142: 0 | K142: WASTEQUIP MAYFAB | N142: 2023-10-05 | O142: 2023-10-05 | P142: 2010-23-0066-1 | Q142: 1200 | R142: 14050 | S142: 11464.65 | T142: 14056 | U142: 636.95 | V142: =S142-U142 -> 10827.7 | W142: 398.1 | X142: 54260 | Y142: 79.62 | Z142: P | AF142: STL | AL142: Garbage Container (shared) | AM142: Garbage Container (shared) | AN142: =MONTH($N142) -> 10 | AO142: =YEAR($N142) -> 2023 | AP142: =$AO142+($Q142/100) -> 2035 | AQ142: =$AP142+($AN142/12) -> 2035.833333 | AR142: =IFERROR($S142/($Q142/100)/12,0) -> 79.615625 | AS142: =$AR142*12 -> 955.3875 | AT142: =IF(AM142="Land",0,+IF(AQ142>$AK$9,AS142,0)) -> 955.3875 | AU142: =+IF(AM142="Land",0,IF(AQ142<=$AK$10,S142,IF((AO142+(AN142/12))>=$AK$10,0,((S142-((AQ142-$AK$10)*12)*AR142))))) -> 0 | AV142: =IF(AQ142<$AK$9,S142,AT142+AU142) -> 955.3875 | AW142: =$S142-$AV142 -> 10509.2625 | AX142: No | AY142: 0
B143: 2010 | C143: 317894 | D143: P | E143: 4yd fel metal recycle cages | J143: 0 | K143: WASTEQUIP MAYFAB | N143: 2023-10-19 | O143: 2023-10-19 | P143: 2010-23-0066-1 | Q143: 1200 | R143: 14050 | S143: 14705.01 | T143: 14056 | U143: 714.84 | V143: 13990.17 | W143: 510.6 | X143: 54260 | Y143: 102.12 | Z143: P | AF143: STL | AL143: Garbage Container (shared) | AM143: Garbage Container (shared) | AN143: 10 | AO143: 2023 | AP143: 2035 | AQ143: 2035.833333 | AR143: 102.118125 | AS143: 1225.4175 | AT143: 1225.4175 | AU143: 0 | AV143: 1225.4175 | AW143: 13479.5925 | AX143: No | AY143: 0
B144: 2010 | C144: 317893 | D144: P | E144: 4yd fel metal recycle cages | J144: 0 | K144: WASTEQUIP MAYFAB | N144: 2023-10-19 | O144: 2023-10-19 | P144: 2010-23-0066-1 | Q144: 1200 | R144: 14050 | S144: 14705.01 | T144: 14056 | U144: 714.84 | V144: 13990.17 | W144: 510.6 | X144: 54260 | Y144: 102.12 | Z144: P | AF144: STL | AL144: Garbage Container (shared) | AM144: Garbage Container (shared) | AN144: 10 | AO144: 2023 | AP144: 2035 | AQ144: 2035.833333 | AR144: 102.118125 | AS144: 1225.4175 | AT144: 1225.4175 | AU144: 0 | AV144: 1225.4175 | AW144: 13479.5925 | AX144: No | AY144: 0
B145: 2010 | C145: 317806 | D145: 316544 | E145: plates and tags for new frontload truck 908 | J145: 0 | K145: WA DOL LIC & REG 78155 | M145: Non-Rolling Stock | N145: 2023-10-25 | O145: 2023-10-25 | P145: 2010-23-0027-1 | Q145: 1000 | R145: 14040 | S145: 1216.69 | T145: 14046 | U145: 70.98 | V145: 1145.71 | W145: 50.7 | X145: 51260 | Y145: 10.14 | Z145: P | AF145: STL | AK145: 908 | AL145: Garbage Trucks - Shared | AM145: Garbage Trucks - Shared | AN145: 10 | AO145: 2023 | AP145: 2033 | AQ145: 2033.833333 | AR145: 10.13908333 | AS145: 121.669 | AT145: 121.669 | AU145: 0 | AV145: 121.669 | AW145: 1095.021 | AX145: No | AY145: 0
B146: 2010 | C146: 317805 | D146: 313287 | E146: fire suppression system for new automated truck 843 | J146: 0 | K146: IN *SAFECRAFT | M146: Non-Rolling Stock | N146: 2023-09-11 | O146: 2023-09-11 | P146: 2010-23-0020-1 | Q146: 300 | R146: 14040 | S146: 743.97 | T146: 14046 | U146: 186.01 | V146: 557.96 | W146: 103.35 | X146: 51260 | Y146: 20.67 | Z146: P | AF146: STL | AK146: 843 | AL146: Garbage Trucks - Regulated Only | AM146: Garbage Trucks - Regulated Only | AN146: 9 | AO146: 2023 | AP146: 2026 | AQ146: 2026.75 | AR146: 20.66583333 | AS146: 247.99 | AT146: 247.99 | AU146: 0 | AV146: 247.99 | AW146: 495.98 | AX146: No | AY146: 0
B147: 2010 | C147: 317804 | D147: 316543 | E147: plates and tags for new automated truck 856 | J147: 0 | K147: WA DOL LIC & REG 78155 | M147: Non-Rolling Stock | N147: 2023-10-24 | O147: 2023-10-24 | P147: 2010-23-0018-1 | Q147: 1000 | R147: 14040 | S147: 1216.69 | T147: 14046 | U147: 70.98 | V147: 1145.71 | W147: 50.7 | X147: 51260 | Y147: 10.14 | Z147: P | AF147: STL | AK147: 856 | AL147: Garbage Trucks - Regulated Only | AM147: Garbage Trucks - Regulated Only | AN147: 10 | AO147: 2023 | AP147: 2033 | AQ147: 2033.833333 | AR147: 10.13908333 | AS147: 121.669 | AT147: 121.669 | AU147: 0 | AV147: 121.669 | AW147: 1095.021 | AX147: No | AY147: 0
B148: 2010 | C148: 317803 | D148: 316542 | E148: plates and tags for new automated truck 853 | J148: 0 | K148: WA DOL LIC & REG 78155 | M148: Non-Rolling Stock | N148: 2023-10-23 | O148: 2023-10-23 | P148: 2010-23-0015-1 | Q148: 1000 | R148: 14040 | S148: 1216.69 | T148: 14046 | U148: 70.98 | V148: 1145.71 | W148: 50.7 | X148: 51260 | Y148: 10.14 | Z148: P | AF148: STL | AK148: 853 | AL148: Garbage Trucks - Regulated Only | AM148: Garbage Trucks - Regulated Only | AN148: 10 | AO148: 2023 | AP148: 2033 | AQ148: 2033.833333 | AR148: 10.13908333 | AS148: 121.669 | AT148: 121.669 | AU148: 0 | AV148: 121.669 | AW148: 1095.021 | AX148: No | AY148: 0
B149: 2010 | C149: 317802 | D149: 316545 | E149: plates and tags for new automated truck 850 | J149: 0 | K149: WA DOL LIC & REG 78155 | M149: Non-Rolling Stock | N149: 2023-10-24 | O149: 2023-10-24 | P149: 2010-23-0012-1 | Q149: 1000 | R149: 14040 | S149: 1216.69 | T149: 14046 | U149: 70.98 | V149: 1145.71 | W149: 50.7 | X149: 51260 | Y149: 10.14 | Z149: P | AF149: STL | AK149: 850 | AL149: Garbage Trucks - Regulated Only | AM149: Garbage Trucks - Regulated Only | AN149: 10 | AO149: 2023 | AP149: 2033 | AQ149: 2033.833333 | AR149: 10.13908333 | AS149: 121.669 | AT149: 121.669 | AU149: 0 | AV149: 121.669 | AW149: 1095.021 | AX149: No | AY149: 0
B150: 2010 | C150: 317801 | D150: 313285 | E150: fire suppression system for new automated truck 849 | J150: 0 | K150: IN *SAFECRAFT | M150: Non-Rolling Stock | N150: 2023-09-01 | O150: 2023-09-01 | P150: 2010-23-0011-1 | Q150: 300 | R150: 14040 | S150: 743.97 | T150: 14046 | U150: 186.01 | V150: 557.96 | W150: 103.35 | X150: 51260 | Y150: 20.67 | Z150: P | AF150: STL | AK150: 849 | AL150: Garbage Trucks - Regulated Only | AM150: Garbage Trucks - Regulated Only | AN150: 9 | AO150: 2023 | AP150: 2026 | AQ150: 2026.75 | AR150: 20.66583333 | AS150: 247.99 | AT150: 247.99 | AU150: 0 | AV150: 247.99 | AW150: 495.98 | AX150: No | AY150: 0
B151: 2010 | C151: 317800 | D151: 312116 | E151: fire suppression system for new automated truck 848 | J151: 0 | K151: IN *SAFECRAFT | M151: Non-Rolling Stock | N151: 2023-08-22 | O151: 2023-08-22 | P151: 2010-23-0010-1 | Q151: 300 | R151: 14040 | S151: 743.97 | T151: 14046 | U151: 186.01 | V151: 557.96 | W151: 103.35 | X151: 51260 | Y151: 20.67 | Z151: P | AF151: STL | AK151: 848 | AL151: Garbage Trucks - Regulated Only | AM151: Garbage Trucks - Regulated Only | AN151: 8 | AO151: 2023 | AP151: 2026 | AQ151: 2026.666667 | AR151: 20.66583333 | AS151: 247.99 | AT151: 247.99 | AU151: 0 | AV151: 247.99 | AW151: 495.98 | AX151: No | AY151: 0
B152: 2010 | C152: 317799 | D152: 315526 | E152: tags and plates for new automated truck 847 | J152: 0 | K152: WA DOL LIC & REG 78155 | M152: Non-Rolling Stock | N152: 2023-10-20 | O152: 2023-10-20 | P152: 2010-23-0009-1 | Q152: 1000 | R152: 14040 | S152: 1298.06 | T152: 14046 | U152: 75.74 | V152: 1222.32 | W152: 54.1 | X152: 51260 | Y152: 10.82 | Z152: P | AF152: STL | AK152: 847 | AL152: Garbage Trucks - Regulated Only | AM152: Garbage Trucks - Regulated Only | AN152: 10 | AO152: 2023 | AP152: 2033 | AQ152: 2033.833333 | AR152: 10.81716667 | AS152: 129.806 | AT152: 129.806 | AU152: 0 | AV152: 129.806 | AW152: 1168.254 | AX152: No | AY152: 0
B153: 2010 | C153: 317798 | D153: 315526 | E153: fire suppression system for new automated truck 847 | J153: 0 | K153: IN *SAFECRAFT | M153: Non-Rolling Stock | N153: 2023-10-10 | O153: 2023-10-10 | P153: 2010-23-0009-1 | Q153: 300 | R153: 14040 | S153: 743.97 | T153: 14046 | U153: 165.35 | V153: 578.62 | W153: 103.35 | X153: 51260 | Y153: 20.67 | Z153: P | AF153: STL | AK153: 847 | AL153: Garbage Trucks - Regulated Only | AM153: Garbage Trucks - Regulated Only | AN153: 10 | AO153: 2023 | AP153: 2026 | AQ153: 2026.833333 | AR153: 20.66583333 | AS153: 247.99 | AT153: 247.99 | AU153: 0 | AV153: 247.99 | AW153: 495.98 | AX153: No | AY153: 0
B154: 2010 | C154: 317797 | D154: 314562 | E154: fire suppression system for new automated truck 843 | J154: 0 | K154: IN *SAFECRAFT | M154: Non-Rolling Stock | N154: 2023-09-25 | O154: 2023-09-25 | P154: 2010-23-0008-1 | Q154: 300 | R154: 14040 | S154: 743.97 | T154: 14046 | U154: 165.35 | V154: 578.62 | W154: 103.35 | X154: 51260 | Y154: 20.67 | Z154: P | AF154: STL | AK154: 843 | AL154: Garbage Trucks - Regulated Only | AM154: Garbage Trucks - Regulated Only | AN154: 9 | AO154: 2023 | AP154: 2026 | AQ154: 2026.75 | AR154: 20.66583333 | AS154: 247.99 | AT154: 247.99 | AU154: 0 | AV154: 247.99 | AW154: 495.98 | AX154: No | AY154: 0
B155: 2010 | C155: 317796 | D155: 312115 | E155: fire suppression system for new automated truck 845 | J155: 0 | K155: IN *SAFECRAFT | M155: Non-Rolling Stock | N155: 2023-08-21 | O155: 2023-08-21 | P155: 2010-23-0007-1 | Q155: 300 | R155: 14040 | S155: 743.97 | T155: 14046 | U155: 186.01 | V155: 557.96 | W155: 103.35 | X155: 51260 | Y155: 20.67 | Z155: P | AF155: STL | AK155: 845 | AL155: Garbage Trucks - Regulated Only | AM155: Garbage Trucks - Regulated Only | AN155: 8 | AO155: 2023 | AP155: 2026 | AQ155: 2026.666667 | AR155: 20.66583333 | AS155: 247.99 | AT155: 247.99 | AU155: 0 | AV155: 247.99 | AW155: 495.98 | AX155: No | AY155: 0
B156: 2010 | C156: 317720 | D156: 315933 | E156: 65 Gal Carts - Assembly and Distribution | H156: Non-Container Audit | J156: 0 | K156: FILE 2524 | N156: 2023-07-31 | O156: 2023-07-31 | P156: 2010-23-0028-1 | Q156: 700 | R156: 14050 | S156: 3170.88 | T156: 14056 | U156: 377.49 | V156: 2793.39 | W156: 188.75 | X156: 54260 | Y156: 37.75 | Z156: P | AF156: STL | AL156: Garbage Carts (Reg only) | AM156: Garbage Carts (Reg only) | AN156: 7 | AO156: 2023 | AP156: 2030 | AQ156: 2030.583333 | AR156: 37.74857143 | AS156: 452.9828571 | AT156: 452.9828571 | AU156: 0 | AV156: 452.9828571 | AW156: 2717.897143 | AX156: No | AY156: 0
B157: 2010 | C157: 317719 | D157: 313799 | E157: 65 Gal Carts - Assembly and Distribution | H157: Non-Container Audit | J157: 0 | K157: FILE 2524 | N157: 2023-07-31 | O157: 2023-07-31 | P157: 2010-23-0028-1 | Q157: 700 | R157: 14050 | S157: 7729.02 | T157: 14056 | U157: 920.11 | V157: 6808.91 | W157: 460.05 | X157: 54260 | Y157: 92.01 | Z157: P | AF157: STL | AL157: Garbage Carts (Reg only) | AM157: Garbage Carts (Reg only) | AN157: 7 | AO157: 2023 | AP157: 2030 | AQ157: 2030.583333 | AR157: 92.01214286 | AS157: 1104.145714 | AT157: 1104.145714 | AU157: 0 | AV157: 1104.145714 | AW157: 6624.874286 | AX157: No | AY157: 0
B158: 2010 | C158: 317718 | D158: 313583 | E158: 65 Gal Carts - Assembly and Distribution | H158: Non-Container Audit | J158: 0 | K158: FILE 2524 | N158: 2023-07-31 | O158: 2023-07-31 | P158: 2010-23-0028-1 | Q158: 700 | R158: 14050 | S158: 14599.26 | T158: 14056 | U158: 1738 | V158: 12861.26 | W158: 869 | X158: 54260 | Y158: 173.8 | Z158: P | AF158: STL | AL158: Garbage Carts (Reg only) | AM158: Garbage Carts (Reg only) | AN158: 7 | AO158: 2023 | AP158: 2030 | AQ158: 2030.583333 | AR158: 173.8007143 | AS158: 2085.608571 | AT158: 2085.608571 | AU158: 0 | AV158: 2085.608571 | AW158: 12513.65143 | AX158: No | AY158: 0
B159: 2010 | C159: 317717 | D159: 313582 | E159: 65 Gal Carts - Assembly and Distribution | H159: Non-Container Audit | J159: 0 | K159: FILE 2524 | N159: 2023-07-31 | O159: 2023-07-31 | P159: 2010-23-0028-1 | Q159: 700 | R159: 14050 | S159: 7729.02 | T159: 14056 | U159: 920.11 | V159: 6808.91 | W159: 460.05 | X159: 54260 | Y159: 92.01 | Z159: P | AF159: STL | AL159: Garbage Carts (Reg only) | AM159: Garbage Carts (Reg only) | AN159: 7 | AO159: 2023 | AP159: 2030 | AQ159: 2030.583333 | AR159: 92.01214286 | AS159: 1104.145714 | AT159: 1104.145714 | AU159: 0 | AV159: 1104.145714 | AW159: 6624.874286 | AX159: No | AY159: 0
B160: 2010 | C160: 317716 | D160: 313578 | E160: 35 Gal Carts - Assembly and Distribution | H160: Non-Container Audit | J160: 0 | K160: FILE 2524 | N160: 2023-07-31 | O160: 2023-07-31 | P160: 2010-23-0028-1 | Q160: 700 | R160: 14050 | S160: 23590.37 | T160: 14056 | U160: 2808.39 | V160: 20781.98 | W160: 1404.2 | X160: 54260 | Y160: 280.84 | Z160: P | AF160: STL | AL160: Garbage Carts (Reg only) | AM160: Garbage Carts (Reg only) | AN160: 7 | AO160: 2023 | AP160: 2030 | AQ160: 2030.583333 | AR160: 280.8377381 | AS160: 3370.052857 | AT160: 3370.052857 | AU160: 0 | AV160: 3370.052857 | AW160: 20220.31714 | AX160: No | AY160: 0
B161: 2010 | C161: 317715 | D161: 313576 | E161: 35 Gal Carts - Assembly and Distribution | H161: Non-Container Audit | J161: 0 | K161: FILE 2524 | N161: 2023-07-31 | O161: 2023-07-31 | P161: 2010-23-0028-1 | Q161: 700 | R161: 14050 | S161: 31187.27 | T161: 14056 | U161: 3712.79 | V161: 27474.48 | W161: 1856.4 | X161: 54260 | Y161: 371.28 | Z161: P | AF161: STL | AL161: Garbage Carts (Reg only) | AM161: Garbage Carts (Reg only) | AN161: 7 | AO161: 2023 | AP161: 2030 | AQ161: 2030.583333 | AR161: 371.2770238 | AS161: 4455.324286 | AT161: 4455.324286 | AU161: 0 | AV161: 4455.324286 | AW161: 26731.94571 | AX161: No | AY161: 0
B162: 2010 | C162: 317714 | D162: 313575 | E162: 35 Gal Carts - Assembly and Distribution | H162: Non-Container Audit | J162: 0 | K162: FILE 2524 | N162: 2023-07-31 | O162: 2023-07-31 | P162: 2010-23-0028-1 | Q162: 700 | R162: 14050 | S162: 23590.37 | T162: 14056 | U162: 2808.39 | V162: 20781.98 | W162: 1404.2 | X162: 54260 | Y162: 280.84 | Z162: P | AF162: STL | AL162: Garbage Carts (Reg only) | AM162: Garbage Carts (Reg only) | AN162: 7 | AO162: 2023 | AP162: 2030 | AQ162: 2030.583333 | AR162: 280.8377381 | AS162: 3370.052857 | AT162: 3370.052857 | AU162: 0 | AV162: 3370.052857 | AW162: 20220.31714 | AX162: No | AY162: 0
B163: 2010 | C163: 317713 | D163: 313577 | E163: 35 Gal Carts - Assembly and Distribution | H163: Non-Container Audit | J163: 0 | K163: FILE 2524 | N163: 2023-07-31 | O163: 2023-07-31 | P163: 2010-23-0028-1 | Q163: 700 | R163: 14050 | S163: 3358.59 | T163: 14056 | U163: 399.82 | V163: 2958.77 | W163: 199.9 | X163: 54260 | Y163: 39.98 | Z163: P | AF163: STL | AL163: Garbage Carts (Reg only) | AM163: Garbage Carts (Reg only) | AN163: 7 | AO163: 2023 | AP163: 2030 | AQ163: 2030.583333 | AR163: 39.98321429 | AS163: 479.7985714 | AT163: 479.7985714 | AU163: 0 | AV163: 479.7985714 | AW163: 2878.791429 | AX163: No | AY163: 0
B164: 2010 | C164: 317712 | D164: P | E164: 35 Gal Carts - UTC | H164: Non-Container Audit | J164: 0 | K164: FILE 2524 | N164: 2023-07-31 | O164: 2023-07-31 | P164: 2010-23-0028-1 | Q164: 700 | R164: 14050 | S164: 92016.57 | T164: 14056 | U164: 10954.38 | V164: 81062.19 | W164: 5477.2 | X164: 54260 | Y164: 1095.44 | Z164: P | AF164: STL | AL164: Garbage Carts (Reg only) | AM164: Garbage Carts (Reg only) | AN164: 7 | AO164: 2023 | AP164: 2030 | AQ164: 2030.583333 | AR164: 1095.435357 | AS164: 13145.22429 | AT164: 13145.22429 | AU164: 0 | AV164: 13145.22429 | AW164: 78871.34571 | AX164: No | AY164: 0
B165: 2010 | C165: 317711 | D165: P | E165: 65 Gal Carts - UTC | H165: Non-Container Audit | J165: 0 | K165: FILE 2524 | N165: 2023-07-31 | O165: 2023-07-31 | P165: 2010-23-0028-1 | Q165: 700 | R165: 14050 | S165: 49792.91 | T165: 14056 | U165: 5927.71 | V165: 43865.2 | W165: 2963.85 | X165: 54260 | Y165: 592.77 | Z165: P | AF165: STL | AL165: Garbage Carts (Reg only) | AM165: Garbage Carts (Reg only) | AN165: 7 | AO165: 2023 | AP165: 2030 | AQ165: 2030.583333 | AR165: 592.7727381 | AS165: 7113.272857 | AT165: 7113.272857 | AU165: 0 | AV165: 7113.272857 | AW165: 42679.63714 | AX165: No | AY165: 0
B166: 2010 | C166: 317710 | D166: 313567 | E166: 96 Gal Carts - Assembly and Distribution | H166: Non-Container Audit | J166: 0 | K166: FILE 2524 | N166: 2023-07-31 | O166: 2023-07-31 | P166: 2010-23-0028-1 | Q166: 700 | R166: 14050 | S166: 9165.46 | T166: 14056 | U166: 1091.11 | V166: 8074.35 | W166: 545.55 | X166: 54260 | Y166: 109.11 | Z166: P | AF166: STL | AL166: Garbage Carts (Reg only) | AM166: Garbage Carts (Reg only) | AN166: 7 | AO166: 2023 | AP166: 2030 | AQ166: 2030.583333 | AR166: 109.112619 | AS166: 1309.351429 | AT166: 1309.351429 | AU166: 0 | AV166: 1309.351429 | AW166: 7856.108571 | AX166: No | AY166: 0
B167: 2010 | C167: 317709 | D167: 313487 | E167: 95 Gal Carts - Assembly and Distribution | H167: Non-Container Audit | J167: 0 | K167: FILE 2524 | N167: 2023-07-31 | O167: 2023-07-31 | P167: 2010-23-0028-1 | Q167: 700 | R167: 14050 | S167: 5996.78 | T167: 14056 | U167: 713.9 | V167: 5282.88 | W167: 356.95 | X167: 54260 | Y167: 71.39 | Z167: P | AF167: STL | AL167: Garbage Carts (Reg only) | AM167: Garbage Carts (Reg only) | AN167: 7 | AO167: 2023 | AP167: 2030 | AQ167: 2030.583333 | AR167: 71.3902381 | AS167: 856.6828571 | AT167: 856.6828571 | AU167: 0 | AV167: 856.6828571 | AW167: 5140.097143 | AX167: No | AY167: 0
B168: 2010 | C168: 317708 | D168: 313574 | E168: 35 Gal Carts - Assembly and Distribution | H168: Non-Container Audit | J168: 0 | K168: FILE 2524 | N168: 2023-07-31 | O168: 2023-07-31 | P168: 2010-23-0028-1 | Q168: 700 | R168: 14050 | S168: 8396.57 | T168: 14056 | U168: 999.6 | V168: 7396.97 | W168: 499.8 | X168: 54260 | Y168: 99.96 | Z168: P | AF168: STL | AL168: Garbage Carts (Reg only) | AM168: Garbage Carts (Reg only) | AN168: 7 | AO168: 2023 | AP168: 2030 | AQ168: 2030.583333 | AR168: 99.95916667 | AS168: 1199.51 | AT168: 1199.51 | AU168: 0 | AV168: 1199.51 | AW168: 7197.06 | AX168: No | AY168: 0
B169: 2010 | C169: 317707 | D169: 313573 | E169: 35 Gal Carts - Assembly and Distribution | H169: Non-Container Audit | J169: 0 | K169: FILE 2524 | N169: 2023-07-31 | O169: 2023-07-31 | P169: 2010-23-0028-1 | Q169: 700 | R169: 14050 | S169: 8396.57 | T169: 14056 | U169: 999.6 | V169: 7396.97 | W169: 499.8 | X169: 54260 | Y169: 99.96 | Z169: P | AF169: STL | AL169: Garbage Carts (Reg only) | AM169: Garbage Carts (Reg only) | AN169: 7 | AO169: 2023 | AP169: 2030 | AQ169: 2030.583333 | AR169: 99.95916667 | AS169: 1199.51 | AT169: 1199.51 | AU169: 0 | AV169: 1199.51 | AW169: 7197.06 | AX169: No | AY169: 0
B170: 2010 | C170: 317706 | D170: 313572 | E170: 35 Gal Carts - Assembly and Distribution | H170: Non-Container Audit | J170: 0 | K170: FILE 2524 | N170: 2023-07-31 | O170: 2023-07-31 | P170: 2010-23-0028-1 | Q170: 700 | R170: 14050 | S170: 15993.47 | T170: 14056 | U170: 1903.99 | V170: 14089.48 | W170: 952 | X170: 54260 | Y170: 190.4 | Z170: P | AF170: STL | AL170: Garbage Carts (Reg only) | AM170: Garbage Carts (Reg only) | AN170: 7 | AO170: 2023 | AP170: 2030 | AQ170: 2030.583333 | AR170: 190.3984524 | AS170: 2284.781429 | AT170: 2284.781429 | AU170: 0 | AV170: 2284.781429 | AW170: 13708.68857 | AX170: No | AY170: 0
B171: 2010 | C171: 317705 | D171: 313580 | E171: 35 Gal Carts - Assembly and Distribution | H171: Non-Container Audit | J171: 0 | K171: FILE 2524 | N171: 2023-07-31 | O171: 2023-07-31 | P171: 2010-23-0028-1 | Q171: 700 | R171: 14050 | S171: 23590.37 | T171: 14056 | U171: 2808.39 | V171: 20781.98 | W171: 1404.2 | X171: 54260 | Y171: 280.84 | Z171: P | AF171: STL | AL171: Garbage Carts (Reg only) | AM171: Garbage Carts (Reg only) | AN171: 7 | AO171: 2023 | AP171: 2030 | AQ171: 2030.583333 | AR171: 280.8377381 | AS171: 3370.052857 | AT171: 3370.052857 | AU171: 0 | AV171: 3370.052857 | AW171: 20220.31714 | AX171: No | AY171: 0
B172: 2010 | C172: 317704 | D172: 313579 | E172: 35 Gal Carts - Assembly and Distribution | H172: Non-Container Audit | J172: 0 | K172: FILE 2524 | N172: 2023-07-31 | O172: 2023-07-31 | P172: 2010-23-0028-1 | Q172: 700 | R172: 14050 | S172: 8396.57 | T172: 14056 | U172: 999.6 | V172: 7396.97 | W172: 499.8 | X172: 54260 | Y172: 99.96 | Z172: P | AF172: STL | AL172: Garbage Carts (Reg only) | AM172: Garbage Carts (Reg only) | AN172: 7 | AO172: 2023 | AP172: 2030 | AQ172: 2030.583333 | AR172: 99.95916667 | AS172: 1199.51 | AT172: 1199.51 | AU172: 0 | AV172: 1199.51 | AW172: 7197.06 | AX172: No | AY172: 0
B173: 2010 | C173: 317703 | D173: 313563 | E173: 65 Gal Carts - Assembly and Distribution | H173: Non-Container Audit | J173: 0 | K173: FILE 2524 | N173: 2023-07-31 | O173: 2023-07-31 | P173: 2010-23-0028-1 | Q173: 700 | R173: 14050 | S173: 9534.66 | T173: 14056 | U173: 1135.09 | V173: 8399.57 | W173: 567.55 | X173: 54260 | Y173: 113.51 | Z173: P | AF173: STL | AL173: Garbage Carts (Reg only) | AM173: Garbage Carts (Reg only) | AN173: 7 | AO173: 2023 | AP173: 2030 | AQ173: 2030.583333 | AR173: 113.5078571 | AS173: 1362.094286 | AT173: 1362.094286 | AU173: 0 | AV173: 1362.094286 | AW173: 8172.565714 | AX173: No | AY173: 0
B174: 2010 | C174: 317702 | D174: 313562 | E174: 35 Gal Carts - Assembly and Distribution | H174: Non-Container Audit | J174: 0 | K174: FILE 2524 | N174: 2023-07-31 | O174: 2023-07-31 | P174: 2010-23-0028-1 | Q174: 700 | R174: 14050 | S174: 7729.02 | T174: 14056 | U174: 920.11 | V174: 6808.91 | W174: 460.05 | X174: 54260 | Y174: 92.01 | Z174: P | AF174: STL | AL174: Garbage Carts (Reg only) | AM174: Garbage Carts (Reg only) | AN174: 7 | AO174: 2023 | AP174: 2030 | AQ174: 2030.583333 | AR174: 92.01214286 | AS174: 1104.145714 | AT174: 1104.145714 | AU174: 0 | AV174: 1104.145714 | AW174: 6624.874286 | AX174: No | AY174: 0
B175: 2010 | C175: 317701 | D175: 315932 | E175: 35 Gal Carts - Assembly and Distribution | H175: Non-Container Audit | J175: 0 | K175: FILE 2524 | N175: 2023-07-31 | O175: 2023-07-31 | P175: 2010-23-0028-1 | Q175: 700 | R175: 14050 | S175: 15993.47 | T175: 14056 | U175: 1903.99 | V175: 14089.48 | W175: 952 | X175: 54260 | Y175: 190.4 | Z175: P | AF175: STL | AL175: Garbage Carts (Reg only) | AM175: Garbage Carts (Reg only) | AN175: 7 | AO175: 2023 | AP175: 2030 | AQ175: 2030.583333 | AR175: 190.3984524 | AS175: 2284.781429 | AT175: 2284.781429 | AU175: 0 | AV175: 2284.781429 | AW175: 13708.68857 | AX175: No | AY175: 0
B176: 2010 | C176: 317700 | D176: 315931 | E176: 35 Gal Carts - Assembly and Distribution | H176: Non-Container Audit | J176: 0 | K176: FILE 2524 | N176: 2023-07-31 | O176: 2023-07-31 | P176: 2010-23-0028-1 | Q176: 700 | R176: 14050 | S176: 15993.47 | T176: 14056 | U176: 1903.99 | V176: 14089.48 | W176: 952 | X176: 54260 | Y176: 190.4 | Z176: P | AF176: STL | AL176: Garbage Carts (Reg only) | AM176: Garbage Carts (Reg only) | AN176: 7 | AO176: 2023 | AP176: 2030 | AQ176: 2030.583333 | AR176: 190.3984524 | AS176: 2284.781429 | AT176: 2284.781429 | AU176: 0 | AV176: 2284.781429 | AW176: 13708.68857 | AX176: No | AY176: 0
B177: 2010 | C177: 317699 | D177: 313571 | E177: 35 Gal Carts - Assembly and Distribution | H177: Non-Container Audit | J177: 0 | K177: FILE 2524 | N177: 2023-07-31 | O177: 2023-07-31 | P177: 2010-23-0028-1 | Q177: 700 | R177: 14050 | S177: 8396.57 | T177: 14056 | U177: 999.6 | V177: 7396.97 | W177: 499.8 | X177: 54260 | Y177: 99.96 | Z177: P | AF177: STL | AL177: Garbage Carts (Reg only) | AM177: Garbage Carts (Reg only) | AN177: 7 | AO177: 2023 | AP177: 2030 | AQ177: 2030.583333 | AR177: 99.95916667 | AS177: 1199.51 | AT177: 1199.51 | AU177: 0 | AV177: 1199.51 | AW177: 7197.06 | AX177: No | AY177: 0
B178: 2010 | C178: 317698 | D178: 313570 | E178: 65 Gal Carts - Assembly and Distribution | H178: Non-Container Audit | J178: 0 | K178: FILE 2524 | N178: 2023-07-31 | O178: 2023-07-31 | P178: 2010-23-0028-1 | Q178: 700 | R178: 14050 | S178: 7729.02 | T178: 14056 | U178: 920.11 | V178: 6808.91 | W178: 460.05 | X178: 54260 | Y178: 92.01 | Z178: P | AF178: STL | AL178: Garbage Carts (Reg only) | AM178: Garbage Carts (Reg only) | AN178: 7 | AO178: 2023 | AP178: 2030 | AQ178: 2030.583333 | AR178: 92.01214286 | AS178: 1104.145714 | AT178: 1104.145714 | AU178: 0 | AV178: 1104.145714 | AW178: 6624.874286 | AX178: No | AY178: 0
B179: 2010 | C179: 317697 | D179: 315934 | E179: 65 Gal Carts - Assembly and Distribution | H179: Non-Container Audit | J179: 0 | K179: FILE 2524 | N179: 2023-07-31 | O179: 2023-07-31 | P179: 2010-23-0028-1 | Q179: 700 | R179: 14050 | S179: 5416.92 | T179: 14056 | U179: 644.89 | V179: 4772.03 | W179: 322.45 | X179: 54260 | Y179: 64.49 | Z179: P | AF179: STL | AL179: Garbage Carts (Reg only) | AM179: Garbage Carts (Reg only) | AN179: 7 | AO179: 2023 | AP179: 2030 | AQ179: 2030.583333 | AR179: 64.48714286 | AS179: 773.8457143 | AT179: 773.8457143 | AU179: 0 | AV179: 773.8457143 | AW179: 4643.074286 | AX179: No | AY179: 0
B180: 2010 | C180: 317696 | D180: 315930 | E180: 35 Gal Carts - Assembly and Distribution | H180: Non-Container Audit | J180: 0 | K180: FILE 2524 | N180: 2023-07-31 | O180: 2023-07-31 | P180: 2010-23-0028-1 | Q180: 700 | R180: 14050 | S180: 8396.57 | T180: 14056 | U180: 999.6 | V180: 7396.97 | W180: 499.8 | X180: 54260 | Y180: 99.96 | Z180: P | AF180: STL | AL180: Garbage Carts (Reg only) | AM180: Garbage Carts (Reg only) | AN180: 7 | AO180: 2023 | AP180: 2030 | AQ180: 2030.583333 | AR180: 99.95916667 | AS180: 1199.51 | AT180: 1199.51 | AU180: 0 | AV180: 1199.51 | AW180: 7197.06 | AX180: No | AY180: 0
B181: 2010 | C181: 317695 | D181: 315929 | E181: 35 Gal Carts - Assembly and Distribution | H181: Non-Container Audit | J181: 0 | K181: FILE 2524 | N181: 2023-07-31 | O181: 2023-07-31 | P181: 2010-23-0028-1 | Q181: 700 | R181: 14050 | S181: 15993.47 | T181: 14056 | U181: 1903.99 | V181: 14089.48 | W181: 952 | X181: 54260 | Y181: 190.4 | Z181: P | AF181: STL | AL181: Garbage Carts (Reg only) | AM181: Garbage Carts (Reg only) | AN181: 7 | AO181: 2023 | AP181: 2030 | AQ181: 2030.583333 | AR181: 190.3984524 | AS181: 2284.781429 | AT181: 2284.781429 | AU181: 0 | AV181: 2284.781429 | AW181: 13708.68857 | AX181: No | AY181: 0
B182: 2010 | C182: 317694 | D182: P | E182: 35 Gal Carts - Assembly and Distribution | H182: Non-Container Audit | J182: 0 | K182: FILE 2524 | N182: 2023-07-31 | O182: 2023-07-31 | P182: 2010-23-0028-1 | Q182: 700 | R182: 14050 | S182: 5037.98 | T182: 14056 | U182: 599.78 | V182: 4438.2 | W182: 299.9 | X182: 54260 | Y182: 59.98 | Z182: P | AF182: STL | AL182: Garbage Carts (Reg only) | AM182: Garbage Carts (Reg only) | AN182: 7 | AO182: 2023 | AP182: 2030 | AQ182: 2030.583333 | AR182: 59.97595238 | AS182: 719.7114286 | AT182: 719.7114286 | AU182: 0 | AV182: 719.7114286 | AW182: 4318.268571 | AX182: No | AY182: 0
B183: 2010 | C183: 317693 | D183: 313568 | E183: 35 Gal Carts - Assembly and Distribution | H183: Non-Container Audit | J183: 0 | K183: FILE 2524 | N183: 2023-07-31 | O183: 2023-07-31 | P183: 2010-23-0028-1 | Q183: 700 | R183: 14050 | S183: 23590.37 | T183: 14056 | U183: 2808.39 | V183: 20781.98 | W183: 1404.2 | X183: 54260 | Y183: 280.84 | Z183: P | AF183: STL | AL183: Garbage Carts (Reg only) | AM183: Garbage Carts (Reg only) | AN183: 7 | AO183: 2023 | AP183: 2030 | AQ183: 2030.583333 | AR183: 280.8377381 | AS183: 3370.052857 | AT183: 3370.052857 | AU183: 0 | AV183: 3370.052857 | AW183: 20220.31714 | AX183: No | AY183: 0
B184: 2010 | C184: 317692 | D184: 313566 | E184: 35 Gal Carts - Assembly and Distribution | H184: Non-Container Audit | J184: 0 | K184: FILE 2524 | N184: 2023-07-31 | O184: 2023-07-31 | P184: 2010-23-0028-1 | Q184: 700 | R184: 14050 | S184: 23590.37 | T184: 14056 | U184: 2808.39 | V184: 20781.98 | W184: 1404.2 | X184: 54260 | Y184: 280.84 | Z184: P | AF184: STL | AL184: Garbage Carts (Reg only) | AM184: Garbage Carts (Reg only) | AN184: 7 | AO184: 2023 | AP184: 2030 | AQ184: 2030.583333 | AR184: 280.8377381 | AS184: 3370.052857 | AT184: 3370.052857 | AU184: 0 | AV184: 3370.052857 | AW184: 20220.31714 | AX184: No | AY184: 0
B185: 2010 | C185: 317691 | D185: 313564 | E185: 35 Gal Carts - Assembly and Distribution | H185: Non-Container Audit | J185: 0 | K185: FILE 2524 | N185: 2023-07-31 | O185: 2023-07-31 | P185: 2010-23-0028-1 | Q185: 700 | R185: 14050 | S185: 15993.47 | T185: 14056 | U185: 1903.99 | V185: 14089.48 | W185: 952 | X185: 54260 | Y185: 190.4 | Z185: P | AF185: STL | AL185: Garbage Carts (Reg only) | AM185: Garbage Carts (Reg only) | AN185: 7 | AO185: 2023 | AP185: 2030 | AQ185: 2030.583333 | AR185: 190.3984524 | AS185: 2284.781429 | AT185: 2284.781429 | AU185: 0 | AV185: 2284.781429 | AW185: 13708.68857 | AX185: No | AY185: 0
B186: 2010 | C186: 317690 | D186: 313488 | E186: 35 Gal Carts - Assembly and Distribution | H186: Non-Container Audit | J186: 0 | K186: FILE 2524 | N186: 2023-07-31 | O186: 2023-07-31 | P186: 2010-23-0028-1 | Q186: 700 | R186: 14050 | S186: 2744.77 | T186: 14056 | U186: 326.78 | V186: 2417.99 | W186: 163.4 | X186: 54260 | Y186: 32.68 | Z186: P | AF186: STL | AL186: Garbage Carts (Reg only) | AM186: Garbage Carts (Reg only) | AN186: 7 | AO186: 2023 | AP186: 2030 | AQ186: 2030.583333 | AR186: 32.67583333 | AS186: 392.11 | AT186: 392.11 | AU186: 0 | AV186: 392.11 | AW186: 2352.66 | AX186: No | AY186: 0
B187: 2010 | C187: 317689 | D187: 311227 | E187: 35 Gal Carts - Assembly and Distribution | H187: Non-Container Audit | J187: 0 | K187: FILE 2524 | N187: 2023-07-31 | O187: 2023-07-31 | P187: 2010-23-0028-1 | Q187: 700 | R187: 14050 | S187: 8396.57 | T187: 14056 | U187: 999.6 | V187: 7396.97 | W187: 499.8 | X187: 54260 | Y187: 99.96 | Z187: P | AF187: STL | AL187: Garbage Carts (Reg only) | AM187: Garbage Carts (Reg only) | AN187: 7 | AO187: 2023 | AP187: 2030 | AQ187: 2030.583333 | AR187: 99.95916667 | AS187: 1199.51 | AT187: 1199.51 | AU187: 0 | AV187: 1199.51 | AW187: 7197.06 | AX187: No | AY187: 0
B188: 2010 | C188: 317688 | D188: 313565 | E188: 20 Gal Carts - Assembly and Distribution | H188: Non-Container Audit | J188: 0 | K188: FILE 2524 | N188: 2023-07-31 | O188: 2023-07-31 | P188: 2010-23-0028-1 | Q188: 700 | R188: 14050 | S188: 4587.5 | T188: 14056 | U188: 546.12 | V188: 4041.38 | W188: 273.05 | X188: 54260 | Y188: 54.61 | Z188: P | AF188: STL | AL188: Garbage Carts (Reg only) | AM188: Garbage Carts (Reg only) | AN188: 7 | AO188: 2023 | AP188: 2030 | AQ188: 2030.583333 | AR188: 54.61309524 | AS188: 655.3571429 | AT188: 655.3571429 | AU188: 0 | AV188: 655.3571429 | AW188: 3932.142857 | AX188: No | AY188: 0
B189: 2010 | C189: 317369 | D189: P | E189: 2024 Peterbilt ASL Truck | H189: 3BPDLK0X4RF117046 | J189: 2024 | M189: Automated Side Loader | N189: 2023-11-15 | O189: 2023-11-15 | P189: 2010-23-0017-1 | Q189: 1000 | R189: 14040 | S189: 228637.18 | T189: 14046 | U189: 13337.17 | V189: 215300.01 | W189: 9526.55 | X189: 51260 | Y189: 1905.31 | Z189: P | AF189: STL | AK189: 855 | AL189: Garbage Trucks - Non-Regulated Only | AM189: Garbage Trucks - Non-Regulated Only | AN189: 11 | AO189: 2023 | AP189: 2033 | AQ189: 2033.916667 | AR189: 1905.309833 | AS189: 22863.718 | AT189: 22863.718 | AU189: 0 | AV189: 22863.718 | AW189: 205773.462 | AX189: No | AY189: 0
B190: 2010 | C190: 316956 | D190: 313287 | E190: Radio and Subscription for new truck | H190: 3BPDLK0X5RF117041 | J190: 2024 | K190: DBA DAY WIRELESS SYSTEMS | M190: Non-Rolling Stock | N190: 2023-09-11 | O190: 2023-09-11 | P190: 2010-23-0020-1 | Q190: 500 | R190: 14040 | S190: 1261.48 | T190: 14046 | U190: 189.2 | V190: 1072.28 | W190: 105.1 | X190: 51260 | Y190: 21.02 | Z190: P | AF190: STL | AK190: 843 | AL190: Garbage Trucks - Regulated Only | AM190: Garbage Trucks - Regulated Only | AN190: 9 | AO190: 2023 | AP190: 2028 | AQ190: 2028.75 | AR190: 21.02466667 | AS190: 252.296 | AT190: 252.296 | AU190: 0 | AV190: 252.296 | AW190: 1009.184 | AX190: No | AY190: 0
B191: 2010 | C191: 316955 | D191: 312115 | E191: Radio and Subscription for new truck | H191: 3BPDLK0X5RF117041 | J191: 2024 | K191: DBA DAY WIRELESS SYSTEMS | M191: Non-Rolling Stock | N191: 2023-08-21 | O191: 2023-08-21 | P191: 2010-23-0007-1 | Q191: 500 | R191: 14040 | S191: 1261.48 | T191: 14046 | U191: 189.2 | V191: 1072.28 | W191: 105.1 | X191: 51260 | Y191: 21.02 | Z191: P | AF191: STL | AK191: 845 | AL191: Garbage Trucks - Regulated Only | AM191: Garbage Trucks - Regulated Only | AN191: 8 | AO191: 2023 | AP191: 2028 | AQ191: 2028.666667 | AR191: 21.02466667 | AS191: 252.296 | AT191: 252.296 | AU191: 0 | AV191: 252.296 | AW191: 1009.184 | AX191: No | AY191: 0
B192: 2010 | C192: 316954 | D192: 316543 | E192: Radio and Subscription for new truck | H192: 3BPDLK0X5RF117041 | J192: 2024 | K192: DBA DAY WIRELESS SYSTEMS | M192: Non-Rolling Stock | N192: 2023-10-24 | O192: 2023-10-24 | P192: 2010-23-0018-1 | Q192: 500 | R192: 14040 | S192: 1261.48 | T192: 14046 | U192: 147.15 | V192: 1114.33 | W192: 105.1 | X192: 51260 | Y192: 21.02 | Z192: P | AF192: STL | AK192: 856 | AL192: Garbage Trucks - Regulated Only | AM192: Garbage Trucks - Regulated Only | AN192: 10 | AO192: 2023 | AP192: 2028 | AQ192: 2028.833333 | AR192: 21.02466667 | AS192: 252.296 | AT192: 252.296 | AU192: 0 | AV192: 252.296 | AW192: 1009.184 | AX192: No | AY192: 0
B193: 2010 | C193: 316953 | D193: 315525 | E193: Radio and Subscription for new truck | H193: 3BPDLK0X5RF117041 | J193: 2024 | K193: DBA DAY WIRELESS SYSTEMS | M193: Non-Rolling Stock | N193: 2023-09-06 | O193: 2023-09-06 | P193: 2010-23-0016-1 | Q193: 500 | R193: 14040 | S193: 1261.48 | T193: 14046 | U193: 189.2 | V193: 1072.28 | W193: 105.1 | X193: 51260 | Y193: 21.02 | Z193: P | AF193: STL | AK193: 854 | AL193: Garbage Trucks - Regulated Only | AM193: Garbage Trucks - Regulated Only | AN193: 9 | AO193: 2023 | AP193: 2028 | AQ193: 2028.75 | AR193: 21.02466667 | AS193: 252.296 | AT193: 252.296 | AU193: 0 | AV193: 252.296 | AW193: 1009.184 | AX193: No | AY193: 0
B194: 2010 | C194: 316952 | D194: 313285 | E194: Radio and Subscription for new truck | H194: 3BPDLK0X5RF117041 | J194: 2024 | K194: DBA DAY WIRELESS SYSTEMS | M194: Non-Rolling Stock | N194: 2023-09-01 | O194: 2023-09-01 | P194: 2010-23-0011-1 | Q194: 500 | R194: 14040 | S194: 1261.48 | T194: 14046 | U194: 189.2 | V194: 1072.28 | W194: 105.1 | X194: 51260 | Y194: 21.02 | Z194: P | AF194: STL | AK194: 849 | AL194: Garbage Trucks - Regulated Only | AM194: Garbage Trucks - Regulated Only | AN194: 9 | AO194: 2023 | AP194: 2028 | AQ194: 2028.75 | AR194: 21.02466667 | AS194: 252.296 | AT194: 252.296 | AU194: 0 | AV194: 252.296 | AW194: 1009.184 | AX194: No | AY194: 0
B195: 2010 | C195: 316951 | D195: 315526 | E195: Radio and Subscription for new truck | H195: 3BPDLK0X5RF117041 | J195: 2024 | K195: DBA DAY WIRELESS SYSTEMS | M195: Non-Rolling Stock | N195: 2023-10-10 | O195: 2023-10-10 | P195: 2010-23-0009-1 | Q195: 500 | R195: 14040 | S195: 1261.48 | T195: 14046 | U195: 168.17 | V195: 1093.31 | W195: 105.1 | X195: 51260 | Y195: 21.02 | Z195: P | AF195: STL | AK195: 847 | AL195: Garbage Trucks - Regulated Only | AM195: Garbage Trucks - Regulated Only | AN195: 10 | AO195: 2023 | AP195: 2028 | AQ195: 2028.833333 | AR195: 21.02466667 | AS195: 252.296 | AT195: 252.296 | AU195: 0 | AV195: 252.296 | AW195: 1009.184 | AX195: No | AY195: 0
B196: 2010 | C196: 316950 | D196: 316544 | E196: Radio and Subscription for new truck | H196: 3BPDLK0X5RF117041 | J196: 2024 | K196: DBA DAY WIRELESS SYSTEMS | M196: Non-Rolling Stock | N196: 2023-10-25 | O196: 2023-10-25 | P196: 2010-23-0027-1 | Q196: 500 | R196: 14040 | S196: 1261.48 | T196: 14046 | U196: 147.15 | V196: 1114.33 | W196: 105.1 | X196: 51260 | Y196: 21.02 | Z196: P | AF196: STL | AK196: 908 | AL196: Garbage Trucks - Shared | AM196: Garbage Trucks - Shared | AN196: 10 | AO196: 2023 | AP196: 2028 | AQ196: 2028.833333 | AR196: 21.02466667 | AS196: 252.296 | AT196: 252.296 | AU196: 0 | AV196: 252.296 | AW196: 1009.184 | AX196: No | AY196: 0
B197: 2010 | C197: 316949 | D197: 312116 | E197: Radio and Subscription for new truck | H197: 3BPDLK0X5RF117041 | J197: 2024 | K197: DBA DAY WIRELESS SYSTEMS | M197: Non-Rolling Stock | N197: 2023-09-06 | O197: 2023-09-06 | P197: 2010-23-0010-1 | Q197: 500 | R197: 14040 | S197: 1261.48 | T197: 14046 | U197: 189.2 | V197: 1072.28 | W197: 105.1 | X197: 51260 | Y197: 21.02 | Z197: P | AF197: STL | AK197: 848 | AL197: Garbage Trucks - Regulated Only | AM197: Garbage Trucks - Regulated Only | AN197: 9 | AO197: 2023 | AP197: 2028 | AQ197: 2028.75 | AR197: 21.02466667 | AS197: 252.296 | AT197: 252.296 | AU197: 0 | AV197: 252.296 | AW197: 1009.184 | AX197: No | AY197: 0
B198: 2010 | C198: 316948 | D198: 314562 | E198: Radio and Subscription for new truck | H198: 3BPDLK0X5RF117041 | J198: 2024 | K198: DBA DAY WIRELESS SYSTEMS | M198: Non-Rolling Stock | N198: 2023-09-25 | O198: 2023-09-25 | P198: 2010-23-0008-1 | Q198: 500 | R198: 14040 | S198: 1261.48 | T198: 14046 | U198: 168.17 | V198: 1093.31 | W198: 105.1 | X198: 51260 | Y198: 21.02 | Z198: P | AF198: STL | AK198: 846 | AL198: Garbage Trucks - Regulated Only | AM198: Garbage Trucks - Regulated Only | AN198: 9 | AO198: 2023 | AP198: 2028 | AQ198: 2028.75 | AR198: 21.02466667 | AS198: 252.296 | AT198: 252.296 | AU198: 0 | AV198: 252.296 | AW198: 1009.184 | AX198: No | AY198: 0
B199: 2010 | C199: 316947 | D199: 316542 | E199: Radio and Subscription for new truck | H199: 3BPDLK0X5RF117041 | J199: 2024 | K199: DBA DAY WIRELESS SYSTEMS | M199: Non-Rolling Stock | N199: 2023-10-23 | O199: 2023-10-23 | P199: 2010-23-0015-1 | Q199: 500 | R199: 14040 | S199: 1261.48 | T199: 14046 | U199: 147.15 | V199: 1114.33 | W199: 105.1 | X199: 51260 | Y199: 21.02 | Z199: P | AF199: STL | AK199: 853 | AL199: Garbage Trucks - Regulated Only | AM199: Garbage Trucks - Regulated Only | AN199: 10 | AO199: 2023 | AP199: 2028 | AQ199: 2028.833333 | AR199: 21.02466667 | AS199: 252.296 | AT199: 252.296 | AU199: 0 | AV199: 252.296 | AW199: 1009.184 | AX199: No | AY199: 0
B200: 2010 | C200: 316946 | D200: 313286 | E200: Radio and Subscription for new truck | H200: 3BPDLK0X5RF117041 | J200: 2024 | K200: DBA DAY WIRELESS SYSTEMS | M200: Non-Rolling Stock | N200: 2023-09-11 | O200: 2023-09-11 | P200: 2010-23-0014-1 | Q200: 500 | R200: 14040 | S200: 1261.48 | T200: 14046 | U200: 189.2 | V200: 1072.28 | W200: 105.1 | X200: 51260 | Y200: 21.02 | Z200: P | AF200: STL | AK200: 852 | AL200: Garbage Trucks - Regulated Only | AM200: Garbage Trucks - Regulated Only | AN200: 9 | AO200: 2023 | AP200: 2028 | AQ200: 2028.75 | AR200: 21.02466667 | AS200: 252.296 | AT200: 252.296 | AU200: 0 | AV200: 252.296 | AW200: 1009.184 | AX200: No | AY200: 0
... 2548 more rows

Sheet 2024 Bud Capital Summary
A2: 2024 Budgeted Capital Summary:
B3: Cost | C3: Annual Depreciation | D3: EOY A/D | E3: Avg Investment
A4: Trucks
A5: Garbage Trucks - Regulated Only | B5: =SUMIF('2024 Bud Capital Detail'!$D$9:$D$48,$A5,'2024 Bud Capital Detail'!$L$9:$L$48) -> 0 | C5: =SUMIF('2024 Bud Capital Detail'!$D$9:$D$48,$A5,'2024 Bud Capital Detail'!M$9:M$48) -> 0 | D5: =SUMIF('2024 Bud Capital Detail'!$D$9:$D$48,$A5,'2024 Bud Capital Detail'!N$9:N$48) -> 0 | E5: =SUMIF('2024 Bud Capital Detail'!$D$9:$D$48,$A5,'2024 Bud Capital Detail'!O$9:O$48) -> 0
A6: Garbage Trucks - Non-Regulated Only | B6: =SUMIF('2024 Bud Capital Detail'!$D$9:$D$48,$A6,'2024 Bud Capital Detail'!$L$9:$L$48) -> 33933.3 | C6: =SUMIF('2024 Bud Capital Detail'!$D$9:$D$48,$A6,'2024 Bud Capital Detail'!M$9:M$48) -> 3393.33 | D6: =SUMIF('2024 Bud Capital Detail'!$D$9:$D$48,$A6,'2024 Bud Capital Detail'!N$9:N$48) -> 3393.33 | E6: =SUMIF('2024 Bud Capital Detail'!$D$9:$D$48,$A6,'2024 Bud Capital Detail'!O$9:O$48) -> 30539.97
A7: Garbage Trucks - Shared | B7: =SUMIF('2024 Bud Capital Detail'!$D$9:$D$48,$A7,'2024 Bud Capital Detail'!$L$9:$L$48) -> 964161 | C7: =SUMIF('2024 Bud Capital Detail'!$D$9:$D$48,$A7,'2024 Bud Capital Detail'!M$9:M$48) -> 96416.1 | D7: =SUMIF('2024 Bud Capital Detail'!$D$9:$D$48,$A7,'2024 Bud Capital Detail'!N$9:N$48) -> 96416.1 | E7: =SUMIF('2024 Bud Capital Detail'!$D$9:$D$48,$A7,'2024 Bud Capital Detail'!O$9:O$48) -> 867744.9
A8: Electric Trucks | B8: =SUMIF('2024 Bud Capital Detail'!$D$9:$D$48,$A8,'2024 Bud Capital Detail'!$L$9:$L$48) -> 0 | C8: =SUMIF('2024 Bud Capital Detail'!$D$9:$D$48,$A8,'2024 Bud Capital Detail'!M$9:M$48) -> 0 | D8: =SUMIF('2024 Bud Capital Detail'!$D$9:$D$48,$A8,'2024 Bud Capital Detail'!N$9:N$48) -> 0 | E8: =SUMIF('2024 Bud Capital Detail'!$D$9:$D$48,$A8,'2024 Bud Capital Detail'!O$9:O$48) -> 0
A9: Roll-off Trucks | B9: =SUMIF('2024 Bud Capital Detail'!$D$9:$D$48,$A9,'2024 Bud Capital Detail'!$L$9:$L$48) -> 1148883 | C9: =SUMIF('2024 Bud Capital Detail'!$D$9:$D$48,$A9,'2024 Bud Capital Detail'!M$9:M$48) -> 114888.3 | D9: =SUMIF('2024 Bud Capital Detail'!$D$9:$D$48,$A9,'2024 Bud Capital Detail'!N$9:N$48) -> 114888.3 | E9: =SUMIF('2024 Bud Capital Detail'!$D$9:$D$48,$A9,'2024 Bud Capital Detail'!O$9:O$48) -> 1033994.7
A10: Recycle Trucks | B10: =SUMIF('2024 Bud Capital Detail'!$D$9:$D$48,$A10,'2024 Bud Capital Detail'!$L$9:$L$48) -> 2560503 | C10: =SUMIF('2024 Bud Capital Detail'!$D$9:$D$48,$A10,'2024 Bud Capital Detail'!M$9:M$48) -> 256050.3 | D10: =SUMIF('2024 Bud Capital Detail'!$D$9:$D$48,$A10,'2024 Bud Capital Detail'!N$9:N$48) -> 256050.3 | E10: =SUMIF('2024 Bud Capital Detail'!$D$9:$D$48,$A10,'2024 Bud Capital Detail'!O$9:O$48) -> 2304452.7
A11: Yard Debris Trucks | B11: =SUMIF('2024 Bud Capital Detail'!$D$9:$D$48,$A11,'2024 Bud Capital Detail'!$L$9:$L$48) -> 0 | C11: =SUMIF('2024 Bud Capital Detail'!$D$9:$D$48,$A11,'2024 Bud Capital Detail'!M$9:M$48) -> 0 | D11: =SUMIF('2024 Bud Capital Detail'!$D$9:$D$48,$A11,'2024 Bud Capital Detail'!N$9:N$48) -> 0 | E11: =SUMIF('2024 Bud Capital Detail'!$D$9:$D$48,$A11,'2024 Bud Capital Detail'!O$9:O$48) -> 0
A12: Shredding Trucks | B12: =SUMIF('2024 Bud Capital Detail'!$D$9:$D$48,$A12,'2024 Bud Capital Detail'!$L$9:$L$48) -> 0 | C12: =SUMIF('2024 Bud Capital Detail'!$D$9:$D$48,$A12,'2024 Bud Capital Detail'!M$9:M$48) -> 0 | D12: =SUMIF('2024 Bud Capital Detail'!$D$9:$D$48,$A12,'2024 Bud Capital Detail'!N$9:N$48) -> 0 | E12: =SUMIF('2024 Bud Capital Detail'!$D$9:$D$48,$A12,'2024 Bud Capital Detail'!O$9:O$48) -> 0
A13: Container Delivery Trucks | B13: =SUMIF('2024 Bud Capital Detail'!$D$9:$D$48,$A13,'2024 Bud Capital Detail'!$L$9:$L$48) -> 0 | C13: =SUMIF('2024 Bud Capital Detail'!$D$9:$D$48,$A13,'2024 Bud Capital Detail'!M$9:M$48) -> 0 | D13: =SUMIF('2024 Bud Capital Detail'!$D$9:$D$48,$A13,'2024 Bud Capital Detail'!N$9:N$48) -> 0 | E13: =SUMIF('2024 Bud Capital Detail'!$D$9:$D$48,$A13,'2024 Bud Capital Detail'!O$9:O$48) -> 0
A14: Carts/Containers
A15: Garbage Carts (non-reg) | B15: =SUMIF('2024 Bud Capital Detail'!$D$9:$D$48,$A15,'2024 Bud Capital Detail'!$L$9:$L$48) -> 1221912 | C15: =SUMIF('2024 Bud Capital Detail'!$D$9:$D$48,$A15,'2024 Bud Capital Detail'!M$9:M$48) -> 174558.8571 | D15: =SUMIF('2024 Bud Capital Detail'!$D$9:$D$48,$A15,'2024 Bud Capital Detail'!N$9:N$48) -> 174558.8571 | E15: =SUMIF('2024 Bud Capital Detail'!$D$9:$D$48,$A15,'2024 Bud Capital Detail'!O$9:O$48) -> 1047353.143
A16: Garbage Carts (Reg only) | B16: =SUMIF('2024 Bud Capital Detail'!$D$9:$D$48,$A16,'2024 Bud Capital Detail'!$L$9:$L$48) -> 47681 | C16: =SUMIF('2024 Bud Capital Detail'!$D$9:$D$48,$A16,'2024 Bud Capital Detail'!M$9:M$48) -> 6811.571429 | D16: =SUMIF('2024 Bud Capital Detail'!$D$9:$D$48,$A16,'2024 Bud Capital Detail'!N$9:N$48) -> 6811.571429 | E16: =SUMIF('2024 Bud Capital Detail'!$D$9:$D$48,$A16,'2024 Bud Capital Detail'!O$9:O$48) -> 40869.42857
A17: Recycle Carts (non-reg) | B17: =SUMIF('2024 Bud Capital Detail'!$D$9:$D$48,$A17,'2024 Bud Capital Detail'!$L$9:$L$48) -> 0 | C17: =SUMIF('2024 Bud Capital Detail'!$D$9:$D$48,$A17,'2024 Bud Capital Detail'!M$9:M$48) -> 0 | D17: =SUMIF('2024 Bud Capital Detail'!$D$9:$D$48,$A17,'2024 Bud Capital Detail'!N$9:N$48) -> 0 | E17: =SUMIF('2024 Bud Capital Detail'!$D$9:$D$48,$A17,'2024 Bud Capital Detail'!O$9:O$48) -> 0
A18: Yard Debris Carts (non-reg) | B18: =SUMIF('2024 Bud Capital Detail'!$D$9:$D$48,$A18,'2024 Bud Capital Detail'!$L$9:$L$48) -> 0 | C18: =SUMIF('2024 Bud Capital Detail'!$D$9:$D$48,$A18,'2024 Bud Capital Detail'!M$9:M$48) -> 0 | D18: =SUMIF('2024 Bud Capital Detail'!$D$9:$D$48,$A18,'2024 Bud Capital Detail'!N$9:N$48) -> 0 | E18: =SUMIF('2024 Bud Capital Detail'!$D$9:$D$48,$A18,'2024 Bud Capital Detail'!O$9:O$48) -> 0
A19: Organics Carts (non-reg) | B19: =SUMIF('2024 Bud Capital Detail'!$D$9:$D$48,$A19,'2024 Bud Capital Detail'!$L$9:$L$48) -> 0 | C19: =SUMIF('2024 Bud Capital Detail'!$D$9:$D$48,$A19,'2024 Bud Capital Detail'!M$9:M$48) -> 0 | D19: =SUMIF('2024 Bud Capital Detail'!$D$9:$D$48,$A19,'2024 Bud Capital Detail'!N$9:N$48) -> 0 | E19: =SUMIF('2024 Bud Capital Detail'!$D$9:$D$48,$A19,'2024 Bud Capital Detail'!O$9:O$48) -> 0
A20: Recycle Container (non-reg) | B20: =SUMIF('2024 Bud Capital Detail'!$D$9:$D$48,$A20,'2024 Bud Capital Detail'!$L$9:$L$48) -> 0 | C20: =SUMIF('2024 Bud Capital Detail'!$D$9:$D$48,$A20,'2024 Bud Capital Detail'!M$9:M$48) -> 0 | D20: =SUMIF('2024 Bud Capital Detail'!$D$9:$D$48,$A20,'2024 Bud Capital Detail'!N$9:N$48) -> 0 | E20: =SUMIF('2024 Bud Capital Detail'!$D$9:$D$48,$A20,'2024 Bud Capital Detail'!O$9:O$48) -> 0
A21: Garbage Container (shared) | B21: =SUMIF('2024 Bud Capital Detail'!$D$9:$D$48,$A21,'2024 Bud Capital Detail'!$L$9:$L$48) -> 193163 | C21: =SUMIF('2024 Bud Capital Detail'!$D$9:$D$48,$A21,'2024 Bud Capital Detail'!M$9:M$48) -> 16096.91667 | D21: =SUMIF('2024 Bud Capital Detail'!$D$9:$D$48,$A21,'2024 Bud Capital Detail'!N$9:N$48) -> 16096.91667 | E21: =SUMIF('2024 Bud Capital Detail'!$D$9:$D$48,$A21,'2024 Bud Capital Detail'!O$9:O$48) -> 177066.0833
A22: Drop Boxes (shared) | B22: =SUMIF('2024 Bud Capital Detail'!$D$9:$D$48,$A22,'2024 Bud Capital Detail'!$L$9:$L$48) -> 71192 | C22: =SUMIF('2024 Bud Capital Detail'!$D$9:$D$48,$A22,'2024 Bud Capital Detail'!M$9:M$48) -> 5932.666667 | D22: =SUMIF('2024 Bud Capital Detail'!$D$9:$D$48,$A22,'2024 Bud Capital Detail'!N$9:N$48) -> 5932.666667 | E22: =SUMIF('2024 Bud Capital Detail'!$D$9:$D$48,$A22,'2024 Bud Capital Detail'!O$9:O$48) -> 65259.33333
A23: Shred (non-reg) | B23: =SUMIF('2024 Bud Capital Detail'!$D$9:$D$48,$A23,'2024 Bud Capital Detail'!$L$9:$L$48) -> 0 | C23: =SUMIF('2024 Bud Capital Detail'!$D$9:$D$48,$A23,'2024 Bud Capital Detail'!M$9:M$48) -> 0 | D23: =SUMIF('2024 Bud Capital Detail'!$D$9:$D$48,$A23,'2024 Bud Capital Detail'!N$9:N$48) -> 0 | E23: =SUMIF('2024 Bud Capital Detail'!$D$9:$D$48,$A23,'2024 Bud Capital Detail'!O$9:O$48) -> 0
A24: Building/Equipment
A25: Shared Service Equipment | B25: =SUMIF('2024 Bud Capital Detail'!$D$9:$D$48,$A25,'2024 Bud Capital Detail'!$L$9:$L$48) -> 0 | C25: =SUMIF('2024 Bud Capital Detail'!$D$9:$D$48,$A25,'2024 Bud Capital Detail'!M$9:M$48) -> 0 | D25: =SUMIF('2024 Bud Capital Detail'!$D$9:$D$48,$A25,'2024 Bud Capital Detail'!N$9:N$48) -> 0 | E25: =SUMIF('2024 Bud Capital Detail'!$D$9:$D$48,$A25,'2024 Bud Capital Detail'!O$9:O$48) -> 0
A26: Non-Regulated Service Equip | B26: =SUMIF('2024 Bud Capital Detail'!$D$9:$D$48,$A26,'2024 Bud Capital Detail'!$L$9:$L$48) -> 0 | C26: =SUMIF('2024 Bud Capital Detail'!$D$9:$D$48,$A26,'2024 Bud Capital Detail'!M$9:M$48) -> 0 | D26: =SUMIF('2024 Bud Capital Detail'!$D$9:$D$48,$A26,'2024 Bud Capital Detail'!N$9:N$48) -> 0 | E26: =SUMIF('2024 Bud Capital Detail'!$D$9:$D$48,$A26,'2024 Bud Capital Detail'!O$9:O$48) -> 0
A27: Shared Shop Equipment | B27: =SUMIF('2024 Bud Capital Detail'!$D$9:$D$48,$A27,'2024 Bud Capital Detail'!$L$9:$L$48) -> 0 | C27: =SUMIF('2024 Bud Capital Detail'!$D$9:$D$48,$A27,'2024 Bud Capital Detail'!M$9:M$48) -> 0 | D27: =SUMIF('2024 Bud Capital Detail'!$D$9:$D$48,$A27,'2024 Bud Capital Detail'!N$9:N$48) -> 0 | E27: =SUMIF('2024 Bud Capital Detail'!$D$9:$D$48,$A27,'2024 Bud Capital Detail'!O$9:O$48) -> 0
A28: CNG Station | B28: =SUMIF('2024 Bud Capital Detail'!$D$9:$D$48,$A28,'2024 Bud Capital Detail'!$L$9:$L$48) -> 0 | C28: =SUMIF('2024 Bud Capital Detail'!$D$9:$D$48,$A28,'2024 Bud Capital Detail'!M$9:M$48) -> 0 | D28: =SUMIF('2024 Bud Capital Detail'!$D$9:$D$48,$A28,'2024 Bud Capital Detail'!N$9:N$48) -> 0 | E28: =SUMIF('2024 Bud Capital Detail'!$D$9:$D$48,$A28,'2024 Bud Capital Detail'!O$9:O$48) -> 0
A29: Office Equipment | B29: =SUMIF('2024 Bud Capital Detail'!$D$9:$D$48,$A29,'2024 Bud Capital Detail'!$L$9:$L$48) -> 0 | C29: =SUMIF('2024 Bud Capital Detail'!$D$9:$D$48,$A29,'2024 Bud Capital Detail'!M$9:M$48) -> 0 | D29: =SUMIF('2024 Bud Capital Detail'!$D$9:$D$48,$A29,'2024 Bud Capital Detail'!N$9:N$48) -> 0 | E29: =SUMIF('2024 Bud Capital Detail'!$D$9:$D$48,$A29,'2024 Bud Capital Detail'!O$9:O$48) -> 0
A30: Shared Office Equipment | B30: =SUMIF('2024 Bud Capital Detail'!$D$9:$D$48,$A30,'2024 Bud Capital Detail'!$L$9:$L$48) -> 0 | C30: =SUMIF('2024 Bud Capital Detail'!$D$9:$D$48,$A30,'2024 Bud Capital Detail'!M$9:M$48) -> 0 | D30: =SUMIF('2024 Bud Capital Detail'!$D$9:$D$48,$A30,'2024 Bud Capital Detail'!N$9:N$48) -> 0 | E30: =SUMIF('2024 Bud Capital Detail'!$D$9:$D$48,$A30,'2024 Bud Capital Detail'!O$9:O$48) -> 0
A31: Non-Regulated Office Equipment | B31: =SUMIF('2024 Bud Capital Detail'!$D$9:$D$48,$A31,'2024 Bud Capital Detail'!$L$9:$L$48) -> 0 | C31: =SUMIF('2024 Bud Capital Detail'!$D$9:$D$48,$A31,'2024 Bud Capital Detail'!M$9:M$48) -> 0 | D31: =SUMIF('2024 Bud Capital Detail'!$D$9:$D$48,$A31,'2024 Bud Capital Detail'!N$9:N$48) -> 0 | E31: =SUMIF('2024 Bud Capital Detail'!$D$9:$D$48,$A31,'2024 Bud Capital Detail'!O$9:O$48) -> 0
A32: Shared Leasehold/Property Imprv | B32: =SUMIF('2024 Bud Capital Detail'!$D$9:$D$48,$A32,'2024 Bud Capital Detail'!$L$9:$L$48) -> 3529911.96 | C32: =SUMIF('2024 Bud Capital Detail'!$D$9:$D$48,$A32,'2024 Bud Capital Detail'!M$9:M$48) -> 191986.498 | D32: =SUMIF('2024 Bud Capital Detail'!$D$9:$D$48,$A32,'2024 Bud Capital Detail'!N$9:N$48) -> 191986.498 | E32: =SUMIF('2024 Bud Capital Detail'!$D$9:$D$48,$A32,'2024 Bud Capital Detail'!O$9:O$48) -> 3337925.462
A33: Buildings | B33: =SUMIF('2024 Bud Capital Detail'!$D$9:$D$48,$A33,'2024 Bud Capital Detail'!$L$9:$L$48) -> 4934855.71 | C33: =SUMIF('2024 Bud Capital Detail'!$D$9:$D$48,$A33,'2024 Bud Capital Detail'!M$9:M$48) -> 246742.7855 | D33: =SUMIF('2024 Bud Capital Detail'!$D$9:$D$48,$A33,'2024 Bud Capital Detail'!N$9:N$48) -> 246742.7855 | E33: =SUMIF('2024 Bud Capital Detail'!$D$9:$D$48,$A33,'2024 Bud Capital Detail'!O$9:O$48) -> 4688112.924
A34: Land | B34: =SUMIF('2024 Bud Capital Detail'!$D$9:$D$48,$A34,'2024 Bud Capital Detail'!$L$9:$L$48) -> 0
A36: TOTAL | B36: =SUM(B5:B34) -> 14706195.97 | C36: =SUM(C5:C34) -> 1112877.325 | D36: =SUM(D5:D34) -> 1112877.325 | E36: =SUM(E5:E34) -> 13593318.64
A37: Total Check | B37: ='2024 Bud Capital Detail'!L49-B36 -> 0

Sheet 2024 Bud Capital Detail
I1: =I3-I2 -> 19689031
I2: =SUMIF($E9:$E49,"Landfill Closure", I9:I49) -> 0
I3: =SUM(I8:I48) -> 19689031
B8: PO#/Item | C8: PO Item | D8: Bud Capital Summary Lookup | E8: Type | F8: Item Description | G8: Month # | H8: Life | I8: Proj Funds | J8: On FAR? - Check | K8: Budgeted Costs on FAR | L8: Net Budgeted Costs | M8: Annual Depreciation | N8: EOY A/D | O8: Avg Investment
B9: 2010-24-0001 | C9: 1 | D9: Buildings | E9: Buildings | F9: Facility Expansion - Office | G9: 0 | H9: 20 | I9: 4892000 | J9: =IF(COUNTIF('05.2024 FAR'!P:P,(B9&-C9))>0, "YES", "NO") -> YES | K9: =SUMIF('05.2024 FAR'!P:P,(B9&-C9),'05.2024 FAR'!S:S) -> 2109486.2 | L9: =IF(G9>7,0,I9-K9) -> 2782513.8 | M9: =L9/H9 -> 139125.69 | N9: =M9 -> 139125.69 | O9: =L9-N9 -> 2643388.11
B10: 2010-24-0002 | C10: 1 | D10: Shared Leasehold/Property Imprv | E10: Land_Improv | F10: Facility Expansion - Site Work | G10: 0 | H10: 20 | I10: 4100000 | J10: =IF(COUNTIF('05.2024 FAR'!P:P,(B10&-C10))>0, "YES", "NO") -> YES | K10: =SUMIF('05.2024 FAR'!P:P,(B10&-C10),'05.2024 FAR'!S:S) -> 879906.04 | L10: 3220093.96 | M10: 161004.698 | N10: =M10 -> 161004.698 | O10: =L10-N10 -> 3059089.262
B11: 2010-24-0003 | C11: 1 | D11: Shared Leasehold/Property Imprv | E11: Furn_Fixtures | F11: Furniture (Office) | G11: 7 | H11: 10 | I11: 259818 | J11: =IF(COUNTIF('05.2024 FAR'!P:P,(B11&-C11))>0, "YES", "NO") -> NO | K11: =SUMIF('05.2024 FAR'!P:P,(B11&-C11),'05.2024 FAR'!S:S) -> 0 | L11: 259818 | M11: 25981.8 | N11: 25981.8 | O11: 233836.2
B12: 2010-24-0005 | C12: 1 | D12: Roll-off Trucks | E12: Truck_New | F12: New R/O Peterbilt/General Equipment Planitary Chain Roll Off with Trailer hook up | G12: 3 | H12: 10 | I12: 382961 | J12: =IF(COUNTIF('05.2024 FAR'!P:P,(B12&-C12))>0, "YES", "NO") -> NO | K12: =SUMIF('05.2024 FAR'!P:P,(B12&-C12),'05.2024 FAR'!S:S) -> 0 | L12: 382961 | M12: 38296.1 | N12: 38296.1 | O12: 344664.9
B13: 2010-24-0006 | C13: 1 | D13: Roll-off Trucks | E13: Truck_New | F13: New R/O Peterbilt/General Equipment Planitary Chain Roll Off with Trailer hook up | G13: 3 | H13: 10 | I13: 382961 | J13: =IF(COUNTIF('05.2024 FAR'!P:P,(B13&-C13))>0, "YES", "NO") -> NO | K13: =SUMIF('05.2024 FAR'!P:P,(B13&-C13),'05.2024 FAR'!S:S) -> 0 | L13: 382961 | M13: 38296.1 | N13: 38296.1 | O13: 344664.9
B14: 2010-24-0007 | C14: 1 | D14: Roll-off Trucks | E14: Truck_New | F14: New R/O Peterbilt/General Equipment Planitary Chain Roll Off with Trailer hook up | G14: 6 | H14: 10 | I14: 382961 | J14: =IF(COUNTIF('05.2024 FAR'!P:P,(B14&-C14))>0, "YES", "NO") -> NO | K14: =SUMIF('05.2024 FAR'!P:P,(B14&-C14),'05.2024 FAR'!S:S) -> 0 | L14: 382961 | M14: 38296.1 | N14: 38296.1 | O14: 344664.9
B15: 2010-24-0008 | C15: 1 | D15: Recycle Trucks | E15: Truck_New | F15: New MSL Peterbilt/Labrie 36yd w/ Glass Hopper | G15: 5 | H15: 10 | I15: 493930 | J15: =IF(COUNTIF('05.2024 FAR'!P:P,(B15&-C15))>0, "YES", "NO") -> NO | K15: =SUMIF('05.2024 FAR'!P:P,(B15&-C15),'05.2024 FAR'!S:S) -> 0 | L15: 493930 | M15: 49393 | N15: 49393 | O15: 444537
B16: 2010-24-0009 | C16: 1 | D16: Recycle Trucks | E16: Truck_New | F16: New MSL Peterbilt/Labrie 36yd w/ Glass Hopper | G16: 5 | H16: 10 | I16: 361494 | J16: =IF(COUNTIF('05.2024 FAR'!P:P,(B16&-C16))>0, "YES", "NO") -> NO | K16: =SUMIF('05.2024 FAR'!P:P,(B16&-C16),'05.2024 FAR'!S:S) -> 0 | L16: 361494 | M16: 36149.4 | N16: 36149.4 | O16: 325344.6
B17: 2010-24-0013 | C17: 1 | D17: Garbage Trucks - Shared | E17: Truck_New | F17: New Commercial F/L Peterbilt/Labrie 44yd w/ adjustable forks | G17: 4 | H17: 10 | I17: 478188 | J17: =IF(COUNTIF('05.2024 FAR'!P:P,(B17&-C17))>0, "YES", "NO") -> NO | K17: =SUMIF('05.2024 FAR'!P:P,(B17&-C17),'05.2024 FAR'!S:S) -> 0 | L17: 478188 | M17: 47818.8 | N17: 47818.8 | O17: 430369.2
B18: 2010-24-0014 | C18: 1 | D18: Garbage Trucks - Shared | E18: Truck_New | F18: New Commercial F/L Peterbilt/Labrie 44yd w/ adjustable forks | G18: 4 | H18: 10 | I18: 478188 | J18: =IF(COUNTIF('05.2024 FAR'!P:P,(B18&-C18))>0, "YES", "NO") -> NO | K18: =SUMIF('05.2024 FAR'!P:P,(B18&-C18),'05.2024 FAR'!S:S) -> 0 | L18: 478188 | M18: 47818.8 | N18: 47818.8 | O18: 430369.2
B19: 2010-24-0017 | C19: 1 | D19: Recycle Trucks | E19: Truck_New | F19: New MSL Peterbilt single axle/CAAN trough loader high side dump bins | G19: 5 | H19: 10 | I19: 552603 | J19: =IF(COUNTIF('05.2024 FAR'!P:P,(B19&-C19))>0, "YES", "NO") -> NO | K19: =SUMIF('05.2024 FAR'!P:P,(B19&-C19),'05.2024 FAR'!S:S) -> 0 | L19: 552603 | M19: 55260.3 | N19: 55260.3 | O19: 497342.7
B20: 2010-24-0018 | C20: 1 | D20: Garbage Carts (non-reg) | E20: Containers | F20: Container various | G20: 0 | H20: 7 | I20: 1187380 | J20: =IF(COUNTIF('05.2024 FAR'!P:P,(B20&-C20))>0, "YES", "NO") -> NO | K20: =SUMIF('05.2024 FAR'!P:P,(B20&-C20),'05.2024 FAR'!S:S) -> 0 | L20: =I20 -> 1187380 | M20: 169625.7143 | N20: 169625.7143 | O20: 1017754.286
B21: 2010-24-0020 | C21: 1 | D21: Recycle Trucks | E21: Truck_New | F21: New MSL Peterbilt/Labrie 36yd w/ Glass Hopper | G21: 2 | H21: 10 | I21: 297358 | J21: =IF(COUNTIF('05.2024 FAR'!P:P,(B21&-C21))>0, "YES", "NO") -> NO | K21: =SUMIF('05.2024 FAR'!P:P,(B21&-C21),'05.2024 FAR'!S:S) -> 0 | L21: =IF(G21>7,0,I21-K21) -> 297358 | M21: 29735.8 | N21: 29735.8 | O21: 267622.2
B22: 2010-24-0021 | C22: 1 | D22: Recycle Trucks | E22: Truck_New | F22: New MSL Peterbilt/Labrie 36yd w/ Glass Hopper | G22: 2 | H22: 10 | I22: 295640 | J22: =IF(COUNTIF('05.2024 FAR'!P:P,(B22&-C22))>0, "YES", "NO") -> NO | K22: =SUMIF('05.2024 FAR'!P:P,(B22&-C22),'05.2024 FAR'!S:S) -> 0 | L22: =IF(G22>7,0,I22-K22) -> 295640 | M22: 29564 | N22: 29564 | O22: 266076
B23: 2010-24-0022 | C23: 1 | D23: Recycle Trucks | E23: Truck_New | F23: New MSL Peterbilt/Labrie 36yd w/ Glass Hopper | G23: 2 | H23: 10 | I23: 295657 | J23: =IF(COUNTIF('05.2024 FAR'!P:P,(B23&-C23))>0, "YES", "NO") -> NO | K23: =SUMIF('05.2024 FAR'!P:P,(B23&-C23),'05.2024 FAR'!S:S) -> 0 | L23: =IF(G23>7,0,I23-K23) -> 295657 | M23: 29565.7 | N23: 29565.7 | O23: 266091.3
B24: 2010-24-0023 | C24: 1 | D24: Recycle Trucks | E24: Truck_New | F24: New MSL Peterbilt/Labrie 36yd w/ Glass Hopper | G24: 3 | H24: 10 | I24: 263821 | J24: =IF(COUNTIF('05.2024 FAR'!P:P,(B24&-C24))>0, "YES", "NO") -> NO | K24: =SUMIF('05.2024 FAR'!P:P,(B24&-C24),'05.2024 FAR'!S:S) -> 0 | L24: =IF(G24>7,0,I24-K24) -> 263821 | M24: 26382.1 | N24: 26382.1 | O24: 237438.9
B25: 2010-24-0024 | C25: 1 | D25: Garbage Trucks - Non-Regulated Only | E25: Truck_New | F25: New MSL Perterbilt/Labrie 18yd | G25: 4 | H25: 10 | I25: 210086 | J25: =IF(COUNTIF('05.2024 FAR'!P:P,(B25&-C25))>0, "YES", "NO") -> YES | K25: =SUMIF('05.2024 FAR'!P:P,(B25&-C25),'05.2024 FAR'!S:S) -> 176152.7 | L25: =IF(G25>7,0,I25-K25) -> 33933.3 | M25: 3393.33 | N25: 3393.33 | O25: 30539.97
B26: 2010-24-0025 | C26: 1 | D26: Shared Service Equipment | E26: Truck_New | F26: New 4X4 Chevrolet Siverado 1500 Double Cab | G26: 6 | H26: 5 | I26: 49694 | J26: =IF(COUNTIF('05.2024 FAR'!P:P,(B26&-C26))>0, "YES", "NO") -> YES | K26: =SUMIF('05.2024 FAR'!P:P,(B26&-C26),'05.2024 FAR'!S:S) -> 45515.65 | L26: 0 | M26: 0 | N26: 0 | O26: 0
B27: 2010-24-0026 | C27: 1 | D27: Shared Service Equipment | E27: Truck_New | F27: New 4X4 Chevrolet Siverado 1500 Double Cab | G27: 11 | H27: 5 | I27: 49694 | J27: =IF(COUNTIF('05.2024 FAR'!P:P,(B27&-C27))>0, "YES", "NO") -> YES | K27: =SUMIF('05.2024 FAR'!P:P,(B27&-C27),'05.2024 FAR'!S:S) -> 48450.58 | L27: 0 | M27: 0 | N27: =M27 -> 0 | O27: =L27-N27 -> 0
B28: 2010-24-0027 | C28: 1 | D28: Buildings | E28: Buildings | F28: Facility Expansion -Shop | G28: 0 | H28: 20 | I28: 3236000 | J28: =IF(COUNTIF('05.2024 FAR'!P:P,(B28&-C28))>0, "YES", "NO") -> YES | K28: =SUMIF('05.2024 FAR'!P:P,(B28&-C28),'05.2024 FAR'!S:S) -> 1083658.09 | L28: =IF(G28>7,0,I28-K28) -> 2152341.91 | M28: 107617.0955 | N28: 107617.0955 | O28: 2044724.815
B29: 2010-24-0028 | C29: 1 | D29: Roll-off Trucks | E29: Truck_New | F29: 23 Roll Over Roll Off Truck | G29: 2 | H29: 10 | I29: 0 | J29: =IF(COUNTIF('05.2024 FAR'!P:P,(B29&-C29))>0, "YES", "NO") -> NO | K29: =SUMIF('05.2024 FAR'!P:P,(B29&-C29),'05.2024 FAR'!S:S) -> 0 | L29: =IF(G29>7,0,I29-K29) -> 0 | M29: 0 | N29: 0 | O29: 0
B30: 2010-24-0029 | C30: 1 | D30: Shared Leasehold/Property Imprv | E30: Land_Improv | F30: Fuel Island | G30: 1 | H30: 10 | I30: 193000 | J30: =IF(COUNTIF('05.2024 FAR'!P:P,(B30&-C30))>0, "YES", "NO") -> YES | K30: =SUMIF('05.2024 FAR'!P:P,(B30&-C30),'05.2024 FAR'!S:S) -> 191005.32 | L30: 0 | M30: 0 | N30: 0 | O30: 0
B31: 2010-24-0030 | C31: 1 | D31: Shred (non-reg) | E31: Containers-Shred | F31: Shred Consoles | G31: 1 | H31: 7 | I31: 5856 | J31: =IF(COUNTIF('05.2024 FAR'!P:P,(B31&-C31))>0, "YES", "NO") -> YES | K31: =SUMIF('05.2024 FAR'!P:P,(B31&-C31),'05.2024 FAR'!S:S) -> 5855.75 | L31: 0 | M31: 0 | N31: 0 | O31: 0
B32: 2010-24-0031 | C32: 1 | D32: Shared Leasehold/Property Imprv | E32: Land_Improv | F32: CTR LFG Migration (Lower Yard) | G32: 3 | H32: 10 | I32: 50000 | J32: =IF(COUNTIF('05.2024 FAR'!P:P,(B32&-C32))>0, "YES", "NO") -> NO | K32: =SUMIF('05.2024 FAR'!P:P,(B32&-C32),'05.2024 FAR'!S:S) -> 0 | L32: =IF(G32>7,0,I32-K32) -> 50000 | M32: 5000 | N32: 5000 | O32: 45000
B33: 2010-24-0032 | C33: 1 | D33: Drop Boxes (shared) | E33: Containers-RO | F33: 65G and 95G County Garbage Carts | G33: 1 | H33: 7 | I33: 83780 | J33: =IF(COUNTIF('05.2024 FAR'!P:P,(B33&-C33))>0, "YES", "NO") -> YES | K33: =SUMIF('05.2024 FAR'!P:P,(B33&-C33),'05.2024 FAR'!S:S) -> 83779.4 | L33: 0 | M33: 0 | N33: 0 | O33: 0
B34: 2010-24-0033 | C34: 1 | D34: Shared Office Equipment | E34: IS_Hardware | F34: Laptop - Assistant Maintenance Manager | G34: 2 | H34: 3 | I34: 1453 | J34: =IF(COUNTIF('05.2024 FAR'!P:P,(B34&-C34))>0, "YES", "NO") -> YES | K34: =SUMIF('05.2024 FAR'!P:P,(B34&-C34),'05.2024 FAR'!S:S) -> 1452.97 | L34: 0 | M34: 0 | N34: 0 | O34: 0
B35: 2010-24-0034 | C35: 1 | D35: Drop Boxes (shared) | E35: Containers-RO | F35: Roll Off Boxes | G35: 3 | H35: 12 | I35: 149077 | J35: =IF(COUNTIF('05.2024 FAR'!P:P,(B35&-C35))>0, "YES", "NO") -> YES | K35: =SUMIF('05.2024 FAR'!P:P,(B35&-C35),'05.2024 FAR'!S:S) -> 149077 | L35: =IF(G35>7,0,I35-K35) -> 0 | M35: 0 | N35: 0 | O35: 0
B36: 2010-24-0035 | C36: 1 | D36: Shared Office Equipment | E36: IS_Hardware | F36: PCS | G36: 3 | H36: 3 | I36: 4233 | J36: =IF(COUNTIF('05.2024 FAR'!P:P,(B36&-C36))>0, "YES", "NO") -> YES | K36: =SUMIF('05.2024 FAR'!P:P,(B36&-C36),'05.2024 FAR'!S:S) -> 4232.72 | L36: 0 | M36: 0 | N36: 0 | O36: 0
B37: 2010-24-0036 | C37: 1 | D37: Garbage Trucks - Shared | E37: Truck_New | F37: Additional shipping charges for 2023 Truck | G37: 3 | H37: 10 | I37: 7785 | J37: =IF(COUNTIF('05.2024 FAR'!P:P,(B37&-C37))>0, "YES", "NO") -> NO | K37: =SUMIF('05.2024 FAR'!P:P,(B37&-C37),'05.2024 FAR'!S:S) -> 0 | L37: =IF(G37>7,0,I37-K37) -> 7785 | M37: 778.5 | N37: 778.5 | O37: 7006.5
B38: 2010-24-0037 | C38: 1 | D38: Buildings | E38: Buildings | F38: Fabrication Shop | G38: 12 | H38: 10 | I38: 50000 | J38: =IF(COUNTIF('05.2024 FAR'!P:P,(B38&-C38))>0, "YES", "NO") -> NO | K38: =SUMIF('05.2024 FAR'!P:P,(B38&-C38),'05.2024 FAR'!S:S) -> 0 | L38: =IF(G38>7,0,I38-K38) -> 0 | M38: 0 | N38: 0 | O38: 0
B39: 2010-24-0038 | C39: 1 | D39: Garbage Carts (non-reg) | E39: Containers-Garbage Carts | F39: COV Sparkle Carts - 32 Gallon | G39: 4 | H39: 7 | I39: 34532 | J39: =IF(COUNTIF('05.2024 FAR'!P:P,(B39&-C39))>0, "YES", "NO") -> NO | K39: =SUMIF('05.2024 FAR'!P:P,(B39&-C39),'05.2024 FAR'!S:S) -> 0 | L39: =IF(G39>7,0,I39-K39) -> 34532 | M39: 4933.142857 | N39: 4933.142857 | O39: 29598.85714
B40: 2010-24-0039 | C40: 1 | D40: Recycle Container (non-reg) | E40: Containers-Glass Bins | F40: 6000 Glass Bins | G40: 4 | H40: 5 | I40: 62236 | J40: =IF(COUNTIF('05.2024 FAR'!P:P,(B40&-C40))>0, "YES", "NO") -> YES | K40: =SUMIF('05.2024 FAR'!P:P,(B40&-C40),'05.2024 FAR'!S:S) -> 62235.6 | L40: 0 | M40: 0 | N40: 0 | O40: 0
B41: 2010-24-0040 | C41: 1 | D41: Recycle Carts (non-reg) | E41: Containers-Recycle Carts | F41: COV Recycle Carts | G41: 4 | H41: 7 | I41: 40895 | J41: =IF(COUNTIF('05.2024 FAR'!P:P,(B41&-C41))>0, "YES", "NO") -> YES | K41: =SUMIF('05.2024 FAR'!P:P,(B41&-C41),'05.2024 FAR'!S:S) -> 40894.06 | L41: 0 | M41: 0 | N41: 0 | O41: 0
B42: 2010-24-0041 | C42: 1 | D42: Drop Boxes (shared) | E42: Containers-RO | F42: Roll off Boxes | G42: 5 | H42: 12 | I42: 71192 | J42: =IF(COUNTIF('05.2024 FAR'!P:P,(B42&-C42))>0, "YES", "NO") -> NO | K42: =SUMIF('05.2024 FAR'!P:P,(B42&-C42),'05.2024 FAR'!S:S) -> 0 | L42: =IF(G42>7,0,I42-K42) -> 71192 | M42: 5932.666667 | N42: 5932.666667 | O42: 65259.33333
B43: 2010-24-0042 | C43: 1 | D43: Garbage Trucks - Shared | E43: Capital_Improve | F43: Capital Repair - Engine Truck #624 | G43: 4 | H43: 3 | I43: 40668 | J43: =IF(COUNTIF('05.2024 FAR'!P:P,(B43&-C43))>0, "YES", "NO") -> YES | K43: =SUMIF('05.2024 FAR'!P:P,(B43&-C43),'05.2024 FAR'!S:S) -> 39267.58 | L43: 0 | M43: 0 | N43: 0 | O43: 0
B44: 2010-24-0043 | C44: 1 | D44: Garbage Carts (Reg only) | E44: Containers-UTC Garbage Carts | F44: 65 gallon County Garbage carts | G44: 4 | H44: 7 | I44: 47681 | J44: =IF(COUNTIF('05.2024 FAR'!P:P,(B44&-C44))>0, "YES", "NO") -> NO | K44: =SUMIF('05.2024 FAR'!P:P,(B44&-C44),'05.2024 FAR'!S:S) -> 0 | L44: =IF(G44>7,0,I44-K44) -> 47681 | M44: 6811.571429 | N44: 6811.571429 | O44: 40869.42857
B45: 2010-24-0044 | C45: 1 | D45: Shared Office Equipment | E45: IS_Hardware | F45: HP Probook laptop & docking station - CSR Manager | G45: 5 | H45: 3 | I45: 1523 | J45: =IF(COUNTIF('05.2024 FAR'!P:P,(B45&-C45))>0, "YES", "NO") -> YES | K45: =SUMIF('05.2024 FAR'!P:P,(B45&-C45),'05.2024 FAR'!S:S) -> 1364.28 | L45: 0 | M45: 0 | N45: 0 | O45: 0
B46: 2010-24-0045 | C46: 1 | D46: Shared Office Equipment | E46: IS_Hardware | F46: HP Probook laptop & docking station - Controller | G46: 4 | H46: 3 | I46: 1523 | J46: =IF(COUNTIF('05.2024 FAR'!P:P,(B46&-C46))>0, "YES", "NO") -> YES | K46: =SUMIF('05.2024 FAR'!P:P,(B46&-C46),'05.2024 FAR'!S:S) -> 1364.28 | L46: 0 | M46: 0 | N46: 0 | O46: 0
B47: 2010-24-0046 | C47: 1 | D47: Garbage Container (shared) | E47: Containers-FL | F47: Metal Containers | G47: 5 | H47: 12 | I47: 69046 | J47: =IF(COUNTIF('05.2024 FAR'!P:P,(B47&-C47))>0, "YES", "NO") -> NO | K47: =SUMIF('05.2024 FAR'!P:P,(B47&-C47),'05.2024 FAR'!S:S) -> 0 | L47: =IF(G47>7,0,I47-K47) -> 69046 | M47: 5753.833333 | N47: 5753.833333 | O47: 63292.16667
B48: 2010-24-0047 | C48: 1 | D48: Garbage Container (shared) | E48: Containers-FL | F48: 3yd and 4yd Metal Containers | G48: 5 | H48: 12 | I48: 124117 | J48: =IF(COUNTIF('05.2024 FAR'!P:P,(B48&-C48))>0, "YES", "NO") -> NO | K48: =SUMIF('05.2024 FAR'!P:P,(B48&-C48),'05.2024 FAR'!S:S) -> 0 | L48: =IF(G48>7,0,I48-K48) -> 124117 | M48: 10343.08333 | N48: 10343.08333 | O48: 113773.9167
I49: =SUM(I9:I48) -> 19689031 | K49: =SUM(K9:K48) -> 4923698.22 | L49: =SUM(L9:L48) -> 14706195.97 | M49: =SUM(M9:M48) -> 1112877.325 | N49: =SUM(N9:N48) -> 1112877.325 | O49: 13593318.64

Sheet Total Trucks - Salvage Value
F1: ='Total Depreciation Summary'!A2 -> Waste Connections of WA
F2: Truck Depreciation Schedule | N2: 4 | O2: Test Period Beg. Month | AR2: CONVENTIONS
F3: Assets Acquired Through July 31, 2021 | N3: 3 | O3: Test Period End Month
N4: 2023 | O4: First Year | AQ4: 1 | AR4: Calendar year test period: | AU4: 12 | AV4: mos in first year
N5: 2024 | O5: Second year | AR5: 1993 | AU5: 0 | AV5: mos in 2nd year
N6: =+N5+(N3/12) -> 2024.25 | O6: Test Period End Mo/Yr | AU6: 93 | AV6: First year
N7: =+N4+(N2/12) -> 2023.333333 | O7: Test Period Beg. Mo/Yr | AU7: 94 | AV7: Second Year
S8: Beginning | T8: Allocated
G9: Date in | I9: Salvage | L9: Year | R9: Test | S9: Accumulated | T9: Accum. | U9: Average
D10: Truck | G10: Service | I10: Value | J10: Method | K10: Life | L10: Fully | M10: Mo/Year | N10: Asset | O10: Depr | P10: Monthly | Q10: Annual | R10: Year | S10: Depreciation | T10: Depr. | U10: Investment | AQ10: 2 | AR10: Dispositions must be in test period
A11: Orig FAR | B11: FAR # | C11: Codes | D11: No | E11: QTY | F11: Asset Classification | G11: Year | H11: Mo | I11: % | J11: M | K11: Years | L11: Depr | M11: Fully Depr | N11: Cost | O11: Cost | P11: Depr | Q11: Depreciation | R11: Depr | S11: =+'Total Depreciation Summary'!F7 -> 4/1/2023 | T11: 2022-03-31 | U11: =T11 -> 2022-03-31
F12: GARBAGE - REGULATED ONLY
F13: Trailer-Tr1 | G13: 1990 | H13: 3 | I13: 0 | J13: S/L | K13: 5 | L13: =G13+K13 -> 1995 | M13: =+L13+(H13/12) -> 1995.25 | N13: =+'Reg Trks-Orig'!Q15 -> 3305.11 | O13: =N13-N13*I13 -> 3305.11 | P13: =O13/K13/12 -> 55.08516667 | Q13: =P13*12 -> 661.022 | R13: =+IF(M13>$N$6,Q13,0) -> 0 | S13: =+IF($M13<=$N$7,$N13,IF(($G13+($H13/12))>=$N$7,0,((($O13-((($M13-$N$7)*12)*$P13)))))) -> 3305.11 | T13: =IF(R13=0,N13,S13+R13) -> 3305.11 | U13: =+N13-T13 -> 0
F14: Trailer-Tr1 Amort of Salvage | G14: 2016 | H14: 10 | I14: 0 | J14: S/L | K14: 3 | L14: =+G14+K14 -> 2019 | M14: 2019.833333 | N14: =+'Reg Trks-Orig'!O15-'Total Trucks - Salvage Value'!N13 -> 1627.89 | O14: 1627.89 | P14: 45.21916667 | Q14: 542.63 | R14: =+IF(M14>$N$6,Q14,0) -> 0 | S14: =+IF($M14<=$N$7,$N14,IF(($G14+($H14/12))>=$N$7,0,((($O14-((($M14-$N$7)*12)*$P14)))))) -> 1627.89 | T14: =IF(R14=0,N14,S14+R14) -> 1627.89 | U14: =+N14-T14 -> 0
F15: Radio System | G15: 1991 | H15: 11 | I15: 0 | J15: S/L | K15: 7 | L15: =G15+K15 -> 1998 | M15: 1998.916667 | N15: =+'Reg Trks-Orig'!Q16 -> 34438.4 | O15: 34438.4 | P15: 409.9809524 | Q15: 4919.771429 | R15: 0 | S15: 34438.4 | T15: 34438.4 | U15: 0
F16: Radio System Amort of Salvage | G16: 2016 | H16: 10 | I16: 0 | J16: S/L | K16: 3 | L16: =+G16+K16 -> 2019 | M16: 2019.833333 | N16: =+'Reg Trks-Orig'!O16-'Total Trucks - Salvage Value'!N15 -> 8609.6 | O16: 8609.6 | P16: 239.1555556 | Q16: 2869.866667 | R16: 0 | S16: 8609.6 | T16: 8609.6 | U16: 0
C17: RL | D17: 672 | F17: 2005 Int'l Leach Rear Load | G17: 2004 | H17: 6 | I17: 0 | J17: S/L | K17: 7 | L17: =G17+K17 -> 2011 | M17: 2011.5 | N17: =+'Reg Trks-Orig'!Q27 -> 108713.6 | O17: 108713.6 | P17: 1294.209524 | Q17: 15530.51429 | R17: 0 | S17: 108713.6 | T17: 108713.6 | U17: 0
D18: 672 | F18: Truck #672 Amort of Salvage | G18: 2016 | H18: 10 | I18: 0 | J18: S/L | K18: =+IF(L17-$N$5>=3,L17-$N$5,3) -> 3 | L18: =+G18+K18 -> 2019 | M18: 2019.833333 | N18: =+'Reg Trks-Orig'!O27-'Total Trucks - Salvage Value'!N17 -> 27178.4 | O18: 27178.4 | P18: 754.9555556 | Q18: 9059.466667 | R18: 0 | S18: 27178.4 | T18: 27178.4 | U18: 0
C19: RL | D19: 675 | F19: 2005 Int'l Leach Rear Load | G19: 2004 | H19: 6 | I19: 0 | J19: S/L | K19: 7 | L19: =G19+K19 -> 2011 | M19: 2011.5 | N19: =+'Reg Trks-Orig'!Q30 -> 108528 | O19: 108528 | P19: 1292 | Q19: 15504 | R19: 0 | S19: 108528 | T19: 108528 | U19: 0
D20: 675 | F20: Truck #675 Amort of Salvage | G20: 2016 | H20: 10 | I20: 0 | J20: S/L | K20: =+IF(L19-$N$5>=3,L19-$N$5,3) -> 3 | L20: =+G20+K20 -> 2019 | M20: 2019.833333 | N20: =+'Reg Trks-Orig'!O30-'Total Trucks - Salvage Value'!N19 -> 27132 | O20: 27132 | P20: 753.6666667 | Q20: 9044 | R20: 0 | S20: 27132 | T20: 27132 | U20: 0
C21: RL | D21: 646 | F21: 2008 Int'l w/25 yd Packer (N) | G21: 2009 | H21: 2 | I21: 0 | J21: S/L | K21: 7 | L21: =G21+K21 -> 2016 | M21: 2016.166667 | N21: =+'Reg Trks-Orig'!O34 -> 247897.67 | O21: 247897.67 | P21: 2951.162738 | Q21: 35413.95286 | R21: 0 | S21: 247897.67 | T21: 247897.67 | U21: 0
C22: RL | D22: 610 | F22: 2010 Peterbilt w/Mc Neilus Pckr (N) | G22: 2009 | H22: 12 | I22: 0 | J22: S/L | K22: 7 | L22: 2016 | M22: 2017 | N22: =+'Reg Trks-Orig'!O35 -> 160463.62 | O22: 160463.62 | P22: 1910.28119 | Q22: 22923.37429 | R22: 0 | S22: 160463.62 | T22: 160463.62 | U22: 0
C23: RL | D23: 611 | F23: 2010 Peterbilt w/Mc Neilus Pckr (N) | G23: 2009 | H23: 12 | I23: 0 | J23: S/L | K23: 7 | L23: 2016 | M23: 2017 | N23: =+'Reg Trks-Orig'!O36 -> 160463.6 | O23: 160463.6 | P23: 1910.280952 | Q23: 22923.37143 | R23: 0 | S23: 160463.6 | T23: 160463.6 | U23: 0
C24: RL | D24: 612 | F24: 2010 Peterbilt w/Mc Neilus Pckr (N) | G24: 2009 | H24: 12 | I24: 0 | J24: S/L | K24: 7 | L24: 2016 | M24: 2017 | N24: =+'Reg Trks-Orig'!O37 -> 160463.62 | O24: 160463.62 | P24: 1910.28119 | Q24: 22923.37429 | R24: 0 | S24: 160463.62 | T24: 160463.62 | U24: 0
C25: RL | D25: 613 | F25: 2010 Peterbilt w/Mc Neilus Pckr (N) | G25: 2009 | H25: 12 | I25: 0 | J25: S/L | K25: 7 | L25: 2016 | M25: 2017 | N25: =+'Reg Trks-Orig'!O38 -> 160463.62 | O25: 160463.62 | P25: 1910.28119 | Q25: 22923.37429 | R25: 0 | S25: 160463.62 | T25: 160463.62 | U25: 0
C26: RL | D26: 614 | F26: 2010 Peterbilt w/Mc Neilus Pckr (N) | G26: 2009 | H26: 12 | I26: 0 | J26: S/L | K26: 7 | L26: 2016 | M26: 2017 | N26: =+'Reg Trks-Orig'!O39 -> 160463.62 | O26: 160463.62 | P26: 1910.28119 | Q26: 22923.37429 | R26: 0 | S26: 160463.62 | T26: 160463.62 | U26: 0
B27: 93390 | C27: RL | D27: 672 | F27: Transmission Repair #672 | G27: 2012 | H27: 4 | I27: 0 | J27: S/L | K27: 3 | L27: 2015 | M27: 2015.333333 | N27: 7549.31 | O27: 7549.31 | P27: 209.7030556 | Q27: 2516.436667 | R27: 0 | S27: 7549.31 | T27: 7549.31 | U27: 0
B28: 89708 | C28: RL | D28: 672 | F28: Engine Repair #672 | G28: 2012 | H28: 10 | I28: 0 | J28: S/L | K28: 3 | L28: 2015 | M28: 2015.833333 | N28: 14283.51 | O28: 14283.51 | P28: 396.7641667 | Q28: 4761.17 | R28: 0 | S28: 14283.51 | T28: 14283.51 | U28: 0
B29: 115930 | C29: RL | D29: 621 | F29: 2015 Freightliner REL (N) | G29: 2014 | H29: 9 | I29: 0 | J29: S/L | K29: 7 | L29: 2021 | M29: 2021.75 | N29: =+'Reg Trks-Orig'!O45 -> 224927.03 | O29: 224927.03 | P29: 2677.702738 | Q29: 32132.43286 | R29: 0 | S29: 224927.03 | T29: 224927.03 | U29: 0
B30: 117314 | C30: RL | D30: 622 | F30: 2015 Freightliner REL (N) | G30: 2014 | H30: 10 | I30: 0 | J30: S/L | K30: 7 | L30: 2021 | M30: 2021.833333 | N30: =+'Reg Trks-Orig'!O46 -> 224942.85 | O30: 224942.85 | P30: 2677.891071 | Q30: 32134.69286 | R30: 0 | S30: 224942.85 | T30: 224942.85 | U30: 0
B31: 116564 | C31: RL | D31: 623 | F31: 2015 Freightliner REL (N) | G31: 2014 | H31: 10 | I31: 0 | J31: S/L | K31: 7 | L31: 2021 | M31: 2021.833333 | N31: =+'Reg Trks-Orig'!O47 -> 242008.59 | O31: 242008.59 | P31: 2881.054643 | Q31: 34572.65571 | R31: 0 | S31: 242008.59 | T31: 242008.59 | U31: 0
B32: 116563 | C32: RL | D32: 619 | F32: 2015 Freightliner REL (N) | G32: 2014 | H32: 10 | I32: 0 | J32: S/L | K32: 7 | L32: 2021 | M32: 2021.833333 | N32: =+'Reg Trks-Orig'!O48 -> 242110.71 | O32: 242110.71 | P32: 2882.270357 | Q32: 34587.24429 | R32: 0 | S32: 242110.71 | T32: 242110.71 | U32: 0
B33: 116562 | C33: RL | D33: 624 | F33: 2015 Freightliner REL (N) | G33: 2014 | H33: 10 | I33: 0 | J33: S/L | K33: 7 | L33: 2021 | M33: 2021.833333 | N33: =+'Reg Trks-Orig'!O49 -> 242059.65 | O33: 242059.65 | P33: 2881.6625 | Q33: 34579.95 | R33: 0 | S33: 242059.65 | T33: 242059.65 | U33: 0
B34: 116561 | C34: RL | D34: 620 | F34: 2015 Freightliner REL (N) | G34: 2014 | H34: 10 | I34: 0 | J34: S/L | K34: 7 | L34: 2021 | M34: 2021.833333 | N34: =+'Reg Trks-Orig'!O50 -> 224927.03 | O34: 224927.03 | P34: 2677.702738 | Q34: 32132.43286 | R34: 0 | S34: 224927.03 | T34: 224927.03 | U34: 0
B35: 119106 | C35: RL | D35: 625 | F35: 2015 Freightliner REL (N) | G35: 2015 | H35: 1 | I35: 0 | J35: S/L | K35: 7 | L35: 2022 | M35: 2022.083333 | N35: =+'Reg Trks-Orig'!O51 -> 242110.71 | O35: 242110.71 | P35: 2882.270357 | Q35: 34587.24429 | R35: 0 | S35: 242110.71 | T35: 242110.71 | U35: 0
B36: 129056 | D36: 660 | F36: Engine Replacement #660 | G36: 2015 | H36: 12 | I36: 0 | J36: S/L | K36: 3 | L36: 2018 | M36: 2019 | N36: 15102.05 | O36: 15102.05 | P36: 419.5013889 | Q36: 5034.016667 | R36: 0 | S36: 15102.05 | T36: 15102.05 | U36: 0
B37: 132389 | F37: (25) Samsung Tab E Tablets | G37: 2016 | H37: 4 | I37: 0 | J37: S/L | K37: 1 | L37: 2017 | M37: 2017.333333 | N37: =(19289.08/99)*25 -> 4870.979798 | O37: 4870.979798 | P37: 405.9149832 | Q37: 4870.979798 | R37: 0 | S37: 4870.979798 | T37: 4870.979798 | U37: 0
B38: 165803/167869/168127 | F38: (25) Tablet Mounts | G38: 2016 | H38: 8 | I38: 0 | J38: S/L | K38: 1 | L38: 2017 | M38: 2017.666667 | N38: =((1771.86+4421.04+26830.48)/180)*25 -> 4586.580556 | O38: 4586.580556 | P38: 382.2150463 | Q38: 4586.580556 | R38: 0 | S38: 4586.580556 | T38: 4586.580556 | U38: 0
B39: 165803/167869/168127 | F39: (76) Spare Tablet Mounts | G39: 2016 | H39: 8 | I39: 0 | J39: S/L | K39: 1 | L39: 2017 | M39: 2017.666667 | N39: =((1771.86+4421.04+26830.48)/180)*76 -> 13943.20489 | O39: 13943.20489 | P39: 1161.933741 | Q39: 13943.20489 | R39: 0 | S39: 13943.20489 | T39: 13943.20489 | U39: 0
B40: 166462/168675 | F40: (25) Radios & Installation | G40: 2016 | H40: 8 | I40: 0 | J40: S/L | K40: 5 | L40: 2021 | M40: 2021.666667 | N40: =((90412.1+24677.27)/160)*25 -> 17982.71406 | O40: 17982.71406 | P40: 299.711901 | Q40: 3596.542813 | R40: 0 | S40: 17982.71406 | T40: 17982.71406 | U40: 0
B41: 171695 | F41: (5) Truck Tablets | G41: 2016 | H41: 8 | I41: 0 | J41: S/L | K41: 1 | L41: 2017 | M41: 2017.666667 | N41: 974.2 | O41: 974.2 | P41: 81.18333333 | Q41: 974.2 | R41: 0 | S41: 974.2 | T41: 974.2 | U41: 0
B42: 171223/172024 | C42: RL | D42: 609 | F42: 2017 Freightliner REL & Tax & License | G42: 2016 | H42: 12 | I42: 0 | J42: S/L | K42: 10 | L42: 2026 | M42: 2027 | N42: =222767.97+20342.12 -> 243110.09 | O42: 243110.09 | P42: 2025.917417 | Q42: 24311.009 | R42: 24311.009 | S42: 153969.7237 | T42: 178280.7327 | U42: 64829.35733
B43: 183493/89705 | C43: RL | D43: 675 | F43: Engine Replacement on REL #675 | G43: 2017 | H43: 5 | I43: 0 | J43: S/L | K43: 3 | L43: 2020 | M43: 2020.416667 | N43: 12307.97 | O43: 12307.97 | P43: 341.8880556 | Q43: 4102.656667 | R43: 0 | S43: 12307.97 | T43: 12307.97 | U43: 0
F44: Amort Salvage Value of 16-17 Retired Trks | G44: 2016 | H44: 10 | I44: 0 | J44: S/L | K44: 3 | L44: 2019 | M44: 2019.833333 | N44: 21054.58 | O44: 21054.58 | P44: 584.8494444 | Q44: 7018.193333 | R44: 0 | S44: 21054.58 | T44: 21054.58 | U44: 0
B45: 190211 | C45: RL | D45: 605 | F45: 2018 REL Truck | G45: 2017 | H45: 12 | I45: 0 | J45: S/L | K45: 10 | L45: 2027 | M45: 2028 | N45: 277992.02 | O45: 277992.02 | P45: 2316.600167 | Q45: 27799.202 | R45: 27799.202 | S45: 148262.4107 | T45: 176061.6127 | U45: 101930.4073
B46: 190210/190344 | C46: REL | D46: 604 | F46: 2018 REL Truck | G46: 2017 | H46: 12 | I46: 0 | J46: S/L | K46: 10 | L46: 2027 | M46: 2028 | N46: =278050.55+10213.76 -> 288264.31 | O46: 288264.31 | P46: 2402.202583 | Q46: 28826.431 | R46: 28826.431 | S46: 153740.9653 | T46: 182567.3963 | U46: 105696.9137
A47: 89705 | B47: 190457 | D47: 672 | F47: Parts & Internal Labor for Engine Replacement on truck $672 | G47: 2017 | H47: 12 | I47: 0 | J47: S/L | K47: 3 | L47: 2020 | M47: 2021 | N47: 13797.14 | O47: 13797.14 | P47: 383.2538889 | Q47: 4599.046667 | R47: 0 | S47: 13797.14 | T47: 13797.14 | U47: 0
A48: 190211 | B48: 194974 | D48: 605 | F48: Tax and license for new rear load truck | G48: 2018 | H48: 2 | I48: 0 | J48: S/L | K48: 9.11 | L48: 2027.11 | M48: 2027.276667 | N48: 10081.42 | O48: 10081.42 | P48: 92.21935602 | Q48: 1106.632272 | R48: 1106.632272 | S48: 5717.600073 | T48: 6824.232345 | U48: 3257.187655
F49: Amort Salvage Value of 2018 Retired Trks | G49: 2016 | H49: 10 | I49: 0 | J49: S/L | K49: 3 | L49: 2019 | M49: 2019.833333 | N49: =+N319+N321+N329+N335+N337+N340 -> 58942.844 | O49: 58942.844 | P49: 1637.301222 | Q49: 19647.61467 | R49: 0 | S49: 58942.844 | T49: 58942.844 | U49: 0
B50: 216038 | D50: 7610 | F50: New Truck - Vancouver Mini Packer | G50: 2019 | H50: 5 | I50: 0 | J50: S/L | K50: 10 | L50: 2029 | M50: 2029.416667 | N50: 128889.6 | O50: 128889.6 | P50: 1074.08 | Q50: 12888.96 | R50: 12888.96 | S50: 50481.76 | T50: 63370.72 | U50: 65518.88
B51: 243660 | D51: 626 | F51: 2020 Peterbilt REL Truck | G51: 2020 | H51: 12 | I51: 0 | J51: S/L | K51: 10 | L51: 2030 | M51: 2031 | N51: 238456.8 | O51: 238456.8 | P51: 1987.14 | Q51: 23845.68 | R51: 23845.68 | S51: 55639.92 | T51: 79485.6 | U51: 158971.2
B52: 243660/246945 | D52: 626 | F52: signage for new truck 626 | G52: 2021 | H52: 1 | I52: 0 | J52: S/L | K52: 10 | L52: 2031 | M52: 2031.083333 | N52: 569 | O52: 569 | P52: 4.741666667 | Q52: 56.9 | R52: 56.9 | S52: 128.025 | T52: 184.925 | U52: 384.075
B53: 251921 | D53: 905 | F53: 2021 Peterbilt FEL Truck- Chassis | G53: 2021 | H53: 4 | I53: 0 | J53: S/L | K53: 10 | L53: 2031 | M53: 2031.333333 | N53: 196974.14 | O53: 196974.14 | P53: 1641.451167 | Q53: 19697.414 | R53: 19697.414 | S53: 39394.828 | T53: 59092.242 | U53: 137881.898
B54: 251921/256011 | D54: 905 | F54: 2021 Peterbilt FEL Truck- Body | G54: 2021 | H54: 4 | I54: 0 | J54: S/L | K54: 10 | L54: 2031 | M54: 2031.333333 | N54: 170290.81 | O54: 170290.81 | P54: 1419.090083 | Q54: 17029.081 | R54: 17029.081 | S54: 34058.162 | T54: 51087.243 | U54: 119203.567
F56: GARBAGE - REGULATED ONLY Total | N56: =SUM(N13:N55) -> 4752858.593 | O56: 4752858.593 | P56: 56175.05811 | Q56: 674100.6973 | R56: 155561.3093 | S56: 3839623.798 | T56: 3995185.107 | U56: 757673.486
F59: GARBAGE - NON-REGULATED
A60: P | B60: 19655 | D60: 808 | F60: 2003 Autocar WX64 Automated Truck | G60: 2003 | H60: 5 | I60: 0.2 | J60: S/L | K60: 7 | L60: =G60+K60 -> 2010 | M60: =+L60+(H60/12) -> 2010.416667 | N60: =+'Non-Reg Trks-Orig'!P16 -> 179293.5 | O60: =N60-N60*I60 -> 143434.8 | P60: =O60/K60/12 -> 1707.557143 | Q60: =P60*12 -> 20490.68571 | R60: =+IF(M60>$N$6,Q60,0) -> 0 | S60: =+IF($M60<=$N$7,$N60,IF(($G60+($H60/12))>=$N$7,0,((($O60-((($M60-$N$7)*12)*$P60)))))) -> 179293.5 | T60: =IF(R60=0,N60,S60+R60) -> 179293.5 | U60: =+N60-T60 -> 0
A61: P | B61: 57893 | E61: 12 | F61: Drive Cams | G61: 2008 | H61: 5 | I61: 0 | J61: S/L | K61: 5 | L61: =G61+K61 -> 2013 | M61: =+L61+(H61/12) -> 2013.416667 | N61: 12984 | O61: =N61-N61*I61 -> 12984 | P61: =O61/K61/12 -> 216.4 | Q61: =P61*12 -> 2596.8 | R61: =+IF(M61>$N$6,Q61,0) -> 0 | S61: 12984 | T61: =IF(R61=0,N61,S61+R61) -> 12984 | U61: =+N61-T61 -> 0
A62: P | B62: 57323, 60331, 60332 | E62: 25 | F62: Drive Cam Units & Brackets | G62: 2008 | H62: 5 | I62: 0 | J62: S/L | K62: 5 | L62: 2013 | M62: 2013.416667 | N62: 13575.6116 | O62: 13575.6116 | P62: 226.2601934 | Q62: 2715.122321 | R62: 0 | S62: 13575.6116 | T62: 13575.6116 | U62: 0
A63: 19655 | B63: 63112 | D63: 808 | F63: Capital Repair to Truck #808 | G63: 2009 | H63: 2 | I63: 0 | J63: S/L | K63: 3 | L63: 2012 | M63: 2012.166667 | N63: 11731.05 | O63: 11731.05 | P63: 325.8625 | Q63: 3910.35 | R63: 0 | S63: 11731.05 | T63: 11731.05 | U63: 0
A64: P | B64: 63629 | E64: 16 | F64: Drivecam Units for New Trucks | G64: 2009 | H64: 5 | I64: 0 | J64: S/L | K64: 5 | L64: 2014 | M64: 2014.416667 | N64: 8739.41 | O64: 8739.41 | P64: 145.6568333 | Q64: 1747.882 | R64: 0 | S64: 8739.41 | T64: 8739.41 | U64: 0
A65: P | B65: 81722 | D65: 602 | F65: 1994 Nissan Retriever UD1800 | G65: 2009 | H65: 7 | I65: 0.33 | J65: S/L | K65: 5 | L65: 2014 | M65: 2014.583333 | N65: =+'Non-Reg Trks-Orig'!P34 -> 2500 | O65: 1675 | P65: 27.91666667 | Q65: 335 | R65: 0 | S65: 2500 | T65: 2500 | U65: 0
A66: P | B66: 86949 | D66: 500 | F66: 2011 Peterblt Labrie (N) | G66: 2011 | H66: 10 | I66: 0.2 | J66: S/L | K66: 7 | L66: 2018 | M66: 2018.833333 | N66: =+'Non-Reg Trks-Orig'!P38 -> 251021.84 | O66: 200817.472 | P66: 2390.68419 | Q66: 28688.21029 | R66: 0 | S66: 251021.84 | T66: 251021.84 | U66: 0
A67: P | B67: 95895 | D67: 502 | F67: 2013 Peterbilt 320 w/ Labrie (N) | G67: 2012 | H67: 8 | I67: 0.2 | J67: S/L | K67: 7 | L67: 2019 | M67: 2019.666667 | N67: =+'Non-Reg Trks-Orig'!P40 -> 254776.66 | O67: 203821.328 | P67: 2426.444381 | Q67: 29117.33257 | R67: 0 | S67: 254776.66 | T67: 254776.66 | U67: 0
B68: 122559/122787/123429 | D68: 803 | F68: 2016 Peterbilt ASL (N) | G68: 2015 | H68: 5 | I68: 0.2 | J68: S/L | K68: 7 | L68: 2022 | M68: 2022.416667 | N68: =+'Non-Reg Trks-Orig'!P44 -> 312320.83 | O68: 249856.664 | P68: 2974.484095 | Q68: 35693.80914 | R68: 0 | S68: 312320.83 | T68: 312320.83 | U68: 0
B69: 124778/124950/125745/125747/126489 | D69: 804 | F69: 2016 Peterbilt ASL (N) | G69: 2015 | H69: 8 | I69: 0.2 | J69: S/L | K69: 7 | L69: 2022 | M69: 2022.666667 | N69: =+'Non-Reg Trks-Orig'!P45 -> 308219.38 | O69: 246575.504 | P69: 2935.422667 | Q69: 35225.072 | R69: 0 | S69: 308219.38 | T69: 308219.38 | U69: 0
B70: 132389 | F70: (19) Samsung Tab E Tablets | G70: 2016 | H70: 4 | I70: 0 | J70: S/L | K70: 1 | L70: 2017 | M70: 2017.333333 | N70: 3701.944646 | O70: 3701.944646 | P70: 308.4953872 | Q70: 3701.944646 | R70: 0 | S70: 3701.944646 | T70: 3701.944646 | U70: 0
B71: 165803/167869/168127 | F71: (19) Tablet Mounts | G71: 2016 | H71: 8 | I71: 0 | J71: S/L | K71: 1 | L71: 2017 | M71: 2017.666667 | N71: 3485.801222 | O71: 3485.801222 | P71: 290.4834352 | Q71: 3485.801222 | R71: 0 | S71: 3485.801222 | T71: 3485.801222 | U71: 0
B72: 166462/168675 | F72: (19) Radios & Installation | G72: 2016 | H72: 8 | I72: 0 | J72: S/L | K72: 5 | L72: 2021 | M72: 2021.666667 | N72: 13666.86269 | O72: 13666.86269 | P72: 227.7810448 | Q72: 2733.372538 | R72: 0 | S72: 13666.86269 | T72: 13666.86269 | U72: 0
B73: 221741/ 223058/ 225929 | D73: 831 | F73: 2020 Peterbilt ASL Truck | G73: 2019 | H73: 10 | I73: 0 | J73: S/L | K73: 10 | L73: 2029 | M73: 2029.833333 | N73: =342426.8+12537.57+1124.94 -> 356089.31 | O73: 356089.31 | P73: 2967.410917 | Q73: 35608.931 | R73: 35608.931 | S73: 124631.2585 | T73: 160240.1895 | U73: 195849.1205
B74: 221741/224268 | D74: 831 | F74: Radio for New Automated Truck 831 | G74: 2019 | H74: 10 | I74: 0 | J74: S/L | K74: 5 | L74: 2024 | M74: 2024.833333 | N74: 717.61 | O74: =N74-N74*I74 -> 717.61 | P74: =O74/K74/12 -> 11.96016667 | Q74: =P74*12 -> 143.522 | R74: 143.522 | S74: 502.327 | T74: 645.849 | U74: 71.761
B75: 225443/225931 | D75: 7725 | F75: 2020 Peterbilt ASL Truck | G75: 2019 | H75: 12 | I75: 0 | J75: S/L | K75: 10 | L75: 2029 | M75: 2030 | N75: =177917.09+588.16 -> 178505.25 | O75: 178505.25 | P75: 1487.54375 | Q75: 17850.525 | R75: 17850.525 | S75: 59501.75 | T75: 77352.275 | U75: 101152.975
B76: 227222/219743/ 220519/ 220460/ 225928/ 223057/ 220518 | D76: 830 | F76: 2020 Peterbilt ASL Truck-Body | G76: 2019 | H76: 9 | I76: 0 | J76: S/L | K76: 10 | L76: 2029 | M76: 2029.75 | N76: =161403.2+639.92+623.44+1124.94+12537.57+489.54 -> 176818.61 | O76: 176818.61 | P76: 1473.488417 | Q76: 17681.861 | R76: 17681.861 | S76: 63360.00192 | T76: 81041.86292 | U76: 95776.74708
B77: 219743/ 225927 | D77: 830 | F77: Radio for New Automated Truck #830 | G77: 2019 | H77: 9 | I77: 0 | J77: S/L | K77: 10 | L77: 2029 | M77: 2029.75 | N77: 728.45 | O77: 728.45 | P77: 6.070416667 | Q77: 72.845 | R77: 72.845 | S77: 261.0279167 | T77: 333.8729167 | U77: 394.5770833
B78: 225442 | D78: 832 | F78: 2020 Pterbilt ASL Truck | G78: 2019 | H78: 12 | I78: 0 | J78: S/L | K78: 10 | L78: =G78+K78 -> 2029 | M78: =+L78+(H78/12) -> 2030 | N78: 343720.94 | O78: 343720.94 | P78: 2864.341167 | Q78: 34372.094 | R78: 34372.094 | S78: 114573.6467 | T78: 148945.7407 | U78: 194775.1993
B79: 225442/225930 | D79: 832 | F79: Radio for New Automated Truck 832 | G79: 2019 | H79: 12 | I79: 0 | J79: S/L | K79: 5 | L79: =G79+K79 -> 2024 | M79: =+L79+(H79/12) -> 2025 | N79: 744.71 | O79: 744.71 | P79: 12.41183333 | Q79: 148.942 | R79: 148.942 | S79: 496.4733333 | T79: 645.4153333 | U79: 99.29466667
B80: 225442/229080 | D80: 832 | F80: Gross Weight Fees for New Automated Truck #832 | G80: 2020 | H80: 1 | I80: 0 | J80: S/L | K80: 10 | L80: =G80+K80 -> 2030 | M80: =+L80+(H80/12) -> 2030.083333 | N80: 952.06 | O80: 952.06 | P80: 7.933833333 | Q80: 95.206 | R80: 95.206 | S80: 309.4195 | T80: 404.6255 | U80: 547.4345
B81: 230213/232179 | D81: 801 | F81: 2020 Peterbilt ASL Truck | G81: 2020 | H81: 3 | I81: 0 | J81: S/L | K81: 10 | L81: 2030 | M81: 2030.25 | N81: =351851.34+706.4 -> 352557.74 | O81: 352557.74 | P81: 2937.981167 | Q81: 35255.774 | R81: 35255.774 | S81: 108705.3032 | T81: 143961.0772 | U81: 208596.6628
B82: 225443/227871/232178/229081 | D82: 800 | F82: 2020 Peterbilt ASL Truck - Body | G82: 2020 | H82: 1 | I82: 0 | J82: S/L | K82: 10 | L82: 2030 | M82: 2030.083333 | N82: =172245+706.4+735.24 -> 173686.64 | O82: 173686.64 | P82: 1447.388667 | Q82: 17368.664 | R82: 17368.664 | S82: 56448.158 | T82: 73816.822 | U82: 99869.818
B83: 241231 | D83: 833 | F83: 2020 Peterbilt ASL Truck | G83: 2020 | H83: 10 | I83: 0 | J83: S/L | K83: 10 | L83: 2030 | M83: 2030.833333 | N83: 365347.28 | O83: 365347.28 | P83: 3044.560667 | Q83: 36534.728 | R83: 36534.728 | S83: 91336.82 | T83: 127871.548 | U83: 237475.732
B84: 241231/243658 | D84: 833 | F84: License Fees | G84: 2020 | H84: 10 | I84: 0 | J84: S/L | K84: 10 | L84: 2030 | M84: 2030.833333 | N84: 1006.83 | O84: 1006.83 | P84: 8.39025 | Q84: 100.683 | R84: 100.683 | S84: 251.7075 | T84: 352.3905 | U84: 654.4395
B85: 249929 | D85: 738 | F85: 2021 Peterbilt ASL Truck - Chassis | G85: 2021 | H85: 3 | I85: 0 | J85: S/L | K85: 10 | L85: =G85+K85 -> 2031 | M85: =+L85+(H85/12) -> 2031.25 | N85: 183244 | O85: =N85-N85*I85 -> 183244 | P85: =O85/K85/12 -> 1527.033333 | Q85: =P85*12 -> 18324.4 | R85: 18324.4 | S85: 38175.83333 | T85: 56500.23333 | U85: 126743.7667
B86: 249929/249928 | D86: 738 | F86: 2021 Peterbilt ASL Truck - Body | G86: 2021 | H86: 3 | I86: 0 | J86: S/L | K86: 10 | L86: =G86+K86 -> 2031 | M86: =+L86+(H86/12) -> 2031.25 | N86: 237087.84 | O86: =N86-N86*I86 -> 237087.84 | P86: =O86/K86/12 -> 1975.732 | Q86: =P86*12 -> 23708.784 | R86: 23708.784 | S86: 49393.3 | T86: 73102.084 | U86: 163985.756
B87: 255398 | D87: 834 | F87: 2021 Peterbilt ASL Truck- Chassis | G87: 2021 | H87: 7 | I87: 0 | J87: S/L | K87: 10 | L87: 2031 | M87: 2031.583333 | N87: 175854 | O87: 175854 | P87: 1465.45 | Q87: 17585.4 | R87: 17585.4 | S87: 30774.45 | T87: 48359.85 | U87: 127494.15
B88: 255398/255396 | D88: 834 | F88: 2021 Peterbilt ASL Truck-Covid-2010-20-0040- Body | G88: 2021 | H88: 7 | I88: 0 | J88: S/L | K88: 10 | L88: =G88+K88 -> 2031 | M88: =+L88+(H88/12) -> 2031.583333 | N88: 190695.37 | O88: 190695.37 | P88: 1589.128083 | Q88: 19069.537 | R88: 19069.537 | S88: 33371.68975 | T88: 52441.22675 | U88: 138254.1433
B89: 255398/256012 | D89: 834 | F89: Licensing Truck#834 VIN#3BPDLK0XMF1096 | G89: 2021 | H89: 7 | I89: 0 | J89: S/L | K89: 10 | L89: =G89+K89 -> 2031 | M89: =+L89+(H89/12) -> 2031.583333 | N89: 491.5 | O89: 491.5 | P89: 4.095833333 | Q89: 49.15 | R89: 49.15 | S89: 86.0125 | T89: 135.1625 | U89: 356.3375
B90: 255399 | D90: 904 | F90: 2021 Peterbilt FEL Truck- Chassis | G90: 2021 | H90: 7 | I90: 0 | J90: S/L | K90: 10 | L90: =G90+K90 -> 2031 | M90: =+L90+(H90/12) -> 2031.583333 | N90: 187063.1 | O90: 187063.1 | P90: 1558.859167 | Q90: 18706.31 | R90: 18706.31 | S90: 32736.0425 | T90: 51442.3525 | U90: 135620.7475
B91: 255399/255397 | D91: 904 | F91: 2021 Peterbilt FEL Truck-Covid-2010-20-0037- Body | G91: 2021 | H91: 7 | I91: 0 | J91: S/L | K91: 10 | L91: =G91+K91 -> 2031 | M91: =+L91+(H91/12) -> 2031.583333 | N91: 177229.89 | O91: 177229.89 | P91: 1476.91575 | Q91: 17722.989 | R91: 17722.989 | S91: 31015.23075 | T91: 48738.21975 | U91: 128491.6703
F93: Total Non-Regulated Garbage | N93: =SUM(N60:N92) -> 4478558.02 | O93: 4216606.578 | P93: 40070.14395 | Q93: 480841.7274 | R93: 310400.345 | S93: 2211947.342 | T93: 2522347.687 | U93: 1956210.333
F96: GARBAGE - SHARED
A97: P | B97: 57823, 57836, 57837, 57835, 58490 | D97: 932 | F97: 2008 FEL Truck VIN #206207 | G97: 2008 | H97: 7 | I97: 0 | J97: S/L | K97: 7 | L97: 2015 | M97: =+L97+(H97/12) -> 2015.583333 | N97: =+'Non-Reg Trks-Orig'!P59 -> 272384.64 | O97: =N97-N97*I97 -> 272384.64 | P97: =O97/K97/12 -> 3242.674286 | Q97: =P97*12 -> 38912.09143 | R97: =+IF(M97>$N$6,Q97,0) -> 0 | S97: =+IF($M97<=$N$7,$N97,IF(($G97+($H97/12))>=$N$7,0,((($O97-((($M97-$N$7)*12)*$P97)))))) -> 272384.64 | T97: =IF(R97=0,N97,S97+R97) -> 272384.64 | U97: =+N97-T97 -> 0
C98: FL | D98: 933 | F98: 2008 Autocar-Wittke Starlight 44 yd Pckr (N) | G98: 2008 | H98: 7 | I98: 0 | J98: S/L | K98: 7 | L98: =G98+K98 -> 2015 | M98: =+L98+(H98/12) -> 2015.583333 | N98: =+'Reg Trks-Orig'!O78 -> 272001.98 | O98: =N98-N98*I98 -> 272001.98 | P98: =O98/K98/12 -> 3238.11881 | Q98: =P98*12 -> 38857.42571 | R98: =+IF(M98>$N$6,Q98,0) -> 0 | S98: 272001.98 | T98: =IF(R98=0,N98,S98+R98) -> 272001.98 | U98: =+N98-T98 -> 0
A99: P | B99: 60345, 60467, 60468 | D99: 936 | F99: 2008 FEL Truck (VIN #206220) | G99: 2008 | H99: 11 | I99: 0 | J99: S/L | K99: 7 | L99: 2015 | M99: 2015.916667 | N99: =+'Non-Reg Trks-Orig'!P62 -> 280414.71 | O99: 280414.71 | P99: 3338.270357 | Q99: 40059.24429 | R99: 0 | S99: 280414.71 | T99: 280414.71 | U99: 0
B100: 108820 | C100: FL | D100: 937 | F100: 2014 FEL Peterbilt-Labrie (N) | G100: 2013 | H100: 11 | I100: 0 | J100: S/L | K100: 7 | L100: =G100+K100 -> 2020 | M100: 2020.916667 | N100: =+'Reg Trks-Orig'!O82 -> 317131.27 | O100: 317131.27 | P100: 3775.372262 | Q100: 45304.46714 | R100: 0 | S100: 317131.27 | T100: 317131.27 | U100: 0
B101: 114664 | D101: 937 | F101: AC Repair #937 | G101: 2014 | H101: 6 | I101: 0 | J101: S/L | K101: 3 | L101: =G101+K101 -> 2017 | M101: 2017.5 | N101: 5111.41 | O101: 5111.41 | P101: 141.9836111 | Q101: 1703.803333 | R101: 0 | S101: 5111.41 | T101: 5111.41 | U101: 0
B102: 111080 | D102: 937 | F102: Drive Cam #937 | G102: 2014 | H102: 1 | I102: 0 | J102: S/L | K102: 3 | L102: =G102+K102 -> 2017 | M102: 2017.083333 | N102: =1882.08/3 -> 627.36 | O102: 627.36 | P102: 17.42666667 | Q102: 209.12 | R102: 0 | S102: 627.36 | T102: 627.36 | U102: 0
B103: 111783 | D103: 932 | F103: Engine Repair - #932 | G103: 2014 | H103: 3 | I103: 0 | J103: S/L | K103: 3 | L103: 2017 | M103: 2017.25 | N103: 21168.88 | O103: 21168.88 | P103: 588.0244444 | Q103: 7056.293333 | R103: 0 | S103: 21168.88 | T103: 21168.88 | U103: 0
B104: 128642/129566 | D104: 939 | F104: 2016 Peterbilt FEL (N) | G104: 2015 | H104: 12 | I104: 0 | J104: S/L | K104: 7 | L104: 2022 | M104: 2023 | N104: =+'Non-Reg Trks-Orig'!P67 -> 325808.43 | O104: 325808.43 | P104: 3878.671786 | Q104: 46544.06143 | R104: 0 | S104: 325808.43 | T104: 325808.43 | U104: 0
B105: 132389 | F105: (11) Samsung Tab E Tablets | G105: 2016 | H105: 4 | I105: 0 | J105: S/L | K105: 1 | L105: =G105+K105 -> 2017 | M105: 2017.333333 | N105: =(19289.08/99)*11 -> 2143.231111 | O105: 2143.231111 | P105: 178.6025926 | Q105: 2143.231111 | R105: 0 | S105: 2143.231111 | T105: 2143.231111 | U105: 0
B106: 132389 | F106: (9) Samsung Tab E Tablets | G106: 2016 | H106: 4 | I106: 0 | J106: S/L | K106: 1 | L106: 2017 | M106: 2017.333333 | N106: 1753.552727 | O106: 1753.552727 | P106: 146.1293939 | Q106: 1753.552727 | R106: 0 | S106: 1753.552727 | T106: 1753.552727 | U106: 0
B107: 165803/167869/168127 | F107: (9) Tablet Mounts | G107: 2016 | H107: 8 | I107: 0 | J107: S/L | K107: 1 | L107: 2017 | M107: 2017.666667 | N107: 1651.169 | O107: 1651.169 | P107: 137.5974167 | Q107: 1651.169 | R107: 0 | S107: 1651.169 | T107: 1651.169 | U107: 0
B108: 166462/168675 | F108: (9) Radios & Installation | G108: 2016 | H108: 8 | I108: 0 | J108: S/L | K108: 5 | L108: 2021 | M108: 2021.666667 | N108: 6473.777063 | O108: 6473.777063 | P108: 107.8962844 | Q108: 1294.755413 | R108: 0 | S108: 6473.777063 | T108: 6473.777063 | U108: 0
B109: 165893/166605 | D109: 936 | F109: Engine rebuild on FEL truck #936 + Labor | G109: 2016 | H109: 7 | I109: 0 | J109: S/L | K109: 3 | L109: 2019 | M109: 2019.583333 | N109: 31617.46 | O109: 31617.46 | P109: 878.2627778 | Q109: 10539.15333 | R109: 0 | S109: 31617.46 | T109: 31617.46 | U109: 0
B110: 165803/167869/168127 | F110: (11) Tablet Mounts | G110: 2016 | H110: 8 | I110: 0 | J110: S/L | K110: 1 | L110: =G110+K110 -> 2017 | M110: 2017.666667 | N110: =((1771.86+4421.04+26830.48)/180)*11 -> 2018.095444 | O110: 2018.095444 | P110: 168.1746204 | Q110: 2018.095444 | R110: 0 | S110: 2018.095444 | T110: 2018.095444 | U110: 0
B111: 166462/168675 | F111: (11) Radios & Installation | G111: 2016 | H111: 8 | I111: 0 | J111: S/L | K111: 5 | L111: 2021 | M111: 2021.666667 | N111: =((90412.1+24677.27)/160)*11 -> 7912.394188 | O111: 7912.394188 | P111: 131.8732365 | Q111: 1582.478838 | R111: 0 | S111: 7912.394188 | T111: 7912.394188 | U111: 0
B112: 169027/169239 | C112: FEL | D112: 940 | F112: 2017 FEL Truck + Tax & License | G112: 2016 | H112: 10 | I112: 0 | J112: S/L | K112: 10 | L112: 2026 | M112: 2026.833333 | N112: =327768.64+11242.79 -> 339011.43 | O112: 339011.43 | P112: 2825.09525 | Q112: 33901.143 | R112: 33901.143 | S112: 220357.4295 | T112: 254258.5725 | U112: 84752.8575
B113: 183265 | C113: FEL | D113: 941 | F113: 2018 FEL Truck | G113: 2017 | H113: 5 | I113: 0 | J113: S/L | K113: 10 | L113: 2027 | M113: 2027.416667 | N113: 328101.9 | O113: 328101.9 | P113: 2734.1825 | Q113: 32810.19 | R113: 32810.19 | S113: 194126.9575 | T113: 226937.1475 | U113: 101164.7525
B114: 184560/ 183265 | C114: FEL | D114: 941 | F114: Texture Coating to Roof on new FEL #941 | G114: 2017 | H114: 5 | I114: 0 | J114: S/L | K114: 10 | L114: 2027 | M114: 2027.416667 | N114: 715.44 | O114: 715.44 | P114: 5.962 | Q114: 71.544 | R114: 71.544 | S114: 423.302 | T114: 494.846 | U114: 220.594
B115: 184356 | C115: FEL | D115: 922 | F115: 2018 FEL Truck | G115: 2017 | H115: 7 | I115: 0 | J115: S/L | K115: 10 | L115: 2027 | M115: 2027.583333 | N115: 328020.93 | O115: 328020.93 | P115: 2733.50775 | Q115: 32802.093 | R115: 32802.093 | S115: 188612.0347 | T115: 221414.1277 | U115: 106606.8023
A116: 184356 | B116: 185690 | F116: Textured Coating for New Peterbilt Truck | G116: 2017 | H116: 7 | I116: 0 | J116: S/L | K116: 10 | L116: 2027 | M116: 2027.583333 | N116: 715.44 | O116: 715.44 | P116: 5.962 | Q116: 71.544 | R116: 71.544 | S116: 411.378 | T116: 482.922 | U116: 232.518
B117: 190654 | F117: 10 Samsung Routetabs | G117: 2017 | H117: 12 | I117: 0 | J117: S/L | K117: 1 | L117: =G117+K117 -> 2018 | M117: =+L117+(H117/12) -> 2019 | N117: 2523.2 | O117: =N117-N117*I117 -> 2523.2 | P117: =O117/K117/12 -> 210.2666667 | Q117: =P117*12 -> 2523.2 | R117: 0 | S117: 2523.2 | T117: 2523.2 | U117: 0
B118: 200776/202594/202446/202267 | C118: FEL | D118: 925 | F118: 2019 FEL Truck | G118: 2018 | H118: 7 | I118: 0 | J118: S/L | K118: 10 | L118: 2028 | M118: 2028.583333 | N118: =340761.28+10424.46-10979.96+443.83 -> 340649.61 | O118: 340649.61 | P118: 2838.74675 | Q118: 34064.961 | R118: 34064.961 | S118: 161808.5648 | T118: 195873.5258 | U118: 144776.0843
A119: 200776 | B119: 200848 | D119: 925 | F119: Drive Cam #925 | G119: 2018 | H119: 7 | I119: 0 | J119: S/L | K119: 5 | L119: 2023 | M119: 2023.583333 | N119: 468.83 | O119: 468.83 | P119: 7.813833333 | Q119: 93.766 | R119: 0 | S119: 445.3885 | T119: 468.83 | U119: 0
A120: 200776 | B120: 201746 | D120: 925 | F120: Radio | G120: 2018 | H120: 7 | I120: 0 | J120: S/L | K120: 5 | L120: 2023 | M120: 2023.583333 | N120: 650.4 | O120: 650.4 | P120: 10.84 | Q120: 130.08 | R120: 0 | S120: 617.88 | T120: 650.4 | U120: 0
B121: 193691 | D121: 923 | F121: 2018 FEL Truck | G121: 2018 | H121: 2 | I121: 0 | J121: S/L | K121: 10 | L121: 2028 | M121: 2028.166667 | N121: 347719.06 | O121: 347719.06 | P121: 2897.658833 | Q121: 34771.906 | R121: 34771.906 | S121: 179654.8477 | T121: 214426.7537 | U121: 133292.3063
B122: 197699 | F122: Tablet sleeves for new tablets | G122: 2018 | H122: 5 | I122: 0 | J122: S/L | K122: 1 | L122: 2019 | M122: 2019.416667 | N122: 3033.61 | O122: 3033.61 | P122: 252.8008333 | Q122: 3033.61 | R122: 0 | S122: 3033.61 | T122: 3033.61 | U122: 0
B123: 196589 | F123: 15 Samsung tablets for swing drivers | G123: 2018 | H123: 3 | I123: 0 | J123: S/L | K123: 1 | L123: 2019 | M123: 2019.25 | N123: 4877.84 | O123: 4877.84 | P123: 406.4866667 | Q123: 4877.84 | R123: 0 | S123: 4877.84 | T123: 4877.84 | U123: 0
F124: Amort Salvage Value of 2018 Retired Trks | G124: 2016 | H124: 10 | I124: 0 | J124: S/L | K124: 3 | L124: 2019 | M124: 2019.833333 | N124: =+N316+N324 -> 75087.8 | O124: 75087.8 | P124: 2085.772222 | Q124: 25029.26667 | R124: 0 | S124: 75087.8 | T124: 75087.8 | U124: 0
B125: 223818/ 225921/ 224265/ 224096 | D125: 901 | F125: 2020 FEL Peterbilt Truck | G125: 2019 | H125: 11 | I125: 0 | J125: S/L | K125: 10 | L125: 2029 | M125: 2029.916667 | N125: =345278.07+1124.94+795.06 -> 347198.07 | O125: =N125-N125*I125 -> 347198.07 | P125: =O125/K125/12 -> 2893.31725 | Q125: =P125*12 -> 34719.807 | R125: 34719.807 | S125: 118626.0072 | T125: 153345.8142 | U125: 193852.2558
B126: 223818/ 225920 | D126: 901 | F126: Radio for New Frontload Truck | G126: 2019 | H126: 11 | I126: 0 | J126: S/L | K126: 5 | L126: 2024 | M126: 2024.916667 | N126: 744.71 | O126: 744.71 | P126: 12.41183333 | Q126: 148.942 | R126: 148.942 | S126: 508.8851667 | T126: 657.8271667 | U126: 86.88283333
B127: 221737/ 225919/ 224265/ 223055 | D127: 900 | F127: 2020 Peterbilt FEL Truck | G127: 2019 | H127: 10 | I127: 0 | J127: S/L | K127: 10 | L127: =G127+K127 -> 2029 | M127: =+L127+(H127/12) -> 2029.833333 | N127: =333753.44+1124.94+965.25+11524.63 -> 347368.26 | O127: 347368.26 | P127: 2894.7355 | Q127: 34736.826 | R127: 34736.826 | S127: 121578.891 | T127: 156315.717 | U127: 191052.543
B128: 221737/ 225918 | D128: 900 | F128: Radio for New Frontload Truck #900 | G128: 2019 | H128: 10 | I128: 0 | J128: S/L | K128: 5 | L128: 2024 | M128: 2024.833333 | N128: 744.71 | O128: 744.71 | P128: 12.41183333 | Q128: 148.942 | R128: =+IF(M128>$N$6,Q128,0) -> 148.942 | S128: 521.297 | T128: =IF(R128=0,N128,S128+R128) -> 670.239 | U128: =+N128-T128 -> 74.471
B129: 221740/ 223056/ 225926/ 224267 | D129: 606 | F129: 2020 Peterbilt REL Truck | G129: 2019 | H129: 10 | I129: 0 | J129: S/L | K129: 10 | L129: 2029 | M129: 2029.833333 | N129: =278791.66+7345.24+1124.94+562.24 -> 287824.08 | O129: 287824.08 | P129: 2398.534 | Q129: 28782.408 | R129: 28782.408 | S129: 100738.428 | T129: 129520.836 | U129: 158303.244
B130: 221740/ 225290 | D130: 606 | F130: Radio for new rearload truck #606 | G130: 2019 | H130: 10 | I130: 0 | J130: S/L | K130: 5 | L130: 2024 | M130: 2024.833333 | N130: 744.71 | O130: 744.71 | P130: 12.41183333 | Q130: 148.942 | R130: 148.942 | S130: 521.297 | T130: 670.239 | U130: 74.471
B131: 230214 | D131: 902 | F131: 2020 Peterbilt FEL Truck | G131: 2020 | H131: 2 | I131: 0 | J131: S/L | K131: 10 | L131: 2030 | M131: 2030.166667 | N131: 340030.17 | O131: 340030.17 | P131: 2833.58475 | Q131: 34003.017 | R131: 34003.017 | S131: 107676.2205 | T131: 141679.2375 | U131: 198350.9325
B132: 240175 | D132: 903 | F132: 2020 Peterbilt FEL Truck | G132: 2020 | H132: 8 | I132: 0 | J132: S/L | K132: 10 | L132: 2030 | M132: 2030.666667 | N132: 360872.45 | O132: 360872.45 | P132: 3007.270417 | Q132: 36087.245 | R132: 36087.245 | S132: 96232.65333 | T132: 132319.8983 | U132: 228552.5517
F134: GARBAGE - SHARED Total | N134: =SUM(N97:N133) -> 5005321.01 | O134: 5005321.01 | P134: 51048.85127 | Q134: 612586.2152 | R134: 337269.51 | S134: 3126602.271 | T134: 3463927.743 | U134: 1541393.267
F137: Electric Trucks
B138: 248105 | F138: Electric Service for E-Truck | G138: 2021 | H138: 3 | I138: 0 | J138: S/L | K138: 10 | L138: =G138+K138 -> 2031 | M138: =+L138+(H138/12) -> 2031.25 | N138: 76313.6 | O138: =N138-N138*I138 -> 76313.6 | P138: =O138/K138/12 -> 635.9466667 | Q138: =P138*12 -> 7631.36 | R138: =+IF(M138>$N$6,Q138,0) -> 7631.36 | S138: =+IF($M138<=$N$7,$N138,IF(($G138+($H138/12))>=$N$7,0,((($O138-((($M138-$N$7)*12)*$P138)))))) -> 15898.66667 | T138: =IF(R138=0,N138,S138+R138) -> 23530.02667 | U138: =+N138-T138 -> 52783.57333
B139: 248105/248104 | F139: System development-Charging station service for electric truck | G139: 2021 | H139: 3 | I139: 0 | J139: S/L | K139: 10 | L139: =G139+K139 -> 2031 | M139: =+L139+(H139/12) -> 2031.25 | N139: 8422.03 | O139: =N139-N139*I139 -> 8422.03 | P139: =O139/K139/12 -> 70.18358333 | Q139: =P139*12 -> 842.203 | R139: 842.203 | S139: 1754.589583 | T139: 2596.792583 | U139: 5825.237417
F141: Electric Trucks Total | N141: =SUM(N138:N140) -> 84735.63 | O141: =SUM(O138:O140) -> 84735.63 | P141: 706.13025 | Q141: 8473.563 | R141: 8473.563 | S141: 17653.25625 | T141: 26126.81925 | U141: 58608.81075
F144: Roll-Off Trucks
C145: RO | D145: 419 | F145: 2006 Autocar RO Chassis (in service 9/06) | G145: 2006 | H145: 9 | I145: 0 | J145: S/L | K145: 7 | L145: =G145+K145 -> 2013 | M145: =+L145+(H145/12) -> 2013.75 | N145: =+'Reg Trks-Orig'!Q107 -> 136253.48 | O145: =N145-N145*I145 -> 136253.48 | P145: =O145/K145/12 -> 1622.065238 | Q145: =P145*12 -> 19464.78286 | R145: =+IF(M145>$N$6,Q145,0) -> 0 | S145: =+IF($M145<=$N$7,$N145,IF(($G145+($H145/12))>=$N$7,0,((($O145-((($M145-$N$7)*12)*$P145)))))) -> 136253.48 | T145: =IF(R145=0,N145,S145+R145) -> 136253.48 | U145: =+N145-T145 -> 0
D146: 419 | F146: Truck #419 Amort of Salvage | G146: 2016 | H146: 10 | I146: 0 | J146: S/L | K146: =+IF(L145-$N$4>=3,L145-$N$4,3) -> 3 | L146: =+G146+K146 -> 2019 | M146: 2019.833333 | N146: =+'Reg Trks-Orig'!O107-'Total Trucks - Salvage Value'!N145 -> 34063.37 | O146: 34063.37 | P146: 946.2047222 | Q146: =P146*12 -> 11354.45667 | R146: =+IF(M146>$N$6,Q146,0) -> 0 | S146: 34063.37 | T146: =IF(R146=0,N146,S146+R146) -> 34063.37 | U146: =+N146-T146 -> 0
C147: RO | D147: 421 | F147: Roll-Off Trk w/tarper system | G147: 2007 | H147: 7 | I147: 0 | J147: S/L | K147: 7 | L147: 2014 | M147: 2014.583333 | N147: =+'Reg Trks-Orig'!Q108 -> 140586.4 | O147: 140586.4 | P147: 1673.647619 | Q147: 20083.77143 | R147: 0 | S147: 140586.4 | T147: 140586.4 | U147: 0
D148: 421 | F148: Truck #421 Amort of Salvage | G148: 2016 | H148: 10 | I148: 0 | J148: S/L | K148: =+IF(L147-$N$4>=3,L147-$N$4,3) -> 3 | L148: =+G148+K148 -> 2019 | M148: 2019.833333 | N148: =+'Reg Trks-Orig'!O108-'Total Trucks - Salvage Value'!N147 -> 35146.6 | O148: 35146.6 | P148: 976.2944444 | Q148: =P148*12 -> 11715.53333 | R148: 0 | S148: 35146.6 | T148: 35146.6 | U148: 0
F149: DriveCam | G149: 2008 | H149: 6 | I149: 0 | J149: S/L | K149: 7 | L149: 2015 | M149: 2015.5 | N149: =+'Reg Trks-Orig'!Q109 -> 29878.4 | O149: 29878.4 | P149: 355.6952381 | Q149: 4268.342857 | R149: 0 | S149: 29878.4 | T149: 29878.4 | U149: 0
F150: Drive Cam Amort of Salvage | G150: 2016 | H150: 10 | I150: 0 | J150: S/L | K150: =+IF(L149-$N$4>=3,L149-$N$4,3) -> 3 | L150: =+G150+K150 -> 2019 | M150: 2019.833333 | N150: =+'Reg Trks-Orig'!O109-'Total Trucks - Salvage Value'!N149 -> 7469.6 | O150: 7469.6 | P150: 207.4888889 | Q150: =P150*12 -> 2489.866667 | R150: 0 | S150: 7469.6 | T150: 7469.6 | U150: 0
C151: RO | D151: 422 | F151: Roll-Off Trk w/tarper system | G151: 2008 | H151: 10 | I151: 0 | J151: S/L | K151: 7 | L151: 2015 | M151: 2015.833333 | N151: =+'Reg Trks-Orig'!O110 -> 202215.66 | O151: 202215.66 | P151: 2407.329286 | Q151: 28887.95143 | R151: 0 | S151: 202215.66 | T151: 202215.66 | U151: 0
A152: P | B152: 57323, 60331, 60332 | E152: 8 | F152: Drive Cam Units & Brackets | G152: 2008 | H152: 5 | I152: 0 | J152: S/L | K152: 5 | L152: 2013 | M152: 2013.416667 | N152: 4336.546173 | O152: 4336.546173 | P152: 72.27576955 | Q152: 867.3092346 | R152: 0 | S152: 4336.546173 | T152: 4336.546173 | U152: 0
C153: RO | D153: 423 | F153: 2009 Autocar Roll-Off Trk w/tarper system | G153: 2009 | H153: 4 | I153: 0 | J153: S/L | K153: 7 | L153: =G153+K153 -> 2016 | M153: 2016.333333 | N153: =+'Reg Trks-Orig'!O112 -> 223265.18 | O153: 223265.18 | P153: 2657.91881 | Q153: 31895.02571 | R153: 0 | S153: 223265.18 | T153: 223265.18 | U153: 0
A154: P | B154: 73157, 73361 | D154: TR3 | F154: 2010 3-axle Roll Off Trailer | G154: 2010 | H154: 3 | I154: 0 | J154: S/L | K154: 7 | L154: 2017 | M154: 2017.25 | N154: =+'Non-Reg Trks-Orig'!P81 -> 50003.2 | O154: 50003.2 | P154: 595.2761905 | Q154: 7143.314286 | R154: 0 | S154: 50003.2 | T154: 50003.2 | U154: 0
B155: 109029 | D155: 412 | F155: Engine Rebuild #412 | G155: 2013 | H155: 11 | I155: 0 | J155: S/L | K155: 3 | L155: 2016 | M155: 2016.916667 | N155: 21142.76 | O155: 21142.76 | P155: 587.2988889 | Q155: 7047.586667 | R155: 0 | S155: 21142.76 | T155: 21142.76 | U155: 0
C156: RO | D156: 424 | F156: 2015 Peterbilt R/O Truck (N) | G156: 2014 | H156: 5 | I156: 0 | J156: S/L | K156: 7 | L156: =G156+K156 -> 2021 | M156: 2021.416667 | N156: =+'Reg Trks-Orig'!O115 -> 258106.6 | O156: 258106.6 | P156: 3072.697619 | Q156: 36872.37143 | R156: 0 | S156: 258106.6 | T156: 258106.6 | U156: 0
C157: RO | D157: 425 | F157: 2015 Peterbilt R/O Truck (N) | G157: 2014 | H157: 5 | I157: 0 | J157: S/L | K157: 7 | L157: 2021 | M157: 2021.416667 | N157: =+'Reg Trks-Orig'!O116 -> 258107.05 | O157: 258107.05 | P157: 3072.702976 | Q157: 36872.43571 | R157: 0 | S157: 258107.05 | T157: 258107.05 | U157: 0
C158: RO | D158: 424 | F158: Drive Cam #424 | G158: 2014 | H158: 1 | I158: 0 | J158: S/L | K158: 3 | L158: 2017 | M158: 2017.083333 | N158: =1882.08/3 -> 627.36 | O158: 627.36 | P158: 17.42666667 | Q158: 209.12 | R158: 0 | S158: 627.36 | T158: 627.36 | U158: 0
C159: RO | D159: 425 | F159: Drive Cam #425 | G159: 2014 | H159: 1 | I159: 0 | J159: S/L | K159: 3 | L159: 2017 | M159: 2017.083333 | N159: =1882.08/3 -> 627.36 | O159: 627.36 | P159: 17.42666667 | Q159: 209.12 | R159: 0 | S159: 627.36 | T159: 627.36 | U159: 0
C160: RO | D160: 419 | F160: Capital Repair-Engine | G160: 2014 | H160: 12 | I160: 0 | J160: S/L | K160: 3 | L160: 2017 | M160: 2018 | N160: 21153.6 | O160: 21153.6 | P160: 587.6 | Q160: 7051.2 | R160: 0 | S160: 21153.6 | T160: 21153.6 | U160: 0
C161: RO | D161: 403 | F161: 2015 R/O Truck (N) | G161: 2015 | H161: 5 | I161: 0 | J161: S/L | K161: 7 | L161: 2022 | M161: 2022.416667 | N161: =+'Reg Trks-Orig'!O120 -> 231795.94 | O161: 231795.94 | P161: 2759.475476 | Q161: 33113.70571 | R161: 0 | S161: 231795.94 | T161: 231795.94 | U161: 0
B162: 132759/133199 | C162: RO | D162: 426 | F162: 2017 R/O Truck + Registration | G162: 2016 | H162: 5 | I162: 0 | J162: S/L | K162: 10 | L162: 2026 | M162: 2026.416667 | N162: =230871.85+4979.49 -> 235851.34 | O162: 235851.34 | P162: 1965.427833 | Q162: 23585.134 | R162: 23585.134 | S162: 163130.5102 | T162: 186715.6442 | U162: 49135.69583
B163: 133433/139717/139718 | C163: RO | D163: 427 | F163: 2017 R/O Truck + Tax & Title + Drive Cam + Licensing | G163: 2016 | H163: 6 | I163: 0 | J163: S/L | K163: 10 | L163: 2026 | M163: 2026.5 | N163: =230786.27+4428.82+637.5+694.86 -> 236547.45 | O163: 236547.45 | P163: 1971.22875 | Q163: 23654.745 | R163: 23654.745 | S163: 161640.7575 | T163: 185295.5025 | U163: 51251.9475
B164: 166462/168675 | F164: (16) Radios & Installation | G164: 2016 | H164: 8 | I164: 0 | J164: S/L | K164: 5 | L164: 2021 | M164: 2021.666667 | N164: =((90412.1+24677.27)/160)*16 -> 11508.937 | O164: 11508.937 | P164: 191.8156167 | Q164: 2301.7874 | R164: 0 | S164: 11508.937 | T164: 11508.937 | U164: 0
B165: 166462/168675 | F165: (6) Radios & Installation | G165: 2016 | H165: 8 | I165: 0 | J165: S/L | K165: 5 | L165: 2021 | M165: 2021.666667 | N165: 4315.851375 | O165: 4315.851375 | P165: 71.93085625 | Q165: 863.170275 | R165: 0 | S165: 4315.851375 | T165: 4315.851375 | U165: 0
B166: 185362 | C166: RO | D166: 408 | F166: 2018 RO Truck | G166: 2017 | H166: 8 | I166: 0 | J166: S/L | K166: 10 | L166: =G166+K166 -> 2027 | M166: 2027.666667 | N166: 236224.09 | O166: 236224.09 | P166: 1968.534083 | Q166: 23622.409 | R166: 23622.409 | S166: 133860.3177 | T166: 157482.7267 | U166: 78741.36333
A167: 185362 | B167: 185766 | D167: 408 | F167: Tax & Title on new RO Peterbilt truck #408 | G167: 2017 | H167: 8 | I167: 0 | J167: S/L | K167: 10 | L167: 2027 | M167: 2027.666667 | N167: 7815.76 | O167: 7815.76 | P167: 65.13133333 | Q167: 781.576 | R167: 781.576 | S167: 4428.930667 | T167: 5210.506667 | U167: 2605.253333
A168: 187600 | D168: 409 | F168: 2018 RO Truck | G168: 2017 | H168: 9 | I168: 0 | J168: S/L | K168: 10 | L168: 2027 | M168: 2027.75 | N168: 243407 | O168: 243407 | P168: 2028.391667 | Q168: 24340.7 | R168: 24340.7 | S168: 135902.2417 | T168: 160242.9417 | U168: 83164.05833
F169: Amort Salvage Value of 16-17 Retired Trks | G169: 2016 | H169: 10 | I169: 0 | J169: S/L | K169: 3 | L169: 2019 | M169: 2019.833333 | N169: 35780.13 | O169: 35780.13 | P169: 993.8925 | Q169: 11926.71 | R169: 0 | S169: 35780.13 | T169: 35780.13 | U169: 0
B170: 202077/203187 | C170: RO | D170: 406 | F170: 2019 RO Truck | G170: 2018 | H170: 8 | I170: 0 | J170: S/L | K170: 10 | L170: 2028 | M170: 2028.666667 | N170: =248513.61+2228.58 -> 250742.19 | O170: 250742.19 | P170: 2089.51825 | Q170: 25074.219 | R170: 25074.219 | S170: 117013.022 | T170: 142087.241 | U170: 108654.949
B171: 200779/200987 | C171: RO | D171: 405 | F171: 2019 RO Truck | G171: 2018 | H171: 7 | I171: 0 | J171: S/L | K171: 10 | L171: 2028 | M171: 2028.583333 | N171: =250233.46+4884.2 -> 255117.66 | O171: 255117.66 | P171: 2125.9805 | Q171: 25511.766 | R171: 25511.766 | S171: 121180.8885 | T171: 146692.6545 | U171: 108425.0055
A172: 200779 | B172: 201745 | D172: 405 | F172: Radio | G172: 2018 | H172: 7 | I172: 0 | J172: S/L | K172: 5 | L172: 2023 | M172: 2023.583333 | N172: 650.4 | O172: 650.4 | P172: 10.84 | Q172: 130.08 | R172: 0 | S172: 617.88 | T172: 650.4 | U172: 0
A173: 200779 | B173: 200847 | D173: 405 | F173: Drive Cam | G173: 2018 | H173: 7 | I173: 0 | J173: S/L | K173: 5 | L173: 2023 | M173: 2023.583333 | N173: 468.83 | O173: 468.83 | P173: 7.813833333 | Q173: 93.766 | R173: 0 | S173: 445.3885 | T173: 468.83 | U173: 0
F174: Amort Salvage Value of 2018 Retired Trks | G174: 2016 | H174: 10 | I174: 0 | J174: S/L | K174: 3 | L174: 2019 | M174: 2019.833333 | N174: =+N313 -> 17144.127 | O174: 17144.127 | P174: 476.22575 | Q174: 5714.709 | R174: 0 | S174: 17144.127 | T174: 17144.127 | U174: 0
B175: 221738/ 224097 | D175: 407 | F175: Radio for 2020 RO Truck | G175: 2019 | H175: 9 | I175: 0 | J175: S/L | K175: 5 | L175: 2024 | M175: 2024.75 | N175: 728.45 | O175: 728.45 | P175: 12.14083333 | Q175: 145.69 | R175: 145.69 | S175: 522.0558333 | T175: 667.7458333 | U175: 60.70416667
B176: 221738/ 222584/ 222583 | D176: 407 | F176: 2020 Peterbilt / Chain Roll Off | G176: 2019 | H176: 10 | I176: 0 | J176: S/L | K176: 10 | L176: 2029 | M176: 2029.833333 | N176: =256014.31+1914.73+6055.13 -> 263984.17 | O176: 263984.17 | P176: 2199.868083 | Q176: 26398.417 | R176: 26398.417 | S176: 92394.4595 | T176: 118792.8765 | U176: 145191.2935
B177: 221739/ 222586/ 222585 | D177: 411 | F177: 2020 Roll Off peterbilt/Chain Roll Off | G177: 2019 | H177: 10 | I177: 0 | J177: S/L | K177: 10 | L177: 2029 | M177: 2029.833333 | N177: =256014.31+1914.73+6055.13 -> 263984.17 | O177: 263984.17 | P177: 2199.868083 | Q177: 26398.417 | R177: 26398.417 | S177: 92394.4595 | T177: 118792.8765 | U177: 145191.2935
B178: 221739/ 224266 | D178: 411 | F178: Radio for New Roll Off Truck #41 | G178: 2019 | H178: 9 | I178: 0 | J178: S/L | K178: 5 | L178: 2024 | M178: 2024.75 | N178: 728.45 | O178: 728.45 | P178: 12.14083333 | Q178: 145.69 | R178: 145.69 | S178: 522.0558333 | T178: 667.7458333 | U178: 60.70416667
B179: 223819/ 224099 | D179: 428 | F179: 2020 Peterbilt ROL Truck | G179: 2019 | H179: 11 | I179: 0 | J179: S/L | K179: 10 | L179: 2029 | M179: 2029.916667 | N179: =263412.92+204.01 -> 263616.93 | O179: 263616.93 | P179: 2196.80775 | Q179: 26361.693 | R179: 26361.693 | S179: 90069.11775 | T179: 116430.8107 | U179: 147186.1193
B180: 223819/225932 | D180: 428 | F180: Radio For New Roll Off Truck #428 | G180: 2019 | H180: 11 | I180: 0 | J180: S/L | K180: 5 | L180: 2024 | M180: 2024.916667 | N180: 744.71 | O180: 744.71 | P180: 12.41183333 | Q180: 148.942 | R180: 148.942 | S180: 508.8851667 | T180: 657.8271667 | U180: 86.88283333
B181: 235325 | D181: 429 | F181: 2021 Peterbilt ROL Truck | G181: 2020 | H181: 7 | I181: 0 | J181: S/L | K181: 10 | L181: 2030 | M181: 2030.583333 | N181: 270930.68 | O181: =N181-N181*I181 -> 270930.68 | P181: =O181/K181/12 -> 2257.755667 | Q181: =P181*12 -> 27093.068 | R181: 27093.068 | S181: 74505.937 | T181: 101599.005 | U181: 169331.675
B182: 234106/234850 | D182: 400 | F182: 2021 Peterbilt ROL Truck | G182: 2020 | H182: 6 | I182: 0 | J182: S/L | K182: 10 | L182: 2030 | M182: 2030.5 | N182: =270930.68+491.55 -> 271422.23 | O182: =N182-N182*I182 -> 271422.23 | P182: =O182/K182/12 -> 2261.851917 | Q182: =P182*12 -> 27142.223 | R182: 27142.223 | S182: 76902.96517 | T182: 104045.1882 | U182: 167377.0418
B183: 227223/227342 | D183: 401 | F183: 2020 Petrebilt RO Truck | G183: 2020 | H183: 1 | I183: 0 | J183: S/L | K183: 10 | L183: 2030 | M183: 2030.083333 | N183: =238926.28+20114.82 -> 259041.1 | O183: =N183-N183*I183 -> 259041.1 | P183: =O183/K183/12 -> 2158.675833 | Q183: =P183*12 -> 25904.11 | R183: 25904.11 | S183: 84188.3575 | T183: 110092.4675 | U183: 148948.6325
B184: 234106/236896 | D184: 400 | F184: Signage for new roll off truck 400 | G184: 2020 | H184: 6 | I184: 0 | J184: S/L | K184: 10 | L184: 2030 | M184: 2030.5 | N184: 572.35 | O184: =N184-N184*I184 -> 572.35 | P184: =O184/K184/12 -> 4.769583333 | Q184: =P184*12 -> 57.235 | R184: 57.235 | S184: 162.1658333 | T184: 219.4008333 | U184: 352.9491667
B185: 235325/236488 | D185: 429 | F185: Licensing for new RO Truck | G185: 2020 | H185: 7 | I185: 0 | J185: S/L | K185: 10 | L185: 2030 | M185: 2030.583333 | N185: 412.55 | O185: =N185-N185*I185 -> 412.55 | P185: =O185/K185/12 -> 3.437916667 | Q185: =P185*12 -> 41.255 | R185: 41.255 | S185: 113.45125 | T185: 154.70625 | U185: 257.84375
F187: Roll-Off Trucks Total | N187: =SUM(N145:N186) -> 4786518.662 | O187: 4786518.662 | P187: 48915.28381 | Q187: 586983.4057 | R187: 306407.289 | S187: 3074031.999 | T187: 3380495.249 | U187: 1406023.413
F191: Recycle Trucks
A192: P | B192: 57323, 60331, 60332 | E192: 37 | F192: Drive Cam Units & Brackets | G192: 2008 | H192: 5 | I192: 0 | J192: S/L | K192: 5 | L192: =G192+K192 -> 2013 | M192: =+L192+(H192/12) -> 2013.416667 | N192: 20056.52605 | O192: =N192-N192*I192 -> 20056.52605 | P192: =O192/K192/12 -> 334.2754342 | Q192: =P192*12 -> 4011.30521 | R192: =+IF(M192>$N$6,Q192,0) -> 0 | S192: =+IF($M192<=$N$7,$N192,IF(($G192+($H192/12))>=$N$7,0,((($O192-((($M192-$N$7)*12)*$P192)))))) -> 20056.52605 | T192: =IF(R192=0,N192,S192+R192) -> 20056.52605 | U192: =+N192-T192 -> 0
A193: P | B193: 63501, 63597 | D193: 705 | F193: New ASL Truck / P-O N558 - CCRC | G193: 2009 | H193: 3 | I193: 0.2 | J193: S/L | K193: 7 | L193: 2016 | M193: 2016.25 | N193: =+'Non-Reg Trks-Orig'!P104 -> 336188.49 | O193: 268950.792 | P193: 3201.795143 | Q193: 38421.54171 | R193: =+IF(M193>$N$6,Q193,0) -> 0 | S193: 336188.49 | T193: =IF(R193=0,N193,S193+R193) -> 336188.49 | U193: =+N193-T193 -> 0
A194: P | B194: 63508 | D194: 709 | F194: New ASL Truck / P-O N551 - CCRC | G194: 2009 | H194: 3 | I194: 0.2 | J194: S/L | K194: 7 | L194: 2016 | M194: 2016.25 | N194: =+'Non-Reg Trks-Orig'!P105 -> 335975.47 | O194: 268780.376 | P194: 3199.766381 | Q194: 38397.19657 | R194: 0 | S194: 335975.47 | T194: 335975.47 | U194: 0
A195: P | B195: 63504, 64026 | D195: 713 | F195: New MSL Truck / P-O N562 - CCRC | G195: 2009 | H195: 3 | I195: 0.2 | J195: S/L | K195: 7 | L195: 2016 | M195: 2016.25 | N195: =+'Non-Reg Trks-Orig'!P109 -> 323793.81 | O195: 259035.048 | P195: 3083.750571 | Q195: 37005.00686 | R195: 0 | S195: 323793.81 | T195: 323793.81 | U195: 0
B196: 185110, 185112, 185111 | C196: RL | D196: 608 | F196: 2008 Navistar with Packer (N) | G196: 2009 | H196: 3 | I196: 0.2 | J196: S/L | K196: 10 | L196: 2019 | M196: 2019.25 | N196: 189003 | O196: 151202.4 | P196: 1260.02 | Q196: =P196*12 -> 15120.24 | R196: 0 | S196: 189003 | T196: 189003 | U196: 0
B197: 185110, 185112, 185111 | C197: RL | D197: 607 | F197: 2008 Navistar with Packer (N) | G197: 2009 | H197: 3 | I197: 0.2 | J197: S/L | K197: 10 | L197: 2019 | M197: 2019.25 | N197: 183488 | O197: 146790.4 | P197: 1223.253333 | Q197: =P197*12 -> 14679.04 | R197: 0 | S197: 183488 | T197: 183488 | U197: 0
A198: P | B198: 69020 | D198: 716 | F198: 2010 Peterbilt 320 | G198: 2009 | H198: 10 | I198: 0.2 | J198: S/L | K198: 7 | L198: 2016 | M198: 2016.833333 | N198: =+'Non-Reg Trks-Orig'!P114 -> 327326.2 | O198: 261860.96 | P198: 3117.392381 | Q198: 37408.70857 | R198: 0 | S198: 327326.2 | T198: 327326.2 | U198: 0
A199: P | B199: 69023, 69341, 70230 | D199: 718 | F199: 2010 Peterbilt 320 | G199: 2009 | H199: 10 | I199: 0.2 | J199: S/L | K199: 7 | L199: 2016 | M199: 2016.833333 | N199: =+'Non-Reg Trks-Orig'!P116 -> 327326.2 | O199: 261860.96 | P199: 3117.392381 | Q199: 37408.70857 | R199: 0 | S199: 327326.2 | T199: 327326.2 | U199: 0
A200: P | B200: 69019, 69338, 70233 | D200: 722 | F200: COV 2010 Recycle Contract - ASL | G200: 2009 | H200: 10 | I200: 0.2 | J200: S/L | K200: 7 | L200: 2016 | M200: 2016.833333 | N200: =+'Non-Reg Trks-Orig'!P119 -> 240916.22 | O200: 192732.976 | P200: 2294.44019 | Q200: 27533.28229 | R200: 0 | S200: 240916.22 | T200: 240916.22 | U200: 0
A201: P | B201: 70258 | D201: 723 | F201: 2010 New Peterbilt 320 | G201: 2009 | H201: 11 | I201: 0.2 | J201: S/L | K201: 7 | L201: 2016 | M201: 2016.916667 | N201: =+'Non-Reg Trks-Orig'!P120 -> 243621.52 | O201: 194897.216 | P201: 2320.204952 | Q201: 27842.45943 | R201: 0 | S201: 243621.52 | T201: 243621.52 | U201: 0
A202: 63504 | B202: 72299 | D202: 713 | F202: Truck Wrap | G202: 2010 | H202: 1 | I202: 0 | J202: S/L | K202: 3 | L202: 2013 | M202: 2013.083333 | N202: 9738 | O202: 9738 | P202: 270.5 | Q202: 3246 | R202: 0 | S202: 9738 | T202: 9738 | U202: 0
A203: P | B203: 72765, 72816 | D203: 721 | F203: New 2010 ASL Recycle Truck | G203: 2010 | H203: 2 | I203: 0.2 | J203: S/L | K203: 7 | L203: 2017 | M203: 2017.166667 | N203: =+'Non-Reg Trks-Orig'!P122 -> 327358.42 | O203: 261886.736 | P203: 3117.699238 | Q203: 37412.39086 | R203: 0 | S203: 327358.42 | T203: 327358.42 | U203: 0
A204: 85249 | B204: 85249, 85369 | D204: 724 | F204: 2011 ASL Recycle Truck (N) | G204: 2011 | H204: 7 | I204: 0.2 | J204: S/L | K204: 7 | L204: 2018 | M204: 2018.583333 | N204: =+'Non-Reg Trks-Orig'!P123 -> 355124.82 | O204: 284099.856 | P204: 3382.141143 | Q204: 40585.69371 | R204: 0 | S204: 355124.82 | T204: 355124.82 | U204: 0
B205: 104254 | D205: 725727 | E205: 3 | F205: 3 Drive Cams - #725 & #727 | G205: 2013 | H205: 5 | I205: 0.2 | J205: S/L | K205: 7 | L205: 2020 | M205: 2020.416667 | N205: =+'Non-Reg Trks-Orig'!P124 -> 1185.9 | O205: 948.72 | P205: 11.29428571 | Q205: 135.5314286 | R205: 0 | S205: 1185.9 | T205: 1185.9 | U205: 0
B206: 109510 | D206: 725 | F206: 2013 Peterbilt 320 w/ Labrie (N) | G206: 2013 | H206: 12 | I206: 0.2 | J206: S/L | K206: 7 | L206: 2020 | M206: 2021 | N206: =+'Non-Reg Trks-Orig'!P125 -> 373237.76 | O206: 298590.208 | P206: 3554.645333 | Q206: 42655.744 | R206: 0 | S206: 373237.76 | T206: 373237.76 | U206: 0
B207: 110573 | D207: 727 | F207: 2009 Peterbilt 320 SL (U) | G207: 2014 | H207: 1 | I207: 0.33 | J207: S/L | K207: 5 | L207: 2019 | M207: 2019.083333 | N207: =+'Non-Reg Trks-Orig'!P126 -> 163949.5 | O207: 109846.165 | P207: 1830.769417 | Q207: 21969.233 | R207: 0 | S207: 163949.5 | T207: 163949.5 | U207: 0
B208: 110804 | D208: 726 | F208: 2009 Peterbilt 320 SL (U) | G208: 2014 | H208: 1 | I208: 0.33 | J208: S/L | K208: 5 | L208: 2019 | M208: 2019.083333 | N208: =+'Non-Reg Trks-Orig'!P127 -> 163949.5 | O208: 109846.165 | P208: 1830.769417 | Q208: 21969.233 | R208: 0 | S208: 163949.5 | T208: 163949.5 | U208: 0
B209: 115929 | D209: 728 | F209: 2015 Peterbilt ASL (N) | G209: 2014 | H209: 9 | I209: 0.2 | J209: S/L | K209: 7 | L209: 2021 | M209: 2021.75 | N209: =+'Non-Reg Trks-Orig'!P129 -> 356025.41 | O209: 284820.328 | P209: 3390.71819 | Q209: 40688.61829 | R209: 0 | S209: 356025.41 | T209: 356025.41 | U209: 0
B210: 116560 | D210: 729 | F210: 2015 Peterbilt ASL (N) | G210: 2014 | H210: 10 | I210: 0.2 | J210: S/L | K210: 7 | L210: 2021 | M210: 2021.833333 | N210: =+'Non-Reg Trks-Orig'!P130 -> 356025.41 | O210: 284820.328 | P210: 3390.71819 | Q210: 40688.61829 | R210: 0 | S210: 356025.41 | T210: 356025.41 | U210: 0
B211: 115928 | D211: 938 | F211: 2015 Peterbilt ASL (N) | G211: 2014 | H211: 9 | I211: 0.2 | J211: S/L | K211: 7 | L211: 2021 | M211: 2021.75 | N211: =+'Non-Reg Trks-Orig'!P131 -> 354462.13 | O211: 283569.704 | P211: 3375.82981 | Q211: 40509.95771 | R211: 0 | S211: 354462.13 | T211: 354462.13 | U211: 0
B212: 123253/123430/123562/123960 | D212: 731 | F212: 2015 Peterbilt ASL (N) | G212: 2015 | H212: 6 | I212: 0.2 | J212: S/L | K212: 7 | L212: 2022 | M212: 2022.5 | N212: =+'Non-Reg Trks-Orig'!P134 -> 359993.42 | O212: 287994.736 | P212: 3428.508762 | Q212: 41142.10514 | R212: 0 | S212: 359993.42 | T212: 359993.42 | U212: 0
B213: 116560 | D213: 729 | F213: Truck Wrap for #729 | G213: 2015 | H213: 7 | I213: 0 | J213: S/L | K213: 3 | L213: 2018 | M213: 2018.583333 | N213: 1196.72 | O213: 1196.72 | P213: 33.24222222 | Q213: 398.9066667 | R213: 0 | S213: 1196.72 | T213: 1196.72 | U213: 0
B214: 115929 | D214: 728 | F214: Truck Wrap for #728 | G214: 2015 | H214: 7 | I214: 0 | J214: S/L | K214: 3 | L214: 2018 | M214: 2018.583333 | N214: 1196.74 | O214: 1196.74 | P214: 33.24277778 | Q214: 398.9133333 | R214: 0 | S214: 1196.74 | T214: 1196.74 | U214: 0
B215: 110573 | D215: 727 | F215: Truck Wrap for #727 | G215: 2015 | H215: 7 | I215: 0 | J215: S/L | K215: 3 | L215: 2018 | M215: 2018.583333 | N215: 1196.74 | O215: 1196.74 | P215: 33.24277778 | Q215: 398.9133333 | R215: 0 | S215: 1196.74 | T215: 1196.74 | U215: 0
B216: 110804 | D216: 726 | F216: Truck Wrap for #726 | G216: 2015 | H216: 7 | I216: 0 | J216: S/L | K216: 3 | L216: 2018 | M216: 2018.583333 | N216: 1196.74 | O216: 1196.74 | P216: 33.24277778 | Q216: 398.9133333 | R216: 0 | S216: 1196.74 | T216: 1196.74 | U216: 0
... 202 more rows

Sheet Total Cont, DB
C1: ='Reg Trks-Orig'!E1 -> Waste Connections of WA
C2: Container Depreciation Schedule | N2: 4 | O2: Test Period Beg. Month
C3: Assets Acquired Through July 31, 2021 | N3: 3 | O3: Test Period End Month
F4: =+J313=N6 -> FALSE | N4: 2023 | O4: First Year
N5: 2024 | O5: Second year
N6: =+N5+(N3/12) -> 2024.25 | O6: Test Period End Mo/Yr
K7: =+SUM(K84:K88,K90:K91,K206,K259:K272,K452:K455,K498:K534) -> 968920.28 | N7: =+N4+(N2/12) -> 2023.333333 | O7: Test Period Beg. Mo/Yr
P8: Beginning | Q8: Allocated
D9: Date in | F9: Salvage | I9: Year | O9: Test | P9: Accumulated | Q9: Accum. | R9: Average
D10: Service | F10: Value | G10: Method | H10: Life | I10: Fully | J10: Mo/Year | K10: Asset | L10: Depr | M10: Monthly | N10: Annual | O10: Year | P10: Depreciation | Q10: Depr. | R10: Investment
A11: Codes | B11: Qty | C11: Asset Classification | D11: Year | E11: Mo | F11: % | G11: M | H11: Years | I11: Depr | J11: Fully Depr | K11: Cost | L11: Cost | M11: Depr | N11: Depreciation | O11: Depr | P11: =+'Total Depreciation Summary'!F7 -> 4/1/2023 | Q11: =+'Total Depreciation Summary'!G7 -> 2024-03-31 | R11: =Q11 -> 2024-03-31
B12: 20 | C12: 1 Yd Container | D12: 1989 | E12: 3 | F12: 0 | G12: S/L | H12: 10 | I12: =D12+H12 -> 1999 | J12: =+I12+(E12/12) -> 1999.25 | K12: 6348 | L12: =K12-K12*F12 -> 6348 | M12: =L12/H12/12 -> 52.9 | N12: =M12*12 -> 634.8 | O12: =+IF(J12>$N$6,N12,0) -> 0 | P12: =+IF($J12<=$N$7,$K12,IF(($D12+($E12/12))>=$N$7,0,((($L12-((($J12-$N$7)*12)*$M12)))))) -> 6348 | Q12: =+IF(O12=0,L12,P12+O12) -> 6348 | R12: =+K12-Q12 -> 0
B13: 50 | C13: 1 Yd Container | D13: 1989 | E13: 4 | F13: 0 | G13: S/L | H13: 10 | I13: 1999 | J13: =+I13+(E13/12) -> 1999.333333 | K13: 17593 | L13: 17593 | M13: 146.6083333 | N13: 1759.3 | O13: =+IF(J13>$N$6,N13,0) -> 0 | P13: =+IF($J13<=$N$7,$K13,IF(($D13+($E13/12))>=$N$7,0,((($L13-((($J13-$N$7)*12)*$M13)))))) -> 17593 | Q13: =+IF(O13=0,L13,P13+O13) -> 17593 | R13: 0
B14: 50 | C14: 1 Yd Container | D14: 1989 | E14: 5 | F14: 0 | G14: S/L | H14: 10 | I14: 1999 | J14: 1999.416667 | K14: 17055 | L14: 17055 | M14: 142.125 | N14: 1705.5 | O14: 0 | P14: 17055 | Q14: 17055 | R14: 0
B15: 20 | C15: 1 Yd Container | D15: 1989 | E15: 6 | F15: 0 | G15: S/L | H15: 10 | I15: 1999 | J15: 1999.5 | K15: 6822 | L15: 6822 | M15: 56.85 | N15: 682.2 | O15: 0 | P15: 6822 | Q15: 6822 | R15: 0
B16: 40 | C16: 1 Yd Container | D16: 1989 | E16: 7 | F16: 0 | G16: S/L | H16: 10 | I16: 1999 | J16: 1999.583333 | K16: 13644 | L16: 13644 | M16: 113.7 | N16: 1364.4 | O16: 0 | P16: 13644 | Q16: 13644 | R16: 0
B17: 20 | C17: 1 Yd Container | D17: 1989 | E17: 9 | F17: 0 | G17: S/L | H17: 10 | I17: 1999 | J17: 1999.75 | K17: 6822 | L17: 6822 | M17: 56.85 | N17: 682.2 | O17: 0 | P17: 6822 | Q17: 6822 | R17: 0
B18: 10 | C18: 1 Yd Container | D18: 1990 | E18: 7 | F18: 0 | G18: S/L | H18: 10 | I18: 2000 | J18: 2000.583333 | K18: 3411 | L18: 3411 | M18: 28.425 | N18: 341.1 | O18: 0 | P18: 3411 | Q18: 3411 | R18: 0
B19: 20 | C19: 1 Yd Container | D19: 1990 | E19: 8 | F19: 0 | G19: S/L | H19: 10 | I19: 2000 | J19: 2000.666667 | K19: 6348 | L19: 6348 | M19: 52.9 | N19: 634.8 | O19: 0 | P19: 6348 | Q19: 6348 | R19: 0
B20: 15 | C20: 1 Yd Container | D20: 1990 | E20: 10 | F20: 0 | G20: S/L | H20: 10 | I20: 2000 | J20: 2000.833333 | K20: 5407 | L20: 5407 | M20: 45.05833333 | N20: 540.7 | O20: 0 | P20: 5407 | Q20: 5407 | R20: 0
B21: 15 | C21: 1.5 Yd Container | D21: 1990 | E21: 10 | F21: 0 | G21: S/L | H21: 10 | I21: 2000 | J21: 2000.833333 | K21: 3766 | L21: 3766 | M21: 31.38333333 | N21: 376.6 | O21: 0 | P21: 3766 | Q21: 3766 | R21: 0
B22: 30 | C22: 2 Yd Container | D22: 1990 | E22: 10 | F22: 0 | G22: S/L | H22: 10 | I22: 2000 | J22: 2000.833333 | K22: 12751 | L22: 12751 | M22: 106.2583333 | N22: 1275.1 | O22: 0 | P22: 12751 | Q22: 12751 | R22: 0
B23: 16 | C23: 5 Yd FL Container | D23: 1990 | E23: 10 | F23: 0 | G23: S/L | H23: 10 | I23: 2000 | J23: 2000.833333 | K23: 9899 | L23: 9899 | M23: 82.49166667 | N23: 989.9 | O23: 0 | P23: 9899 | Q23: 9899 | R23: 0
B24: 20 | C24: 1 Yd Container | D24: 1990 | E24: 11 | F24: 0 | G24: S/L | H24: 10 | I24: 2000 | J24: 2000.916667 | K24: 6993 | L24: 6993 | M24: 58.275 | N24: 699.3 | O24: 0 | P24: 6993 | Q24: 6993 | R24: 0
B25: 30 | C25: 1 Yd Container | D25: 1991 | E25: 1 | F25: 0 | G25: S/L | H25: 10 | I25: 2001 | J25: 2001.083333 | K25: 13945 | L25: 13945 | M25: 116.2083333 | N25: 1394.5 | O25: 0 | P25: 13945 | Q25: 13945 | R25: 0
B26: 20 | C26: 1.5 Yd Container | D26: 1991 | E26: 1 | F26: 0 | G26: S/L | H26: 10 | I26: 2001 | J26: 2001.083333 | K26: 8070 | L26: 8070 | M26: 67.25 | N26: 807 | O26: 0 | P26: 8070 | Q26: 8070 | R26: 0
B27: 20 | C27: 1 Yd Container | D27: 1991 | E27: 2 | F27: 0 | G27: S/L | H27: 10 | I27: 2001 | J27: 2001.166667 | K27: 8178 | L27: 8178 | M27: 68.15 | N27: 817.8 | O27: 0 | P27: 8178 | Q27: 8178 | R27: 0
B28: 20 | C28: 2 Yd Container | D28: 1991 | E28: 2 | F28: 0 | G28: S/L | H28: 10 | I28: 2001 | J28: 2001.166667 | K28: 10179 | L28: 10179 | M28: 84.825 | N28: 1017.9 | O28: 0 | P28: 10179 | Q28: 10179 | R28: 0
B29: 5 | C29: 5 Yd FL Container | D29: 1991 | E29: 2 | F29: 0 | G29: S/L | H29: 10 | I29: 2001 | J29: 2001.166667 | K29: 3050 | L29: 3050 | M29: 25.41666667 | N29: 305 | O29: 0 | P29: 3050 | Q29: 3050 | R29: 0
B30: 20 | C30: 2 Yd Container | D30: 1991 | E30: 3 | F30: 0 | G30: S/L | H30: 10 | I30: 2001 | J30: 2001.25 | K30: 25447 | L30: 25447 | M30: 212.0583333 | N30: 2544.7 | O30: 0 | P30: 25447 | Q30: 25447 | R30: 0
B31: 51 | C31: 1 Yd Container | D31: 1991 | E31: 4 | F31: 0 | G31: S/L | H31: 10 | I31: 2001 | J31: 2001.333333 | K31: 15230.83 | L31: 15230.83 | M31: 126.9235833 | N31: 1523.083 | O31: 0 | P31: 15230.83 | Q31: 15230.83 | R31: 0
B32: 55 | C32: 1 Yd Container | D32: 1991 | E32: 4 | F32: 0 | G32: S/L | H32: 10 | I32: 2001 | J32: 2001.333333 | K32: 18202.58 | L32: 18202.58 | M32: 151.6881667 | N32: 1820.258 | O32: 0 | P32: 18202.58 | Q32: 18202.58 | R32: 0
B33: 10 | C33: 1.5 Yd Container | D33: 1991 | E33: 4 | F33: 0 | G33: S/L | H33: 10 | I33: 2001 | J33: 2001.333333 | K33: 3423.4 | L33: 3423.4 | M33: 28.52833333 | N33: 342.34 | O33: 0 | P33: 3423.4 | Q33: 3423.4 | R33: 0
B34: 10 | C34: 1.5 Yd Container | D34: 1991 | E34: 4 | F34: 0 | G34: S/L | H34: 10 | I34: 2001 | J34: 2001.333333 | K34: 3736.53 | L34: 3736.53 | M34: 31.13775 | N34: 373.653 | O34: 0 | P34: 3736.53 | Q34: 3736.53 | R34: 0
B35: 20 | C35: 1 Yd Container | D35: 1991 | E35: 6 | F35: 0 | G35: S/L | H35: 10 | I35: 2001 | J35: 2001.5 | K35: 7983.92 | L35: 7983.92 | M35: 66.53266667 | N35: 798.392 | O35: 0 | P35: 7983.92 | Q35: 7983.92 | R35: 0
B36: 20 | C36: 1 Yd Container | D36: 1991 | E36: 6 | F36: 0 | G36: S/L | H36: 10 | I36: 2001 | J36: 2001.5 | K36: 6542.08 | L36: 6542.08 | M36: 54.51733333 | N36: 654.208 | O36: 0 | P36: 6542.08 | Q36: 6542.08 | R36: 0
B37: 10 | C37: 1 Yd Container | D37: 1991 | E37: 7 | F37: 0 | G37: S/L | H37: 10 | I37: 2001 | J37: 2001.583333 | K37: 3496 | L37: 3496 | M37: 29.13333333 | N37: 349.6 | O37: 0 | P37: 3496 | Q37: 3496 | R37: 0
B38: 16 | C38: 1 Yd Container | D38: 1991 | E38: 7 | F38: 0 | G38: S/L | H38: 10 | I38: 2001 | J38: 2001.583333 | K38: 4988 | L38: 4988 | M38: 41.56666667 | N38: 498.8 | O38: 0 | P38: 4988 | Q38: 4988 | R38: 0
B39: 15 | C39: 1.5 Yd Container | D39: 1991 | E39: 7 | F39: 0 | G39: S/L | H39: 10 | I39: 2001 | J39: 2001.583333 | K39: 5029 | L39: 5029 | M39: 41.90833333 | N39: 502.9 | O39: 0 | P39: 5029 | Q39: 5029 | R39: 0
B40: 5 | C40: 1.5 Yd Container | D40: 1991 | E40: 7 | F40: 0 | G40: S/L | H40: 10 | I40: 2001 | J40: 2001.583333 | K40: 1883 | L40: 1883 | M40: 15.69166667 | N40: 188.3 | O40: 0 | P40: 1883 | Q40: 1883 | R40: 0
B41: 20 | C41: 2 Yd Container | D41: 1991 | E41: 7 | F41: 0 | G41: S/L | H41: 10 | I41: 2001 | J41: 2001.583333 | K41: 7585 | L41: 7585 | M41: 63.20833333 | N41: 758.5 | O41: 0 | P41: 7585 | Q41: 7585 | R41: 0
B42: 10 | C42: 1 Yd Container | D42: 1991 | E42: 8 | F42: 0 | G42: S/L | H42: 10 | I42: 2001 | J42: 2001.666667 | K42: 3118 | L42: 3118 | M42: 25.98333333 | N42: 311.8 | O42: 0 | P42: 3118 | Q42: 3118 | R42: 0
B43: 10 | C43: 1 Yd Container | D43: 1991 | E43: 8 | F43: 0 | G43: S/L | H43: 10 | I43: 2001 | J43: 2001.666667 | K43: 3441 | L43: 3441 | M43: 28.675 | N43: 344.1 | O43: 0 | P43: 3441 | Q43: 3441 | R43: 0
B44: 10 | C44: 1 Yd Container | D44: 1991 | E44: 8 | F44: 0 | G44: S/L | H44: 10 | I44: 2001 | J44: 2001.666667 | K44: 3496 | L44: 3496 | M44: 29.13333333 | N44: 349.6 | O44: 0 | P44: 3496 | Q44: 3496 | R44: 0
B45: 16 | C45: 1 Yd Container | D45: 1991 | E45: 8 | F45: 0 | G45: S/L | H45: 10 | I45: 2001 | J45: 2001.666667 | K45: 4988 | L45: 4988 | M45: 41.56666667 | N45: 498.8 | O45: 0 | P45: 4988 | Q45: 4988 | R45: 0
B46: 10 | C46: 1.5 Yd Container | D46: 1991 | E46: 8 | F46: 0 | G46: S/L | H46: 10 | I46: 2001 | J46: 2001.666667 | K46: 3423 | L46: 3423 | M46: 28.525 | N46: 342.3 | O46: 0 | P46: 3423 | Q46: 3423 | R46: 0
B47: 10 | C47: 2 Yd Container | D47: 1991 | E47: 8 | F47: 0 | G47: S/L | H47: 10 | I47: 2001 | J47: 2001.666667 | K47: 3872 | L47: 3872 | M47: 32.26666667 | N47: 387.2 | O47: 0 | P47: 3872 | Q47: 3872 | R47: 0
B48: 20 | C48: 1 Yd Container | D48: 1991 | E48: 9 | F48: 0 | G48: S/L | H48: 10 | I48: 2001 | J48: 2001.75 | K48: 6235 | L48: 6235 | M48: 51.95833333 | N48: 623.5 | O48: 0 | P48: 6235 | Q48: 6235 | R48: 0
B49: 10 | C49: 1.5 Yd Container | D49: 1991 | E49: 9 | F49: 0 | G49: S/L | H49: 10 | I49: 2001 | J49: 2001.75 | K49: 3423 | L49: 3423 | M49: 28.525 | N49: 342.3 | O49: 0 | P49: 3423 | Q49: 3423 | R49: 0
B50: 50 | C50: 1 Yd Container | D50: 1991 | E50: 10 | F50: 0 | G50: S/L | H50: 10 | I50: 2001 | J50: 2001.833333 | K50: 16761 | L50: 16761 | M50: 139.675 | N50: 1676.1 | O50: 0 | P50: 16761 | Q50: 16761 | R50: 0
B51: 40 | C51: 1.5 Yd Container | D51: 1991 | E51: 10 | F51: 0 | G51: S/L | H51: 10 | I51: 2001 | J51: 2001.833333 | K51: 14330 | L51: 14330 | M51: 119.4166667 | N51: 1433 | O51: 0 | P51: 14330 | Q51: 14330 | R51: 0
B52: 30 | C52: 2 Yd Container | D52: 1991 | E52: 10 | F52: 0 | G52: S/L | H52: 10 | I52: 2001 | J52: 2001.833333 | K52: 11528 | L52: 11528 | M52: 96.06666667 | N52: 1152.8 | O52: 0 | P52: 11528 | Q52: 11528 | R52: 0
B53: 2 | C53: 3 Yd Container | D53: 1991 | E53: 10 | F53: 0 | G53: S/L | H53: 10 | I53: 2001 | J53: 2001.833333 | K53: 884 | L53: 884 | M53: 7.366666667 | N53: 88.4 | O53: 0 | P53: 884 | Q53: 884 | R53: 0
B54: 6 | C54: 3 Yd Container | D54: 1991 | E54: 10 | F54: 0 | G54: S/L | H54: 10 | I54: 2001 | J54: 2001.833333 | K54: 3563 | L54: 3563 | M54: 29.69166667 | N54: 356.3 | O54: 0 | P54: 3563 | Q54: 3563 | R54: 0
B55: 51 | C55: 1 Yd Container | D55: 1991 | E55: 11 | F55: 0 | G55: S/L | H55: 10 | I55: 2001 | J55: 2001.916667 | K55: 16729 | L55: 16729 | M55: 139.4083333 | N55: 1672.9 | O55: 0 | P55: 16729 | Q55: 16729 | R55: 0
B56: 20 | C56: 2 Yd FL Container | D56: 1992 | E56: 3 | F56: 0 | G56: S/L | H56: 10 | I56: 2002 | J56: 2002.25 | K56: 7850 | L56: 7850 | M56: 65.41666667 | N56: 785 | O56: 0 | P56: 7850 | Q56: 7850 | R56: 0
B57: 52 | C57: 2 Yd FL Container | D57: 1992 | E57: 3 | F57: 0 | G57: S/L | H57: 10 | I57: 2002 | J57: 2002.25 | K57: 18890 | L57: 18890 | M57: 157.4166667 | N57: 1889 | O57: 0 | P57: 18890 | Q57: 18890 | R57: 0
B58: 10 | C58: 1 Yd FL Container | D58: 1992 | E58: 4 | F58: 0 | G58: S/L | H58: 10 | I58: 2002 | J58: 2002.333333 | K58: 3249 | L58: 3249 | M58: 27.075 | N58: 324.9 | O58: 0 | P58: 3249 | Q58: 3249 | R58: 0
B59: 10 | C59: 3 Yd FL Container | D59: 1992 | E59: 4 | F59: 0 | G59: S/L | H59: 10 | I59: 2002 | J59: 2002.333333 | K59: 4249 | L59: 4249 | M59: 35.40833333 | N59: 424.9 | O59: 0 | P59: 4249 | Q59: 4249 | R59: 0
B60: 16 | C60: 1.5 Yd RL Container | D60: 1992 | E60: 7 | F60: 0 | G60: S/L | H60: 10 | I60: 2002 | J60: 2002.583333 | K60: 5152 | L60: 5152 | M60: 42.93333333 | N60: 515.2 | O60: 0 | P60: 5152 | Q60: 5152 | R60: 0
B61: 7 | C61: 3 Yd RL Container | D61: 1992 | E61: 7 | F61: 0 | G61: S/L | H61: 10 | I61: 2002 | J61: 2002.583333 | K61: 3945 | L61: 3945 | M61: 32.875 | N61: 394.5 | O61: 0 | P61: 3945 | Q61: 3945 | R61: 0
B62: 12 | C62: 2 Yd Container | D62: 1993 | E62: 2 | F62: 0 | G62: S/L | H62: 10 | I62: 2003 | J62: 2003.166667 | K62: 4346 | L62: 4346 | M62: 36.21666667 | N62: 434.6 | O62: 0 | P62: 4346 | Q62: 4346 | R62: 0
B63: 10 | C63: 1 Yd FL Container | D63: 1993 | E63: 3 | F63: 0 | G63: S/L | H63: 10 | I63: 2003 | J63: 2003.25 | K63: 3529 | L63: 3529 | M63: 29.40833333 | N63: 352.9 | O63: 0 | P63: 3529 | Q63: 3529 | R63: 0
B64: 10 | C64: 2 Yd Container | D64: 1993 | E64: 7 | F64: 0 | G64: S/L | H64: 10 | I64: 2003 | J64: 2003.583333 | K64: 3766 | L64: 3766 | M64: 31.38333333 | N64: 376.6 | O64: 0 | P64: 3766 | Q64: 3766 | R64: 0
B65: 10 | C65: 1.5 Yd Container | D65: 1993 | E65: 8 | F65: 0 | G65: S/L | H65: 10 | I65: 2003 | J65: 2003.666667 | K65: 3734 | L65: 3734 | M65: 31.11666667 | N65: 373.4 | O65: 0 | P65: 3734 | Q65: 3734 | R65: 0
B66: 5 | C66: 2 Yd Container | D66: 1993 | E66: 9 | F66: 0 | G66: S/L | H66: 10 | I66: 2003 | J66: 2003.75 | K66: 2044 | L66: 2044 | M66: 17.03333333 | N66: 204.4 | O66: 0 | P66: 2044 | Q66: 2044 | R66: 0
B67: 10 | C67: 1 Yd Container | D67: 1993 | E67: 10 | F67: 0 | G67: S/L | H67: 10 | I67: 2003 | J67: 2003.833333 | K67: 3336 | L67: 3336 | M67: 27.8 | N67: 333.6 | O67: 0 | P67: 3336 | Q67: 3336 | R67: 0
B68: 25 | C68: 3 Yd FL Container | D68: 1993 | E68: 12 | F68: 0 | G68: S/L | H68: 10 | I68: 2003 | J68: 2004 | K68: 12240 | L68: 12240 | M68: 102 | N68: 1224 | O68: 0 | P68: 12240 | Q68: 12240 | R68: 0
B69: 10 | C69: 6 Yd FL Container | D69: 1993 | E69: 12 | F69: 0 | G69: S/L | H69: 10 | I69: 2003 | J69: 2004 | K69: 6356 | L69: 6356 | M69: 52.96666667 | N69: 635.6 | O69: 0 | P69: 6356 | Q69: 6356 | R69: 0
B70: 25 | C70: 3 Yd FL Container | D70: 1994 | E70: 1 | F70: 0 | G70: S/L | H70: 10 | I70: 2004 | J70: 2004.083333 | K70: 12240 | L70: 12240 | M70: 102 | N70: 1224 | O70: 0 | P70: 12240 | Q70: 12240 | R70: 0
B71: 50 | C71: 2 Yd FL Container | D71: 1994 | E71: 2 | F71: 0 | G71: S/L | H71: 10 | I71: 2004 | J71: 2004.166667 | K71: 21977 | L71: 21977 | M71: 183.1416667 | N71: 2197.7 | O71: 0 | P71: 21977 | Q71: 21977 | R71: 0
B72: 50 | C72: 3 Yd FL Container | D72: 1994 | E72: 2 | F72: 0 | G72: S/L | H72: 10 | I72: 2004 | J72: 2004.166667 | K72: 24479 | L72: 24479 | M72: 203.9916667 | N72: 2447.9 | O72: 0 | P72: 24479 | Q72: 24479 | R72: 0
B73: 10 | C73: 6 Yd FL Container | D73: 1994 | E73: 2 | F73: 0 | G73: S/L | H73: 10 | I73: 2004 | J73: 2004.166667 | K73: 6050 | L73: 6050 | M73: 50.41666667 | N73: 605 | O73: 0 | P73: 6050 | Q73: 6050 | R73: 0
B74: 20 | C74: 6 Yd FL Container | D74: 1994 | E74: 3 | F74: 0 | G74: S/L | H74: 10 | I74: 2004 | J74: 2004.25 | K74: 12713 | L74: 12713 | M74: 105.9416667 | N74: 1271.3 | O74: 0 | P74: 12713 | Q74: 12713 | R74: 0
B75: 20 | C75: 3 Yd FL Container | D75: 1994 | E75: 4 | F75: 0 | G75: S/L | H75: 10 | I75: 2004 | J75: 2004.333333 | K75: =9100+692 -> 9792 | L75: 9792 | M75: 81.6 | N75: 979.2 | O75: 0 | P75: 9792 | Q75: 9792 | R75: 0
B76: 25 | C76: 2 Yd FL Container | D76: 1994 | E76: 6 | F76: 0 | G76: S/L | H76: 10 | I76: =D76+H76 -> 2004 | J76: 2004.5 | K76: 11917 | L76: =K76-K76*F76 -> 11917 | M76: =L76/H76/12 -> 99.30833333 | N76: =M76*12 -> 1191.7 | O76: 0 | P76: 11917 | Q76: 11917 | R76: =+K76-Q76 -> 0
B77: 25 | C77: 2 Yd FL Container | D77: 1994 | E77: 7 | F77: 0 | G77: S/L | H77: 10 | I77: 2004 | J77: =+I77+(E77/12) -> 2004.583333 | K77: 11917 | L77: 11917 | M77: 99.30833333 | N77: 1191.7 | O77: =+IF(J77>$N$6,N77,0) -> 0 | P77: =+IF($J77<=$N$7,$K77,IF(($D77+($E77/12))>=$N$7,0,((($L77-((($J77-$N$7)*12)*$M77)))))) -> 11917 | Q77: =+IF(O77=0,L77,P77+O77) -> 11917 | R77: 0
B78: 15 | C78: 3 Yd FL Container | D78: 1994 | E78: 9 | F78: 0 | G78: S/L | H78: 10 | I78: 2004 | J78: 2004.75 | K78: =6825+519 -> 7344 | L78: 7344 | M78: 61.2 | N78: 734.4 | O78: 0 | P78: 7344 | Q78: 7344 | R78: 0
B79: 10 | C79: 4 Yd FL Container | D79: 1994 | E79: 9 | F79: 0 | G79: S/L | H79: 10 | I79: 2004 | J79: 2004.75 | K79: =5358+407 -> 5765 | L79: 5765 | M79: 48.04166667 | N79: 576.5 | O79: 0 | P79: 5765 | Q79: 5765 | R79: 0
B80: 10 | C80: 6 Yd FL Container | D80: 1994 | E80: 9 | F80: 0 | G80: S/L | H80: 10 | I80: 2004 | J80: 2004.75 | K80: =5908+449 -> 6357 | L80: 6357 | M80: 52.975 | N80: 635.7 | O80: 0 | P80: 6357 | Q80: 6357 | R80: 0
A81: 84104 | B81: 1 | C81: 8 YD FL Container | D81: 1996 | E81: 8 | F81: 0 | G81: S/L | H81: 10 | I81: 2006 | J81: 2006.666667 | K81: 0 | L81: 0 | M81: 0 | N81: 0 | O81: 0 | P81: 0 | Q81: 0 | R81: 0
B82: 3 | C82: 3 Yd FL Container | D82: 1998 | E82: 10 | F82: 0 | G82: S/L | H82: 10 | I82: 2008 | J82: 2008.833333 | K82: 0 | L82: 0 | M82: 0 | N82: 0 | O82: 0 | P82: 0 | Q82: 0 | R82: 0
B83: 2 | C83: 4 Yd FL Container | D83: 1998 | E83: 10 | F83: 0 | G83: S/L | H83: 10 | I83: 2008 | J83: 2008.833333 | K83: 0 | L83: 0 | M83: 0 | N83: 0 | O83: 0 | P83: 0 | Q83: 0 | R83: 0
A84: 1134 | B84: 10 | C84: 8 YD FEL Containers | D84: 1998 | E84: 1 | F84: 0 | G84: S/L | H84: 10 | I84: 2008 | J84: 2008.083333 | K84: 6434.48 | L84: 6434.48 | M84: 53.62066667 | N84: 643.448 | O84: 0 | P84: 6434.48 | Q84: 6434.48 | R84: 0
A85: 1135 | C85: Corp ID Decals | D85: 1998 | E85: 8 | F85: 0 | G85: S/L | H85: 10 | I85: 2008 | J85: 2008.666667 | K85: 9787.65 | L85: 9787.65 | M85: 81.56375 | N85: 978.765 | O85: 0 | P85: 9787.65 | Q85: 9787.65 | R85: 0
A86: 737 | B86: 32 | C86: 1 Yard Containers | D86: 1998 | E86: 9 | F86: 0 | G86: S/L | H86: 10 | I86: 2008 | J86: 2008.75 | K86: 2400 | L86: 2400 | M86: 20 | N86: 240 | O86: 0 | P86: 2400 | Q86: 2400 | R86: 0
A87: 739 | B87: 55 | C87: 2 Yard Containers | D87: 1998 | E87: 9 | F87: 0 | G87: S/L | H87: 10 | I87: 2008 | J87: 2008.75 | K87: 7077.01 | L87: 7077.01 | M87: 58.97508333 | N87: 707.701 | O87: 0 | P87: 7077.01 | Q87: 7077.01 | R87: 0
A88: 1448 | B88: 2 | C88: 4 YD Bins | D88: 1999 | E88: 2 | F88: 0 | G88: S/L | H88: 10 | I88: 2009 | J88: 2009.166667 | K88: 2593.67 | L88: 2593.67 | M88: 21.61391667 | N88: 259.367 | O88: 0 | P88: 2593.67 | Q88: 2593.67 | R88: 0
A89: 2413 | B89: 4 | C89: 4 YD FEL Containers | D89: 1999 | E89: 7 | F89: 0 | G89: S/L | H89: 10 | I89: 2009 | J89: 2009.583333 | K89: 1978.81 | L89: 1978.81 | M89: 16.49008333 | N89: 197.881 | O89: 0 | P89: 1978.81 | Q89: 1978.81 | R89: 0
A90: 2414 | B90: 7 | C90: 8 YD FEL Containers | D90: 1999 | E90: 7 | F90: 0 | G90: S/L | H90: 10 | I90: 2009 | J90: 2009.583333 | K90: 4915.43 | L90: 4915.43 | M90: 40.96191667 | N90: 491.543 | O90: 0 | P90: 4915.43 | Q90: 4915.43 | R90: 0
A91: 2805 | B91: 20 | C91: 2 YD RL/FL Containers w/ Lids w/ Swivel Casters | D91: 1999 | E91: 9 | F91: 0 | G91: S/L | H91: 10 | I91: 2009 | J91: 2009.75 | K91: 8158.1 | L91: 8158.1 | M91: 67.98416667 | N91: 815.81 | O91: 0 | P91: 8158.1 | Q91: 8158.1 | R91: 0
A92: 4177 | B92: 14 | C92: 4 YD Front Load Containers | D92: 1999 | E92: 12 | F92: 0 | G92: S/L | H92: 10 | I92: 2009 | J92: 2010 | K92: 6966.04 | L92: 6966.04 | M92: 58.05033333 | N92: 696.604 | O92: 0 | P92: 6966.04 | Q92: 6966.04 | R92: 0
A93: 129345 | B93: 22 | C93: 1YD Rearload Containers | D93: 2000 | E93: 2 | F93: 0 | G93: S/L | H93: 7 | I93: 2007 | J93: 2007.166667 | K93: 618.64 | L93: 618.64 | M93: 7.364761905 | N93: 88.37714286 | O93: 0 | P93: 618.64 | Q93: 618.64 | R93: 0
A94: 129344 | B94: 46 | C94: 2YD Rearload Containers | D94: 2000 | E94: 2 | F94: 0 | G94: S/L | H94: 7 | I94: 2007 | J94: 2007.166667 | K94: 1658.76 | L94: 1658.76 | M94: 19.74714286 | N94: 236.9657143 | O94: 0 | P94: 1658.76 | Q94: 1658.76 | R94: 0
A95: 129346 | B95: 1 | C95: 1.5 YD CONTAINERS | D95: 2000 | E95: 3 | F95: 0 | G95: S/L | H95: 12 | I95: 2012 | J95: 2012.25 | K95: 323.22 | L95: 323.22 | M95: 2.244583333 | N95: 26.935 | O95: 0 | P95: 323.22 | Q95: 323.22 | R95: 0
A96: 130078 | B96: 3 | C96: 1YD CONTAINERS | D96: 2000 | E96: 3 | F96: 0 | G96: S/L | H96: 12 | I96: 2012 | J96: 2012.25 | K96: 908.04 | L96: 908.04 | M96: 6.305833333 | N96: 75.67 | O96: 0 | P96: 908.04 | Q96: 908.04 | R96: 0
A97: 130077 | B97: 3 | C97: 1.5 YD CONTAINERS | D97: 2000 | E97: 3 | F97: 0 | G97: S/L | H97: 12 | I97: 2012 | J97: 2012.25 | K97: 969.66 | L97: 969.66 | M97: 6.73375 | N97: 80.805 | O97: 0 | P97: 969.66 | Q97: 969.66 | R97: 0
A98: 102659 | B98: 40 | C98: 1 Yd FL Container | D98: 2000 | E98: 8 | F98: 0 | G98: S/L | H98: 10 | I98: 2010 | J98: 2010.666667 | K98: 8424 | L98: 8424 | M98: 70.2 | N98: 842.4 | O98: 0 | P98: 8424 | Q98: 8424 | R98: 0
A99: 6203 | B99: 21 | C99: 2 YD FL ?RL Containers | D99: 2000 | E99: 4 | F99: 0 | G99: S/L | H99: 10 | I99: 2010 | J99: 2010.333333 | K99: 7654.44 | L99: 7654.44 | M99: 63.787 | N99: 765.444 | O99: 0 | P99: 7654.44 | Q99: 7654.44 | R99: 0
A100: 6204 | B100: 20 | C100: 2 YD FL/RL Containers | D100: 2000 | E100: 4 | F100: 0 | G100: S/L | H100: 10 | I100: 2010 | J100: 2010.333333 | K100: 7289.94 | L100: 7289.94 | M100: 60.7495 | N100: 728.994 | O100: 0 | P100: 7289.94 | Q100: 7289.94 | R100: 0
A101: 6202 | B101: 21 | C101: 2 YD FL/RL Containers w/ Lids | D101: 2000 | E101: 4 | F101: 0 | G101: S/L | H101: 10 | I101: 2010 | J101: 2010.333333 | K101: 7654.44 | L101: 7654.44 | M101: 63.787 | N101: 765.444 | O101: 0 | P101: 7654.44 | Q101: 7654.44 | R101: 0
A102: 6200 | B102: 3 | C102: 2 YD FL/RL Containers w/ Lids | D102: 2000 | E102: 4 | F102: 0 | G102: S/L | H102: 10 | I102: 2010 | J102: 2010.333333 | K102: 1013.43 | L102: 1013.43 | M102: 8.44525 | N102: 101.343 | O102: 0 | P102: 1013.43 | Q102: 1013.43 | R102: 0
A103: 6205 | B103: 5 | C103: 2 YD FL/RL Continers | D103: 2000 | E103: 4 | F103: 0 | G103: S/L | H103: 10 | I103: 2010 | J103: 2010.333333 | K103: 1822.48 | L103: 1822.48 | M103: 15.18733333 | N103: 182.248 | O103: 0 | P103: 1822.48 | Q103: 1822.48 | R103: 0
A104: 6201 | B104: 10 | C104: 4 YD Front Load Containers | D104: 2000 | E104: 4 | F104: 0 | G104: S/L | H104: 10 | I104: 2010 | J104: 2010.333333 | K104: 4856.58 | L104: 4856.58 | M104: 40.4715 | N104: 485.658 | O104: 0 | P104: 4856.58 | Q104: 4856.58 | R104: 0
A105: 6199 | B105: 4 | C105: 8YD Cathedral Containers w/ Lids | D105: 2000 | E105: 4 | F105: 0 | G105: S/L | H105: 10 | I105: 2010 | J105: 2010.333333 | K105: 2701.04 | L105: 2701.04 | M105: 22.50866667 | N105: 270.104 | O105: 0 | P105: 2701.04 | Q105: 2701.04 | R105: 0
A106: 132675 | B106: 5 | C106: 1.5 RL Containers | D106: 2001 | E106: 5 | F106: 0 | G106: S/L | H106: 12 | I106: 2013 | J106: 2013.416667 | K106: 1918.89 | L106: 1918.89 | M106: 13.325625 | N106: 159.9075 | O106: 0 | P106: 1918.89 | Q106: 1918.89 | R106: 0
A107: 12528 | B107: 6 | C107: 8 Yd Containers | D107: 2001 | E107: 12 | F107: 0 | G107: S/L | H107: 10 | I107: 2011 | J107: 2012 | K107: 4637.33 | L107: 4637.33 | M107: 38.64441667 | N107: 463.733 | O107: 0 | P107: 4637.33 | Q107: 4637.33 | R107: 0
A108: 16068 | B108: 6 | C108: 8 Yd Frontload Cathedral Containers | D108: 2002 | E108: 6 | F108: 0 | G108: S/L | H108: 10 | I108: 2012 | J108: 2012.5 | K108: 4442.07 | L108: 4442.07 | M108: 37.01725 | N108: 444.207 | O108: 0 | P108: 4442.07 | Q108: 4442.07 | R108: 0
A109: 132674 | B109: 7 | C109: 1 Yd RL Containers | D109: 2003 | E109: 4 | F109: 0 | G109: S/L | H109: 12 | I109: 2015 | J109: 2015.333333 | K109: 2383.6 | L109: 2383.6 | M109: 16.55277778 | N109: 198.6333333 | O109: 0 | P109: 2383.6 | Q109: 2383.6 | R109: 0
A110: 22072 | B110: 6 | C110: 8 Yd Front Load Containers | D110: 2003 | E110: 4 | F110: 0 | G110: S/L | H110: 10 | I110: 2013 | J110: 2013.333333 | K110: 520 | L110: 520 | M110: 4.333333333 | N110: 52 | O110: 0 | P110: 520 | Q110: 520 | R110: 0
A111: 19942 | B111: 6 | C111: 8 Yd Front Load Containers | D111: 2003 | E111: 4 | F111: 0 | G111: S/L | H111: 10 | I111: 2013 | J111: 2013.333333 | K111: 4213.22 | L111: 4213.22 | M111: 35.11016667 | N111: 421.322 | O111: 0 | P111: 4213.22 | Q111: 4213.22 | R111: 0
A112: 19950 | B112: 15 | C112: 1 Yd FL/RL Combo Containers | D112: 2003 | E112: 5 | F112: 0 | G112: S/L | H112: 10 | I112: 2013 | J112: 2013.416667 | K112: 5478.95 | L112: 5478.95 | M112: 45.65791667 | N112: 547.895 | O112: 0 | P112: 5478.95 | Q112: 5478.95 | R112: 0
A113: 19945 | B113: 5 | C113: 1 Yd FL/RL Combo Containers | D113: 2003 | E113: 5 | F113: 0 | G113: S/L | H113: 10 | I113: 2013 | J113: 2013.416667 | K113: 1826.32 | L113: 1826.32 | M113: 15.21933333 | N113: 182.632 | O113: 0 | P113: 1826.32 | Q113: 1826.32 | R113: 0
A114: 19944 | B114: 10 | C114: 2 Yard FL/RL Combo Containers | D114: 2003 | E114: 5 | F114: 0 | G114: S/L | H114: 10 | I114: 2013 | J114: 2013.416667 | K114: 3965.1 | L114: 3965.1 | M114: 33.0425 | N114: 396.51 | O114: 0 | P114: 3965.1 | Q114: 3965.1 | R114: 0
A115: 21306 | B115: 5 | C115: 3 Yd Slant Top FL Containers | D115: 2003 | E115: 9 | F115: 0 | G115: S/L | H115: 10 | I115: 2013 | J115: 2013.75 | K115: 2659.74 | L115: 2659.74 | M115: 22.1645 | N115: 265.974 | O115: 0 | P115: 2659.74 | Q115: 2659.74 | R115: 0
A116: 21307 | B116: 4 | C116: 4 Yd Slant Top FL Containers | D116: 2003 | E116: 9 | F116: 0 | G116: S/L | H116: 10 | I116: 2013 | J116: 2013.75 | K116: 2412.64 | L116: 2412.64 | M116: 20.10533333 | N116: 241.264 | O116: 0 | P116: 2412.64 | Q116: 2412.64 | R116: 0
A117: 22823 | C117: Commercial Front Load Containers | D117: 2003 | E117: 12 | F117: 0 | G117: S/L | H117: 10 | I117: 2013 | J117: 2014 | K117: 19350.14 | L117: 19350.14 | M117: 161.2511667 | N117: 1935.014 | O117: 0 | P117: 19350.14 | Q117: 19350.14 | R117: 0
B118: 6 | C118: 3 Yd FL Container Slant Top w/Plastic Lids | D118: 2004 | E118: 3 | F118: 0 | G118: S/L | H118: 10 | I118: 2014 | J118: 2014.25 | K118: 3063.5 | L118: 3063.5 | M118: 25.52916667 | N118: 306.35 | O118: 0 | P118: 3063.5 | Q118: 3063.5 | R118: 0
B119: 5 | C119: 4 Yd FL Container Slant Top w/ Plastic Lids | D119: 2004 | E119: 3 | F119: 0 | G119: S/L | H119: 10 | I119: 2014 | J119: 2014.25 | K119: 2891.72 | L119: 2891.72 | M119: 24.09766667 | N119: 289.172 | O119: 0 | P119: 2891.72 | Q119: 2891.72 | R119: 0
B120: 16 | C120: 1.5 Yd RL Container | D120: 2004 | E120: 4 | F120: 0 | G120: S/L | H120: 10 | I120: 2014 | J120: 2014.333333 | K120: 6131.72 | L120: 6131.72 | M120: 51.09766667 | N120: 613.172 | O120: 0 | P120: 6131.72 | Q120: 6131.72 | R120: 0
B121: 17 | C121: 3 Yd FL Container | D121: 2004 | E121: 4 | F121: 0 | G121: S/L | H121: 10 | I121: 2014 | J121: 2014.333333 | K121: 7407.97 | L121: 7407.97 | M121: 61.73308333 | N121: 740.797 | O121: 0 | P121: 7407.97 | Q121: 7407.97 | R121: 0
B122: 14 | C122: 4 Yd FL Container | D122: 2004 | E122: 4 | F122: 0 | G122: S/L | H122: 10 | I122: 2014 | J122: 2014.333333 | K122: 7566.28 | L122: 7566.28 | M122: 63.05233333 | N122: 756.628 | O122: 0 | P122: 7566.28 | Q122: 7566.28 | R122: 0
B123: 16 | C123: 1 Yd FL Container | D123: 2004 | E123: 6 | F123: 0 | G123: S/L | H123: 10 | I123: 2014 | J123: 2014.5 | K123: 693.76 | L123: 693.76 | M123: 5.781333333 | N123: 69.376 | O123: 0 | P123: 693.76 | Q123: 693.76 | R123: 0
B124: 17 | C124: 1 Yd FL Container | D124: 2004 | E124: 6 | F124: 0 | G124: S/L | H124: 10 | I124: 2014 | J124: 2014.5 | K124: 737.12 | L124: 737.12 | M124: 6.142666667 | N124: 73.712 | O124: 0 | P124: 737.12 | Q124: 737.12 | R124: 0
B125: 8 | C125: 1 Yd FL Container | D125: 2004 | E125: 6 | F125: 0 | G125: S/L | H125: 10 | I125: 2014 | J125: 2014.5 | K125: 346.88 | L125: 346.88 | M125: 2.890666667 | N125: 34.688 | O125: 0 | P125: 346.88 | Q125: 346.88 | R125: 0
B126: 12 | C126: 1 Yd RL Container w/comp lid | D126: 2004 | E126: 6 | F126: 0 | G126: S/L | H126: 10 | I126: 2014 | J126: 2014.5 | K126: 4470.67 | L126: 4470.67 | M126: 37.25558333 | N126: 447.067 | O126: 0 | P126: 4470.67 | Q126: 4470.67 | R126: 0
B127: 10 | C127: 2 Yd FL Container | D127: 2004 | E127: 6 | F127: 0 | G127: S/L | H127: 10 | I127: 2014 | J127: 2014.5 | K127: 542 | L127: 542 | M127: 4.516666667 | N127: 54.2 | O127: 0 | P127: 542 | Q127: 542 | R127: 0
B128: 14 | C128: 2 Yd FL Container | D128: 2004 | E128: 6 | F128: 0 | G128: S/L | H128: 10 | I128: 2014 | J128: 2014.5 | K128: 758.8 | L128: 758.8 | M128: 6.323333333 | N128: 75.88 | O128: 0 | P128: 758.8 | Q128: 758.8 | R128: 0
B129: 5 | C129: 2 Yd FL Container | D129: 2004 | E129: 6 | F129: 0 | G129: S/L | H129: 10 | I129: 2014 | J129: 2014.5 | K129: 271.92 | L129: 271.92 | M129: 2.266 | N129: 27.192 | O129: 0 | P129: 271.92 | Q129: 271.92 | R129: 0
B130: 8 | C130: 2 Yd FL Container | D130: 2004 | E130: 6 | F130: 0 | G130: S/L | H130: 10 | I130: 2014 | J130: 2014.5 | K130: 433.6 | L130: 433.6 | M130: 3.613333333 | N130: 43.36 | O130: 0 | P130: 433.6 | Q130: 433.6 | R130: 0
B131: 9 | C131: 2 Yd FL Container | D131: 2004 | E131: 6 | F131: 0 | G131: S/L | H131: 10 | I131: 2014 | J131: 2014.5 | K131: 487.8 | L131: 487.8 | M131: 4.065 | N131: 48.78 | O131: 0 | P131: 487.8 | Q131: 487.8 | R131: 0
B132: 12 | C132: 2 Yd RL Container Straight Front w/Comp Lids | D132: 2004 | E132: 6 | F132: 0 | G132: S/L | H132: 10 | I132: 2014 | J132: 2014.5 | K132: 4810.83 | L132: 4810.83 | M132: 40.09025 | N132: 481.083 | O132: 0 | P132: 4810.83 | Q132: 4810.83 | R132: 0
B133: 5 | C133: 3 Yd FL Container Slant Top w/Comp Lids | D133: 2004 | E133: 6 | F133: 0 | G133: S/L | H133: 10 | I133: 2014 | J133: 2014.5 | K133: 2507.25 | L133: 2507.25 | M133: 20.89375 | N133: 250.725 | O133: 0 | P133: 2507.25 | Q133: 2507.25 | R133: 0
B134: 6 | C134: 4 Yd FL Container Slant Top w/ Comp Lids | D134: 2004 | E134: 6 | F134: 0 | G134: S/L | H134: 10 | I134: 2014 | J134: 2014.5 | K134: 3573.23 | L134: 3573.23 | M134: 29.77691667 | N134: 357.323 | O134: 0 | P134: 3573.23 | Q134: 3573.23 | R134: 0
B135: 4 | C135: 6 Yd FL Container Slant Top w/ Comp Lids | D135: 2004 | E135: 6 | F135: 0 | G135: S/L | H135: 10 | I135: 2014 | J135: 2014.5 | K135: 2957.04 | L135: 2957.04 | M135: 24.642 | N135: 295.704 | O135: 0 | P135: 2957.04 | Q135: 2957.04 | R135: 0
B136: 9 | C136: 3 Yd FL Container, Skid | D136: 2004 | E136: 7 | F136: 0 | G136: S/L | H136: 10 | I136: 2014 | J136: 2014.583333 | K136: 4049.97 | L136: 4049.97 | M136: 33.74975 | N136: 404.997 | O136: 0 | P136: 4049.97 | Q136: 4049.97 | R136: 0
B137: 15 | C137: 4 Yd FL Container Skid | D137: 2004 | E137: 7 | F137: 0 | G137: S/L | H137: 10 | I137: 2014 | J137: 2014.583333 | K137: 8130 | L137: 8130 | M137: 67.75 | N137: 813 | O137: 0 | P137: 8130 | Q137: 8130 | R137: 0
B138: 8 | C138: 6 Yd FL Containers, Peak Style, Skid | D138: 2004 | E138: 7 | F138: 0 | G138: S/L | H138: 10 | I138: 2014 | J138: 2014.583333 | K138: 5592 | L138: 5592 | M138: 46.6 | N138: 559.2 | O138: 0 | P138: 5592 | Q138: 5592 | R138: 0
B139: 3 | C139: 8 Yd FL Container Peak Style, Skid | D139: 2004 | E139: 7 | F139: 0 | G139: S/L | H139: 10 | I139: 2014 | J139: 2014.583333 | K139: 2436 | L139: 2436 | M139: 20.3 | N139: 243.6 | O139: 0 | P139: 2436 | Q139: 2436 | R139: 0
B140: 3 | C140: 1.5 Yd RL/FL Container | D140: 2004 | E140: 8 | F140: 0 | G140: S/L | H140: 10 | I140: =D140+H140 -> 2014 | J140: 2014.666667 | K140: 1197 | L140: =K140-K140*F140 -> 1197 | M140: =L140/H140/12 -> 9.975 | N140: =M140*12 -> 119.7 | O140: 0 | P140: 1197 | Q140: 1197 | R140: =+K140-Q140 -> 0
B141: 7 | C141: 1.5 Yd RL/FL Container | D141: 2004 | E141: 8 | F141: 0 | G141: S/L | H141: 10 | I141: 2014 | J141: =+I141+(E141/12) -> 2014.666667 | K141: 2793 | L141: 2793 | M141: 23.275 | N141: 279.3 | O141: =+IF(J141>$N$6,N141,0) -> 0 | P141: =+IF($J141<=$N$7,$K141,IF(($D141+($E141/12))>=$N$7,0,((($L141-((($J141-$N$7)*12)*$M141)))))) -> 2793 | Q141: =+IF(O141=0,L141,P141+O141) -> 2793 | R141: 0
B142: 3 | C142: 2 Yd RL/FL Container | D142: 2004 | E142: 8 | F142: 0 | G142: S/L | H142: 10 | I142: 2014 | J142: 2014.666667 | K142: 416 | L142: 416 | M142: 3.466666667 | N142: 41.6 | O142: 0 | P142: 416 | Q142: 416 | R142: 0
B143: 4 | C143: 2 Yd RL/FL Container | D143: 2004 | E143: 8 | F143: 0 | G143: S/L | H143: 10 | I143: 2014 | J143: 2014.666667 | K143: 1664 | L143: 1664 | M143: 13.86666667 | N143: 166.4 | O143: 0 | P143: 1664 | Q143: 1664 | R143: 0
B144: 5 | C144: 3 Yd RL Container 2-Lid Style, Wheels | D144: 2004 | E144: 8 | F144: 0 | G144: S/L | H144: 10 | I144: 2014 | J144: 2014.666667 | K144: 2240 | L144: 2240 | M144: 18.66666667 | N144: 224 | O144: 0 | P144: 2240 | Q144: 2240 | R144: 0
B145: 2 | C145: 4 Yd FL Container w/wheels | D145: 2004 | E145: 8 | F145: 0 | G145: S/L | H145: 10 | I145: 2014 | J145: 2014.666667 | K145: 1078 | L145: 1078 | M145: 8.983333333 | N145: 107.8 | O145: 0 | P145: 1078 | Q145: 1078 | R145: 0
B146: 1 | C146: 6 Yd FL Containers, Peak Style, Skid | D146: 2004 | E146: 8 | F146: 0 | G146: S/L | H146: 10 | I146: 2014 | J146: 2014.666667 | K146: 699 | L146: 699 | M146: 5.825 | N146: 69.9 | O146: 0 | P146: 699 | Q146: 699 | R146: 0
B147: 8 | C147: 4 Yd FL Container w/wheels | D147: 2004 | E147: 9 | F147: 0 | G147: S/L | H147: 10 | I147: 2014 | J147: 2014.75 | K147: 4232 | L147: 4232 | M147: 35.26666667 | N147: 423.2 | O147: 0 | P147: 4232 | Q147: 4232 | R147: 0
B148: 2 | C148: 5 Yd FL Containers Peak Style, Skid | D148: 2004 | E148: 9 | F148: 0 | G148: S/L | H148: 10 | I148: 2014 | J148: 2014.75 | K148: 1178 | L148: 1178 | M148: 9.816666667 | N148: 117.8 | O148: 0 | P148: 1178 | Q148: 1178 | R148: 0
B149: 3 | C149: 4 Yd FL Container w/ Lids-Blue Slant Top | D149: 2005 | E149: 1 | F149: 0 | G149: S/L | H149: 10 | I149: 2015 | J149: 2015.083333 | K149: 2361 | L149: 2361 | M149: 19.675 | N149: 236.1 | O149: 0 | P149: 2361 | Q149: 2361 | R149: 0
B150: 15 | C150: 1.5 Yd Container Combo Built in House | D150: 2005 | E150: 5 | F150: 0 | G150: S/L | H150: 10 | I150: 2015 | J150: 2015.416667 | K150: 5775 | L150: 5775 | M150: 48.125 | N150: 577.5 | O150: 0 | P150: 5775 | Q150: 5775 | R150: 0
B151: 10 | C151: 2 Yd Container - Built In House | D151: 2005 | E151: 5 | F151: 0 | G151: S/L | H151: 10 | I151: 2015 | J151: 2015.416667 | K151: 4150 | L151: 4150 | M151: 34.58333333 | N151: 415 | O151: 0 | P151: 4150 | Q151: 4150 | R151: 0
B152: 15 | C152: 2 Yd Container - Built In House | D152: 2005 | E152: 5 | F152: 0 | G152: S/L | H152: 10 | I152: 2015 | J152: 2015.416667 | K152: 6225 | L152: 6225 | M152: 51.875 | N152: 622.5 | O152: 0 | P152: 6225 | Q152: 6225 | R152: 0
B153: 15 | C153: 2 Yd Container - Built In House | D153: 2005 | E153: 5 | F153: 0 | G153: S/L | H153: 10 | I153: 2015 | J153: 2015.416667 | K153: 6225 | L153: 6225 | M153: 51.875 | N153: 622.5 | O153: 0 | P153: 6225 | Q153: 6225 | R153: 0
B154: 20 | C154: 2 Yd Container - Built In House | D154: 2005 | E154: 5 | F154: 0 | G154: S/L | H154: 10 | I154: 2015 | J154: 2015.416667 | K154: 8300 | L154: 8300 | M154: 69.16666667 | N154: 830 | O154: 0 | P154: 8300 | Q154: 8300 | R154: 0
B155: 10 | C155: 4 Yd FL Container - Built In House | D155: 2005 | E155: 5 | F155: 0 | G155: S/L | H155: 10 | I155: 2015 | J155: 2015.416667 | K155: 5800 | L155: 5800 | M155: 48.33333333 | N155: 580 | O155: 0 | P155: 5800 | Q155: 5800 | R155: 0
